Workbook

Sheet Step 1 - Set global parameters
A1: User parameters
A2: Country | B2: Latvia
A3: IFI name | B3: Fiscal Discipline Council
A5: Scenario parameters
A6: What are you assessing? | B6: Implementation of an endorsed MTP
A7: Enter a name for your scenario (free text): | B7: Draft Budgetary Plan 2026
A9: Escape clause parameters
B10: =_xlfn.SEQUENCE(1, MTP_EndYear-MTP_BaseYear, MTP_BaseYear+1) -> 2024 | C10: 2025 | D10: 2026 | E10: 2027 | F10: 2028
B11: =CHOOSE(SIGN(_xlfn.ANCHORARRAY(B10) - MTP_YearT) + 2, "T-1", "T", "T+" & (_xlfn.ANCHORARRAY(B10) - MTP_YearT)) -> T | C11: T+1 | D11: T+2 | E11: T+3 | F11: T+4
A12: Years for which an escape clause has been activated | B12: FALSE | C12: TRUE | D12: TRUE | E12: TRUE | F12: TRUE | G12: FALSE
A13: General or country-specific? | C13: Country | D13: Country | E13: Country | F13: Country | G13: NA
A14: If activated, what was the reason? | C14: Defence | D14: Defence | E14: Defence | F14: Defence | G14: Defence | H14: NA
A15: Cap on deviation from max growth rates of net expenditure, if applicable (% of GDP) | C15: 1.5 | D15: 1.5 | E15: 1.5 | F15: 1.5
A17: Excessive debt/deficit procedure parameters
A18: Excessive deficit procedure opened | B18: FALSE
A19: Deadline year to correct excessive deficit
A20: Excessive debt procedure opened | B20: FALSE
A21: Deadline year to correct excessive debt

Sheet Step 2 - Update outturn data
B1: Outturn data
D2: Last year of outturn data | E2: 2024
B4: Calendar year | D4: =_xlfn.SEQUENCE(1, OutturnThrough-MTP_BaseYear+1, MTP_BaseYear) -> 2023 | E4: 2024
B5: MTSFP reference year | D5: =IF( AND(_xlfn.ANCHORARRAY(D4) >= MTP_YearT-1,_xlfn.ANCHORARRAY( D4) <= MTP_EndYear), "T" & TEXT(_xlfn.ANCHORARRAY(D4) - MTP_YearT, "+0;-0;"), "" ) -> T-1 | E5: T
B6: Total expenditure | C6: bn NAC | D6: =INDEX(184:184, _xlfn.XMATCH(INDEX(_xlfn.ANCHORARRAY(D4),1,1), 33:33, 0) + _xlfn.SEQUENCE(1, COLUMNS(_xlfn.ANCHORARRAY(D4))) - 1)/1000 -> 17.1826 | E6: 18.4135
B7: Interest expenditure | C7: bn NAC | D7: =INDEX(175:175, _xlfn.XMATCH(INDEX(_xlfn.ANCHORARRAY(D4),1,1), 33:33, 0) + _xlfn.SEQUENCE(1, COLUMNS(_xlfn.ANCHORARRAY(D4))) - 1)/1000 -> 0.2869 | E7: 0.4433
B8: Cyclical unemployment expenditure | C8: bn NAC | D8: =INDEX(188:188, _xlfn.XMATCH(INDEX(_xlfn.ANCHORARRAY(D4),1,1), 33:33, 0) + _xlfn.SEQUENCE(1, COLUMNS(_xlfn.ANCHORARRAY(D4))) - 1)/1000 -> -0.001262 | E8: 0.004169
B9: Expenditure funded by transfers from the EU | C9: bn NAC | D9: =INDEX(185:185, _xlfn.XMATCH(INDEX(_xlfn.ANCHORARRAY(D4),1,1), 33:33, 0) + _xlfn.SEQUENCE(1, COLUMNS(_xlfn.ANCHORARRAY(D4))) - 1)/1000 -> 0.7343 | E9: 0.7555
B10: National co-financing of EU programmes | C10: bn NAC | D10: =INDEX(187:187, _xlfn.XMATCH(INDEX(_xlfn.ANCHORARRAY(D4),1,1), 33:33, 0) + _xlfn.SEQUENCE(1, COLUMNS(_xlfn.ANCHORARRAY(D4))) - 1)/1000 -> 0.15825 | E10: 0.13765
B11: One-off expenditure (levels, excl. EU funded) | C11: bn NAC | D11: =INDEX(189:189, _xlfn.XMATCH(INDEX(_xlfn.ANCHORARRAY(D4),1,1), 33:33, 0) + _xlfn.SEQUENCE(1, COLUMNS(_xlfn.ANCHORARRAY(D4))) - 1)/1000 -> 0 | E11: 0
B12: Net nationally financed primary expenditure (before DRM) | C12: bn NAC | D12: =INDEX(190:190, _xlfn.XMATCH(INDEX(_xlfn.ANCHORARRAY(D4),1,1), 33:33, 0) + _xlfn.SEQUENCE(1, COLUMNS(_xlfn.ANCHORARRAY(D4))) - 1)/1000 -> 16.004412 | E12: 17.072881
B13: Discretionary revenue measures (excl. one-off revenue, incremental impact) | C13: bn NAC | D13: =(INDEX(169:169, _xlfn.XMATCH(INDEX(_xlfn.ANCHORARRAY(D4),1,1)+0, 33:33+0, 0) + _xlfn.SEQUENCE(1, COLUMNS(_xlfn.ANCHORARRAY(D4))) - 1))/1000 -> 0 | E13: 0.273808
B14: Defence expenditure | C14: bn NAC | D14: =INDEX(92:92, _xlfn.XMATCH(INDEX(_xlfn.ANCHORARRAY(D4),1,1), 33:33, 0) + _xlfn.SEQUENCE(1, COLUMNS(_xlfn.ANCHORARRAY(D4))) - 1)/1000 -> 1.02493 | E14: 1.10837
B15: Net expenditure growth (annual) | C15: growth rate (%) | D15: =_xlfn.LET( _xlpm.n, COLUMNS(_xlfn.ANCHORARRAY(D4)), _xlpm.seq, _xlfn.SEQUENCE(1,_xlpm.n), _xlpm.col, COLUMN()+_xlpm.seq-1, _xlpm.curr13, INDEX(12:12, _xlpm.col), _xlpm.curr14, INDEX(13:13, _xlpm.col), _xlpm.prev13, INDEX(12:12, _xlpm.col-1), IF(_xlpm.seq=1, "", IFERROR((((_xlpm.curr13-_xlpm.curr14)/_xlpm.prev13)-1)*100, "")) ) ->  | E15: 4.965262079
B16: Net expenditure growth (cumulative) | C16: growth rate (%) | D16: =_xlfn.LET( _xlpm.n, COLUMNS(_xlfn.ANCHORARRAY(D4)), _xlpm.seq, _xlfn.SEQUENCE(1,_xlpm.n), _xlpm.vals, INDEX(15:15, COLUMN()-1+_xlpm.seq), _xlpm.clean, IF(_xlpm.vals="",0,_xlpm.vals/100), _xlpm.cum, _xlfn.SCAN(1, _xlpm.clean, _xlfn.LAMBDA(_xlpm.a,_xlpm.b,_xlpm.a*(1+_xlpm.b))), IF(_xlpm.seq=1,"",(_xlpm.cum-1)*100) ) ->  | E16: 4.965262079
B17: Net lending/borrowing | C17: % GDP | D17: =INDEX(139:139, _xlfn.XMATCH(INDEX(_xlfn.ANCHORARRAY(D4),1,1), 33:33, 0) + _xlfn.SEQUENCE(1, COLUMNS(_xlfn.ANCHORARRAY(D4))) - 1) -> -2.342774528 | E17: -1.786860768
B18: Structural balance | C18: % GDP | D18: =INDEX(142:142, _xlfn.XMATCH(INDEX(_xlfn.ANCHORARRAY(D4),1,1), 33:33, 0) + _xlfn.SEQUENCE(1, COLUMNS(_xlfn.ANCHORARRAY(D4))) - 1) -> -2.10632 | E18: -1.548
B19: Structural primary balance | C19: % GDP | D19: =INDEX(143:143, _xlfn.XMATCH(INDEX(_xlfn.ANCHORARRAY(D4),1,1), 33:33, 0) + _xlfn.SEQUENCE(1, COLUMNS(_xlfn.ANCHORARRAY(D4))) - 1) -> -1.38124 | E19: -0.44949
B20: Gross debt | C20: % GDP | D20: =INDEX(145:145, _xlfn.XMATCH(INDEX(_xlfn.ANCHORARRAY(D4),1,1), 33:33, 0) + _xlfn.SEQUENCE(1, COLUMNS(_xlfn.ANCHORARRAY(D4))) - 1) -> 44.43031832 | E20: 46.2495357
B21: Change in gross debt | C21: % GDP
B22: Real GDP (rate of change, %) | C22: rate of change, % | D22: =_xlfn.LET( _xlpm.pos, _xlfn.XMATCH(INDEX(_xlfn.ANCHORARRAY(D4),1,1)+0, 33:33+0, 0) + _xlfn.SEQUENCE(1, COLUMNS(_xlfn.ANCHORARRAY(D4))), _xlpm.num, INDEX(35:35, _xlpm.pos - 1), _xlpm.den, INDEX(35:35, _xlpm.pos - 2), IF((_xlpm.num=0) + (_xlpm.den=0), "", 100*(_xlpm.num/_xlpm.den - 1)) ) -> -0.9414574313 | E22: -0.03731098501
B23: GDP deflator (rate of change, %) | C23: rate of change, % | D23: =_xlfn.LET( _xlpm.pos, _xlfn.XMATCH(INDEX(_xlfn.ANCHORARRAY(D4),1,1)+0, 33:33+0, 0) + _xlfn.SEQUENCE(1, COLUMNS(_xlfn.ANCHORARRAY(D4))), _xlpm.nomN, INDEX(34:34, _xlpm.pos - 1), _xlpm.nomD, INDEX(34:34, _xlpm.pos - 2), _xlpm.realN, INDEX(35:35, _xlpm.pos - 1), _xlpm.realD, INDEX(35:35, _xlpm.pos - 2), IF((_xlpm.nomN=0)+(_xlpm.nomD=0)+(_xlpm.realN=0)+(_xlpm.realD=0), "", 100*((_xlpm.nomN/_xlpm.realN)/(_xlpm.nomD/_xlpm.realD) - 1)) ) -> 10.6723716 | E23: 2.788565003
B24: Nominal GDP (rate of change, %) | C24: rate of change, % | D24: =_xlfn.LET( _xlpm.pos, _xlfn.XMATCH(INDEX(_xlfn.ANCHORARRAY(D4),1,1)+0, 33:33+0, 0) + _xlfn.SEQUENCE(1, COLUMNS(_xlfn.ANCHORARRAY(D4))), _xlpm.num, INDEX(34:34, _xlpm.pos - 1), _xlpm.den, INDEX(34:34, _xlpm.pos - 2), IF((_xlpm.num=0) + (_xlpm.den=0), "", 100*(_xlpm.num/_xlpm.den - 1)) ) -> 9.630438337 | E24: 2.750213577
B25: Potential growth (rate of change, %) | C25: rate of change, % | D25: =_xlfn.LET( _xlpm.pos, _xlfn.XMATCH(INDEX(_xlfn.ANCHORARRAY(D4),1,1)+0, 33:33+0, 0) + _xlfn.SEQUENCE(1, COLUMNS(_xlfn.ANCHORARRAY(D4))), _xlpm.num, INDEX(90:90, _xlpm.pos - 1), _xlpm.den, INDEX(90:90, _xlpm.pos - 2), IF((_xlpm.num=0) + (_xlpm.den=0), "", 100*(_xlpm.num/_xlpm.den - 1)) ) -> 0.9743541816 | E25: -0.01879470235
B26: Output gap (% pot. GDP) | C26: % pot. GDP | D26: =_xlfn.LET( _xlpm.pos, _xlfn.XMATCH(INDEX(_xlfn.ANCHORARRAY(D4),1,1)+0, 33:33+0, 0) + _xlfn.SEQUENCE(1, COLUMNS(_xlfn.ANCHORARRAY(D4))), _xlpm.rGDP, INDEX(89:89, _xlpm.pos - 1), _xlpm.pGDP, INDEX(90:90, _xlpm.pos - 1), IF((_xlpm.rGDP=0) + (_xlpm.pGDP=0), "", 100*(_xlpm.rGDP/_xlpm.pGDP - 1)) ) -> -0.6750981527 | E26: -0.7022101309
B27: Nominal GDP (level, millions of national currency) | C27: level, bn NAC | D27: =INDEX(34:34, _xlfn.XMATCH(INDEX(_xlfn.ANCHORARRAY(D4),1,1), 33:33, 0) + _xlfn.SEQUENCE(1, COLUMNS(_xlfn.ANCHORARRAY(D4))) - 1)/1000 -> 39.5642 | E27: 40.6523
A29: Full historical data inputs (Eurostat and AMECO)
A30: Country: | B30: =Country -> Latvia
A31: Last updated (Eurostat): | B31: 2026-04-29T07:59:20
A32: Units: | B32: millions NAC unless noted
A33: ESA code | B33: Indicator | C33: Source | D33: =_xlfn.SEQUENCE(1, OutturnThrough-MTP_BaseYear+2, MTP_BaseYear-1) -> 2022 | E33: 2023 | F33: 2024
A34: B1G [CP_MEUR] | B34: Gross domestic product at market prices [B1GQ] | C34: nama_10_gdp | D34: 36088.7 | E34: 39564.2 | F34: 40652.3
A35: B1G [CLV10_MEUR] | B35: Gross domestic product at market prices [B1GQ] | C35: nama_10_gdp | D35: 24621.4 | E35: 24389.6 | F35: 24380.5
A36: P3 | B36: Final consumption expenditure [P3] | C36: nama_10_gdp | D36: 28950.2 | E36: 31244.7 | F36: 32570.1
A37: P6 | B37: Exports of goods and services [P6] | C37: nama_10_gdp | D37: 27969.3 | E37: 26108.3 | F37: 26368.5
A38: P7 | B38: Imports of goods and services [P7] | C38: nama_10_gdp | D38: 29734 | E38: 27557.8 | F38: 27011.9
A39: P6X7 | B39: External balance of goods and services [P6X7] | C39: nama_10_gdp | D39: -1764.7 | E39: -1449.5 | F39: -643.4
A40: P41 | B40: Actual individual consumption [P41] | C40: nama_10_gdp | D40: 25073.8 | E40: 27066.9 | F40: 28282.8
A41: P51 | B41: Gross fixed capital formation [P51G] | C41: nama_10_gdp | D41: 8404.4 | E41: 9504.4 | F41: 9043
A42: P52 | B42: Changes in inventories [P52] | C42: nama_10_gdp | D42: 460.5 | E42: 236.5 | F42: -345.5
A43: P53 | B43: Acquisitions less disposals of valuables [P53] | C43: nama_10_gdp | D43: 38.3 | E43: 28.1 | F43: 28.1
A44: P52_P53 | B44: Changes in inventories and acquisitions less disposals of valuables [P52_P53] | C44: nama_10_gdp | D44: 498.8 | E44: 264.6 | F44: -317.4
A45: P31_S14_S15 | B45: Household and NPISH final consumption expenditure [P31_S14_S15] | C45: nama_10_gdp | D45: 21475 | E45: 22935.3 | F45: 23745.9
A46: P31_S14 | B46: Final consumption expenditure of households [P31_S14] | C46: nama_10_gdp | D46: 21039.7 | E46: 22528.2 | F46: 23346
A47: P31_S15 | B47: Final consumption expenditure of NPISH [P31_S15] | C47: nama_10_gdp | D47: 435.2 | E47: 407 | F47: 399.9
A48: B9 | B48: Net lending (+)/net borrowing (-) [B9] | C48: gov_10a_main S13 | D48: -1753.6 | E48: -926.7 | F48: -726.5
A49: D1PAY | B49: Compensation of employees, expenditure [D1PAY] | C49: gov_10a_main S13 | D49: 4205.9 | E49: 4793.4 | F49: 5333.3
A50: D2REC | B50: Taxes on production and imports [D2REC] | C50: gov_10a_main S13 | D50: 5362.5 | E50: 5576.8 | F50: 5850.4
A51: D3PAY | B51: Subsidies [D3PAY] | C51: gov_10a_main S13 | D51: 663 | E51: 637.3 | F51: 359.2
A52: D4PAY | B52: Property income, expenditure [D4PAY] | C52: gov_10a_main S13 | D52: 184.8 | E52: 288.3 | F52: 444.8
A53: D4REC | B53: Property income, revenue [D4REC] | C53: gov_10a_main S13 | D53: 211.4 | E53: 509.8 | F53: 616.7
A54: D5PAY | B54: Current taxes on income, wealth, etc., expenditure [D5PAY] | C54: gov_10a_main S13 | D54: 1.6 | E54: 3.8 | F54: 1.5
A55: D5REC | B55: Current taxes on income, wealth, etc., revenue [D5REC] | C55: gov_10a_main S13 | D55: 2752.9 | E55: 3138.2 | F55: 3733.2
A56: D7PAY | B56: Other current transfers, expenditure [D7PAY] | C56: gov_10a_main S13 | D56: 937 | E56: 1041.5 | F56: 974.1
A57: D7REC | B57: Other current transfers, revenue [D7REC] | C57: gov_10a_main S13 | D57: 524.6 | E57: 1039.9 | F57: 977.8
A58: D7rec_S212 | B58: Other current transfers, revenue, from the institutions and bodies of the European Union | C58: gov_10a_main S13 | D58: 219.8 | E58: 394.5 | F58: 445
A59: D8 | B59: Adjustment for the change in pension entitlements [D8] | C59: gov_10a_main S13 | D59: 0 | E59: 0 | F59: 0
A60: D9PAY | B60: Capital transfers, expenditure [D9PAY] | C60: gov_10a_main S13 | D60: 267.7 | E60: 87.9 | F60: 128.3
A61: D9REC | B61: Capital transfers, revenue [D9REC] | C61: gov_10a_main S13 | D61: 263.7 | E61: 363.9 | F61: 361.7
A62: D9rec_S212 | B62: Capital transfers, revenue from the institutions and bodies of the EU | C62: gov_10a_main S13 | D62: 208.7 | E62: 339.8 | F62: 310.5
A63: D11_S13 | B63: Wages and salaries [D11] | C63: gov_10a_main S13 | D63: 3243.8 | E63: 3709.3 | F63: 4073.8
A64: D29PAY | B64: Other taxes on production, expenditure [D29PAY] | C64: gov_10a_main S13 | D64: 6.3 | E64: 5.8 | F64: 5.7
A65: D29REC | B65: Other taxes on production, revenue [D29REC] | C65: gov_10a_main S13 | D65: 438.9 | E65: 479 | F65: 591.2
A66: D39PAY | B66: Other subsidies on production, expenditure [D39PAY] | C66: gov_10a_main S13 | D66: 219.5 | E66: 258.5 | F66: 231.8
A67: D39REC | B67: Other subsidies on production, revenue [D39REC] | C67: gov_10a_main S13 | D67: 0.6 | E67: 0 | F67: 0
A68: D41PAY | B68: Interest, expenditure [D41PAY] | C68: gov_10a_main S13 | D68: 183.2 | E68: 286.9 | F68: 443.3
A69: D41REC | B69: Interest, revenue [D41REC] | C69: gov_10a_main S13 | D69: 35 | E69: 136.7 | F69: 199.8
A70: D61 | B70: Net social contributions, revenue [D61REC] | C70: gov_10a_main S13 | D70: 3777.6 | E70: 4261.9 | F70: 4668.9
A71: D62 | B71: Social benefits other than social transfers in kind, expenditure [D62PAY] | C71: gov_10a_main S13 | D71: 4578 | E71: 4718.8 | F71: 5101.4
A72: D632 | B72: Social transfers in kind, purchased market production, expenditure [D632PAY] | C72: gov_10a_main S13 | D72: 670.4 | E72: 816.2 | F72: 870.1
A73: D91 | B73: Capital taxes, revenue [D91REC] | C73: gov_10a_main S13 | D73: 17.3 | E73: 14.4 | F73: 15.3
A74: D92 | B74: Investment grants, revenue [D92REC] | C74: gov_10a_main S13 | D74: 246.4 | E74: 349.5 | F74: 341.8
A75: D92+D99 | B75: Investment grants and other capital transfers, revenue [D92_D99REC] | C75: gov_10a_main S13 | D75: 246.4 | E75: 349.5 | F75: 346.4
A76: D99PAY | B76: Other capital transfers, expenditure [D99PAY] | C76: gov_10a_main S13 | D76: 114.9 | E76: 5.2 | F76: 22.3
A77: D99REC | B77: Other capital transfers, revenue [D99REC] | C77: gov_10a_main S13 | D77: 0 | E77: 0 | F77: 4.6
A78: NP | B78: Acquisitions less disposals of non-financial non-produced assets [NP] | C78: gov_10a_main S13 | D78: -20 | E78: 17.2 | F78: 14.6
A79: P2 | B79: Intermediate consumption of general government [P2_S13] | C79: gov_10a_main S13 | D79: 2426.8 | E79: 2507.3 | F79: 2481.4
A80: P3 | B80: Final consumption expenditure of general government [P3_S13] | C80: gov_10a_main S13 | D80: 7475.3 | E80: 8309.4 | F80: 8824.2
A81: P31 | B81: Individual consumption expenditure of general government [P31_S13] | C81: gov_10a_main S13 | D81: 3598.9 | E81: 4131.7 | F81: 4536.9
A82: P32 | B82: Collective consumption expenditure of general government [P32_S13] | C82: gov_10a_main S13 | D82: 3876.4 | E82: 4177.7 | F82: 4287.2
A83: P51G | B83: Gross fixed capital formation [P51G] | C83: gov_10a_main S13 | D83: 1717.6 | E83: 2231.3 | F83: 2560.7
A84: P52_P53 | B84: Changes in inventories and acquisitions less disposals of valuables of general government [P52_P53_S13] | C84: gov_10a_main S13 | D84: 325.4 | E84: 33.8 | F84: 138.4
A85: P11 | B85: Market output [P11] | C85: gov_10a_main S13 | D85: 910.8 | E85: 970.2 | F85: 1041
A86: P12 | B86: Output for own final use [P12] | C86: gov_10a_main S13 | D86: 212.6 | E86: 220.6 | F86: 237
A87: P131 | B87: Payments for non-market output [P131] | C87: gov_10a_main S13 | D87: 194.3 | E87: 174.4 | F87: 200.4
A88: GD | B88: Government consolidated gross debt [GD] | C88: gov_10dd_edpt1 S13 | D88: 16038.9 | E88: 17578.5 | F88: 18801.5
A89: OVGD | B89: Real GDP AMECO | C89: AMECO 6 | D89: 31849.74 | E89: 31549.83 | F89: 31535.29
A90: OVGDP | B90: Potential GDP (real) level | C90: AMECO 6 | D90: 31457.76 | E90: 31764.27 | F90: 31758.3
A91: UIGG02H | B91: Expenditure on defence - GFCF | C91: AMECO 16 | D91: 145.81 | E91: 278.78 | F91: 378.96
A92: UUTG02H | B92: Expenditure on defence - Total general government expenditure | C92: AMECO 16 | D92: 864.28 | E92: 1024.93 | F92: 1108.37
A93: UUTGCF | B93: Expenditure on national cofinancing of programmes funded by the EU - Total general government expenditure | C93: AMECO 16 | E93: 158.25 | F93: 137.65
A94: UDMGR | B94: Discretionary measures (revenue) - excl. EU financed and one-off revenue (DRM): general government | C94: AMECO 16 | F94: 273.808
A95: URTGEU (D.7EU+D9EU) | B95: Expenditure funded by transfers from the EU: general government | C95: AMECO 16 | E95: 734.29 | F95: 755.57
A96: UUTZ105 | B96: Cyclical unemployment expenditure: general government | C96: AMECO 16 | E96: -1.262 | F96: 4.169
A97: UOOMSE | B97: One-off measures (expenditure) - excl. EU financed: general government | C97: AMECO 16 | D97: 0 | E97: 0 | F97: 0
A98: UBLGAPS | B98: Structural balance of general government :- Adjustment based on potential GDP Excessive deficit procedure (Percentage of potential GDP at current prices) | C98: AMECO 17 | D98: -5.33019 | E98: -2.10632 | F98: -1.548
A99: UBLGBPS | B99: Structural balance of general government excluding interest :- Adjustment based on potential GDP Excessive deficit procedure (Percentage of potential GDP at current prices) | C99: AMECO 17 | D99: -4.82258 | E99: -1.38124 | F99: -0.44949
A101: Intermediary calculation tables
A102: Requirements as outlined in https://eur-lex.europa.eu/eli/C/2024/3975/oj/eng
A103: % of GDP | C103: ESA Code | D103: =_xlfn.SEQUENCE(1, OutturnThrough-MTP_BaseYear+2, MTP_BaseYear-1) -> 2022 | E103: 2023 | F103: 2024
B104: MTP year | D104: =IF(_xlfn.ANCHORARRAY(D103) = MTP_YearT, "T", "T" & IF(_xlfn.ANCHORARRAY(D103) > MTP_YearT, "+", "") & (_xlfn.ANCHORARRAY(D103) - MTP_YearT)) -> T-2 | E104: T-1 | F104: T
B105: Revenue
A106: 1 | B106: Taxes on production and imports | C106: D.2 | D106: =IFERROR(D160/D$34*100,"") -> 14.85922186 | E106: =IFERROR(E160/E$34*100,"") -> 14.09557125 | F106: 14.39131365 | L106: =IFERROR(L160/L$34*100,"") -> 
A107: 2 | B107: Current taxes on income, wealth, etc. | C107: D.5 | D107: 7.628149532 | E107: =IFERROR(E161/E$34*100,"") -> 7.931918249 | F107: 9.183244244 | L107: =IFERROR(L161/L$34*100,"") -> 
A108: 3 | B108: Social contributions | C108: D.61 | D108: 10.46754247 | E108: =IFERROR(E162/E$34*100,"") -> 10.77211216 | F108: 11.48495903 | L108: =IFERROR(L162/L$34*100,"") -> 
A109: 4 | B109: Other current revenue | C109: (P.11+P.12+P.131)+D.39+D.4+D.7 | D109: 5.692363538 | E109: =IFERROR(E163/E$34*100,"") -> 7.367519121 | F109: 7.558981903 | L109: =IFERROR(L163/L$34*100,"") -> 
A110: 5 | B110: Capital taxes | C110: D.91 | D110: 0.04793744302 | E110: =IFERROR(E164/E$34*100,"") -> 0.03639654031 | F110: 0.0376362469 | L110: =IFERROR(L164/L$34*100,"") -> 
A111: 6 | B111: Other capital revenue | C111: D.92+D.99 | D111: 0.6827621943 | E111: =IFERROR(E165/E$34*100,"") -> 0.8833743637 | F111: 0.852104309 | L111: =IFERROR(L165/L$34*100,"") -> 
A112: 7 | B112: Total revenue (=1+2+3+4+5+6) | C112: TR | D112: 39.37797704 | E112: =IFERROR(E166/E$34*100,"") -> 41.08689168 | F112: 43.50823939 | L112: =IFERROR(L166/L$34*100,"") -> 
A113: 8 | B113: Of which: Transfers from the EU (accrued revenue, not cash) | C113: D.7EU+D.9EU | D113: 1.187352274 | E113: =IFERROR(E167/E$34*100,"") -> 1.855970802 | F113: 1.858443434 | L113: =IFERROR(L167/L$34*100,"") -> 
A114: 9 | B114: Total revenue other than transfers from the EU (=7-8) | D114: 38.19062477 | E114: =IFERROR(E168/E$34*100,"") -> 39.23092088 | F114: 41.64979595 | L114: =IFERROR(L168/L$34*100,"") -> 
A115: 10 | B115: p.m. Revenue measures (increments, excluding EU funded measures) | D115: 0 | E115: =IFERROR(E169/E$34*100,"") -> 0 | F115: 0.6735363067 | L115: =IFERROR(L169/L$34*100,"") -> 
A116: 11 | B116: p.m. One-off measures included in the projections (levels, excluding EU funded measures) | D116: =IFERROR(D171/D$34*100,"") -> 0 | E116: =IFERROR(E171/E$34*100,"") -> 0 | F116: 0.002459885419 | L116: =IFERROR(L171/L$34*100,"") -> 
B117: Expenditure
A118: 12 | B118: Compensation of employees | C118: D.1 | D118: =IFERROR(D173/D$34*100,"") -> 11.65434056 | E118: =IFERROR(E173/E$34*100,"") -> 12.11549835 | F118: 13.1193069 | L118: =IFERROR(L173/L$34*100,"") -> 
A119: 13 | B119: Intermediate consumption | C119: P.2 | D119: 6.724542585 | E119: =IFERROR(E174/E$34*100,"") -> 6.337294827 | F119: 6.103959678 | L119: =IFERROR(L174/L$34*100,"") -> 
A120: 14 | B120: Interest expenditure | C120: D.41 | D120: 0.507638125 | E120: =IFERROR(E175/E$34*100,"") -> 0.7251505149 | F120: 1.090467206 | L120: =IFERROR(L175/L$34*100,"") -> 
A121: 15 | B121: Social benefits other than social transfers in kind | C121: D.62 | D121: 12.68541122 | E121: =IFERROR(E176/E$34*100,"") -> 11.92694406 | F121: 12.54885947 | L121: =IFERROR(L176/L$34*100,"") -> 
A122: 16 | B122: Social transfers in kind via market producers | C122: D.632 | D122: 1.857645191 | E122: =IFERROR(E177/E$34*100,"") -> 2.062976125 | F122: 2.140346303 | L122: =IFERROR(L177/L$34*100,"") -> 
A123: 17 | B123: Subsidies | C123: D.3 | D123: 1.837140157 | E123: =IFERROR(E178/E$34*100,"") -> 1.610799662 | F123: 0.8835908423 | L123: =IFERROR(L178/L$34*100,"") -> 
A124: 18 | B124: Other current expenditure | C124: D.29+(D.4-D.41)+D.5+D.7+D.8 | D124: 2.622704614 | E124: =IFERROR(E179/E$34*100,"") -> 2.660233241 | F124: 2.417575389 | L124: =IFERROR(L179/L$34*100,"") -> 
A125: 19 | B125: Gross fixed capital formation | C125: P.51 | D125: 4.759384516 | E125: =IFERROR(E180/E$34*100,"") -> 5.639694471 | F125: 6.299028591 | L125: =IFERROR(L180/L$34*100,"") -> 
A126: 20 | B126: Of which: nationally financed public investment | D126: 0 | E126: =IFERROR(E181/E$34*100,"") -> 0 | F126: 0 | L126: =IFERROR(L181/L$34*100,"") -> 
A127: 21 | B127: Capital transfers | C127: D.9 | D127: 0.7417834391 | E127: =IFERROR(E182/E$34*100,"") -> 0.2221705481 | F127: 0.3156032992 | L127: =IFERROR(L182/L$34*100,"") -> 
A128: 22 | B128: Other capital expenditure | C128: P.52+P.53+NP | D128: 0.8462482716 | E128: =IFERROR(E183/E$34*100,"") -> 0.1289044136 | F128: 0.376362469 | L128: =IFERROR(L183/L$34*100,"") -> 
A129: 23 | B129: Total expenditure (=12+13+14+15+16+17+18+19+21+22) | C129: TE | D129: 44.23683868 | E129: =IFERROR(E184/E$34*100,"") -> 43.42966621 | F129: 45.29510015 | L129: =IFERROR(L184/L$34*100,"") -> 
A130: 24 | B130: Of which: expenditure funded by transfers from the EU (=8) | C130: D.7EU+D.9EU
A131: 25 | B131: Nationally financed expenditure (=23-24) | D131: =IFERROR(D129-D130,"") -> 44.23683868 | E131: =IFERROR(E129-E130,"") -> 43.42966621 | F131: 45.29510015 | L131: =IFERROR(L129-L130,"") ->  | M131: =IFERROR(M129-M130,"") ->  | N131: =IFERROR(N129-N130,"") ->  | O131: =IFERROR(O129-O130,"") ->  | P131: =IFERROR(P129-P130,"") ->  | Q131: =IFERROR(Q129-Q130,"") ->  | R131: =IFERROR(R129-R130,"") ->  | S131: =IFERROR(S129-S130,"") ->  | T131: =IFERROR(T129-T130,"") ->  | U131: =IFERROR(U129-U130,"") ->  | V131: =IFERROR(V129-V130,"") ->  | W131: =IFERROR(W129-W130,"") ->  | X131: =IFERROR(X129-X130,"") ->  | Y131: =IFERROR(Y129-Y130,"") ->  | Z131: =IFERROR(Z129-Z130,"") -> 
A132: 26 | B132: p.m. National co-financing of programmes funded by transfers from the EU | C132: AMECO16:UUTGCF | D132: =IFERROR(D187/D$34*100,"") -> 0 | E132: =IFERROR(E187/E$34*100,"") -> 0.3999828127 | F132: 0.3386032279 | L132: =IFERROR(L187/L$34*100,"") -> 
A133: 27 | B133: p.m. Cyclical component of unemployment benefits | C133: AMECO16: UUTZ105 | D133: =IFERROR(D188/D$34*100,"") -> 0 | E133: =IFERROR(E188/E$34*100,"") -> -0.003189752352 | F133: 0.01025526231 | L133: =IFERROR(L188/L$34*100,"") -> 
A134: 28 | B134: p.m. One-off expenditure included in the projections (levels, excluding EU funded measures) | C134: AMECO16:UOOMSE | D134: =IFERROR(D189/D$34*100,"") -> 0 | E134: =IFERROR(E189/E$34*100,"") -> 0 | F134: 0 | L134: =IFERROR(L189/L$34*100,"") -> 
A135: 29 | B135: Net nationally financed primary expenditure (before revenue measures) (=25-26-27-28-14) | D135: =IFERROR(D131-D132-D133-D134-D120,"") -> 43.72920055 | E135: =IFERROR(E131-E132-E133-E134-E120,"") -> 42.30772264 | F135: 43.85577446 | L135: =IFERROR(L131-L132-L133-L134-L120,"") ->  | M135: =IFERROR(M131-M132-M133-M134-M120,"") ->  | N135: =IFERROR(N131-N132-N133-N134-N120,"") ->  | O135: =IFERROR(O131-O132-O133-O134-O120,"") ->  | P135: =IFERROR(P131-P132-P133-P134-P120,"") ->  | Q135: =IFERROR(Q131-Q132-Q133-Q134-Q120,"") ->  | R135: =IFERROR(R131-R132-R133-R134-R120,"") ->  | S135: =IFERROR(S131-S132-S133-S134-S120,"") ->  | T135: =IFERROR(T131-T132-T133-T134-T120,"") ->  | U135: =IFERROR(U131-U132-U133-U134-U120,"") ->  | V135: =IFERROR(V131-V132-V133-V134-V120,"") ->  | W135: =IFERROR(W131-W132-W133-W134-W120,"") ->  | X135: =IFERROR(X131-X132-X133-X134-X120,"") ->  | Y135: =IFERROR(Y131-Y132-Y133-Y134-Y120,"") ->  | Z135: =IFERROR(Z131-Z132-Z133-Z134-Z120,"") -> 
B136: Net nationally financed primary expenditure
B138: Balances
B139: Net lending/borrowing (=7-23) | C139: B.9 | D139: =IFERROR(D194/D$34*100,"") -> -4.858861638 | E139: =IFERROR(E194/E$34*100,"") -> -2.342774528 | F139: -1.786860768 | L139: =IFERROR(L194/L$34*100,"") -> 
B140: Primary balance (=31-14) | C140: B.9-D.41p | D140: =IFERROR(D195/D$34*100,"") -> -5.366499763 | E140: =IFERROR(E195/E$34*100,"") -> -3.067925043 | F140: -2.877327974 | L140: =IFERROR(L195/L$34*100,"") -> 
B141: Cyclical adjustment
B142: Structural balance | C142: AMECO17: UBLGAPS | D142: =IFERROR(D98,"") -> -5.33019 | E142: =IFERROR(E98,"") -> -2.10632 | F142: -1.548 | G142: 0 | H142: 0 | I142: 0 | J142: 0 | K142: 0 | L142: =IFERROR(L98,"") -> 0 | M142: 0 | N142: 0 | O142: 0 | P142: 0 | Q142: 0 | R142: 0 | S142: 0 | T142: 0 | U142: 0 | V142: 0 | W142: 0 | X142: 0 | Y142: 0 | Z142: 0
B143: Structural primary balance | C143: AMECO17: UBLGBPS | D143: =IFERROR(D99,"") -> -4.82258 | E143: =IFERROR(E99,"") -> -1.38124 | F143: -0.44949 | G143: 0 | H143: 0 | I143: 0 | J143: 0 | K143: 0 | L143: =IFERROR(L99,"") -> 0 | M143: 0 | N143: 0 | O143: 0 | P143: 0 | Q143: 0 | R143: 0 | S143: 0 | T143: 0 | U143: 0 | V143: 0 | W143: 0 | X143: 0 | Y143: 0 | Z143: 0
B144: Debt
B145: Gross debt | D145: =IFERROR(D200/D$34*100,"") -> 44.44299739 | E145: =IFERROR(E200/E$34*100,"") -> 44.43031832 | F145: 46.2495357 | L145: =IFERROR(L200/L$34*100,"") -> 
B146: Change in gross debt | D146: =IFERROR(D201/D$34*100,"") -> 0 | E146: =IFERROR(E201/E$34*100,"") -> 3.891396768 | F146: 3.008439867 | L146: =IFERROR(L201/L$34*100,"") -> 
B147: Contributions to change in gross debt
B148: Primary balance (=-32) | D148: =IFERROR(D203/D$34*100,"") -> 5.366499763 | E148: =IFERROR(E203/E$34*100,"") -> 3.067925043 | F148: 2.877327974 | L148: =IFERROR(L203/L$34*100,"") -> 
B149: Snowball effect | D149: 0 | E149: =IFERROR(E204/E$34*100,"") -> 0 | F149: 0 | L149: =IFERROR(L204/L$34*100,"") -> 
B150: Interest expenditure (=14) | D150: 0.507638125 | E150: =IFERROR(E205/E$34*100,"") -> 0.7251505149 | F150: 1.090467206 | L150: =IFERROR(L205/L$34*100,"") -> 
B151: Growth | D151: 0 | E151: =IFERROR(E206/E$34*100,"") -> 0 | F151: 0 | L151: =IFERROR(L206/L$34*100,"") -> 
B152: Inflation | D152: 0 | E152: =IFERROR(E207/E$34*100,"") -> 0 | F152: 0 | L152: =IFERROR(L207/L$34*100,"") -> 
B153: Stock-flow adjustment (=36-38-39) | D153: -5.366499763 | E153: =IFERROR(E208/E$34*100,"") -> 0.8234717244 | F153: 0.1311118928 | L153: =IFERROR(L208/L$34*100,"") -> 
B155: p.m. Implicit interest rate on debt (=14/debt(t-1))
A157: millions national currency | C157: ESA Code | D157: =_xlfn.SEQUENCE(1, OutturnThrough-MTP_BaseYear+2, MTP_BaseYear-1) -> 2022 | E157: 2023 | F157: 2024
B158: MTP year | D158: =IF(_xlfn.ANCHORARRAY(D103) = MTP_YearT, "T", "T" & IF(_xlfn.ANCHORARRAY(D103) > MTP_YearT, "+", "") & (_xlfn.ANCHORARRAY(D103) - MTP_YearT)) -> T-2 | E158: T-1 | F158: T
B159: Revenue
A160: 1 | B160: Taxes on production and imports | C160: D.2 | D160: =D50 -> 5362.5 | E160: 5576.8 | F160: =F50 -> 5850.4 | G160: 0 | H160: 0 | I160: 0 | J160: 0 | K160: 0 | L160: =L50 -> 0 | M160: 0 | N160: 0 | O160: 0 | P160: 0 | Q160: 0 | R160: 0 | S160: 0 | T160: 0 | U160: 0 | V160: 0 | W160: 0 | X160: 0 | Y160: 0 | Z160: 0
A161: 2 | B161: Current taxes on income, wealth, etc. | C161: D.5 | D161: =D55 -> 2752.9 | E161: 3138.2 | F161: =F55 -> 3733.2 | G161: 0 | H161: 0 | I161: 0 | J161: 0 | K161: 0 | L161: =L55 -> 0 | M161: 0 | N161: 0 | O161: 0 | P161: 0 | Q161: 0 | R161: 0 | S161: 0 | T161: 0 | U161: 0 | V161: 0 | W161: 0 | X161: 0 | Y161: 0 | Z161: 0
A162: 3 | B162: Social contributions | C162: D.61 | D162: =D70 -> 3777.6 | E162: 4261.9 | F162: =F70 -> 4668.9 | G162: 0 | H162: 0 | I162: 0 | J162: 0 | K162: 0 | L162: =L70 -> 0 | M162: 0 | N162: 0 | O162: 0 | P162: 0 | Q162: 0 | R162: 0 | S162: 0 | T162: 0 | U162: 0 | V162: 0 | W162: 0 | X162: 0 | Y162: 0 | Z162: 0
A163: 4 | B163: Other current revenue | C163: (P.11+P.12+P.131)+D.39+D.4+D.7 | D163: =(D85+D86+D87)+D67+D53+D57 -> 2054.3 | E163: 2914.9 | F163: =(F85+F86+F87)+F67+F53+F57 -> 3072.9 | G163: 0 | H163: 0 | I163: 0 | J163: 0 | K163: 0 | L163: =(L85+L86+L87)+L67+L53+L57 -> 0 | M163: 0 | N163: 0 | O163: 0 | P163: 0 | Q163: 0 | R163: 0 | S163: 0 | T163: 0 | U163: 0 | V163: 0 | W163: 0 | X163: 0 | Y163: 0 | Z163: 0
A164: 5 | B164: Capital taxes | C164: D.91 | D164: =D73 -> 17.3 | E164: 14.4 | F164: =F73 -> 15.3 | G164: 0 | H164: 0 | I164: 0 | J164: 0 | K164: 0 | L164: =L73 -> 0 | M164: 0 | N164: 0 | O164: 0 | P164: 0 | Q164: 0 | R164: 0 | S164: 0 | T164: 0 | U164: 0 | V164: 0 | W164: 0 | X164: 0 | Y164: 0 | Z164: 0
A165: 6 | B165: Other capital revenue | C165: D.92+D.99 | D165: =D74+D77 -> 246.4 | E165: 349.5 | F165: =F74+F77 -> 346.4 | G165: 0 | H165: 0 | I165: 0 | J165: 0 | K165: 0 | L165: =L74+L77 -> 0 | M165: 0 | N165: 0 | O165: 0 | P165: 0 | Q165: 0 | R165: 0 | S165: 0 | T165: 0 | U165: 0 | V165: 0 | W165: 0 | X165: 0 | Y165: 0 | Z165: 0
A166: 7 | B166: Total revenue (=1+2+3+4+5+6) | C166: TR | D166: =D160+D161+D162+D163+D164+D165 -> 14211 | E166: 16255.7 | F166: =F160+F161+F162+F163+F164+F165 -> 17687.1 | G166: 0 | H166: 0 | I166: 0 | J166: 0 | K166: 0 | L166: =L160+L161+L162+L163+L164+L165 -> 0 | M166: 0 | N166: 0 | O166: 0 | P166: 0 | Q166: 0 | R166: 0 | S166: 0 | T166: 0 | U166: 0 | V166: 0 | W166: 0 | X166: 0 | Y166: 0 | Z166: 0
A167: 8 | B167: Of which: Transfers from the EU (accrued revenue, not cash) | C167: D.7EU+D.9EU | D167: =SUM(D58+D62) -> 428.5 | E167: 734.3 | F167: =SUM(F58+F62) -> 755.5 | G167: 0 | H167: 0 | I167: 0 | J167: 0 | K167: 0 | L167: =SUM(L58+L62) -> 0 | M167: 0 | N167: 0 | O167: 0 | P167: 0 | Q167: 0 | R167: 0 | S167: 0 | T167: 0 | U167: 0 | V167: 0 | W167: 0 | X167: 0 | Y167: 0 | Z167: 0
A168: 9 | B168: Total revenue other than transfers from the EU (=7-8) | D168: =D166-D167 -> 13782.5 | E168: 15521.4 | F168: =F166-F167 -> 16931.6 | G168: 0 | H168: 0 | I168: 0 | J168: 0 | K168: 0 | L168: =L166-L167 -> 0 | M168: 0 | N168: 0 | O168: 0 | P168: 0 | Q168: 0 | R168: 0 | S168: 0 | T168: 0 | U168: 0 | V168: 0 | W168: 0 | X168: 0 | Y168: 0 | Z168: 0
A169: 10 | B169: p.m. Revenue measures (increments, excluding EU funded measures) | C169: AMECO16: UDMGR | D169: =D94 -> 0 | E169: =E94 -> 0 | F169: 273.808
B170: p.m. Revenue reductions funded by transfers from the EU (levels)
A171: 11 | B171: p.m. One-off revenue included in projections (levels, excluding EU funded measures) | C171: AMECO17: UOOMSR | D171: 0 | E171: 0 | F171: 1 | G171: 2 | H171: 3 | I171: 4 | J171: 5 | K171: 6 | L171: 7 | M171: 8 | N171: 9 | O171: 10 | P171: 11 | Q171: 12 | R171: 13 | S171: 14 | T171: 15 | U171: 16 | V171: 17 | W171: 18 | X171: 19 | Y171: 20 | Z171: 21
B172: Expenditure
A173: 12 | B173: Compensation of employees | C173: D.1 | D173: =D49 -> 4205.9 | E173: 4793.4 | F173: =F49 -> 5333.3 | G173: 0 | H173: 0 | I173: 0 | J173: 0 | K173: 0 | L173: =L49 -> 0 | M173: 0 | N173: 0 | O173: 0 | P173: 0 | Q173: 0 | R173: 0 | S173: 0 | T173: 0 | U173: 0 | V173: 0 | W173: 0 | X173: 0 | Y173: 0 | Z173: 0
A174: 13 | B174: Intermediate consumption | C174: P.2 | D174: =D79 -> 2426.8 | E174: 2507.3 | F174: =F79 -> 2481.4 | G174: 0 | H174: 0 | I174: 0 | J174: 0 | K174: 0 | L174: =L79 -> 0 | M174: 0 | N174: 0 | O174: 0 | P174: 0 | Q174: 0 | R174: 0 | S174: 0 | T174: 0 | U174: 0 | V174: 0 | W174: 0 | X174: 0 | Y174: 0 | Z174: 0
A175: 14 | B175: Interest expenditure | C175: D.41 | D175: =D68 -> 183.2 | E175: 286.9 | F175: =F68 -> 443.3 | G175: 0 | H175: 0 | I175: 0 | J175: 0 | K175: 0 | L175: =L68 -> 0 | M175: 0 | N175: 0 | O175: 0 | P175: 0 | Q175: 0 | R175: 0 | S175: 0 | T175: 0 | U175: 0 | V175: 0 | W175: 0 | X175: 0 | Y175: 0 | Z175: 0
A176: 15 | B176: Social benefits other than social transfers in kind | C176: D.62 | D176: =D71 -> 4578 | E176: 4718.8 | F176: =F71 -> 5101.4 | G176: 0 | H176: 0 | I176: 0 | J176: 0 | K176: 0 | L176: =L71 -> 0 | M176: 0 | N176: 0 | O176: 0 | P176: 0 | Q176: 0 | R176: 0 | S176: 0 | T176: 0 | U176: 0 | V176: 0 | W176: 0 | X176: 0 | Y176: 0 | Z176: 0
A177: 16 | B177: Social transfers in kind via market producers | C177: D.632 | D177: =D72 -> 670.4 | E177: 816.2 | F177: =F72 -> 870.1 | G177: 0 | H177: 0 | I177: 0 | J177: 0 | K177: 0 | L177: =L72 -> 0 | M177: 0 | N177: 0 | O177: 0 | P177: 0 | Q177: 0 | R177: 0 | S177: 0 | T177: 0 | U177: 0 | V177: 0 | W177: 0 | X177: 0 | Y177: 0 | Z177: 0
A178: 17 | B178: Subsidies | C178: D.3 | D178: =D51 -> 663 | E178: 637.3 | F178: =F51 -> 359.2 | G178: 0 | H178: 0 | I178: 0 | J178: 0 | K178: 0 | L178: =L51 -> 0 | M178: 0 | N178: 0 | O178: 0 | P178: 0 | Q178: 0 | R178: 0 | S178: 0 | T178: 0 | U178: 0 | V178: 0 | W178: 0 | X178: 0 | Y178: 0 | Z178: 0
A179: 18 | B179: Other current expenditure | C179: D.29+(D.4-D.41)+D.5+D.7+D.8 | D179: =D64+(D52-D68)+D54+D56+D59 -> 946.5 | E179: 1052.5 | F179: =F64+(F52-F68)+F54+F56+F59 -> 982.8 | G179: 0 | H179: 0 | I179: 0 | J179: 0 | K179: 0 | L179: =L64+(L52-L68)+L54+L56+L59 -> 0 | M179: 0 | N179: 0 | O179: 0 | P179: 0 | Q179: 0 | R179: 0 | S179: 0 | T179: 0 | U179: 0 | V179: 0 | W179: 0 | X179: 0 | Y179: 0 | Z179: 0
A180: 19 | B180: Gross fixed capital formation | C180: P.51 | D180: =D83 -> 1717.6 | E180: 2231.3 | F180: =F83 -> 2560.7 | G180: 0 | H180: 0 | I180: 0 | J180: 0 | K180: 0 | L180: =L83 -> 0 | M180: 0 | N180: 0 | O180: 0 | P180: 0 | Q180: 0 | R180: 0 | S180: 0 | T180: 0 | U180: 0 | V180: 0 | W180: 0 | X180: 0 | Y180: 0 | Z180: 0
A181: 20 | B181: Of which: nationally financed public investment
A182: 21 | B182: Capital transfers | C182: D.9 | D182: =D60 -> 267.7 | E182: 87.9 | F182: =F60 -> 128.3 | G182: 0 | H182: 0 | I182: 0 | J182: 0 | K182: 0 | L182: =L60 -> 0 | M182: 0 | N182: 0 | O182: 0 | P182: 0 | Q182: 0 | R182: 0 | S182: 0 | T182: 0 | U182: 0 | V182: 0 | W182: 0 | X182: 0 | Y182: 0 | Z182: 0
A183: 22 | B183: Other capital expenditure | C183: P.52+P.53+NP | D183: =D84+D78 -> 305.4 | E183: 51 | F183: =F84+F78 -> 153 | G183: 0 | H183: 0 | I183: 0 | J183: 0 | K183: 0 | L183: =L84+L78 -> 0 | M183: 0 | N183: 0 | O183: 0 | P183: 0 | Q183: 0 | R183: 0 | S183: 0 | T183: 0 | U183: 0 | V183: 0 | W183: 0 | X183: 0 | Y183: 0 | Z183: 0
A184: 23 | B184: Total expenditure (=12+13+14+15+16+17+18+19+21+22) | C184: TE | D184: =D173+D174+D175+D176+D177+D178+D179+D180+D182+D183 -> 15964.5 | E184: =E173+E174+E175+E176+E177+E178+E179+E180+E182+E183 -> 17182.6 | F184: =F173+F174+F175+F176+F177+F178+F179+F180+F182+F183 -> 18413.5 | G184: 0 | H184: 0 | I184: 0 | J184: 0 | K184: 0 | L184: =L173+L174+L175+L176+L177+L178+L179+L180+L182+L183 -> 0 | M184: 0 | N184: 0 | O184: 0 | P184: 0 | Q184: 0 | R184: 0 | S184: 0 | T184: 0 | U184: 0 | V184: 0 | W184: 0 | X184: 0 | Y184: 0 | Z184: 0
A185: 24 | B185: Of which: expenditure funded by transfers from the EU (=8) | C185: D.7EU+D.9EU | D185: =D167 -> 428.5 | E185: =E167 -> 734.3 | F185: 755.5 | G185: 0 | H185: 0 | I185: 0 | J185: 0
A186: 25 | B186: Nationally financed expenditure (=23-24) | D186: =D184-D185 -> 15536 | E186: 16448.3 | F186: =F184-F185 -> 17658 | G186: 0 | H186: 0 | I186: 0 | J186: 0 | K186: 0 | L186: =L184-L185 -> 0 | M186: 0 | N186: 0 | O186: 0 | P186: 0 | Q186: 0 | R186: 0 | S186: 0 | T186: 0 | U186: 0 | V186: 0 | W186: 0 | X186: 0 | Y186: 0 | Z186: 0
A187: 26 | B187: p.m. National co-financing of programmes funded by transfers from the EU | C187: AMECO16:UUTGCF | D187: =D93 -> 0 | E187: =E93 -> 158.25 | F187: 137.65 | G187: 0 | H187: 0 | I187: 0 | J187: 0
A188: 27 | B188: p.m. Cyclical component of unemployment benefits | C188: AMECO16: UUTZ105 | D188: =D96 -> 0 | E188: =E96 -> -1.262 | F188: 4.169 | G188: 0 | H188: 0 | I188: 0 | J188: 0
A189: 28 | B189: p.m. One-off expenditure included in the projections (levels, excluding EU funded measures) | C189: AMECO16:UOOMSE | D189: =D97 -> 0 | E189: 0 | F189: =F97 -> 0 | G189: 0 | H189: 0 | I189: 0 | J189: 0 | K189: 0 | L189: =L97 -> 0 | M189: 0 | N189: 0 | O189: 0 | P189: 0 | Q189: 0 | R189: 0 | S189: 0 | T189: 0 | U189: 0 | V189: 0 | W189: 0 | X189: 0 | Y189: 0 | Z189: 0
A190: 29 | B190: Net nationally financed primary expenditure (before revenue measures) (=25-26-27-28-14) | D190: =D186-D187-D188-D189-D175 -> 15352.8 | E190: 16004.412 | F190: =F186-F187-F188-F189-F175 -> 17072.881 | G190: 0 | H190: 0 | I190: 0 | J190: 0 | K190: 0 | L190: =L186-L187-L188-L189-L175 -> 0 | M190: 0 | N190: 0 | O190: 0 | P190: 0 | Q190: 0 | R190: 0 | S190: 0 | T190: 0 | U190: 0 | V190: 0 | W190: 0 | X190: 0 | Y190: 0 | Z190: 0
B191: Net nationally financed primary expenditure
A192: 30 | B192: Net nationally financed primary expenditure growth
B193: Balances
A194: 31 | B194: Net lending/borrowing (=7-23) | C194: B.9 | D194: =D166-D184 -> -1753.5 | E194: -926.9 | F194: =F166-F184 -> -726.4 | G194: 0 | H194: 0 | I194: 0 | J194: 0 | K194: 0 | L194: =L166-L184 -> 0 | M194: 0 | N194: 0 | O194: 0 | P194: 0 | Q194: 0 | R194: 0 | S194: 0 | T194: 0 | U194: 0 | V194: 0 | W194: 0 | X194: 0 | Y194: 0 | Z194: 0
A195: 32 | B195: Primary balance (=31-14) | C195: B.9-D.41p | D195: =D194-D175 -> -1936.7 | E195: -1213.8 | F195: =F194-F175 -> -1169.7 | G195: 0 | H195: 0 | I195: 0 | J195: 0 | K195: 0 | L195: =L194-L175 -> 0 | M195: 0 | N195: 0 | O195: 0 | P195: 0 | Q195: 0 | R195: 0 | S195: 0 | T195: 0 | U195: 0 | V195: 0 | W195: 0 | X195: 0 | Y195: 0 | Z195: 0
B196: Cyclical adjustment
A197: 33 | B197: Structural balance | C197: AMECO17: UBLGAPS
A198: 34 | B198: Structural primary balance | C198: AMECO17: UBLGBPS
B199: Debt
A200: 35 | B200: Gross debt | D200: =D88 -> 16038.9 | E200: 17578.5 | F200: =F88 -> 18801.5 | G200: 0 | H200: 0 | I200: 0 | J200: 0 | K200: 0 | L200: =L88 -> 0 | M200: 0 | N200: 0 | O200: 0 | P200: 0 | Q200: 0 | R200: 0 | S200: 0 | T200: 0 | U200: 0 | V200: 0 | W200: 0 | X200: 0 | Y200: 0 | Z200: 0
A201: 36 | B201: Change in gross debt | E201: =E200-D200 -> 1539.6 | F201: =F200-E200 -> 1223 | G201: =G200-F200 -> -18801.5 | H201: =H200-G200 -> 0 | I201: =I200-H200 -> 0 | J201: =J200-I200 -> 0 | K201: =K200-J200 -> 0 | L201: =L200-K200 -> 0 | M201: =M200-L200 -> 0 | N201: =N200-M200 -> 0 | O201: =O200-N200 -> 0 | P201: =P200-O200 -> 0 | Q201: =Q200-P200 -> 0 | R201: =R200-Q200 -> 0 | S201: =S200-R200 -> 0 | T201: =T200-S200 -> 0 | U201: =U200-T200 -> 0 | V201: =V200-U200 -> 0 | W201: =W200-V200 -> 0 | X201: =X200-W200 -> 0 | Y201: =Y200-X200 -> 0 | Z201: =Z200-Y200 -> 0
A202: 37 | B202: Contributions to change in gross debt
A203: 38 | B203: Primary balance (=-32) | D203: =-D195 -> 1936.7 | E203: 1213.8 | F203: =-F195 -> 1169.7 | G203: 0 | H203: 0 | I203: 0 | J203: 0 | K203: 0 | L203: =-L195 -> 0 | M203: 0 | N203: 0 | O203: 0 | P203: 0 | Q203: 0 | R203: 0 | S203: 0 | T203: 0 | U203: 0 | V203: 0 | W203: 0 | X203: 0 | Y203: 0 | Z203: 0
A204: 39 | B204: Snowball effect
A205: 40 | B205: Interest expenditure (=14) | D205: =D175 -> 183.2 | E205: 286.9 | F205: =F175 -> 443.3 | G205: 0 | H205: 0 | I205: 0 | J205: 0 | K205: 0 | L205: =L175 -> 0 | M205: 0 | N205: 0 | O205: 0 | P205: 0 | Q205: 0 | R205: 0 | S205: 0 | T205: 0 | U205: 0 | V205: 0 | W205: 0 | X205: 0 | Y205: 0 | Z205: 0
A206: 41 | B206: Growth
... 3 more rows

Sheet Step 3 - Enter plan
B1: Enter implementation report or plan (APR, DBP, risk scenario, etc.) to be assessed
F3: Enter final year to be assessed | G3: 2026
B5: =ScenarioName -> Draft Budgetary Plan 2026
B6: Calendar year | D6: =_xlfn.SEQUENCE(1, AssessmentEnd-MTP_BaseYear+1, MTP_BaseYear) -> 2023 | E6: 2024 | F6: 2025 | G6: 2026 | O6: Report/Plan import tool:
B7: MTP reference year | D7: =IF( AND(_xlfn.ANCHORARRAY(D6)>=MTP_YearT-1,_xlfn.ANCHORARRAY( D6)<=MTP_EndYear), CHOOSE(SIGN(_xlfn.ANCHORARRAY(D6)-MTP_YearT)+2, "T-1", "T", "T+"&(_xlfn.ANCHORARRAY(D6)-MTP_YearT)), "" ) -> T-1 | E7: T | F7: T+1 | G7: T+2 | O7: Worksheet name containing budgetary developments | P7: Sheet1
B8: Total expenditure | C8: bn NAC | D8: =IF(ISNUMBER(D$6),IF(AND(D$6>=MTP_BaseYear,D$6<=OutturnThrough),'Step 2 - Update outturn data'!D6,INDEX($D$59:$J$59,MATCH(D$6,$D$34:$J$34,0))/100*D$29),"") -> 17.1826 | E8: =IF(ISNUMBER(E$6),IF(AND(E$6>=MTP_BaseYear,E$6<=OutturnThrough),'Step 2 - Update outturn data'!E6,INDEX($D$59:$J$59,MATCH(E$6,$D$34:$J$34,0))/100*E$29),"") -> 18.4135 | F8: =IF(ISNUMBER(F$6),IF(AND(F$6>=MTP_BaseYear,F$6<=OutturnThrough),'Step 2 - Update outturn data'!F6,INDEX($D$59:$J$59,MATCH(F$6,$D$34:$J$34,0))/100*F$29),"") -> 20.15947557 | G8: =IF(ISNUMBER(G$6),IF(AND(G$6>=MTP_BaseYear,G$6<=OutturnThrough),'Step 2 - Update outturn data'!G6,INDEX($D$59:$J$59,MATCH(G$6,$D$34:$J$34,0))/100*G$29),"") -> 20.88479228 | H8: =IF(ISNUMBER(H$6),IF(AND(H$6>=MTP_BaseYear,H$6<=OutturnThrough),'Step 2 - Update outturn data'!H6,INDEX($D$59:$J$59,MATCH(H$6,$D$34:$J$34,0))/100*H$29),"") ->  | I8: =IF(ISNUMBER(I$6),IF(AND(I$6>=MTP_BaseYear,I$6<=OutturnThrough),'Step 2 - Update outturn data'!I6,INDEX($D$59:$J$59,MATCH(I$6,$D$34:$J$34,0))/100*I$29),"") ->  | J8: =IF(ISNUMBER(J$6),IF(AND(J$6>=MTP_BaseYear,J$6<=OutturnThrough),'Step 2 - Update outturn data'!J6,INDEX($D$59:$J$59,MATCH(J$6,$D$34:$J$34,0))/100*J$29),"") ->  | O8: Worksheet name containing macroeconomic developments | P8: Sheet1
B9: Interest expenditure | C9: bn NAC | D9: =IF(ISNUMBER(D$6),IF(AND(D$6>=MTP_BaseYear,D$6<=OutturnThrough),'Step 2 - Update outturn data'!D7,INDEX($D$50:$J$50,MATCH(D$6,$D$34:$J$34,0))/100*D$29),"") -> 0.2869 | E9: =IF(ISNUMBER(E$6),IF(AND(E$6>=MTP_BaseYear,E$6<=OutturnThrough),'Step 2 - Update outturn data'!E7,INDEX($D$50:$J$50,MATCH(E$6,$D$34:$J$34,0))/100*E$29),"") -> 0.4433 | F9: =IF(ISNUMBER(F$6),IF(AND(F$6>=MTP_BaseYear,F$6<=OutturnThrough),'Step 2 - Update outturn data'!F7,INDEX($D$50:$J$50,MATCH(F$6,$D$34:$J$34,0))/100*F$29),"") -> 0.5092920144 | G9: =IF(ISNUMBER(G$6),IF(AND(G$6>=MTP_BaseYear,G$6<=OutturnThrough),'Step 2 - Update outturn data'!G7,INDEX($D$50:$J$50,MATCH(G$6,$D$34:$J$34,0))/100*G$29),"") -> 0.6221001956 | H9: =IF(ISNUMBER(H$6),IF(AND(H$6>=MTP_BaseYear,H$6<=OutturnThrough),'Step 2 - Update outturn data'!H7,INDEX($D$50:$J$50,MATCH(H$6,$D$34:$J$34,0))/100*H$29),"") ->  | I9: =IF(ISNUMBER(I$6),IF(AND(I$6>=MTP_BaseYear,I$6<=OutturnThrough),'Step 2 - Update outturn data'!I7,INDEX($D$50:$J$50,MATCH(I$6,$D$34:$J$34,0))/100*I$29),"") ->  | J9: =IF(ISNUMBER(J$6),IF(AND(J$6>=MTP_BaseYear,J$6<=OutturnThrough),'Step 2 - Update outturn data'!J7,INDEX($D$50:$J$50,MATCH(J$6,$D$34:$J$34,0))/100*J$29),"") ->  | O9: Last year of bn Nac | P9: 2024
B10: Cyclical unemployment expenditure | C10: bn NAC | D10: =IF(ISNUMBER(D$6),IF(AND(D$6>=MTP_BaseYear,D$6<=OutturnThrough),'Step 2 - Update outturn data'!D8,INDEX($D$63:$J$63,MATCH(D$6,$D$34:$J$34,0))/100*D$29),"") -> -0.001262 | E10: =IF(ISNUMBER(E$6),IF(AND(E$6>=MTP_BaseYear,E$6<=OutturnThrough),'Step 2 - Update outturn data'!E8,INDEX($D$63:$J$63,MATCH(E$6,$D$34:$J$34,0))/100*E$29),"") -> 0.004169 | F10: =IF(ISNUMBER(F$6),IF(AND(F$6>=MTP_BaseYear,F$6<=OutturnThrough),'Step 2 - Update outturn data'!F8,INDEX($D$63:$J$63,MATCH(F$6,$D$34:$J$34,0))/100*F$29),"") -> 0.01697640048 | G10: =IF(ISNUMBER(G$6),IF(AND(G$6>=MTP_BaseYear,G$6<=OutturnThrough),'Step 2 - Update outturn data'!G8,INDEX($D$63:$J$63,MATCH(G$6,$D$34:$J$34,0))/100*G$29),"") -> 0.008887145651 | H10: =IF(ISNUMBER(H$6),IF(AND(H$6>=MTP_BaseYear,H$6<=OutturnThrough),'Step 2 - Update outturn data'!H8,INDEX($D$63:$J$63,MATCH(H$6,$D$34:$J$34,0))/100*H$29),"") ->  | I10: =IF(ISNUMBER(I$6),IF(AND(I$6>=MTP_BaseYear,I$6<=OutturnThrough),'Step 2 - Update outturn data'!I8,INDEX($D$63:$J$63,MATCH(I$6,$D$34:$J$34,0))/100*I$29),"") ->  | J10: =IF(ISNUMBER(J$6),IF(AND(J$6>=MTP_BaseYear,J$6<=OutturnThrough),'Step 2 - Update outturn data'!J8,INDEX($D$63:$J$63,MATCH(J$6,$D$34:$J$34,0))/100*J$29),"") ->  | O10: Column containing last year of bn Nac | P10: D
B11: Expenditure funded by transfers from the EU | C11: bn NAC | D11: =IF(ISNUMBER(D$6),IF(AND(D$6>=MTP_BaseYear,D$6<=OutturnThrough),'Step 2 - Update outturn data'!D9,INDEX($D$60:$J$60,MATCH(D$6,$D$34:$J$34,0))/100*D$29),"") -> 0.7343 | E11: =IF(ISNUMBER(E$6),IF(AND(E$6>=MTP_BaseYear,E$6<=OutturnThrough),'Step 2 - Update outturn data'!E9,INDEX($D$60:$J$60,MATCH(E$6,$D$34:$J$34,0))/100*E$29),"") -> 0.7555 | F11: =IF(ISNUMBER(F$6),IF(AND(F$6>=MTP_BaseYear,F$6<=OutturnThrough),'Step 2 - Update outturn data'!F9,INDEX($D$60:$J$60,MATCH(F$6,$D$34:$J$34,0))/100*F$29),"") -> 1.103466031 | G11: =IF(ISNUMBER(G$6),IF(AND(G$6>=MTP_BaseYear,G$6<=OutturnThrough),'Step 2 - Update outturn data'!G9,INDEX($D$60:$J$60,MATCH(G$6,$D$34:$J$34,0))/100*G$29),"") -> 0.8887145651 | H11: =IF(ISNUMBER(H$6),IF(AND(H$6>=MTP_BaseYear,H$6<=OutturnThrough),'Step 2 - Update outturn data'!H9,INDEX($D$60:$J$60,MATCH(H$6,$D$34:$J$34,0))/100*H$29),"") ->  | I11: =IF(ISNUMBER(I$6),IF(AND(I$6>=MTP_BaseYear,I$6<=OutturnThrough),'Step 2 - Update outturn data'!I9,INDEX($D$60:$J$60,MATCH(I$6,$D$34:$J$34,0))/100*I$29),"") ->  | J11: =IF(ISNUMBER(J$6),IF(AND(J$6>=MTP_BaseYear,J$6<=OutturnThrough),'Step 2 - Update outturn data'!J9,INDEX($D$60:$J$60,MATCH(J$6,$D$34:$J$34,0))/100*J$29),"") ->  | O11: Column with line reference numbers | P11: A
B12: National co-financing of EU programmes | C12: bn NAC | D12: =IF(ISNUMBER(D$6),IF(AND(D$6>=MTP_BaseYear,D$6<=OutturnThrough),'Step 2 - Update outturn data'!D10,INDEX($D$62:$J$62,MATCH(D$6,$D$34:$J$34,0))/100*D$29),"") -> 0.15825 | E12: =IF(ISNUMBER(E$6),IF(AND(E$6>=MTP_BaseYear,E$6<=OutturnThrough),'Step 2 - Update outturn data'!E10,INDEX($D$62:$J$62,MATCH(E$6,$D$34:$J$34,0))/100*E$29),"") -> 0.13765 | F12: =IF(ISNUMBER(F$6),IF(AND(F$6>=MTP_BaseYear,F$6<=OutturnThrough),'Step 2 - Update outturn data'!F10,INDEX($D$62:$J$62,MATCH(F$6,$D$34:$J$34,0))/100*F$29),"") -> 0.212205006 | G12: =IF(ISNUMBER(G$6),IF(AND(G$6>=MTP_BaseYear,G$6<=OutturnThrough),'Step 2 - Update outturn data'!G10,INDEX($D$62:$J$62,MATCH(G$6,$D$34:$J$34,0))/100*G$29),"") -> 0.1333071848 | H12: =IF(ISNUMBER(H$6),IF(AND(H$6>=MTP_BaseYear,H$6<=OutturnThrough),'Step 2 - Update outturn data'!H10,INDEX($D$62:$J$62,MATCH(H$6,$D$34:$J$34,0))/100*H$29),"") ->  | I12: =IF(ISNUMBER(I$6),IF(AND(I$6>=MTP_BaseYear,I$6<=OutturnThrough),'Step 2 - Update outturn data'!I10,INDEX($D$62:$J$62,MATCH(I$6,$D$34:$J$34,0))/100*I$29),"") ->  | J12: =IF(ISNUMBER(J$6),IF(AND(J$6>=MTP_BaseYear,J$6<=OutturnThrough),'Step 2 - Update outturn data'!J10,INDEX($D$62:$J$62,MATCH(J$6,$D$34:$J$34,0))/100*J$29),"") ->  | O12: Row containing years labels of budgetary developments table | P12: 2
B13: One-off expenditure ( excl. EU funded) | C13: bn NAC | D13: =IF(ISNUMBER(D$6),IF(AND(D$6>=MTP_BaseYear,D$6<=OutturnThrough),'Step 2 - Update outturn data'!D11,INDEX($D$64:$J$64,MATCH(D$6,$D$34:$J$34,0))/100*D$29),"") -> 0 | E13: =IF(ISNUMBER(E$6),IF(AND(E$6>=MTP_BaseYear,E$6<=OutturnThrough),'Step 2 - Update outturn data'!E11,INDEX($D$64:$J$64,MATCH(E$6,$D$34:$J$34,0))/100*E$29),"") -> 0 | F13: =IF(ISNUMBER(F$6),IF(AND(F$6>=MTP_BaseYear,F$6<=OutturnThrough),'Step 2 - Update outturn data'!F11,INDEX($D$64:$J$64,MATCH(F$6,$D$34:$J$34,0))/100*F$29),"") -> 0 | G13: =IF(ISNUMBER(G$6),IF(AND(G$6>=MTP_BaseYear,G$6<=OutturnThrough),'Step 2 - Update outturn data'!G11,INDEX($D$64:$J$64,MATCH(G$6,$D$34:$J$34,0))/100*G$29),"") -> 0 | H13: =IF(ISNUMBER(H$6),IF(AND(H$6>=MTP_BaseYear,H$6<=OutturnThrough),'Step 2 - Update outturn data'!H11,INDEX($D$64:$J$64,MATCH(H$6,$D$34:$J$34,0))/100*H$29),"") ->  | I13: =IF(ISNUMBER(I$6),IF(AND(I$6>=MTP_BaseYear,I$6<=OutturnThrough),'Step 2 - Update outturn data'!I11,INDEX($D$64:$J$64,MATCH(I$6,$D$34:$J$34,0))/100*I$29),"") ->  | J13: =IF(ISNUMBER(J$6),IF(AND(J$6>=MTP_BaseYear,J$6<=OutturnThrough),'Step 2 - Update outturn data'!J11,INDEX($D$64:$J$64,MATCH(J$6,$D$34:$J$34,0))/100*J$29),"") ->  | O13: Row containing years label of macroeconomic developments table | P13: 60
B14: Net nationally financed primary expenditure (before DRM) | C14: bn NAC | D14: =IF(ISNUMBER(D$6),IF(AND(D$6>=MTP_BaseYear,D$6<=OutturnThrough),'Step 2 - Update outturn data'!D12,INDEX($D$65:$J$65,MATCH(D$6,$D$34:$J$34,0))/100*D$29),"") -> 16.004412 | E14: =IF(ISNUMBER(E$6),IF(AND(E$6>=MTP_BaseYear,E$6<=OutturnThrough),'Step 2 - Update outturn data'!E12,INDEX($D$65:$J$65,MATCH(E$6,$D$34:$J$34,0))/100*E$29),"") -> 17.072881 | F14: =IF(ISNUMBER(F$6),IF(AND(F$6>=MTP_BaseYear,F$6<=OutturnThrough),'Step 2 - Update outturn data'!F12,INDEX($D$65:$J$65,MATCH(F$6,$D$34:$J$34,0))/100*F$29),"") -> 18.33451252 | G14: =IF(ISNUMBER(G$6),IF(AND(G$6>=MTP_BaseYear,G$6<=OutturnThrough),'Step 2 - Update outturn data'!G12,INDEX($D$65:$J$65,MATCH(G$6,$D$34:$J$34,0))/100*G$29),"") -> 19.19623461 | H14: =IF(ISNUMBER(H$6),IF(AND(H$6>=MTP_BaseYear,H$6<=OutturnThrough),'Step 2 - Update outturn data'!H12,INDEX($D$65:$J$65,MATCH(H$6,$D$34:$J$34,0))/100*H$29),"") ->  | I14: =IF(ISNUMBER(I$6),IF(AND(I$6>=MTP_BaseYear,I$6<=OutturnThrough),'Step 2 - Update outturn data'!I12,INDEX($D$65:$J$65,MATCH(I$6,$D$34:$J$34,0))/100*I$29),"") ->  | J14: =IF(ISNUMBER(J$6),IF(AND(J$6>=MTP_BaseYear,J$6<=OutturnThrough),'Step 2 - Update outturn data'!J12,INDEX($D$65:$J$65,MATCH(J$6,$D$34:$J$34,0))/100*J$29),"") -> 
B15: Discretionary revenue measures (excl. one-off revenue, incremental impact) | C15: bn NAC | D15: =IF(ISNUMBER(D$6),IF(AND(D$6>=MTP_BaseYear,D$6<=OutturnThrough),'Step 2 - Update outturn data'!D13,(INDEX($D$45:$J$45,MATCH(D$6,$D$34:$J$34,0))-INDEX($D$46:$J$46,MATCH(D$6,$D$34:$J$34,0)))/100*D$29),"") -> 0 | E15: =IF(ISNUMBER(E$6),IF(AND(E$6>=MTP_BaseYear,E$6<=OutturnThrough),'Step 2 - Update outturn data'!E13,(INDEX($D$45:$J$45,MATCH(E$6,$D$34:$J$34,0))-INDEX($D$46:$J$46,MATCH(E$6,$D$34:$J$34,0)))/100*E$29),"") -> 0.273808 | F15: =IF(ISNUMBER(F$6),IF(AND(F$6>=MTP_BaseYear,F$6<=OutturnThrough),'Step 2 - Update outturn data'!F13,(INDEX($D$45:$J$45,MATCH(F$6,$D$34:$J$34,0))-INDEX($D$46:$J$46,MATCH(F$6,$D$34:$J$34,0)))/100*F$29),"") -> 0.0848820024 | G15: =IF(ISNUMBER(G$6),IF(AND(G$6>=MTP_BaseYear,G$6<=OutturnThrough),'Step 2 - Update outturn data'!G13,(INDEX($D$45:$J$45,MATCH(G$6,$D$34:$J$34,0))-INDEX($D$46:$J$46,MATCH(G$6,$D$34:$J$34,0)))/100*G$29),"") -> -0.04443572826 | H15: =IF(ISNUMBER(H$6),IF(AND(H$6>=MTP_BaseYear,H$6<=OutturnThrough),'Step 2 - Update outturn data'!H13,(INDEX($D$45:$J$45,MATCH(H$6,$D$34:$J$34,0))-INDEX($D$46:$J$46,MATCH(H$6,$D$34:$J$34,0)))/100*H$29),"") ->  | I15: =IF(ISNUMBER(I$6),IF(AND(I$6>=MTP_BaseYear,I$6<=OutturnThrough),'Step 2 - Update outturn data'!I13,(INDEX($D$45:$J$45,MATCH(I$6,$D$34:$J$34,0))-INDEX($D$46:$J$46,MATCH(I$6,$D$34:$J$34,0)))/100*I$29),"") ->  | J15: =IF(ISNUMBER(J$6),IF(AND(J$6>=MTP_BaseYear,J$6<=OutturnThrough),'Step 2 - Update outturn data'!J13,(INDEX($D$45:$J$45,MATCH(J$6,$D$34:$J$34,0))-INDEX($D$46:$J$46,MATCH(J$6,$D$34:$J$34,0)))/100*J$29),"") ->  | O15: Note: Total defence spending should be number 45, "defence, of which investment" should be 46. Macro automatically detects in last year of imported plan.
B16: Defence expenditure | C16: bn NAC | D16: =IF(ISNUMBER(D$6),IF(AND(D$6>=MTP_BaseYear,D$6<=OutturnThrough),'Step 2 - Update outturn data'!D14,INDEX($D$87:$J$87,MATCH(D$6,$D$34:$J$34,0))/100*D$29),"") -> 1.02493 | E16: =IF(ISNUMBER(E$6),IF(AND(E$6>=MTP_BaseYear,E$6<=OutturnThrough),'Step 2 - Update outturn data'!E14,INDEX($D$87:$J$87,MATCH(E$6,$D$34:$J$34,0))/100*E$29),"") -> 1.10837 | F16: =IF(ISNUMBER(F$6),IF(AND(F$6>=MTP_BaseYear,F$6<=OutturnThrough),'Step 2 - Update outturn data'!F14,INDEX($D$87:$J$87,MATCH(F$6,$D$34:$J$34,0))/100*F$29),"") -> 1.40055304 | G16: =IF(ISNUMBER(G$6),IF(AND(G$6>=MTP_BaseYear,G$6<=OutturnThrough),'Step 2 - Update outturn data'!G14,INDEX($D$87:$J$87,MATCH(G$6,$D$34:$J$34,0))/100*G$29),"") -> 1.866300587 | H16: =IF(ISNUMBER(H$6),IF(AND(H$6>=MTP_BaseYear,H$6<=OutturnThrough),'Step 2 - Update outturn data'!H14,INDEX($D$87:$J$87,MATCH(H$6,$D$34:$J$34,0))/100*H$29),"") ->  | I16: =IF(ISNUMBER(I$6),IF(AND(I$6>=MTP_BaseYear,I$6<=OutturnThrough),'Step 2 - Update outturn data'!I14,INDEX($D$87:$J$87,MATCH(I$6,$D$34:$J$34,0))/100*I$29),"") ->  | J16: =IF(ISNUMBER(J$6),IF(AND(J$6>=MTP_BaseYear,J$6<=OutturnThrough),'Step 2 - Update outturn data'!J14,INDEX($D$87:$J$87,MATCH(J$6,$D$34:$J$34,0))/100*J$29),"") -> 
B17: Net expenditure growth (annual) | C17: growth rate (%) | D17: =IF(ISNUMBER(D$6),IF(AND(D$6>=MTP_BaseYear,D$6<=OutturnThrough),'Step 2 - Update outturn data'!D15,INDEX($D$67:$J$67,MATCH(D$6,$D$34:$J$34,0))),"") ->  | E17: =IF(ISNUMBER(E$6),IF(AND(E$6>=MTP_BaseYear,E$6<=OutturnThrough),'Step 2 - Update outturn data'!E15,INDEX($D$67:$J$67,MATCH(E$6,$D$34:$J$34,0))),"") -> 4.965262079 | F17: =IF(ISNUMBER(F$6),IF(AND(F$6>=MTP_BaseYear,F$6<=OutturnThrough),'Step 2 - Update outturn data'!F15,INDEX($D$67:$J$67,MATCH(F$6,$D$34:$J$34,0))),"") -> 6.2 | G17: =IF(ISNUMBER(G$6),IF(AND(G$6>=MTP_BaseYear,G$6<=OutturnThrough),'Step 2 - Update outturn data'!G15,INDEX($D$67:$J$67,MATCH(G$6,$D$34:$J$34,0))),"") -> 5 | H17: =IF(ISNUMBER(H$6),IF(AND(H$6>=MTP_BaseYear,H$6<=OutturnThrough),'Step 2 - Update outturn data'!H15,INDEX($D$67:$J$67,MATCH(H$6,$D$34:$J$34,0))),"") ->  | I17: =IF(ISNUMBER(I$6),IF(AND(I$6>=MTP_BaseYear,I$6<=OutturnThrough),'Step 2 - Update outturn data'!I15,INDEX($D$67:$J$67,MATCH(I$6,$D$34:$J$34,0))),"") ->  | J17: =IF(ISNUMBER(J$6),IF(AND(J$6>=MTP_BaseYear,J$6<=OutturnThrough),'Step 2 - Update outturn data'!J15,INDEX($D$67:$J$67,MATCH(J$6,$D$34:$J$34,0))),"") -> 
B18: Net expenditure growth (cumulative) | C18: growth rate (%) | D18: =IF(ISNUMBER(D$6),IF(D$6<=MTP_BaseYear,"",IF(ISNUMBER(C18),((1+C18/100)*(1+D17/100)-1)*100,D17)),"") ->  | E18: =IF(ISNUMBER(E$6),IF(E$6<=MTP_BaseYear,"",IF(ISNUMBER(D18),((1+D18/100)*(1+E17/100)-1)*100,E17)),"") -> 4.965262079 | F18: =IF(ISNUMBER(F$6),IF(F$6<=MTP_BaseYear,"",IF(ISNUMBER(E18),((1+E18/100)*(1+F17/100)-1)*100,F17)),"") -> 11.47310833 | G18: =IF(ISNUMBER(G$6),IF(G$6<=MTP_BaseYear,"",IF(ISNUMBER(F18),((1+F18/100)*(1+G17/100)-1)*100,G17)),"") -> 17.04676374 | H18: =IF(ISNUMBER(H$6),IF(H$6<=MTP_BaseYear,"",IF(ISNUMBER(G18),((1+G18/100)*(1+H17/100)-1)*100,H17)),"") ->  | I18: =IF(ISNUMBER(I$6),IF(I$6<=MTP_YearT,"",IF(ISNUMBER(H18),((1+H18/100)*(1+I17/100)-1)*100,I17)),"") -> 
B19: Net lending/borrowing | C19: % GDP | D19: =IF(ISNUMBER(D$6),IF(AND(D$6>=MTP_BaseYear,D$6<=OutturnThrough),'Step 2 - Update outturn data'!D17,INDEX($D$69:$J$69,MATCH(D$6,$D$34:$J$34,0))),"") -> -2.342774528 | E19: =IF(ISNUMBER(E$6),IF(AND(E$6>=MTP_BaseYear,E$6<=OutturnThrough),'Step 2 - Update outturn data'!E17,INDEX($D$69:$J$69,MATCH(E$6,$D$34:$J$34,0))),"") -> -1.786860768 | F19: =IF(ISNUMBER(F$6),IF(AND(F$6>=MTP_BaseYear,F$6<=OutturnThrough),'Step 2 - Update outturn data'!F17,INDEX($D$69:$J$69,MATCH(F$6,$D$34:$J$34,0))),"") -> -2.9 | G19: =IF(ISNUMBER(G$6),IF(AND(G$6>=MTP_BaseYear,G$6<=OutturnThrough),'Step 2 - Update outturn data'!G17,INDEX($D$69:$J$69,MATCH(G$6,$D$34:$J$34,0))),"") -> -3.3 | H19: =IF(ISNUMBER(H$6),IF(AND(H$6>=MTP_BaseYear,H$6<=OutturnThrough),'Step 2 - Update outturn data'!H17,INDEX($D$69:$J$69,MATCH(H$6,$D$34:$J$34,0))),"") ->  | I19: =IF(ISNUMBER(I$6),IF(AND(I$6>=MTP_BaseYear,I$6<=OutturnThrough),'Step 2 - Update outturn data'!I17,INDEX($D$69:$J$69,MATCH(I$6,$D$34:$J$34,0))),"") ->  | J19: =IF(ISNUMBER(J$6),IF(AND(J$6>=MTP_BaseYear,J$6<=OutturnThrough),'Step 2 - Update outturn data'!J17,INDEX($D$69:$J$69,MATCH(J$6,$D$34:$J$34,0))),"") -> 
B20: Structural balance | C20: % GDP | D20: =IF(ISNUMBER(D$6),IF(AND(D$6>=MTP_BaseYear,D$6<=OutturnThrough),'Step 2 - Update outturn data'!D18,INDEX($D$72:$J$72,MATCH(D$6,$D$34:$J$34,0))),"") -> -2.10632 | E20: =IF(ISNUMBER(E$6),IF(AND(E$6>=MTP_BaseYear,E$6<=OutturnThrough),'Step 2 - Update outturn data'!E18,INDEX($D$72:$J$72,MATCH(E$6,$D$34:$J$34,0))),"") -> -1.548 | F20: =IF(ISNUMBER(F$6),IF(AND(F$6>=MTP_BaseYear,F$6<=OutturnThrough),'Step 2 - Update outturn data'!F18,INDEX($D$72:$J$72,MATCH(F$6,$D$34:$J$34,0))),"") -> -2.4 | G20: =IF(ISNUMBER(G$6),IF(AND(G$6>=MTP_BaseYear,G$6<=OutturnThrough),'Step 2 - Update outturn data'!G18,INDEX($D$72:$J$72,MATCH(G$6,$D$34:$J$34,0))),"") -> -3 | H20: =IF(ISNUMBER(H$6),IF(AND(H$6>=MTP_BaseYear,H$6<=OutturnThrough),'Step 2 - Update outturn data'!H18,INDEX($D$72:$J$72,MATCH(H$6,$D$34:$J$34,0))),"") ->  | I20: =IF(ISNUMBER(I$6),IF(AND(I$6>=MTP_BaseYear,I$6<=OutturnThrough),'Step 2 - Update outturn data'!I18,INDEX($D$72:$J$72,MATCH(I$6,$D$34:$J$34,0))),"") ->  | J20: =IF(ISNUMBER(J$6),IF(AND(J$6>=MTP_BaseYear,J$6<=OutturnThrough),'Step 2 - Update outturn data'!J18,INDEX($D$72:$J$72,MATCH(J$6,$D$34:$J$34,0))),"") -> 
B21: Structural primary balance | C21: % GDP | D21: =IF(ISNUMBER(D$6),IF(AND(D$6>=MTP_BaseYear,D$6<=OutturnThrough),'Step 2 - Update outturn data'!D19,INDEX($D$73:$J$73,MATCH(D$6,$D$34:$J$34,0))),"") -> -1.38124 | E21: =IF(ISNUMBER(E$6),IF(AND(E$6>=MTP_BaseYear,E$6<=OutturnThrough),'Step 2 - Update outturn data'!E19,INDEX($D$73:$J$73,MATCH(E$6,$D$34:$J$34,0))),"") -> -0.44949 | F21: =IF(ISNUMBER(F$6),IF(AND(F$6>=MTP_BaseYear,F$6<=OutturnThrough),'Step 2 - Update outturn data'!F19,INDEX($D$73:$J$73,MATCH(F$6,$D$34:$J$34,0))),"") -> -1.2 | G21: =IF(ISNUMBER(G$6),IF(AND(G$6>=MTP_BaseYear,G$6<=OutturnThrough),'Step 2 - Update outturn data'!G19,INDEX($D$73:$J$73,MATCH(G$6,$D$34:$J$34,0))),"") -> -1.6 | H21: =IF(ISNUMBER(H$6),IF(AND(H$6>=MTP_BaseYear,H$6<=OutturnThrough),'Step 2 - Update outturn data'!H19,INDEX($D$73:$J$73,MATCH(H$6,$D$34:$J$34,0))),"") ->  | I21: =IF(ISNUMBER(I$6),IF(AND(I$6>=MTP_BaseYear,I$6<=OutturnThrough),'Step 2 - Update outturn data'!I19,INDEX($D$73:$J$73,MATCH(I$6,$D$34:$J$34,0))),"") ->  | J21: =IF(ISNUMBER(J$6),IF(AND(J$6>=MTP_BaseYear,J$6<=OutturnThrough),'Step 2 - Update outturn data'!J19,INDEX($D$73:$J$73,MATCH(J$6,$D$34:$J$34,0))),"") -> 
B22: Gross debt | C22: % GDP | D22: =IF(ISNUMBER(D$6),IF(AND(D$6>=MTP_BaseYear,D$6<=OutturnThrough),'Step 2 - Update outturn data'!D20,INDEX($D$75:$J$75,MATCH(D$6,$D$34:$J$34,0))),"") -> 44.43031832 | E22: =IF(ISNUMBER(E$6),IF(AND(E$6>=MTP_BaseYear,E$6<=OutturnThrough),'Step 2 - Update outturn data'!E20,INDEX($D$75:$J$75,MATCH(E$6,$D$34:$J$34,0))),"") -> 46.2495357 | F22: =IF(ISNUMBER(F$6),IF(AND(F$6>=MTP_BaseYear,F$6<=OutturnThrough),'Step 2 - Update outturn data'!F20,INDEX($D$75:$J$75,MATCH(F$6,$D$34:$J$34,0))),"") -> 48.9 | G22: =IF(ISNUMBER(G$6),IF(AND(G$6>=MTP_BaseYear,G$6<=OutturnThrough),'Step 2 - Update outturn data'!G20,INDEX($D$75:$J$75,MATCH(G$6,$D$34:$J$34,0))),"") -> 50.6 | H22: =IF(ISNUMBER(H$6),IF(AND(H$6>=MTP_BaseYear,H$6<=OutturnThrough),'Step 2 - Update outturn data'!H20,INDEX($D$75:$J$75,MATCH(H$6,$D$34:$J$34,0))),"") ->  | I22: =IF(ISNUMBER(I$6),IF(AND(I$6>=MTP_BaseYear,I$6<=OutturnThrough),'Step 2 - Update outturn data'!I20,INDEX($D$75:$J$75,MATCH(I$6,$D$34:$J$34,0))),"") ->  | J22: =IF(ISNUMBER(J$6),IF(AND(J$6>=MTP_BaseYear,J$6<=OutturnThrough),'Step 2 - Update outturn data'!J20,INDEX($D$75:$J$75,MATCH(J$6,$D$34:$J$34,0))),"") -> 
B23: Change in gross debt | C23: % GDP | D23: =IF(ISNUMBER(D$6),IF(AND(D$6>=MTP_BaseYear,D$6<=OutturnThrough),'Step 2 - Update outturn data'!D21,INDEX($D$76:$J$76,MATCH(D$6,$D$34:$J$34,0))),"") -> 0 | E23: =IF(ISNUMBER(E$6),IF(AND(E$6>=MTP_BaseYear,E$6<=OutturnThrough),'Step 2 - Update outturn data'!E21,INDEX($D$76:$J$76,MATCH(E$6,$D$34:$J$34,0))),"") -> 0 | F23: =IF(ISNUMBER(F$6),IF(AND(F$6>=MTP_BaseYear,F$6<=OutturnThrough),'Step 2 - Update outturn data'!F21,INDEX($D$76:$J$76,MATCH(F$6,$D$34:$J$34,0))),"") -> 2.1 | G23: =IF(ISNUMBER(G$6),IF(AND(G$6>=MTP_BaseYear,G$6<=OutturnThrough),'Step 2 - Update outturn data'!G21,INDEX($D$76:$J$76,MATCH(G$6,$D$34:$J$34,0))),"") -> 1.7 | H23: =IF(ISNUMBER(H$6),IF(AND(H$6>=MTP_BaseYear,H$6<=OutturnThrough),'Step 2 - Update outturn data'!H21,INDEX($D$76:$J$76,MATCH(H$6,$D$34:$J$34,0))),"") ->  | I23: =IF(ISNUMBER(I$6),IF(AND(I$6>=MTP_BaseYear,I$6<=OutturnThrough),'Step 2 - Update outturn data'!I21,INDEX($D$76:$J$76,MATCH(I$6,$D$34:$J$34,0))),"") ->  | J23: =IF(ISNUMBER(J$6),IF(AND(J$6>=MTP_BaseYear,J$6<=OutturnThrough),'Step 2 - Update outturn data'!J21,INDEX($D$76:$J$76,MATCH(J$6,$D$34:$J$34,0))),"") -> 
B24: Real GDP (rate of change, %) | C24: rate of change, % | D24: =IF(ISNUMBER(D$6),IF(AND(D$6>=MTP_BaseYear,D$6<=OutturnThrough),'Step 2 - Update outturn data'!D22,INDEX($D$94:$J$94,MATCH(D$6,$D$92:$J$92,0))),"") -> -0.9414574313 | E24: =IF(ISNUMBER(E$6),IF(AND(E$6>=MTP_BaseYear,E$6<=OutturnThrough),'Step 2 - Update outturn data'!E22,INDEX($D$94:$J$94,MATCH(E$6,$D$92:$J$92,0))),"") -> -0.03731098501 | F24: =IF(ISNUMBER(F$6),IF(AND(F$6>=MTP_BaseYear,F$6<=OutturnThrough),'Step 2 - Update outturn data'!F22,INDEX($D$94:$J$94,MATCH(F$6,$D$92:$J$92,0))),"") -> 1.1 | G24: =IF(ISNUMBER(G$6),IF(AND(G$6>=MTP_BaseYear,G$6<=OutturnThrough),'Step 2 - Update outturn data'!G22,INDEX($D$94:$J$94,MATCH(G$6,$D$92:$J$92,0))),"") -> 2.1 | H24: =IF(ISNUMBER(H$6),IF(AND(H$6>=MTP_BaseYear,H$6<=OutturnThrough),'Step 2 - Update outturn data'!H22,INDEX($D$94:$J$94,MATCH(H$6,$D$92:$J$92,0))),"") ->  | I24: =IF(ISNUMBER(I$6),IF(AND(I$6>=MTP_BaseYear,I$6<=OutturnThrough),'Step 2 - Update outturn data'!I22,INDEX($D$94:$J$94,MATCH(I$6,$D$92:$J$92,0))),"") ->  | J24: =IF(ISNUMBER(J$6),IF(AND(J$6>=MTP_BaseYear,J$6<=OutturnThrough),'Step 2 - Update outturn data'!J22,INDEX($D$94:$J$94,MATCH(J$6,$D$92:$J$92,0))),"") -> 
B25: GDP deflator (rate of change, %) | C25: rate of change, % | D25: =IF(ISNUMBER(D$6),IF(AND(D$6>=MTP_BaseYear,D$6<=OutturnThrough),'Step 2 - Update outturn data'!D23,INDEX($D$95:$J$95,MATCH(D$6,$D$92:$J$92,0))),"") -> 10.6723716 | E25: =IF(ISNUMBER(E$6),IF(AND(E$6>=MTP_BaseYear,E$6<=OutturnThrough),'Step 2 - Update outturn data'!E23,INDEX($D$95:$J$95,MATCH(E$6,$D$92:$J$92,0))),"") -> 2.788565003 | F25: =IF(ISNUMBER(F$6),IF(AND(F$6>=MTP_BaseYear,F$6<=OutturnThrough),'Step 2 - Update outturn data'!F23,INDEX($D$95:$J$95,MATCH(F$6,$D$92:$J$92,0))),"") -> 3.3 | G25: =IF(ISNUMBER(G$6),IF(AND(G$6>=MTP_BaseYear,G$6<=OutturnThrough),'Step 2 - Update outturn data'!G23,INDEX($D$95:$J$95,MATCH(G$6,$D$92:$J$92,0))),"") -> 2.5 | H25: =IF(ISNUMBER(H$6),IF(AND(H$6>=MTP_BaseYear,H$6<=OutturnThrough),'Step 2 - Update outturn data'!H23,INDEX($D$95:$J$95,MATCH(H$6,$D$92:$J$92,0))),"") ->  | I25: =IF(ISNUMBER(I$6),IF(AND(I$6>=MTP_BaseYear,I$6<=OutturnThrough),'Step 2 - Update outturn data'!I23,INDEX($D$95:$J$95,MATCH(I$6,$D$92:$J$92,0))),"") ->  | J25: =IF(ISNUMBER(J$6),IF(AND(J$6>=MTP_BaseYear,J$6<=OutturnThrough),'Step 2 - Update outturn data'!J23,INDEX($D$95:$J$95,MATCH(J$6,$D$92:$J$92,0))),"") -> 
B26: Nominal GDP (rate of change, %) | C26: rate of change, % | D26: =IF(ISNUMBER(D$6),IF(AND(D$6>=MTP_BaseYear,D$6<=OutturnThrough),'Step 2 - Update outturn data'!D24,INDEX($D$96:$J$96,MATCH(D$6,$D$92:$J$92,0))),"") -> 9.630438337 | E26: =IF(ISNUMBER(E$6),IF(AND(E$6>=MTP_BaseYear,E$6<=OutturnThrough),'Step 2 - Update outturn data'!E24,INDEX($D$96:$J$96,MATCH(E$6,$D$92:$J$92,0))),"") -> 2.750213577 | F26: =IF(ISNUMBER(F$6),IF(AND(F$6>=MTP_BaseYear,F$6<=OutturnThrough),'Step 2 - Update outturn data'!F24,INDEX($D$96:$J$96,MATCH(F$6,$D$92:$J$92,0))),"") -> 4.4 | G26: =IF(ISNUMBER(G$6),IF(AND(G$6>=MTP_BaseYear,G$6<=OutturnThrough),'Step 2 - Update outturn data'!G24,INDEX($D$96:$J$96,MATCH(G$6,$D$92:$J$92,0))),"") -> 4.7 | H26: =IF(ISNUMBER(H$6),IF(AND(H$6>=MTP_BaseYear,H$6<=OutturnThrough),'Step 2 - Update outturn data'!H24,INDEX($D$96:$J$96,MATCH(H$6,$D$92:$J$92,0))),"") ->  | I26: =IF(ISNUMBER(I$6),IF(AND(I$6>=MTP_BaseYear,I$6<=OutturnThrough),'Step 2 - Update outturn data'!I24,INDEX($D$96:$J$96,MATCH(I$6,$D$92:$J$92,0))),"") ->  | J26: =IF(ISNUMBER(J$6),IF(AND(J$6>=MTP_BaseYear,J$6<=OutturnThrough),'Step 2 - Update outturn data'!J24,INDEX($D$96:$J$96,MATCH(J$6,$D$92:$J$92,0))),"") -> 
B27: Potential growth (rate of change, %) | C27: rate of change, % | D27: =IF(ISNUMBER(D$6),IF(AND(D$6>=MTP_BaseYear,D$6<=OutturnThrough),'Step 2 - Update outturn data'!D25,INDEX($D$125:$J$125,MATCH(D$6,$D$92:$J$92,0))),"") -> 0.9743541816 | E27: =IF(ISNUMBER(E$6),IF(AND(E$6>=MTP_BaseYear,E$6<=OutturnThrough),'Step 2 - Update outturn data'!E25,INDEX($D$125:$J$125,MATCH(E$6,$D$92:$J$92,0))),"") -> -0.01879470235 | F27: =IF(ISNUMBER(F$6),IF(AND(F$6>=MTP_BaseYear,F$6<=OutturnThrough),'Step 2 - Update outturn data'!F25,INDEX($D$125:$J$125,MATCH(F$6,$D$92:$J$92,0))),"") -> 1.7 | G27: =IF(ISNUMBER(G$6),IF(AND(G$6>=MTP_BaseYear,G$6<=OutturnThrough),'Step 2 - Update outturn data'!G25,INDEX($D$125:$J$125,MATCH(G$6,$D$92:$J$92,0))),"") -> 1.7 | H27: =IF(ISNUMBER(H$6),IF(AND(H$6>=MTP_BaseYear,H$6<=OutturnThrough),'Step 2 - Update outturn data'!H25,INDEX($D$125:$J$125,MATCH(H$6,$D$92:$J$92,0))),"") ->  | I27: =IF(ISNUMBER(I$6),IF(AND(I$6>=MTP_BaseYear,I$6<=OutturnThrough),'Step 2 - Update outturn data'!I25,INDEX($D$125:$J$125,MATCH(I$6,$D$92:$J$92,0))),"") ->  | J27: =IF(ISNUMBER(J$6),IF(AND(J$6>=MTP_BaseYear,J$6<=OutturnThrough),'Step 2 - Update outturn data'!J25,INDEX($D$125:$J$125,MATCH(J$6,$D$92:$J$92,0))),"") -> 
B28: Output gap (% pot. GDP) | C28: % pot. GDP | D28: =IF(ISNUMBER(D$6),IF(AND(D$6>=MTP_BaseYear,D$6<=OutturnThrough),'Step 2 - Update outturn data'!D26,INDEX($D$131:$J$131,MATCH(D$6,$D$92:$J$92,0))),"") -> -0.6750981527 | E28: =IF(ISNUMBER(E$6),IF(AND(E$6>=MTP_BaseYear,E$6<=OutturnThrough),'Step 2 - Update outturn data'!E26,INDEX($D$131:$J$131,MATCH(E$6,$D$92:$J$92,0))),"") -> -0.7022101309 | F28: =IF(ISNUMBER(F$6),IF(AND(F$6>=MTP_BaseYear,F$6<=OutturnThrough),'Step 2 - Update outturn data'!F26,INDEX($D$131:$J$131,MATCH(F$6,$D$92:$J$92,0))),"") -> -1.3 | G28: =IF(ISNUMBER(G$6),IF(AND(G$6>=MTP_BaseYear,G$6<=OutturnThrough),'Step 2 - Update outturn data'!G26,INDEX($D$131:$J$131,MATCH(G$6,$D$92:$J$92,0))),"") -> -0.9 | H28: =IF(ISNUMBER(H$6),IF(AND(H$6>=MTP_BaseYear,H$6<=OutturnThrough),'Step 2 - Update outturn data'!H26,INDEX($D$131:$J$131,MATCH(H$6,$D$92:$J$92,0))),"") ->  | I28: =IF(ISNUMBER(I$6),IF(AND(I$6>=MTP_BaseYear,I$6<=OutturnThrough),'Step 2 - Update outturn data'!I26,INDEX($D$131:$J$131,MATCH(I$6,$D$92:$J$92,0))),"") ->  | J28: =IF(ISNUMBER(J$6),IF(AND(J$6>=MTP_BaseYear,J$6<=OutturnThrough),'Step 2 - Update outturn data'!J26,INDEX($D$131:$J$131,MATCH(J$6,$D$92:$J$92,0))),"") -> 
B29: Nominal GDP (level) | C29: level, bn NAC | D29: =IF(ISNUMBER(D$6),IF(AND(D$6>=MTP_BaseYear,D$6<=OutturnThrough),'Step 2 - Update outturn data'!D27,C29*(1+INDEX($D$96:$J$96,MATCH(D$6,$D$92:$J$92,0))/100)),"") -> 39.5642 | E29: =IF(ISNUMBER(E$6),IF(AND(E$6>=MTP_BaseYear,E$6<=OutturnThrough),'Step 2 - Update outturn data'!E27,D29*(1+INDEX($D$96:$J$96,MATCH(E$6,$D$92:$J$92,0))/100)),"") -> 40.6523 | F29: =IF(ISNUMBER(F$6),IF(AND(F$6>=MTP_BaseYear,F$6<=OutturnThrough),'Step 2 - Update outturn data'!F27,E29*(1+INDEX($D$96:$J$96,MATCH(F$6,$D$92:$J$92,0))/100)),"") -> 42.4410012 | G29: =IF(ISNUMBER(G$6),IF(AND(G$6>=MTP_BaseYear,G$6<=OutturnThrough),'Step 2 - Update outturn data'!G27,F29*(1+INDEX($D$96:$J$96,MATCH(G$6,$D$92:$J$92,0))/100)),"") -> 44.43572826 | H29: =IF(ISNUMBER(H$6),IF(AND(H$6>=MTP_BaseYear,H$6<=OutturnThrough),'Step 2 - Update outturn data'!H27,G29*(1+INDEX($D$96:$J$96,MATCH(H$6,$D$92:$J$92,0))/100)),"") ->  | I29: =IF(ISNUMBER(I$6),IF(AND(I$6>=MTP_BaseYear,I$6<=OutturnThrough),'Step 2 - Update outturn data'!I27,H29*(1+INDEX($D$96:$J$96,MATCH(I$6,$D$92:$J$92,0))/100)),"") -> 
A33: Budgetary developments
D34: =P9 -> 2024 | E34: =_xlfn.SEQUENCE(1, MTP_EndYear-P9+1, P9) -> 2024 | F34: 2025 | G34: 2026 | H34: 2027 | I34: 2028
B35: Revenue | C35: ESA Code | D35: bn NAC | E35: =IF(ISNUMBER(_xlfn.ANCHORARRAY(E$34)),"% of GDP","") -> % of GDP | F35: % of GDP | G35: % of GDP | H35: % of GDP | I35: % of GDP
A36: 1 | B36: Taxes on production and imports | C36: D.2 | D36: 5.9 | E36: 14.5 | F36: 14.8 | G36: 14.7
A37: 2 | B37: Current taxes on income, wealth, etc. | C37: D.5 | D37: 3.7 | E37: 9.3 | F37: 8.7 | G37: 8.7
A38: 3 | B38: Social contributions | C38: D.61 | D38: 4.7 | E38: 11.6 | F38: 12.1 | G38: 12.3
A39: 4 | B39: Other current revenue | C39: (P.11+P.12+P.131)+D.39+D.4+D.7 | D39: 3 | E39: 7.6 | F39: 7 | G39: 6.4
A40: 5 | B40: Capital taxes | C40: D.91 | D40: 0 | E40: 0 | F40: 0 | G40: 0
A41: 6 | B41: Other capital revenue | C41: D.92+D.99 | D41: 0.3 | E41: 0.9 | F41: 1.9 | G41: 1.5
A42: 7 | B42: Total revenue (=1+2+3+4+5+6) | C42: TR | D42: 17.7 | E42: 43.9 | F42: 44.6 | G42: 43.7
A43: 8 | B43: Of which: Transfers from the EU (accrued revenue, not cash) | C43: D.7EU+D.9EU | D43: 0.8 | E43: 2 | F43: 2.6 | G43: 2
A44: 9 | B44: Total revenue other than transfers from the EU (=7-8) | D44: 16.9 | E44: 42 | F44: 42 | G44: 41.7
A45: 10 | B45: p.m. Revenue measures (increments, excluding EU funded measures) | D45: 0.2 | E45: 0.6 | F45: 0.2 | G45: -0.1
A46: 11 | B46: p.m. One-off measures included in the projections (levels, excluding EU funded measures)
B47: Expenditure | C47: ESA Code | D47: bn NAC | E47: =IF(ISNUMBER(_xlfn.ANCHORARRAY(E$34)),"% of GDP","") -> % of GDP | F47: % of GDP | G47: % of GDP | H47: % of GDP | I47: % of GDP
A48: 12 | B48: Compensation of employees | C48: D.1 | D48: 5.3 | E48: 13.2 | F48: 13.1 | G48: 12.7
A49: 13 | B49: Intermediate consumption | C49: P.2 | D49: 2.6 | E49: 6.4 | F49: 6.6 | G49: 6.2
A50: 14 | B50: Interest expenditure | C50: D.41 | D50: 0.4 | E50: 1.1 | F50: 1.2 | G50: 1.4
A51: 15 | B51: Social benefits other than social transfers in kind | C51: D.62 | D51: 5.4 | E51: 13.3 | F51: 13.5 | G51: 13.8
A52: 16 | B52: Social transfers in kind via market producers | C52: D.632 | D52: 0.7 | E52: 1.7 | F52: 1.9 | G52: 1.8
A53: 17 | B53: Subsidies | C53: D.3 | D53: 0.3 | E53: 0.7 | F53: 0.8 | G53: 0.8
A54: 18 | B54: Other current expenditure | C54: D.29+(D.4-D.41)+D.5+D.7+D.8 | D54: 1.1 | E54: 2.6 | F54: 3.5 | G54: 3.4
A55: 19 | B55: Gross fixed capital formation | C55: P.51 | D55: 2.3 | E55: 5.7 | F55: 6.4 | G55: 6.3
A56: 20 | B56: Of which: nationally financed public investment | D56: 2 | E56: 4.9 | F56: 4.7 | G56: 5
A57: 21 | B57: Capital transfers | C57: D.9 | D57: 0.1 | E57: 0.3 | F57: 0.3 | G57: 0.5
A58: 22 | B58: Other capital expenditure | C58: P.52+P.53+NP | D58: 0.2 | E58: 0.6 | F58: 0.2 | G58: 0.2
A59: 23 | B59: Total expenditure (=12+13+14+15+16+17+18+19+21+22) | C59: TE | D59: 18.4 | E59: 45.7 | F59: 47.5 | G59: 47
A60: 24 | B60: Of which: expenditure funded by transfers from the EU (=8) | C60: D.7EU+D.9EU | D60: 0.8 | E60: 2 | F60: 2.6 | G60: 2
A61: 25 | B61: Nationally financed expenditure (=23-24) | D61: 17.6 | E61: 43.7 | F61: 44.9 | G61: 45
A62: 26 | B62: p.m. National co-financing of programmes funded by transfers from the EU (=8) | D62: 0.1 | E62: 0.3 | F62: 0.5 | G62: 0.3
A63: 27 | B63: p.m. Cyclical component of unemployment benefits | D63: 0.01 | E63: 0.03 | F63: 0.04 | G63: 0.02
A64: 28 | B64: p.m. One-off expenditure included in the projections (levels, excluding EU funded measures) | D64: 0 | E64: 0 | F64: 0 | G64: 0
A65: 29 | B65: Net nationally financed primary expenditure (before revenue measures) (=25-26-27-28-14) | D65: 17 | E65: 42.3 | F65: 43.2 | G65: 43.2
B66: Net nationally financed primary expenditure | E66: =IF(ISNUMBER(_xlfn.ANCHORARRAY(E$34)),"growth rate","") -> growth rate | F66: growth rate | G66: growth rate | H66: growth rate | I66: growth rate
A67: 30 | B67: Net nationally financed primary expenditure growth | C67: MTP Table 1a, line 1 | F67: 6.2 | G67: 5
B68: Balances | D68: bn NAC | E68: =IF(ISNUMBER(_xlfn.ANCHORARRAY(E$34)),"% of GDP","") -> % of GDP | F68: % of GDP | G68: % of GDP | H68: % of GDP | I68: % of GDP
A69: 31 | B69: Net lending/borrowing (=7-23) | C69: B.9 | D69: -0.7 | E69: -1.8 | F69: -2.9 | G69: -3.3
A70: 32 | B70: Primary balance (=31-14) | C70: B.9-D.41p | D70: -0.3 | E70: -0.7 | F70: -1.7 | G70: -1.9
B71: Cyclical adjustment | E71: =IF(ISNUMBER(_xlfn.ANCHORARRAY(E$34)),"% of GDP","") -> % of GDP | F71: % of GDP | G71: % of GDP | H71: % of GDP | I71: % of GDP
A72: 33 | B72: Structural balance | E72: -1.5 | F72: -2.4 | G72: -3
A73: 34 | B73: Structural primary balance | E73: -0.4 | F73: -1.2 | G73: -1.6
B74: Debt | D74: bn NAC | E74: % GDP | F74: % GDP | G74: % GDP
A75: 35 | B75: Gross debt | D75: 18.8 | E75: 46.8 | F75: 48.9 | G75: 50.6
A76: 36 | B76: Change in gross debt | D76: 1.2 | E76: 2.1 | F76: 2.1 | G76: 1.7
A77: 37 | B77: Contributions to change in gross debt
A78: 38 | B78: Primary balance (=-32) | E78: 0.7 | F78: 1.7 | G78: 1.9
A79: 39 | B79: Snowball effect | E79: 0.2 | F79: -0.7 | G79: -0.8
A80: 40 | B80: Interest expenditure (=14) | E80: 1.1 | F80: 1.2 | G80: 1.4
A81: 41 | B81: Growth | E81: 0.2 | F81: -0.5 | G81: -1
A82: 42 | B82: Inflation | E82: -1.1 | F82: -1.5 | G82: -1.2
A83: 43 | B83: Stock-flow adjustment (=36-38-39) | E83: 1.3 | F83: 1.2 | G83: 0.6
E84: =IF(ISNUMBER(_xlfn.ANCHORARRAY(E$34)),"%","") -> % | F84: % | G84: % | H84: % | I84: %
A85: 44 | B85: p.m. Implicit interest rate on debt (=14/debt(t-1)) | E85: 2.5 | F85: 2.8 | G85: 3
A87: 45 | B87: Total defence expenditure | C87: COFOG 2 | D87: 1.2 | E87: 3 | F87: 3.3 | G87: 4.2
A88: 46 | B88: Of which: Defence investment | C88: COFOG 2, P.51g | D88: 0.3 | E88: 0.8 | F88: 1.4 | G88: 2.1
A91: Macroeconomic developments
B92: GDP deflator | C92: ESA Code | D92: =P9 -> 2024 | E92: =_xlfn.SEQUENCE(1, MTP_EndYear-P9+1, P9) -> 2024 | F92: 2025 | G92: 2026 | H92: 2027 | I92: 2028
D93: bn NAC | E93: =IF(ISNUMBER(_xlfn.ANCHORARRAY(E$34)),"growth rate","") -> growth rate | F93: growth rate | G93: growth rate | H93: growth rate | I93: growth rate
A94: 1 | B94: Real GDP | C94: B1*g | E94: -0.4 | F94: 1.1 | G94: 2.1
A95: 2 | B95: GDP deflator | E95: 2.6 | F95: 3.3 | G95: 2.5
A96: 3 | B96: Nominal GDP | C96: B1*g | D96: 40208 | E96: 2.1 | F96: 4.4 | G96: 4.7
B97: Components of Real GDP | D97: bn NAC | E97: =IF(ISNUMBER(_xlfn.ANCHORARRAY(E$34)),"growth rate","") -> growth rate | F97: growth rate | G97: growth rate | H97: growth rate | I97: growth rate
A98: 4 | B98: Private consumption expenditure | C98: P.3 | E98: 0.5 | F98: 0.2 | G98: 1.9
A99: 5 | B99: Government consumption expenditure | C99: P.3 | E99: 7.6 | F99: 4.4 | G99: 3
A100: 6 | B100: Gross fixed capital formation | C100: P.51 | E100: -6.7 | F100: 3.7 | G100: 4.5
A101: 7 | B101: Changes in inventories and net acquisition of valuables (% of GDP) | C101: P.52 + P.53
A102: 8 | B102: Exports of goods and services | C102: P.6 | E102: -1.6 | F102: 1.9 | G102: 2.4
A103: 9 | B103: Imports of goods and services | C103: P.7 | E103: -2.3 | F103: 3.2 | G103: 3.2
B104: Contribution to real GDP growth
A105: 10 | B105: Final domestic demand | E105: -1 | F105: 2 | G105: 2.8
A106: 11 | B106: Changes in inventories and net acquisition of value | C106: P.52 + P.53 | E106: -1.3 | F106: 0 | G106: 0
A107: 12 | B107: External balance of goods and services | C107: B.11 | E107: 0.6 | F107: -0.9 | G107: -0.7
B108: Deflators and HICP | E108: =IF(ISNUMBER(_xlfn.ANCHORARRAY(E$34)),"growth rate","") -> growth rate | F108: growth rate | G108: growth rate | H108: growth rate | I108: growth rate
A109: 13 | B109: Private consumption deflator | E109: 3.4 | F109: 3.5 | G109: 2.3
A110: 14 | B110: p.m. HICP | E110: 1.3 | F110: 3.5 | G110: 2.3
A111: 15 | B111: Government consumption deflator | E111: 0.6 | F111: 4.3 | G111: -1.2
A112: 16 | B112: Investment deflator | E112: 2.5 | F112: 3.7 | G112: 3.4
A113: 17 | B113: Export price deflator (goods and services) | E113: 0.9 | F113: 1.6 | G113: 2.9
A114: 18 | B114: Import price deflator (goods and services) | E114: 0.1 | F114: 2 | G114: 2.3
B115: Labour market | C115: ESA code | D115: level | E115: =IF(ISNUMBER(_xlfn.ANCHORARRAY(E$34)),"growth rate","") -> growth rate | F115: growth rate | G115: growth rate | H115: growth rate | I115: growth rate
A116: 19 | B116: Domestic employment (1000 persons, national accounts) | D116: 877 | E116: -0.8 | F116: -0.2 | G116: -0.2
A117: 20 | B117: Average annual hours worked per person employed | D117: 1771 | E117: 0.7 | F117: 0 | G117: 0
A118: 21 | B118: Real GDP per person employed | E118: 0.3 | F118: 1.3 | G118: 2.3
A119: 22 | B119: Real GDP per hour worked | E119: -0.2 | F119: 1.3 | G119: 2.3
A120: 23 | B120: Compensation of employees (bn NAC) | C120: D.1 | D120: 22281 | E120: 7.7 | F120: 7.3 | G120: 5.8
A121: 24 | B121: Compensation per employee (=23/19) | D121: 0.03 | E121: 9.6 | F121: 7.5 | G121: 6
E122: =IF(ISNUMBER(_xlfn.ANCHORARRAY(E$34)),"%","") -> % | F122: % | G122: % | H122: % | I122: %
A123: 25 | B123: Unemployment rate (%) | E123: 6.9 | F123: 6.9 | G123: 6.3
B124: Potential GDP and components | E124: =IF(ISNUMBER(_xlfn.ANCHORARRAY(E$34)),"growth rate","") -> growth rate | F124: growth rate | G124: growth rate | H124: growth rate | I124: growth rate
A125: 26 | B125: Potential GDP | E125: 2 | F125: 1.7 | G125: 1.7
B126: Contributions to potential growth
A127: 27 | B127: Labour | E127: 0 | F127: -0.3 | G127: -0.5
A128: 28 | B128: Capital | E128: 0.6 | F128: 0.7 | G128: 0.8
A129: 29 | B129: Total factor productivity | E129: 1.4 | F129: 1.4 | G129: 1.4
E130: =IF(ISNUMBER(_xlfn.ANCHORARRAY(E$34)),"% pot. GDP","") -> % pot. GDP | F130: % pot. GDP | G130: % pot. GDP | H130: % pot. GDP | I130: % pot. GDP
A131: 30 | B131: Output gap | E131: -0.7 | F131: -1.3 | G131: -0.9

Sheet Step 4 - View results
B1: =Country&"'s adherence to Regulation (EU) 2024/1263 and associated guidance" -> Latvia's adherence to Regulation (EU) 2024/1263 and associated guidance
B3: =IF(AssessmentRound="Implementation of an endorsed MTP","Assessing the implementation of the endorsed Medium-Term Plan","Assessing a new or revised MTP") -> Assessing the implementation of the endorsed Medium-Term Plan
B5: =CHAR(149)&" This checks whether "&Country&" is adhering to its Council-endorsed medium-term structural-fiscal plan." -> • This checks whether Latvia is adhering to its Council-endorsed medium-term structural-fiscal plan.
B6: =CHAR(149)&" "&MTP_Requirement -> • Latvia does not receive a reference trajectory but its MTP must contain a net expenditure path that complies with TFEU general government debt and deficit sustainability requirements.
B7: =CHAR(149)&" "&IF(MTP_Council_Endorsed,"The net expenditure path in "&Country&"'s latest MTP was endorsed by the Council.","The net expenditure path in "&Country&"'s latest MTP is awaiting endorsement by the Council.") -> • The net expenditure path in Latvia's latest MTP was endorsed by the Council.
B8: =CHAR(149)&" "& _xlfn.LET( _xlpm.rng, 'Step 1 - Set global parameters'!B13:H13, _xlpm.anyGeneral, COUNTIF(_xlpm.rng,"General")+COUNTIF(_xlpm.rng,"Both")>0, _xlpm.anyCountry, COUNTIF(_xlpm.rng,"Country")+COUNTIF(_xlpm.rng,"Both")>0, _xlfn.IFS( AND(_xlpm.anyGeneral, _xlpm.anyCountry), "Both the general and country-specific escape clauses have been activated.", _xlpm.anyGeneral, "The general escape clause has been activated.", _xlpm.anyCountry, "A country-specific escape clause has been activated.", TRUE, "No escape clauses are currently activated." ) ) -> • A country-specific escape clause has been activated.
B10: Rule | C10: Status | E10: Narrative
A11: P1 | B11: Compliance with agreed net expenditure path (single operational anchor) | C11: =IF(AssessmentRound="A new or revised MTP","N/A",IF( OR( Assessment!C98="Not applicable (all years adhere to the net expenditure path)", Assessment!C98=TRUE ), "Compliant", IF( Assessment!C96=FALSE, "Breach", IF( IFERROR(Assessment!C97=FALSE,FALSE), "Caution", "Compliant" ) ) )) -> Compliant | D11: ● | E11: =IF(AssessmentRound="A new or revised MTP",NA(),Assessment!C100) -> Latvia's observed net expenditure to 2024 adheres to the net expenditure path in its latest Council-endorsed MTP, but planned net expenditure to 2026 does not. Deviations occur only in years covered by an escape clause.
A12: P2 | B12: Control account within limits | C12: =IF( AssessmentRound="A new or revised MTP", "N/A", IF( OR(IF(ISNA(Assessment!C151),FALSE,Assessment!C151), IF(ISNA(Assessment!C152),FALSE,Assessment!C152)), "Breach", IF( AND(OR(Assessment!C149,Assessment!C150), NOT(Assessment!C153)), "Breach", IF( AND(OR(Assessment!C147,Assessment!C148), NOT(Assessment!C153)), "Caution", "Compliant" ) ) ) ) -> Compliant | D12: ● | E12: =IF(AssessmentRound="A new or revised MTP",NA(),Assessment!C156) -> At the end of the assessment period (2026), the balance in Latvia's cumulative control account is a credit (underspend) of 1.5 percentage points of GDP. Observed annual and cumulative deviations do not exceed the respective 0.3 and 0.6 percentage points of GDP limits.
A13: P3 | B13: Debt sustainability safeguard respected (diagnostic only) | C13: =IF(AssessmentRound="A new or revised MTP", "N/A", IF( OR( NOT(Receives_reference_trajectory), NOT(OR(Assessment!C159, Assessment!C160)) ), "N/A", IF( OR( IF(Assessment!C159, NOT(Assessment!C161), FALSE), IF(Assessment!C160, NOT(Assessment!C162), FALSE) ), "Caution", "Compliant" ) )) -> N/A | D13: ● | E13: =IF(AssessmentRound="A new or revised MTP",NA(),Assessment!C164) -> Latvia does not receive a reference trajectory and is not assessed against the debt sustainability safeguard.
A14: P4 | B14: Deficit resilience safeguard respected (diagnostic only) | C14: =IF(AssessmentRound="A new or revised MTP","N/A",IF( NOT(Receives_reference_trajectory), "N/A", IF( ISNA(Assessment!C174), "N/A", IF(Assessment!C174,"Compliant","Caution") ) )) -> N/A | D14: ● | E14: =IF(AssessmentRound="A new or revised MTP",NA(),Assessment!C176) -> Latvia does not receive a reference trajectory and is not assessed against the deficit resilience safeguard.
A15: P5 | B15: Structural primary balance progress and timing (diagnostic only) | C15: =IF(AssessmentRound="A new or revised MTP","N/A",IF(Assessment!C185,"Compliant",IF(EscapeClauseActivated,"Compliant","Caution"))) -> Compliant | D15: ● | E15: =IF(AssessmentRound="A new or revised MTP",NA(),Assessment!C187) -> Latvia's SPB already exceeds the target level by 0.9 pp of GDP, but the planned path implies a deterioration of 0.6 pp of GDP per year on average over the assessment period. Additional adjustment in later years may be needed to maintain the target, creating a risk of backloading. However, an escape clause has been activated.
A16: P6 | B16: Overall implementation | C16: =IF(AssessmentRound="A new or revised MTP","N/A",IF(COUNTIF(C11:C12,"Breach")=0,"Compliant","Breach")) -> Compliant | D16: ● | E16: =IF(AssessmentRound="A new or revised MTP",NA(),IF( C16="Compliant", "Overall, "&Country&"'s implementation of the medium-term fiscal-structural plan is compliant with the requirements of Regulation (EU) 2024/1263.", "Overall, "&Country&"'s implementation of the medium-term fiscal-structural plan is not compliant with the requirements of Regulation (EU) 2024/1263." )) -> Overall, Latvia's implementation of the medium-term fiscal-structural plan is compliant with the requirements of Regulation (EU) 2024/1263.
B18: Summary control account
B19: =_xlfn.LET( _xlpm.esc, IFERROR('Step 1 - Set global parameters'!B13:H13,""), _xlpm.defence, IFERROR('Step 1 - Set global parameters'!B12:G12,FALSE), _xlpm.type, IFERROR('Step 1 - Set global parameters'!B14:G14,""), _xlpm.anyDefence, SUMPRODUCT((_xlpm.defence=TRUE)*(_xlpm.type="Defence"))>0, _xlpm.anyGeneral, COUNTIF(_xlpm.esc,"General")+COUNTIF(_xlpm.esc,"Both")>0, _xlpm.anyCountry, COUNTIF(_xlpm.esc,"Country")+COUNTIF(_xlpm.esc,"Both")>0, _xlfn.IFS( _xlpm.anyDefence, "A defence-related national escape clause has been activated. Debits in such years exclude increases in defence spending.", AND(_xlpm.anyGeneral, _xlpm.anyCountry), "Both the general escape clause and the country-specific escape clause have been activated; deviations in years covered by an escape clause are not recorded and are shown for information only", _xlpm.anyCountry, "A country-specific escape clause has been activated; deviations in years covered by an escape clause are not recorded and are shown for information only", _xlpm.anyGeneral, "A general escape clause has been activated; deviations in years covered by an escape clause are not recorded and are shown for information only", TRUE, "No escape clause has been activated so deviations are being recorded" ) ) -> A defence-related national escape clause has been activated. Debits in such years exclude increases in defence spending. | J19: ="Key fiscal indicators, latest outturn ("&OutturnThrough&")" -> Key fiscal indicators, latest outturn (2024)
B20: =_xlfn.LET( _xlpm.defence, IFERROR('Step 1 - Set global parameters'!B12:G12,FALSE), _xlpm.type, IFERROR('Step 1 - Set global parameters'!B14:G14,""), IF(SUMPRODUCT((_xlpm.defence=TRUE)*(_xlpm.type="Defence"))>0, """Augmented"" control account (defence-related escape clauses)", "" ) ) -> "Augmented" control account (defence-related escape clauses) | C20: =IF((_xlfn.ANCHORARRAY(C21)>=MTP_YearT-1)*(_xlfn.ANCHORARRAY(C21)<=AdjustmentPeriodEnd), IF(_xlfn.ANCHORARRAY(C21)=MTP_YearT-1, "T-1", IF(_xlfn.ANCHORARRAY(C21)=MTP_YearT, "T", "T+"&(_xlfn.ANCHORARRAY(C21)-MTP_YearT))), "") -> T | D20: T+1 | E20: T+2 | F20: T+3 | G20: T+4 | J20: Observed | O20: MTP
C21: =_xlfn.SEQUENCE(1, AdjustmentPeriodEnd+1-MTP_YearT, MTP_YearT) -> 2024 | D21: 2025 | E21: 2026 | F21: 2027 | G21: 2028
B22: Performance against net expenditure path limit | C22: =IF(AssessmentRound="New or revised MTP", "", IF(_xlfn.ANCHORARRAY(C21)<=AdjustmentPeriodEnd, IF(_xlfn.ANCHORARRAY(C21)<=OutturnThrough, "Observed", "Planned"), "")) -> Observed | D22: Planned | E22: Planned | F22: Planned | G22: Planned | J22: =INDEX( Assessment!15:15, _xlfn.XMATCH( OutturnThrough, Assessment!4:4, 0 ) ) -> 4.965262079 | K22: Net expenditure growth, planned (%) | O22: =INDEX( Assessment!34:34, _xlfn.XMATCH( OutturnThrough, Assessment!32:32, 0 ) ) -> 9.1
B23: Escape clause activated? | C23: =IF(AssessmentRound="New or revised MTP", "", IF(AssessmentRound="Revised MTP","",_xlfn.HSTACK("",IF(OFFSET(Assessment!$F$141,0,0,1,COLUMNS(_xlfn.ANCHORARRAY(C21))-1),"Yes","No")))) ->  | D23: Yes | E23: Yes | F23: Yes | G23: Yes
B24: ="Net expenditure growth "&IF(MTP_Council_Endorsed,"(Council-recommended path)","(proposed)") -> Net expenditure growth (Council-recommended path) | C24: =IF(AssessmentRound="New or revised MTP","",INDEX(Assessment!34:34, _xlfn.SEQUENCE(1, MTP_PlanningHorizon+1, COLUMN(Assessment!E34)))) -> 9.1 | D24: 5.9 | E24: 3.6 | F24: 3.4 | G24: 3.3 | J24: =INDEX( Assessment!17:17, _xlfn.XMATCH( OutturnThrough, Assessment!4:4, 0 ) ) -> -1.786860768 | K24: Government budget balance (% of GDP) | O24: =INDEX( Assessment!35:35, _xlfn.XMATCH( OutturnThrough, Assessment!32:32, 0 ) ) -> -2.6
B25: Net expenditure growth (observed/planned) | C25: =IF(AssessmentRound="New or revised MTP", "", INDEX(Assessment!15:15, _xlfn.SEQUENCE(1, AssessmentEnd-MTP_YearT+1, COLUMN(Assessment!E15)))) -> 4.965262079 | D25: 6.2 | E25: 5
B26: Control account (bn NAC) | J26: =INDEX( Assessment!19:19, _xlfn.XMATCH( OutturnThrough, Assessment!4:4, 0 ) ) -> -0.44949 | K26: Structural primary balance (% of GDP) | O26: =INDEX( Assessment!37:37, _xlfn.XMATCH( OutturnThrough, Assessment!32:32, 0 ) ) -> -0.8
B27: =_xlfn.LET( _xlpm.defence, IFERROR('Step 1 - Set global parameters'!B12:G12,FALSE), _xlpm.type, IFERROR('Step 1 - Set global parameters'!B14:G14,""), IF(SUMPRODUCT((_xlpm.defence=TRUE)*(_xlpm.type="Defence"))>0, Assessment!B135, Assessment!B134 ) ) -> Debit excluding increase in defence expenditure | C27: =IF(AssessmentRound="New or revised MTP", "", IF(COUNTIF('Step 1 - Set global parameters'!B14:G14,"Defence")>0,INDEX(Assessment!135:135, _xlfn.SEQUENCE(1, AssessmentEnd-MTP_YearT+1, COLUMN(Assessment!E135))),INDEX(Assessment!134:134, _xlfn.SEQUENCE(1, AssessmentEnd-MTP_YearT+1, COLUMN(Assessment!E134))))) -> 0 | D27: 0 | E27: 0
B28: =Assessment!B136 -> Credit | C28: =IF(AssessmentRound="New or revised MTP", "", INDEX(Assessment!136:136, _xlfn.SEQUENCE(1, AssessmentEnd-MTP_YearT+1, COLUMN(Assessment!E136)))) -> 0.661740492 | D28: 0 | E28: 0 | J28: =INDEX( Assessment!20:20, _xlfn.XMATCH( OutturnThrough, Assessment!4:4, 0 ) ) -> 46.2495357 | K28: Government debt (% of GDP) | O28: =INDEX( Assessment!38:38, _xlfn.XMATCH( OutturnThrough, Assessment!32:32, 0 ) ) -> 45.8
B29: =Assessment!B139&" (% GDP)" -> Annual balance (% GDP) | C29: =IF(AssessmentRound="New or revised MTP", "", INDEX(Assessment!139:139, _xlfn.SEQUENCE(1, AssessmentEnd-MTP_YearT+1, COLUMN(Assessment!E139)))) -> -1.627805787 | D29: 0 | E29: 0
B30: =Assessment!B140&" (% GDP)" -> Cumulated balance (% GDP) | C30: =IF(AssessmentRound="New or revised MTP", "", INDEX(Assessment!140:140, _xlfn.SEQUENCE(1, AssessmentEnd-MTP_YearT+1, COLUMN(Assessment!E140)))) -> -1.627805787 | D30: -1.559200946 | E30: -1.489208162
B31: Note: Negative numbers in control account indicate plans are outperforming commitments. Where an escape clause has been activated, debits and credits are not recorded in the cumulated balance of the control account; for defence-related escape clauses introduced in 2025, debits exclude increases in defence expenditure up to a capped amount. Figures shown in amber indicate that an escape clause is in effect for that year.
B35: Main fiscal variables, implementation compared to MTP
B36: % of GDP unless noted | C36: =IF(_xlfn.SEQUENCE(1,MTP_PlanningHorizon+2,-1)=-1, "T-1", IF(_xlfn.SEQUENCE(1,MTP_PlanningHorizon+2,-1)=0, "T", "T+"&_xlfn.SEQUENCE(1,MTP_PlanningHorizon+2,-1))) -> T-1 | D36: T | E36: T+1 | F36: T+2 | G36: T+3 | H36: T+4
C37: =_xlfn.SEQUENCE(1, MTP_EndYear - MTP_BaseYear+1, MTP_BaseYear) -> 2023 | D37: 2024 | E37: 2025 | F37: 2026 | G37: 2027 | H37: 2028
C38: =IF(C37="", "", IF(C37<=OutturnThrough, "Observed", "Planned")) -> Observed | D38: Observed | E38: Planned | F38: Planned | G38: Planned | H38: Planned
B39: Net expenditure growth (annual) | C39: =INDEX( Assessment!$34:$34, 1, MATCH(MTP_BaseYear,Assessment!$32:$32,0) + _xlfn.SEQUENCE(1, COLUMNS(_xlfn.ANCHORARRAY(C37)), 0) ) ->  | D39: 9.1 | E39: 5.9 | F39: 3.6 | G39: 3.4 | H39: 3.3
B40: =ScenarioName -> Draft Budgetary Plan 2026 | C40: =INDEX( Assessment!$15:$15, 1, MATCH(MTP_BaseYear,Assessment!$4:$4,0) + _xlfn.SEQUENCE(1, COLUMNS(_xlfn.ANCHORARRAY(C37)), 0) ) ->  | D40: 4.965262079 | E40: 6.2 | F40: 5
B41: Net lending/borrowing | C41: =INDEX( Assessment!$35:$35, 1, MATCH(MTP_BaseYear,Assessment!$32:$32,0) + _xlfn.SEQUENCE(1, COLUMNS(_xlfn.ANCHORARRAY(C37)), 0) ) -> -2.2 | D41: -2.6 | E41: -2.9 | F41: -2.9 | G41: -2.9 | H41: -2.9
B42: =ScenarioName -> Draft Budgetary Plan 2026 | C42: =INDEX( Assessment!$17:$17, 1, MATCH(MTP_BaseYear,Assessment!$4:$4,0) + _xlfn.SEQUENCE(1, COLUMNS(_xlfn.ANCHORARRAY(C37)), 0) ) -> -2.342774528 | D42: -1.786860768 | E42: -2.9 | F42: -3.3
B43: Structural balance | C43: =INDEX( Assessment!$36:$36, 1, MATCH(MTP_BaseYear,Assessment!$32:$32,0) + _xlfn.SEQUENCE(1, COLUMNS(_xlfn.ANCHORARRAY(C37)), 0) ) -> -1.8 | D43: -1.9 | E43: -2.5 | F43: -2.6 | G43: -2.7 | H43: -2.7
B44: =ScenarioName -> Draft Budgetary Plan 2026 | C44: =INDEX( Assessment!$18:$18, 1, MATCH(MTP_BaseYear,Assessment!$4:$4,0) + _xlfn.SEQUENCE(1, COLUMNS(_xlfn.ANCHORARRAY(C37)), 0) ) -> -2.10632 | D44: -1.548 | E44: -2.4 | F44: -3
B45: Structural primary balance | C45: =INDEX( Assessment!$37:$37, 1, MATCH(MTP_BaseYear,Assessment!$32:$32,0) + _xlfn.SEQUENCE(1, COLUMNS(_xlfn.ANCHORARRAY(C37)), 0) ) -> -1.2 | D45: -0.8 | E45: -1.3 | F45: -1.3 | G45: -1.3 | H45: -1.3
B46: =ScenarioName -> Draft Budgetary Plan 2026 | C46: =INDEX( Assessment!$19:$19, 1, MATCH(MTP_BaseYear,Assessment!$4:$4,0) + _xlfn.SEQUENCE(1, COLUMNS(_xlfn.ANCHORARRAY(C37)), 0) ) -> -1.38124 | D46: -0.44949 | E46: -1.2 | F46: -1.6
B47: Gross debt | C47: =INDEX( Assessment!$38:$38, 1, MATCH(MTP_BaseYear,Assessment!$32:$32,0) + _xlfn.SEQUENCE(1, COLUMNS(_xlfn.ANCHORARRAY(C37)), 0) ) -> 43.6 | D47: 45.8 | E47: 47.5 | F47: 48.5 | G47: 49.7 | H47: 50.8
B48: =ScenarioName -> Draft Budgetary Plan 2026 | C48: =INDEX( Assessment!$20:$20, 1, MATCH(MTP_BaseYear,Assessment!$4:$4,0) + _xlfn.SEQUENCE(1, COLUMNS(_xlfn.ANCHORARRAY(C37)), 0) ) -> 44.43031832 | D48: 46.2495357 | E48: 48.9 | F48: 50.6
B49: Change in gross debt | C49: =INDEX( Assessment!$39:$39, 1, MATCH(MTP_BaseYear,Assessment!$32:$32,0) + _xlfn.SEQUENCE(1, COLUMNS(_xlfn.ANCHORARRAY(C37)), 0) ) -> 1.8 | D49: 2.3 | E49: 1.6 | F49: 1.1 | G49: 1.2 | H49: 1.2
B50: =ScenarioName -> Draft Budgetary Plan 2026 | C50: =INDEX( Assessment!$21:$21, 1, MATCH(MTP_BaseYear,Assessment!$4:$4,0) + _xlfn.SEQUENCE(1, COLUMNS(_xlfn.ANCHORARRAY(C37)), 0) ) ->  | E50: 2.1 | F50: 1.7
B52: Real GDP (rate of change, %) | C52: =INDEX( Assessment!$40:$40, 1, MATCH(MTP_BaseYear,Assessment!$32:$32,0) + _xlfn.SEQUENCE(1, COLUMNS(_xlfn.ANCHORARRAY(C37)), 0) ) -> -0.3 | D52: 1.4 | E52: 2.9 | F52: 1.6 | G52: 1.2 | H52: 1.1
B53: =ScenarioName -> Draft Budgetary Plan 2026 | C53: =INDEX( Assessment!$22:$22, 1, MATCH(MTP_BaseYear,Assessment!$4:$4,0) + _xlfn.SEQUENCE(1, COLUMNS(_xlfn.ANCHORARRAY(C37)), 0) ) -> -0.9414574313 | D53: -0.03731098501 | E53: 1.1 | F53: 2.1
B54: GDP deflator (rate of change, %) | C54: =INDEX( Assessment!$41:$41, 1, MATCH(MTP_BaseYear,Assessment!$32:$32,0) + _xlfn.SEQUENCE(1, COLUMNS(_xlfn.ANCHORARRAY(C37)), 0) ) -> 5.4 | D54: 2.4 | E54: 2.5 | F54: 2.5 | G54: 2.5 | H54: 2.5
B55: =ScenarioName -> Draft Budgetary Plan 2026 | C55: =INDEX( Assessment!$23:$23, 1, MATCH(MTP_BaseYear,Assessment!$4:$4,0) + _xlfn.SEQUENCE(1, COLUMNS(_xlfn.ANCHORARRAY(C37)), 0) ) -> 10.6723716 | D55: 2.788565003 | E55: 3.3 | F55: 2.5
B56: Nominal GDP (rate of change, %) | C56: =INDEX( Assessment!$42:$42, 1, MATCH(MTP_BaseYear,Assessment!$32:$32,0) + _xlfn.SEQUENCE(1, COLUMNS(_xlfn.ANCHORARRAY(C37)), 0) ) -> 5.1 | D56: 3.8 | E56: 5.5 | F56: 4.1 | G56: 3.7 | H56: 3.6
B57: =ScenarioName -> Draft Budgetary Plan 2026 | C57: =INDEX( Assessment!$24:$24, 1, MATCH(MTP_BaseYear,Assessment!$4:$4,0) + _xlfn.SEQUENCE(1, COLUMNS(_xlfn.ANCHORARRAY(C37)), 0) ) -> 9.630438337 | D57: 2.750213577 | E57: 4.4 | F57: 4.7
B58: Potential growth | C58: =INDEX( Assessment!$43:$43, 1, MATCH(MTP_BaseYear,Assessment!$32:$32,0) + _xlfn.SEQUENCE(1, COLUMNS(_xlfn.ANCHORARRAY(C37)), 0) ) -> 2.3 | D58: 2.2 | E58: 2.1 | F58: 1.2 | G58: 0.9 | H58: 0.9
B59: =ScenarioName -> Draft Budgetary Plan 2026 | C59: =INDEX( Assessment!$25:$25, 1, MATCH(MTP_BaseYear,Assessment!$4:$4,0) + _xlfn.SEQUENCE(1, COLUMNS(_xlfn.ANCHORARRAY(C37)), 0) ) -> 0.9743541816 | D59: -0.01879470235 | E59: 1.7 | F59: 1.7
B60: Output gap (% pot. GDP) | C60: =INDEX( Assessment!$44:$44, 1, MATCH(MTP_BaseYear,Assessment!$32:$32,0) + _xlfn.SEQUENCE(1, COLUMNS(_xlfn.ANCHORARRAY(C37)), 0) ) -> -1 | D60: -1.8 | E60: -1 | F60: -0.7 | G60: -0.5 | H60: -0.4
B61: =ScenarioName -> Draft Budgetary Plan 2026 | C61: =INDEX( Assessment!$26:$26, 1, MATCH(MTP_BaseYear,Assessment!$4:$4,0) + _xlfn.SEQUENCE(1, COLUMNS(_xlfn.ANCHORARRAY(C37)), 0) ) -> -0.6750981527 | D61: -0.7022101309 | E61: -1.3 | F61: -0.9
B62: ="Numbers in green indicate "&ScenarioName&" is outperforming the medium-term plan" -> Numbers in green indicate Draft Budgetary Plan 2026 is outperforming the medium-term plan
B63: ="Numbers in red indicate "&ScenarioName&" is underperforming the medium-term plan" -> Numbers in red indicate Draft Budgetary Plan 2026 is underperforming the medium-term plan
B84: =IF(Receives_reference_trajectory,"Observed debt compared to the deterministic and stochastic DSA scenarios using the methodology in the Commission’s Debt Sustainability Monitor 2023 (% of GDP)",Country&"'s deficit and debt were below the Treaty thresholds in Year T-1, therefore the Commission does not issue a full set of deterministic and stochastic DSA stress scenarios") -> Latvia's deficit and debt were below the Treaty thresholds in Year T-1, therefore the Commission does not issue a full set of deterministic and stochastic DSA stress scenarios
B85: =IF(NOT(Receives_reference_trajectory),Country&"'s deficit and debt were below the Treaty thresholds in Year T-1, therefore the Commission does not issue a full set of deterministic and stochastic DSA stress scenarios","") -> Latvia's deficit and debt were below the Treaty thresholds in Year T-1, therefore the Commission does not issue a full set of deterministic and stochastic DSA stress scenarios
L103: T-1 | M103: T | N103: T+1 | O103: T+2 | P103: T+3 | Q103: T+4 | R103: T+5
L104: 2024 | M104: 2025 | N104: 2026 | O104: 2027 | P104: 2028 | Q104: 2029 | R104: 2030 | T104: T+7
L105: Actual | M105: Planned | N105: Planned | O105: Planned | P105: Planned | Q105: Planned | R105: Planned | T105: 2032
B106: Core compliance checks | K106: Nominal GDP (and deflator or real GDP if available). | T106: Planned
K107: General government deficit (% of GDP). | S107: T+6
B108: Numerical safeguards | K108: General government gross debt (% of GDP). | S108: 2031
B109: Deficit < 3% of GDP in the medium term. | K109: Nationally financed net primary expenditure (NNE). | S109: Planned
B110: Debt plausibly on a downward path (or below 60% of GDP). | K110: Any one-off measures (to strip them out of NNE).
K111: Medium-term plan’s reference rate of NNE growth (from Commission).
B112: Net expenditure growth
B113: Outturn NNE vs. the reference trajectory:
B114: Compute annual growth of NNE (net of discretionary revenue measures, EU-funded expenditure, and one-offs).
B115: Compare to the reference rate/trajectory.
B117: Structural balance resilience safeguard
B118: Check whether the structural balance is above -1.5% of GDP (the automatic "red flag" safeguard"
B124: Expenditure ceilings
B127: Automatic text summary
B128: EU Fiscal Rules Compliance Dashboard — Example Country (2025-08-17)
B130: Deficit Rule (<3% GDP): OK
B131: Debt Rule (<60% or declining): OK
B132: NNE Growth Rule: Breach
B133: Structural Balance Safeguard (> -1.5% GDP): Breach
B135: Notes:
B136: - Deficit remains below 3% in all years.
B137: - Debt at 90→87% of GDP, only modest decline — requires review.
B138: - NNE growth exceeds reference in 2026 (2.0% vs 1.2%) → breach.
B139: - Structural balance respected (-1.3% > -1.5%).
B148: Plausibility of the macroeconomic and fiscal assumptions, to the extent that they differ from those underlying the reference trajectorty. In particular, the debt projections at unchange policy to be included in the plan should be comparable with the projections of the commission
B150: Debt projections (Ministry of Finance vs Commission)
B154: Plausibility assessment of the general government debt ratio being on a downward path or remaining at a prudent level:
B155: Domestic fiscal rules
B156: Under Article 34(1)(d) of Law 4270/2014, the general government primary balance must be in surplus. Under Article 35 of Law 4270/2014, the general government structural balance must be no worse than -0.5% of GDP (deprecated).
B174: Supportive information and alternative formats

Sheet Step 0.1 (MTP) - Plan and prior
B1: Medium-term fiscal-structural plan (endorsed by Council), EC reference trajectory and DSA (Adjustment period currently set to 4 years)
B2: MTP parameters
B3: MTP base year (T-X) | C3: 2023
B4: MTP submission year (T) | C4: 2024
B5: MTP planning horizon | C5: 4
B6: MTP adjustment period (Years) | C6: 4
B7: MTP uses different assumptions than EC's DSA framework in prior guidance | C7: TRUE
B8: MTP endorsed by Council | C8: TRUE
B9: MTP base year is T-2 (Plan submitted Jan-Mar when T-1 outturn unavailable) | C9: FALSE
B10: Prior guidance transmittion date: | C10: 2024-06-30
B12: Medium-term fiscal-structural plan
B13: % of GDP unless noted
B14: Calendar year | D14: =_xlfn.SEQUENCE(1, MTP_EndYear-MTP_PlanFirstYear+1, MTP_PlanFirstYear) -> 2023 | E14: 2024 | F14: 2025 | G14: 2026 | H14: 2027 | I14: 2028
B15: MTP reference year | D15: =_xlfn.LET( _xlpm.n, _xlfn.SEQUENCE(1, MTP_EndYear - MTP_PlanFirstYear + 1, MTP_PlanFirstYear - MTP_YearT), CHOOSE(SIGN(_xlpm.n) + 2, "T" & _xlpm.n, "T", "T+" & _xlpm.n) ) -> T-1 | E15: T | F15: T+1 | G15: T+2 | H15: T+3 | I15: T+4
B16: ="Planned path for net expenditure growth in MTP"&IF(MTP_Council_Endorsed," (endorsed by Council)"," (not yet endorsed by Council)") -> Planned path for net expenditure growth in MTP (endorsed by Council) | C16: growth rate (%) | E16: 9.1 | F16: 5.9 | G16: 3.6 | H16: 3.4 | I16: 3.3
B17: Net lending/borrowing | D17: -2.2 | E17: -2.6 | F17: -2.9 | G17: -2.9 | H17: -2.9 | I17: -2.9
B18: Structural balance | D18: -1.8 | E18: -1.9 | F18: -2.5 | G18: -2.6 | H18: -2.7 | I18: -2.7
B19: Structural primary balance | D19: -1.2 | E19: -0.8 | F19: -1.3 | G19: -1.3 | H19: -1.3 | I19: -1.3
B20: Gross debt | D20: 43.6 | E20: 45.8 | F20: 47.5 | G20: 48.5 | H20: 49.7 | I20: 50.8
B21: Change in gross debt | D21: 1.8 | E21: 2.3 | F21: 1.6 | G21: 1.1 | H21: 1.2 | I21: 1.2
B22: Real GDP | C22: rate of change, % | D22: -0.3 | E22: 1.4 | F22: 2.9 | G22: 1.6 | H22: 1.2 | I22: 1.1
B23: GDP deflator | C23: rate of change, % | D23: 5.4 | E23: 2.4 | F23: 2.5 | G23: 2.5 | H23: 2.5 | I23: 2.5
B24: Nominal GDP | C24: rate of change, % | D24: 5.1 | E24: 3.8 | F24: 5.5 | G24: 4.1 | H24: 3.7 | I24: 3.6
B25: Potential growth | C25: rate of change, % | D25: 2.3 | E25: 2.2 | F25: 2.1 | G25: 1.2 | H25: 0.9 | I25: 0.9
B26: Output gap | C26: % pot. GDP | D26: -1 | E26: -1.8 | F26: -1 | G26: -0.7 | H26: -0.5 | I26: -0.4
B27: For countries with a domestic primary balance rule (optional):
B28: Interest expenditure | C28: bn NAC
B29: Nominal GDP (level, millions of national currency) | C29: level, bn NAC
B31: Calendar year | D31: =_xlfn.SEQUENCE(1, MTP_YearT + MTP_PlanningHorizon + 10 - MTP_PlanFirstYear + 1, MTP_PlanFirstYear) -> 2023 | E31: 2024 | F31: 2025 | G31: 2026 | H31: 2027 | I31: 2028 | J31: 2029 | K31: 2030 | L31: 2031 | M31: 2032 | N31: 2033 | O31: 2034 | P31: 2035 | Q31: 2036 | R31: 2037 | S31: 2038
B32: MTP reference year | D32: =_xlfn.LET( _xlpm.n, _xlfn.SEQUENCE(1, MTP_EndYear - MTP_PlanFirstYear + 1, MTP_PlanFirstYear - MTP_YearT), CHOOSE(SIGN(_xlpm.n) + 2, "T" & _xlpm.n, "T", "T+" & _xlpm.n) ) -> T-1 | E32: T | F32: T+1 | G32: T+2 | H32: T+3 | I32: T+4
B33: ="Main budgetary variables under the planned fiscal path ("&AdjustmentPeriod&"-year adjustment period)" -> Main budgetary variables under the planned fiscal path (4-year adjustment period)
B34: Net expenditure growth
B35: Net lending/borrowing | D35: -2.2 | E35: -2.6 | F35: -2.9 | G35: -2.9 | H35: -2.9 | I35: -2.9 | J35: -2.9 | K35: -2.9 | L35: -2.9 | M35: -3 | N35: -3 | O35: -3 | P35: -3 | Q35: -3 | R35: -3 | S35: -2.9
B36: Structural balance
B37: Structural primary balance
B38: Gross debt | D38: 43.6 | E38: 45.8 | F38: 47.5 | G38: 48.5 | H38: 49.7 | I38: 50.8 | J38: 51.9 | K38: 53 | L38: 53.9 | M38: 54.9 | N38: 55.9 | O38: 56.8 | P38: 57.7 | Q38: 58.5 | R38: 59.2 | S38: 59.9
B39: Debt sustainability assessments
B40: Gross debt, no policy change scenario
B41: Gross debt, financial stress scenario
B42: Gross debt, lower structural primary balance scenario
B43: Gross debt, adverse r-g scenario
B44: Stochastic debt projections (probability of lower debt at end of projection than at end of adjustment period)
B46: =IF(Receives_reference_trajectory,"Prior guidance: reference trajectory and DSA","Prior guidance: technical information and DSA") -> Prior guidance: technical information and DSA
B47: % of GDP unless noted
B48: Calendar year | D48: =_xlfn.SEQUENCE(1, MTP_YearT + MTP_PlanningHorizon + 10 - MTP_PlanFirstYear + 1, MTP_PlanFirstYear) -> 2023 | E48: 2024 | F48: 2025 | G48: 2026 | H48: 2027 | I48: 2028 | J48: 2029 | K48: 2030 | L48: 2031 | M48: 2032 | N48: 2033 | O48: 2034 | P48: 2035 | Q48: 2036 | R48: 2037 | S48: 2038
B49: MTP reference year | D49: =_xlfn.LET( _xlpm.n, _xlfn.SEQUENCE(1, MTP_EndYear - MTP_PlanFirstYear + 1, MTP_PlanFirstYear - MTP_YearT), CHOOSE(SIGN(_xlpm.n) + 2, "T" & _xlpm.n, "T", "T+" & _xlpm.n) ) -> T-1 | E49: T | F49: T+1 | G49: T+2 | H49: T+3 | I49: T+4
B50: ="Reference trajectory provided by the Commission"&IF(NOT(Receives_reference_trajectory)," (not applicable)","") -> Reference trajectory provided by the Commission (not applicable)
B51: ="Minimum level for the structural primary balance in "&AdjustmentPeriodEnd&IF(Receives_reference_trajectory," (not applicable)","")&", no safeguard" -> Minimum level for the structural primary balance in 2028, no safeguard | I51: -1.3
B52: ="Minimum level for the structural primary balance in "&AdjustmentPeriodEnd&IF(Receives_reference_trajectory," (not applicable)","")&", with safeguard" -> Minimum level for the structural primary balance in 2028, with safeguard | I52: -0.142466
B53: =IF(Receives_reference_trajectory,"EC reference trajectory","EC technical information - Path to meet all requirements and safeguard.") -> EC technical information - Path to meet all requirements and safeguard.
B54: ="Main budgetary variables ("&AdjustmentPeriod&"-year adjustment period)" -> Main budgetary variables (4-year adjustment period)
B55: Net expenditure growth in a plan without extention | D55: 8.005513864 | E55: 4.918973667 | F55: 3.641306197 | G55: 2.743645197 | H55: 2.461675897 | I55: 3.38556926 | J55: 3.532897 | K55: 3.611776 | L55: 3.694236 | M55: 3.771945 | N55: 3.828627 | O55: 3.86795 | P55: 3.907274 | Q55: 3.946597 | R55: 3.926303 | S55: 3.835398
B56: Net lending/borrowing | D56: -2.213565793 | E56: -2.806207968 | F56: -2.50676199 | G56: -2.206873278 | H56: -1.863306035 | I56: -1.777467573 | J56: -1.716704502 | K56: -1.655520526 | L56: -1.592724271 | M56: -1.597956618 | N56: -1.58954778 | O56: -1.56213431 | P56: -1.520780048 | Q56: -1.455689515 | R56: -1.370690372 | S56: -1.281514823
B57: Structural balance | D57: -1.890396636 | E57: -2.39591185 | F57: -2.126882669 | G57: -1.842717256 | H57: -1.509262872 | I57: -1.535874274 | J57: -1.555642302 | K57: -1.574989426 | L57: -1.592724271 | M57: -1.597955871 | N57: -1.589548899 | O57: -1.562135802 | P57: -1.520779304 | Q57: -1.455688026 | R57: -1.370687765 | S57: -1.281512962
B58: Structural primary balance | D58: -1.259883 | E58: -1.362466 | F58: -0.962466 | G58: -0.562466 | H58: -0.162466 | I58: -0.142466 | J58: -0.142466 | K58: -0.142466 | L58: -0.142466 | M58: -0.142466 | N58: -0.142466 | O58: -0.142466 | P58: -0.142466 | Q58: -0.142466 | R58: -0.142466 | S58: -0.142466
B59: Gross debt | D59: 43.57443442 | E59: 44.53080203 | F59: 46.07468667 | G59: 46.60927353 | H59: 46.91319686 | I59: 46.98753852 | J59: 46.9924949 | K59: 46.90103991 | L59: 46.71365949 | M59: 46.60007069 | N59: 46.45717307 | O59: 46.2746733 | P59: 46.04027061 | Q59: 45.73237899 | R59: 45.35996543 | S59: 44.95156821
B60: ="Debt sustainability assessment ("&AdjustmentPeriod&"-year adjustment period)" -> Debt sustainability assessment (4-year adjustment period)
B61: Gross debt, no policy change scenario
B62: Gross debt, adjustment scenario, no safeguard
B63: Gross debt, financial stress scenario
B64: Gross debt, lower structural primary balance scenario
B65: Gross debt, adverse r-g scenario
B66: ="Stochastic debt projections, "&AdjustmentPeriodEnd+1&"-"&AdjustmentPeriodEnd+5 -> Stochastic debt projections, 2029-2033
B67: p10
B68: p30_p10
B69: p50_p30
B70: p70_p50
B71: p90_p70
B72: p10
B73: p30
B74: p50
B75: p70
B76: p90

Sheet Step 0.2 (MTP) - IFI scrutiny
B2: 1. Net expenditure path assumptions
B3: If required to adhere to a reference trajectory and the latest MTP does not, is the explanation satisfactory and based on sound and data-driven economic arguments explaining the difference? | C3: Article 13(b) of Regulation(EU) 2024/1263 | F3: Yes | G3: =HYPERLINK("#"&ADDRESS(ROW(),COLUMN()-1),CHAR(128)) -> €
B4: If using different assumptions to the EU's prior guidance to prepare the MTP, is the explanation satisfactory and based on sound and data-driven economic arguments? | F4: Yes | G4: €
B6: 2. Regulation (EU) 2024/1263 compulsory elements checklist for MTP
B7: A multi-annual net expenditure path (including respect of the deficit resilience and debt sustainability safeguards), as well as … | C7: Articles 7; 8; 13(a) | F7: TRUE | G7: =HYPERLINK("#"&ADDRESS(ROW(),COLUMN()-1),CHAR(128)) -> €
B8: … the underlying macroeconomic assumptions and … | C8: Article 13(a) | F8: TRUE | G8: €
B9: … the planned fiscal-structural measures. | C9: Article 13(a) | F9: TRUE | G9: €
B10: The reference trajectory or technical information transmitted by the Commission. | C10: Article 13(b) | F10: TRUE | G10: €
B11: Where the national medium-term fiscal-structural plan includes a higher net expenditure path than in the reference trajectory issued by the Commission, sound and data-driven economic arguments explaining the difference. | C11: Article 13(b) | F11: TRUE | G11: €
B12: Investments and reforms responding to the main challenges identified under the European semester – in particular the CSRs – and addressing the common priorities of the Union. | C12: Article 13(c) | F12: TRUE | G12: €
B13: Actions to address CSRs relevant for the MIP and warnings by the Commission / recommendations by the Council. | C13: Article 13(d) | F13: TRUE | G13: €
B14: The impact of investments and reforms already implemented. | C14: Article 13(f) | F14: TRUE | G14: €
B15: Information related to the main macroeconomic and budgetary assumptions, … | C15: Article 13(g)(i) | F15: TRUE | G15: €
B16: … implicit and contingent liabilities, … | C16: Article 13(g)(ii) | F16: TRUE | G16: €
B17: … the expected impact of reforms and investments underpinning the extension of the adjustment period | C17: Article 13(g)(iii) | F17: TRUE | G17: €
B18: … the forecasted level of nationally-financed public investment throughout the period covered by the national mediumn-term fiscal-structural plan | C18: Article 13(g)(iv) | F18: TRUE | G18: €
B19: … public investment needs including those related to the common priorities of the Union referred to in point (c) of this Article | C19: Article 13(g)(v) | F19: TRUE | G19: €
B20: … the consultation of national parliaments and the consultation process referred to in Article 11 | C20: Article 13(g)(vi)); Article 11 | F20: TRUE | G20: €
B21: …the consistency and, where appropriate, complementarity with the cohesion policy funds as well as the recovery and resilience plan of the Member State concerned during the period of operation of the Recovery and Resilience Facility pursuant to Regulation (EU) 2021/241 | C21: Article 13(g)(vii) | F21: TRUE | G21: €
B22: The impact of the set of reforms and investment commitments underpinning an extension on growth and resilience potential, fiscal sustainability, and nationally financed public investment. | C22: Articles 14.2; 13(g) | F22: TRUE | G22: €
B23: Information on how the reforms and investment commitments underpinning an extension address the common priorities of the Union and relevant CSRs (including those issued under the MIP), and, … | C23: Article 14.2 | F23: TRUE | G23: €
B24: … for each of these reforms and investments, a clear description, timeline, and, where relevant, indicators. | C24: Article 14.3; 13(e) | F24: TRUE | G24: €
B25: Consistency of the set of reforms and investments for an extension with commitments included in the approved RRP and the agreed Partnership Agreement in the Multiannual Financial Framework. | C25: Article 14.4 | F25: TRUE | G25: €
B26: If the plan serves as a corrective action plan under the EIP/MIP, the specific policy action (to be) implemented and a timetable for those actions. | C26: Article 31 | F26: TRUE | G26: €
B27: Transitory arrangements: RRP commitments to be taken into account | C27: Article 36 | F27: TRUE | G27: €
B29: 3. Assessment of investment & reform package for extension requests (Article 14)
B30: Has the Member State requested an extension of the adjustment period beyond four years (i.e. to seven years) in its medium-term fiscal-structural plan? | C30: Art. 14(1) | F30: FALSE | G30: =HYPERLINK("#"&ADDRESS(ROW(),COLUMN()-1),CHAR(128)) -> €
B31: Taken together, do the proposed reforms and investments credibly improve the Member State’s growth and economic resilience in a sustainable manner? | C31: Art. 14(2)(a) | F31: NA | G31: €
B32: Taken together, do the proposed reforms and investments support fiscal sustainability, including a structural improvement in government finances over the medium term? | C32: Art. 14(2)(b) | F32: NA | G32: €
B33: Do the proposed reforms and investments address the Union’s common priorities referred to in Article 13(c) of Regulation (EU) 2024/1263? | C33: Art. 14(2)(c) | F33: NA | G33: €
B34: Do the proposed reforms and investments address the relevant country-specific recommendations, including any issued under the Macroeconomic Imbalances Procedure, where applicable? | C34: Art. 14(2)(d) | F34: NA | G34: €
B35: Is the overall level of nationally financed public investment over the MTP period at least as high as the medium-term level prior to the plan, taking into account country-specific challenges? | C35: Art. 14(2)(e) | F35: NA | G35: €
B36: Are the reform and investment commitments described clearly and in sufficient detail to allow assessment against the Article 14 criteria? | C36: Art. 14(3)(a) | F36: NA | G36: €
B37: Are the reform commitments time-bound and planned to be implemented within the period covered by the medium-term fiscal-structural plan? | C37: Art. 14(3)(b) | F37: NA | G37: €
B38: Is significant progress in the implementation of the investment commitments expected to be achieved by the end of the adjustment period? | C38: Art. 14(3)(c) | F38: NA | G38: €
B39: Do the descriptions of the reforms and investments include appropriate indicators or milestones to allow monitoring of their implementation? | C39: Art. 14(3)(d) | F39: NA | G39: €
B40: Are the reform and investment commitments consistent with the approved Recovery and Resilience Plan, where applicable? | C40: Art. 14(4) | F40: NA | G40: €
B41: Are the reform and investment commitments consistent with the Partnership Agreement under the Multiannual Financial Framework? | C41: Art. 14(4) | F41: NA | G41: €
B42: Overall, does the IFI judge that the reform and investment commitments fulfil the criteria in Article 14 for an extension of the adjustment period? | C42: Art. 14(1)–(4) (overall judgement) | F42: NA | G42: €
B44: 4. Adherence to investment & reform commitments (if an extension was granted)
B45: Were milestones/metrices implemented as set out in Table 8 of the plan? (Guidance, Section 2.6; Art. 14) | F45: Yes | G45: =HYPERLINK("#"&ADDRESS(ROW(),COLUMN()-1),CHAR(128)) -> €

Sheet Step 0.3 (MTP) - View results
B1: =Country&"'s adherence to Regulation (EU) 2024/1263 and associated guidance" -> Latvia's adherence to Regulation (EU) 2024/1263 and associated guidance
B3: =IF(AssessmentRound="Implementation of an endorsed MTP","The Medium-Term Plan has been endorsed, the below is for information only (the scenario is set to assess the implementation of an endorsed MTP)","Assessing a new or revised MTP") -> The Medium-Term Plan has been endorsed, the below is for information only (the scenario is set to assess the implementation of an endorsed MTP)
B5: =CHAR(149)&" This checks whether "&Country&" is adhering to its Council-endorsed medium-term structural-fiscal plan." -> • This checks whether Latvia is adhering to its Council-endorsed medium-term structural-fiscal plan.
B6: =CHAR(149)&" "&MTP_Requirement -> • Latvia does not receive a reference trajectory but its MTP must contain a net expenditure path that complies with TFEU general government debt and deficit sustainability requirements.
B7: =CHAR(149)&" "&IF(MTP_Council_Endorsed,"The net expenditure path in "&Country&"'s latest MTP was endorsed by the Council.","The net expenditure path in "&Country&"'s latest MTP is awaiting endorsement by the Council.") -> • The net expenditure path in Latvia's latest MTP was endorsed by the Council.
B8: =CHAR(149)&" "& _xlfn.LET( _xlpm.rng, 'Step 1 - Set global parameters'!B13:H13, _xlpm.anyGeneral, COUNTIF(_xlpm.rng,"General")+COUNTIF(_xlpm.rng,"Both")>0, _xlpm.anyCountry, COUNTIF(_xlpm.rng,"Country")+COUNTIF(_xlpm.rng,"Both")>0, _xlfn.IFS( AND(_xlpm.anyGeneral, _xlpm.anyCountry), "Both the general and country-specific escape clauses have been activated.", _xlpm.anyGeneral, "The general escape clause has been activated.", _xlpm.anyCountry, "A country-specific escape clause has been activated.", TRUE, "No escape clauses are currently activated." ) ) -> • A country-specific escape clause has been activated.
B10: Rule | C10: Status | E10: Assessment
A11: M1 | B11: TFEU deficit reference value (3%) in MTP year T-1 | C11: =IF(Assessment!C198,"Compliant","Breach") -> Compliant | D11: ● | E11: =Assessment!C199 -> Latvia's net borrowing (general government deficit) in 2023 was 2.3% of GDP, which does not exceed the 3% TFEU deficit reference value.
A12: M2 | B12: TFEU debt reference value (60%) in MTP year T-1 | C12: =IF(Assessment!C194,"Compliant","Breach") -> Compliant | D12: ● | E12: =Assessment!C195 -> Latvia's gross general government debt in 2023 was 44.4% of GDP, below the 60% TFEU reference value.
A13: M3 | B13: MTP assessed against reference trajectory | C13: =IF(Receives_reference_trajectory,"Yes","No") -> No | D13: ● | E13: =MTP_Requirement -> Latvia does not receive a reference trajectory but its MTP must contain a net expenditure path that complies with TFEU general government debt and deficit sustainability requirements.
A14: M4 | B14: Completeness of information under Article 13 (Qualitative IFI assessment) | C14: =IF(Assessment!$C$209,"Compliant","Breach") -> Compliant | D14: ● | E14: =Assessment!C210 -> The Fiscal Discipline Council has concluded that the plan contains all information required by Article 13 of Regulation (EU) 2024/1263.
A15: M5 | B15: Fulfilment of criteria for an extension of the adjustment period | C15: =IF( AdjustmentPeriod=7, IF(Assessment!C214, "Compliant", "Breach"), "N/A" ) -> N/A | D15: ● | E15: =Assessment!C215 -> Not applicable. Latvia has not requested an extension of the adjustment period.
A16: M6 | B16: Compliance of MTP average net expenditure growth with prior guidance | C16: =IF( NOT(Receives_reference_trajectory), "N/A", IF( NOT(Assessment!$C$223), "Compliant", IF( Assessment!$C$224, "Compliant", "Breach" ) ) ) -> N/A | D16: ● | E16: =Assessment!C225 -> The average net expenditure growth reported in Latvia's plan over the adjustment period (2025–2028) is higher than the technical information path transmitted by the Commission on 30 June 2024. but remaining below the technical information path is not required.
A17: M7 | B17: Compliance of MTP net expenditure growth path with prior guidance | C17: =IF(Receives_reference_trajectory,IF(Assessment!C231,"Compliant","Breach"),IF(Assessment!C241,"Compliant","Breach")) -> Compliant | D17: ● | E17: =IF(Receives_reference_trajectory,Assessment!C232,Assessment!C242) -> The net expenditure path in Latvia's latest MTP ensures the primary structural balance is above the minimum level of the Commission's prior guidance at the end of the adjustment period.
A18: M8 | B18: Net expenditure growth path meets general debt requirements | C18: =IF(Receives_reference_trajectory,IF(Assessment!C254,"Compliant","Breach"),IF(Assessment!C258,"Compliant","Breach")) -> Compliant | D18: ● | E18: =IF(Receives_reference_trajectory,Assessment!$C$255,Assessment!$C$259) -> Latvia's debt remains below the TFEU debt reference level in each of the ten years following the adjustment period.
A19: M9 | B19: Net expenditure growth path meets deficit requirements | C19: =IF(Receives_reference_trajectory,IF(Assessment!C264,"Compliant","Breach"),IF(Assessment!C268,"Compliant","Breach")) -> Compliant | D19: ● | E19: =IF(Receives_reference_trajectory,Assessment!$C$265,Assessment!$C$272) -> Latvia's deficit remains below the TFEU reference level in the final year of the adjustment period and throughout the following ten years.
A20: M10 | B20: Time profile of the fiscal adjustment (no back-loading condition) | C20: =IF(Receives_reference_trajectory,IF(Assessment!C283,"Compliant","Breach"),"N/A") -> N/A | D20: ● | E20: =Assessment!C285 -> Not applicable - Latvia is not required to comply with a reference trajectory.
A21: M11 | B21: Consistency with EDP corrective path | C21: =_xlfn.IFNA(IF(Assessment!C296,"Compliant",IF(NOT(Assessment!C305),"Breach")),"N/A") -> N/A | D21: ● | E21: =Assessment!C297 -> The Council has not opened an excessive deficit procedure against Latvia.
A22: M12 | B22: Debt sustainability safeguard ex ante | C22: =IF( NOT(Receives_reference_trajectory), "N/A", IF( OR(Assessment!C302, Assessment!C303), IF( OR( IF(Assessment!C302,NOT(Assessment!C304), FALSE), IF(Assessment!C303,NOT(Assessment!C305), FALSE) ), "Breach", "Compliant" ), "The debt sustainability safeguard does not apply." ) ) -> N/A | D22: ● | E22: =Assessment!C308 -> Latvia does not receive a reference trajectory and its MTP is not assessed against the debt sustainability safeguard.
A23: M13 | B23: Deficit resilience safeguard ex ante | C23: =IF( NOT(Receives_reference_trajectory), "N/A", IF( OR(Assessment!C317=FALSE, ISNA(Assessment!C319)), "N/A", IF(Assessment!C319, "Compliant", "Breach") ) ) -> N/A | D23: ● | E23: =Assessment!C321 -> Latvia does not receive a reference trajectory and its MTP is not assessed against the deficit resilience safeguard.
A24: M14 | B24: Primary structural balance adjustment over adjustment period (supportive) | C24: =IF( Receives_reference_trajectory, IF( OR(ISNA(Assessment!C325), ISNA(Assessment!C326)), "N/A", IF( Assessment!C326 >= Assessment!C325, "Compliant", IF( EscapeClauseActivated, "Caution", "Caution" ) ) ), IF( ISNA(Assessment!$C$337), "N/A", IF( Assessment!$C$337, "Compliant", "Breach" ) ) ) -> Compliant | D24: ● | E24: =IF(Receives_reference_trajectory,Assessment!C331,Assessment!C340) -> Latvia is required to meet the structural primary balance condition without a safeguard. This condition is met, although the safeguard threshold is not.
A25: M15 | B25: Overall MTP net expenditure path compliance | C25: =IF(COUNTIF(C14:C23,"Breach")>0,"Breach",IF(COUNTIF(C16:C23,"Caution")>0,"Caution","Compliant")) -> Compliant | D25: ● | E25: =IF(Receives_reference_trajectory,Assessment!C345,Assessment!C349) -> The net expenditure path in Latvia's MTP adheres to the minimum level of the primary structural balance in 2028 (-1.3% of GDP). The net expenditure path put forward in the plan is consistent with the deficit and debt requirements as set out in Article 16(2) of Regulation (EU) 2024/1263.

Sheet Assessment
B1: Assessment outlook
B2: ="Latest outturn data to "&OutturnThrough&IF(OutturnThrough=AssessmentEnd,""," and "&ScenarioName) -> Latest outturn data to 2024 and Draft Budgetary Plan 2026
B4: Calendar year | D4: =_xlfn.SEQUENCE(1, AssessmentEnd-MTP_BaseYear+1, MTP_BaseYear) -> 2023 | E4: 2024 | F4: 2025 | G4: 2026
B5: MTP reference year | D5: =IF( AND(_xlfn.ANCHORARRAY(D4)>=MTP_YearT-1,_xlfn.ANCHORARRAY( D4)<=MTP_EndYear), CHOOSE(SIGN(_xlfn.ANCHORARRAY(D4)-MTP_YearT)+2, "T-1", "T", "T+"&(_xlfn.ANCHORARRAY(D4)-MTP_YearT)), "" ) -> T-1 | E5: T | F5: T+1 | G5: T+2
B6: Total expenditure | C6: bn NAC | D6: =IF(D$4<=OutturnThrough,IF(ISNUMBER('Step 2 - Update outturn data'!D6),'Step 2 - Update outturn data'!D6,""),IF(ISNUMBER('Step 3 - Enter plan'!D8),'Step 3 - Enter plan'!D8,"")) -> 17.1826 | E6: =IF(E$4<=OutturnThrough,IF(ISNUMBER('Step 2 - Update outturn data'!E6),'Step 2 - Update outturn data'!E6,""),IF(ISNUMBER('Step 3 - Enter plan'!E8),'Step 3 - Enter plan'!E8,"")) -> 18.4135 | F6: =IF(F$4<=OutturnThrough,IF(ISNUMBER('Step 2 - Update outturn data'!F6),'Step 2 - Update outturn data'!F6,""),IF(ISNUMBER('Step 3 - Enter plan'!F8),'Step 3 - Enter plan'!F8,"")) -> 20.15947557 | G6: =IF(G$4<=OutturnThrough,IF(ISNUMBER('Step 2 - Update outturn data'!G6),'Step 2 - Update outturn data'!G6,""),IF(ISNUMBER('Step 3 - Enter plan'!G8),'Step 3 - Enter plan'!G8,"")) -> 20.88479228 | H6: =IF(H$4<=OutturnThrough,IF(ISNUMBER('Step 2 - Update outturn data'!H6),'Step 2 - Update outturn data'!H6,""),IF(ISNUMBER('Step 3 - Enter plan'!H8),'Step 3 - Enter plan'!H8,"")) ->  | I6: =IF(I$4<=OutturnThrough,IF(ISNUMBER('Step 2 - Update outturn data'!I6),'Step 2 - Update outturn data'!I6,""),IF(ISNUMBER('Step 3 - Enter plan'!I8),'Step 3 - Enter plan'!I8,"")) ->  | J6: =IF(J$4<=OutturnThrough,IF(ISNUMBER('Step 2 - Update outturn data'!J6),'Step 2 - Update outturn data'!J6,""),IF(ISNUMBER('Step 3 - Enter plan'!J8),'Step 3 - Enter plan'!J8,"")) ->  | K6: =IF(K$4<=OutturnThrough,IF(ISNUMBER('Step 2 - Update outturn data'!K6),'Step 2 - Update outturn data'!K6,""),IF(ISNUMBER('Step 3 - Enter plan'!K8),'Step 3 - Enter plan'!K8,"")) -> 
B7: Interest expenditure | C7: bn NAC | D7: =IF(D$4<=OutturnThrough,IF(ISNUMBER('Step 2 - Update outturn data'!D7),'Step 2 - Update outturn data'!D7,""),IF(ISNUMBER('Step 3 - Enter plan'!D9),'Step 3 - Enter plan'!D9,"")) -> 0.2869 | E7: =IF(E$4<=OutturnThrough,IF(ISNUMBER('Step 2 - Update outturn data'!E7),'Step 2 - Update outturn data'!E7,""),IF(ISNUMBER('Step 3 - Enter plan'!E9),'Step 3 - Enter plan'!E9,"")) -> 0.4433 | F7: =IF(F$4<=OutturnThrough,IF(ISNUMBER('Step 2 - Update outturn data'!F7),'Step 2 - Update outturn data'!F7,""),IF(ISNUMBER('Step 3 - Enter plan'!F9),'Step 3 - Enter plan'!F9,"")) -> 0.5092920144 | G7: =IF(G$4<=OutturnThrough,IF(ISNUMBER('Step 2 - Update outturn data'!G7),'Step 2 - Update outturn data'!G7,""),IF(ISNUMBER('Step 3 - Enter plan'!G9),'Step 3 - Enter plan'!G9,"")) -> 0.6221001956 | H7: =IF(H$4<=OutturnThrough,IF(ISNUMBER('Step 2 - Update outturn data'!H7),'Step 2 - Update outturn data'!H7,""),IF(ISNUMBER('Step 3 - Enter plan'!H9),'Step 3 - Enter plan'!H9,"")) ->  | I7: =IF(I$4<=OutturnThrough,IF(ISNUMBER('Step 2 - Update outturn data'!I7),'Step 2 - Update outturn data'!I7,""),IF(ISNUMBER('Step 3 - Enter plan'!I9),'Step 3 - Enter plan'!I9,"")) ->  | J7: =IF(J$4<=OutturnThrough,IF(ISNUMBER('Step 2 - Update outturn data'!J7),'Step 2 - Update outturn data'!J7,""),IF(ISNUMBER('Step 3 - Enter plan'!J9),'Step 3 - Enter plan'!J9,"")) ->  | K7: =IF(K$4<=OutturnThrough,IF(ISNUMBER('Step 2 - Update outturn data'!K7),'Step 2 - Update outturn data'!K7,""),IF(ISNUMBER('Step 3 - Enter plan'!K9),'Step 3 - Enter plan'!K9,"")) -> 
B8: Cyclical unemployment expenditure | C8: bn NAC | D8: =IF(D$4<=OutturnThrough,IF(ISNUMBER('Step 2 - Update outturn data'!D8),'Step 2 - Update outturn data'!D8,""),IF(ISNUMBER('Step 3 - Enter plan'!D10),'Step 3 - Enter plan'!D10,"")) -> -0.001262 | E8: =IF(E$4<=OutturnThrough,IF(ISNUMBER('Step 2 - Update outturn data'!E8),'Step 2 - Update outturn data'!E8,""),IF(ISNUMBER('Step 3 - Enter plan'!E10),'Step 3 - Enter plan'!E10,"")) -> 0.004169 | F8: =IF(F$4<=OutturnThrough,IF(ISNUMBER('Step 2 - Update outturn data'!F8),'Step 2 - Update outturn data'!F8,""),IF(ISNUMBER('Step 3 - Enter plan'!F10),'Step 3 - Enter plan'!F10,"")) -> 0.01697640048 | G8: =IF(G$4<=OutturnThrough,IF(ISNUMBER('Step 2 - Update outturn data'!G8),'Step 2 - Update outturn data'!G8,""),IF(ISNUMBER('Step 3 - Enter plan'!G10),'Step 3 - Enter plan'!G10,"")) -> 0.008887145651 | H8: =IF(H$4<=OutturnThrough,IF(ISNUMBER('Step 2 - Update outturn data'!H8),'Step 2 - Update outturn data'!H8,""),IF(ISNUMBER('Step 3 - Enter plan'!H10),'Step 3 - Enter plan'!H10,"")) ->  | I8: =IF(I$4<=OutturnThrough,IF(ISNUMBER('Step 2 - Update outturn data'!I8),'Step 2 - Update outturn data'!I8,""),IF(ISNUMBER('Step 3 - Enter plan'!I10),'Step 3 - Enter plan'!I10,"")) ->  | J8: =IF(J$4<=OutturnThrough,IF(ISNUMBER('Step 2 - Update outturn data'!J8),'Step 2 - Update outturn data'!J8,""),IF(ISNUMBER('Step 3 - Enter plan'!J10),'Step 3 - Enter plan'!J10,"")) ->  | K8: =IF(K$4<=OutturnThrough,IF(ISNUMBER('Step 2 - Update outturn data'!K8),'Step 2 - Update outturn data'!K8,""),IF(ISNUMBER('Step 3 - Enter plan'!K10),'Step 3 - Enter plan'!K10,"")) -> 
B9: Expenditure funded by transfers from the EU | C9: bn NAC | D9: =IF(D$4<=OutturnThrough,IF(ISNUMBER('Step 2 - Update outturn data'!D9),'Step 2 - Update outturn data'!D9,""),IF(ISNUMBER('Step 3 - Enter plan'!D11),'Step 3 - Enter plan'!D11,"")) -> 0.7343 | E9: =IF(E$4<=OutturnThrough,IF(ISNUMBER('Step 2 - Update outturn data'!E9),'Step 2 - Update outturn data'!E9,""),IF(ISNUMBER('Step 3 - Enter plan'!E11),'Step 3 - Enter plan'!E11,"")) -> 0.7555 | F9: =IF(F$4<=OutturnThrough,IF(ISNUMBER('Step 2 - Update outturn data'!F9),'Step 2 - Update outturn data'!F9,""),IF(ISNUMBER('Step 3 - Enter plan'!F11),'Step 3 - Enter plan'!F11,"")) -> 1.103466031 | G9: =IF(G$4<=OutturnThrough,IF(ISNUMBER('Step 2 - Update outturn data'!G9),'Step 2 - Update outturn data'!G9,""),IF(ISNUMBER('Step 3 - Enter plan'!G11),'Step 3 - Enter plan'!G11,"")) -> 0.8887145651 | H9: =IF(H$4<=OutturnThrough,IF(ISNUMBER('Step 2 - Update outturn data'!H9),'Step 2 - Update outturn data'!H9,""),IF(ISNUMBER('Step 3 - Enter plan'!H11),'Step 3 - Enter plan'!H11,"")) ->  | I9: =IF(I$4<=OutturnThrough,IF(ISNUMBER('Step 2 - Update outturn data'!I9),'Step 2 - Update outturn data'!I9,""),IF(ISNUMBER('Step 3 - Enter plan'!I11),'Step 3 - Enter plan'!I11,"")) ->  | J9: =IF(J$4<=OutturnThrough,IF(ISNUMBER('Step 2 - Update outturn data'!J9),'Step 2 - Update outturn data'!J9,""),IF(ISNUMBER('Step 3 - Enter plan'!J11),'Step 3 - Enter plan'!J11,"")) ->  | K9: =IF(K$4<=OutturnThrough,IF(ISNUMBER('Step 2 - Update outturn data'!K9),'Step 2 - Update outturn data'!K9,""),IF(ISNUMBER('Step 3 - Enter plan'!K11),'Step 3 - Enter plan'!K11,"")) -> 
B10: National co-financing of EU programmes | C10: bn NAC | D10: =IF(D$4<=OutturnThrough,IF(ISNUMBER('Step 2 - Update outturn data'!D10),'Step 2 - Update outturn data'!D10,""),IF(ISNUMBER('Step 3 - Enter plan'!D12),'Step 3 - Enter plan'!D12,"")) -> 0.15825 | E10: =IF(E$4<=OutturnThrough,IF(ISNUMBER('Step 2 - Update outturn data'!E10),'Step 2 - Update outturn data'!E10,""),IF(ISNUMBER('Step 3 - Enter plan'!E12),'Step 3 - Enter plan'!E12,"")) -> 0.13765 | F10: =IF(F$4<=OutturnThrough,IF(ISNUMBER('Step 2 - Update outturn data'!F10),'Step 2 - Update outturn data'!F10,""),IF(ISNUMBER('Step 3 - Enter plan'!F12),'Step 3 - Enter plan'!F12,"")) -> 0.212205006 | G10: =IF(G$4<=OutturnThrough,IF(ISNUMBER('Step 2 - Update outturn data'!G10),'Step 2 - Update outturn data'!G10,""),IF(ISNUMBER('Step 3 - Enter plan'!G12),'Step 3 - Enter plan'!G12,"")) -> 0.1333071848 | H10: =IF(H$4<=OutturnThrough,IF(ISNUMBER('Step 2 - Update outturn data'!H10),'Step 2 - Update outturn data'!H10,""),IF(ISNUMBER('Step 3 - Enter plan'!H12),'Step 3 - Enter plan'!H12,"")) ->  | I10: =IF(I$4<=OutturnThrough,IF(ISNUMBER('Step 2 - Update outturn data'!I10),'Step 2 - Update outturn data'!I10,""),IF(ISNUMBER('Step 3 - Enter plan'!I12),'Step 3 - Enter plan'!I12,"")) ->  | J10: =IF(J$4<=OutturnThrough,IF(ISNUMBER('Step 2 - Update outturn data'!J10),'Step 2 - Update outturn data'!J10,""),IF(ISNUMBER('Step 3 - Enter plan'!J12),'Step 3 - Enter plan'!J12,"")) ->  | K10: =IF(K$4<=OutturnThrough,IF(ISNUMBER('Step 2 - Update outturn data'!K10),'Step 2 - Update outturn data'!K10,""),IF(ISNUMBER('Step 3 - Enter plan'!K12),'Step 3 - Enter plan'!K12,"")) -> 
B11: One-off expenditure ( excl. EU funded) | C11: bn NAC | D11: =IF(D$4<=OutturnThrough,IF(ISNUMBER('Step 2 - Update outturn data'!D11),'Step 2 - Update outturn data'!D11,""),IF(ISNUMBER('Step 3 - Enter plan'!D13),'Step 3 - Enter plan'!D13,"")) -> 0 | E11: =IF(E$4<=OutturnThrough,IF(ISNUMBER('Step 2 - Update outturn data'!E11),'Step 2 - Update outturn data'!E11,""),IF(ISNUMBER('Step 3 - Enter plan'!E13),'Step 3 - Enter plan'!E13,"")) -> 0 | F11: =IF(F$4<=OutturnThrough,IF(ISNUMBER('Step 2 - Update outturn data'!F11),'Step 2 - Update outturn data'!F11,""),IF(ISNUMBER('Step 3 - Enter plan'!F13),'Step 3 - Enter plan'!F13,"")) -> 0 | G11: =IF(G$4<=OutturnThrough,IF(ISNUMBER('Step 2 - Update outturn data'!G11),'Step 2 - Update outturn data'!G11,""),IF(ISNUMBER('Step 3 - Enter plan'!G13),'Step 3 - Enter plan'!G13,"")) -> 0 | H11: =IF(H$4<=OutturnThrough,IF(ISNUMBER('Step 2 - Update outturn data'!H11),'Step 2 - Update outturn data'!H11,""),IF(ISNUMBER('Step 3 - Enter plan'!H13),'Step 3 - Enter plan'!H13,"")) ->  | I11: =IF(I$4<=OutturnThrough,IF(ISNUMBER('Step 2 - Update outturn data'!I11),'Step 2 - Update outturn data'!I11,""),IF(ISNUMBER('Step 3 - Enter plan'!I13),'Step 3 - Enter plan'!I13,"")) ->  | J11: =IF(J$4<=OutturnThrough,IF(ISNUMBER('Step 2 - Update outturn data'!J11),'Step 2 - Update outturn data'!J11,""),IF(ISNUMBER('Step 3 - Enter plan'!J13),'Step 3 - Enter plan'!J13,"")) ->  | K11: =IF(K$4<=OutturnThrough,IF(ISNUMBER('Step 2 - Update outturn data'!K11),'Step 2 - Update outturn data'!K11,""),IF(ISNUMBER('Step 3 - Enter plan'!K13),'Step 3 - Enter plan'!K13,"")) -> 
B12: Net nationally financed primary expenditure (before DRM) | C12: bn NAC | D12: =IF(D$4<=OutturnThrough,IF(ISNUMBER('Step 2 - Update outturn data'!D12),'Step 2 - Update outturn data'!D12,""),IF(ISNUMBER('Step 3 - Enter plan'!D14),'Step 3 - Enter plan'!D14,"")) -> 16.004412 | E12: =IF(E$4<=OutturnThrough,IF(ISNUMBER('Step 2 - Update outturn data'!E12),'Step 2 - Update outturn data'!E12,""),IF(ISNUMBER('Step 3 - Enter plan'!E14),'Step 3 - Enter plan'!E14,"")) -> 17.072881 | F12: =IF(F$4<=OutturnThrough,IF(ISNUMBER('Step 2 - Update outturn data'!F12),'Step 2 - Update outturn data'!F12,""),IF(ISNUMBER('Step 3 - Enter plan'!F14),'Step 3 - Enter plan'!F14,"")) -> 18.33451252 | G12: =IF(G$4<=OutturnThrough,IF(ISNUMBER('Step 2 - Update outturn data'!G12),'Step 2 - Update outturn data'!G12,""),IF(ISNUMBER('Step 3 - Enter plan'!G14),'Step 3 - Enter plan'!G14,"")) -> 19.19623461 | H12: =IF(H$4<=OutturnThrough,IF(ISNUMBER('Step 2 - Update outturn data'!H12),'Step 2 - Update outturn data'!H12,""),IF(ISNUMBER('Step 3 - Enter plan'!H14),'Step 3 - Enter plan'!H14,"")) ->  | I12: =IF(I$4<=OutturnThrough,IF(ISNUMBER('Step 2 - Update outturn data'!I12),'Step 2 - Update outturn data'!I12,""),IF(ISNUMBER('Step 3 - Enter plan'!I14),'Step 3 - Enter plan'!I14,"")) ->  | J12: =IF(J$4<=OutturnThrough,IF(ISNUMBER('Step 2 - Update outturn data'!J12),'Step 2 - Update outturn data'!J12,""),IF(ISNUMBER('Step 3 - Enter plan'!J14),'Step 3 - Enter plan'!J14,"")) ->  | K12: =IF(K$4<=OutturnThrough,IF(ISNUMBER('Step 2 - Update outturn data'!K12),'Step 2 - Update outturn data'!K12,""),IF(ISNUMBER('Step 3 - Enter plan'!K14),'Step 3 - Enter plan'!K14,"")) -> 
B13: Discretionary revenue measures (excl. one-off revenue, incremental impact) | C13: bn NAC | D13: =IF(D$4<=OutturnThrough,IF(ISNUMBER('Step 2 - Update outturn data'!D13),'Step 2 - Update outturn data'!D13,""),IF(ISNUMBER('Step 3 - Enter plan'!D15),'Step 3 - Enter plan'!D15,"")) -> 0 | E13: =IF(E$4<=OutturnThrough,IF(ISNUMBER('Step 2 - Update outturn data'!E13),'Step 2 - Update outturn data'!E13,""),IF(ISNUMBER('Step 3 - Enter plan'!E15),'Step 3 - Enter plan'!E15,"")) -> 0.273808 | F13: =IF(F$4<=OutturnThrough,IF(ISNUMBER('Step 2 - Update outturn data'!F13),'Step 2 - Update outturn data'!F13,""),IF(ISNUMBER('Step 3 - Enter plan'!F15),'Step 3 - Enter plan'!F15,"")) -> 0.0848820024 | G13: =IF(G$4<=OutturnThrough,IF(ISNUMBER('Step 2 - Update outturn data'!G13),'Step 2 - Update outturn data'!G13,""),IF(ISNUMBER('Step 3 - Enter plan'!G15),'Step 3 - Enter plan'!G15,"")) -> -0.04443572826 | H13: =IF(H$4<=OutturnThrough,IF(ISNUMBER('Step 2 - Update outturn data'!H13),'Step 2 - Update outturn data'!H13,""),IF(ISNUMBER('Step 3 - Enter plan'!H15),'Step 3 - Enter plan'!H15,"")) ->  | I13: =IF(I$4<=OutturnThrough,IF(ISNUMBER('Step 2 - Update outturn data'!I13),'Step 2 - Update outturn data'!I13,""),IF(ISNUMBER('Step 3 - Enter plan'!I15),'Step 3 - Enter plan'!I15,"")) ->  | J13: =IF(J$4<=OutturnThrough,IF(ISNUMBER('Step 2 - Update outturn data'!J13),'Step 2 - Update outturn data'!J13,""),IF(ISNUMBER('Step 3 - Enter plan'!J15),'Step 3 - Enter plan'!J15,"")) ->  | K13: =IF(K$4<=OutturnThrough,IF(ISNUMBER('Step 2 - Update outturn data'!K13),'Step 2 - Update outturn data'!K13,""),IF(ISNUMBER('Step 3 - Enter plan'!K15),'Step 3 - Enter plan'!K15,"")) -> 
B14: Defence expenditure | C14: bn NAC | D14: =IF(D$4<=OutturnThrough,IF(ISNUMBER('Step 2 - Update outturn data'!D14),'Step 2 - Update outturn data'!D14,""),IF(ISNUMBER('Step 3 - Enter plan'!D16),'Step 3 - Enter plan'!D16,"")) -> 1.02493 | E14: =IF(E$4<=OutturnThrough,IF(ISNUMBER('Step 2 - Update outturn data'!E14),'Step 2 - Update outturn data'!E14,""),IF(ISNUMBER('Step 3 - Enter plan'!E16),'Step 3 - Enter plan'!E16,"")) -> 1.10837 | F14: =IF(F$4<=OutturnThrough,IF(ISNUMBER('Step 2 - Update outturn data'!F14),'Step 2 - Update outturn data'!F14,""),IF(ISNUMBER('Step 3 - Enter plan'!F16),'Step 3 - Enter plan'!F16,"")) -> 1.40055304 | G14: =IF(G$4<=OutturnThrough,IF(ISNUMBER('Step 2 - Update outturn data'!G14),'Step 2 - Update outturn data'!G14,""),IF(ISNUMBER('Step 3 - Enter plan'!G16),'Step 3 - Enter plan'!G16,"")) -> 1.866300587 | H14: =IF(H$4<=OutturnThrough,IF(ISNUMBER('Step 2 - Update outturn data'!H14),'Step 2 - Update outturn data'!H14,""),IF(ISNUMBER('Step 3 - Enter plan'!H16),'Step 3 - Enter plan'!H16,"")) ->  | I14: =IF(I$4<=OutturnThrough,IF(ISNUMBER('Step 2 - Update outturn data'!I14),'Step 2 - Update outturn data'!I14,""),IF(ISNUMBER('Step 3 - Enter plan'!I16),'Step 3 - Enter plan'!I16,"")) ->  | J14: =IF(J$4<=OutturnThrough,IF(ISNUMBER('Step 2 - Update outturn data'!J14),'Step 2 - Update outturn data'!J14,""),IF(ISNUMBER('Step 3 - Enter plan'!J16),'Step 3 - Enter plan'!J16,"")) ->  | K14: =IF(K$4<=OutturnThrough,IF(ISNUMBER('Step 2 - Update outturn data'!K14),'Step 2 - Update outturn data'!K14,""),IF(ISNUMBER('Step 3 - Enter plan'!K16),'Step 3 - Enter plan'!K16,"")) -> 
B15: Net expenditure growth (annual) | C15: growth rate (%) | D15: =IF(D$4<=OutturnThrough,IF(ISNUMBER('Step 2 - Update outturn data'!D15),'Step 2 - Update outturn data'!D15,""),IF(ISNUMBER('Step 3 - Enter plan'!D17),'Step 3 - Enter plan'!D17,"")) ->  | E15: =IF(E$4<=OutturnThrough,IF(ISNUMBER('Step 2 - Update outturn data'!E15),'Step 2 - Update outturn data'!E15,""),IF(ISNUMBER('Step 3 - Enter plan'!E17),'Step 3 - Enter plan'!E17,"")) -> 4.965262079 | F15: =IF(F$4<=OutturnThrough,IF(ISNUMBER('Step 2 - Update outturn data'!F15),'Step 2 - Update outturn data'!F15,""),IF(ISNUMBER('Step 3 - Enter plan'!F17),'Step 3 - Enter plan'!F17,"")) -> 6.2 | G15: =IF(G$4<=OutturnThrough,IF(ISNUMBER('Step 2 - Update outturn data'!G15),'Step 2 - Update outturn data'!G15,""),IF(ISNUMBER('Step 3 - Enter plan'!G17),'Step 3 - Enter plan'!G17,"")) -> 5 | H15: =IF(H$4<=OutturnThrough,IF(ISNUMBER('Step 2 - Update outturn data'!H15),'Step 2 - Update outturn data'!H15,""),IF(ISNUMBER('Step 3 - Enter plan'!H17),'Step 3 - Enter plan'!H17,"")) ->  | I15: =IF(I$4<=OutturnThrough,IF(ISNUMBER('Step 2 - Update outturn data'!I15),'Step 2 - Update outturn data'!I15,""),IF(ISNUMBER('Step 3 - Enter plan'!I17),'Step 3 - Enter plan'!I17,"")) ->  | J15: =IF(J$4<=OutturnThrough,IF(ISNUMBER('Step 2 - Update outturn data'!J15),'Step 2 - Update outturn data'!J15,""),IF(ISNUMBER('Step 3 - Enter plan'!J17),'Step 3 - Enter plan'!J17,"")) ->  | K15: =IF(K$4<=OutturnThrough,IF(ISNUMBER('Step 2 - Update outturn data'!K15),'Step 2 - Update outturn data'!K15,""),IF(ISNUMBER('Step 3 - Enter plan'!K17),'Step 3 - Enter plan'!K17,"")) -> 
B16: Net expenditure growth (cumulative) | C16: growth rate (%) | D16: =IF(D$4<=OutturnThrough,IF(ISNUMBER('Step 2 - Update outturn data'!D16),'Step 2 - Update outturn data'!D16,""),IF(ISNUMBER('Step 3 - Enter plan'!D18),'Step 3 - Enter plan'!D18,"")) ->  | E16: =IF(E$4<=OutturnThrough,IF(ISNUMBER('Step 2 - Update outturn data'!E16),'Step 2 - Update outturn data'!E16,""),IF(ISNUMBER('Step 3 - Enter plan'!E18),'Step 3 - Enter plan'!E18,"")) -> 4.965262079 | F16: =IF(F$4<=OutturnThrough,IF(ISNUMBER('Step 2 - Update outturn data'!F15),'Step 2 - Update outturn data'!F15,""),IF(ISNUMBER('Step 3 - Enter plan'!F18),'Step 3 - Enter plan'!F18,"")) -> 11.47310833 | G16: =IF(G$4<=OutturnThrough,IF(ISNUMBER('Step 2 - Update outturn data'!G16),'Step 2 - Update outturn data'!G16,""),IF(ISNUMBER('Step 3 - Enter plan'!G18),'Step 3 - Enter plan'!G18,"")) -> 17.04676374 | H16: =IF(H$4<=OutturnThrough,IF(ISNUMBER('Step 2 - Update outturn data'!H16),'Step 2 - Update outturn data'!H16,""),IF(ISNUMBER('Step 3 - Enter plan'!H18),'Step 3 - Enter plan'!H18,"")) ->  | I16: =IF(I$4<=OutturnThrough,IF(ISNUMBER('Step 2 - Update outturn data'!I16),'Step 2 - Update outturn data'!I16,""),IF(ISNUMBER('Step 3 - Enter plan'!I18),'Step 3 - Enter plan'!I18,"")) ->  | J16: =IF(J$4<=OutturnThrough,IF(ISNUMBER('Step 2 - Update outturn data'!J16),'Step 2 - Update outturn data'!J16,""),IF(ISNUMBER('Step 3 - Enter plan'!J18),'Step 3 - Enter plan'!J18,"")) ->  | K16: =IF(K$4<=OutturnThrough,IF(ISNUMBER('Step 2 - Update outturn data'!K16),'Step 2 - Update outturn data'!K16,""),IF(ISNUMBER('Step 3 - Enter plan'!K18),'Step 3 - Enter plan'!K18,"")) -> 
B17: Net lending/borrowing | C17: % GDP | D17: =IF(D$4<=OutturnThrough,IF(ISNUMBER('Step 2 - Update outturn data'!D17),'Step 2 - Update outturn data'!D17,""),IF(ISNUMBER('Step 3 - Enter plan'!D19),'Step 3 - Enter plan'!D19,"")) -> -2.342774528 | E17: =IF(E$4<=OutturnThrough,IF(ISNUMBER('Step 2 - Update outturn data'!E17),'Step 2 - Update outturn data'!E17,""),IF(ISNUMBER('Step 3 - Enter plan'!E19),'Step 3 - Enter plan'!E19,"")) -> -1.786860768 | F17: =IF(F$4<=OutturnThrough,IF(ISNUMBER('Step 2 - Update outturn data'!F17),'Step 2 - Update outturn data'!F17,""),IF(ISNUMBER('Step 3 - Enter plan'!F19),'Step 3 - Enter plan'!F19,"")) -> -2.9 | G17: =IF(G$4<=OutturnThrough,IF(ISNUMBER('Step 2 - Update outturn data'!G17),'Step 2 - Update outturn data'!G17,""),IF(ISNUMBER('Step 3 - Enter plan'!G19),'Step 3 - Enter plan'!G19,"")) -> -3.3 | H17: =IF(H$4<=OutturnThrough,IF(ISNUMBER('Step 2 - Update outturn data'!H17),'Step 2 - Update outturn data'!H17,""),IF(ISNUMBER('Step 3 - Enter plan'!H19),'Step 3 - Enter plan'!H19,"")) ->  | I17: =IF(I$4<=OutturnThrough,IF(ISNUMBER('Step 2 - Update outturn data'!I17),'Step 2 - Update outturn data'!I17,""),IF(ISNUMBER('Step 3 - Enter plan'!I19),'Step 3 - Enter plan'!I19,"")) ->  | J17: =IF(J$4<=OutturnThrough,IF(ISNUMBER('Step 2 - Update outturn data'!J17),'Step 2 - Update outturn data'!J17,""),IF(ISNUMBER('Step 3 - Enter plan'!J19),'Step 3 - Enter plan'!J19,"")) ->  | K17: =IF(K$4<=OutturnThrough,IF(ISNUMBER('Step 2 - Update outturn data'!K17),'Step 2 - Update outturn data'!K17,""),IF(ISNUMBER('Step 3 - Enter plan'!K19),'Step 3 - Enter plan'!K19,"")) -> 
B18: Structural balance | C18: % GDP | D18: =IF(D$4<=OutturnThrough,IF(ISNUMBER('Step 2 - Update outturn data'!D18),'Step 2 - Update outturn data'!D18,""),IF(ISNUMBER('Step 3 - Enter plan'!D20),'Step 3 - Enter plan'!D20,"")) -> -2.10632 | E18: =IF(E$4<=OutturnThrough,IF(ISNUMBER('Step 2 - Update outturn data'!E18),'Step 2 - Update outturn data'!E18,""),IF(ISNUMBER('Step 3 - Enter plan'!E20),'Step 3 - Enter plan'!E20,"")) -> -1.548 | F18: =IF(F$4<=OutturnThrough,IF(ISNUMBER('Step 2 - Update outturn data'!F18),'Step 2 - Update outturn data'!F18,""),IF(ISNUMBER('Step 3 - Enter plan'!F20),'Step 3 - Enter plan'!F20,"")) -> -2.4 | G18: =IF(G$4<=OutturnThrough,IF(ISNUMBER('Step 2 - Update outturn data'!G18),'Step 2 - Update outturn data'!G18,""),IF(ISNUMBER('Step 3 - Enter plan'!G20),'Step 3 - Enter plan'!G20,"")) -> -3 | H18: =IF(H$4<=OutturnThrough,IF(ISNUMBER('Step 2 - Update outturn data'!H18),'Step 2 - Update outturn data'!H18,""),IF(ISNUMBER('Step 3 - Enter plan'!H20),'Step 3 - Enter plan'!H20,"")) ->  | I18: =IF(I$4<=OutturnThrough,IF(ISNUMBER('Step 2 - Update outturn data'!I18),'Step 2 - Update outturn data'!I18,""),IF(ISNUMBER('Step 3 - Enter plan'!I20),'Step 3 - Enter plan'!I20,"")) ->  | J18: =IF(J$4<=OutturnThrough,IF(ISNUMBER('Step 2 - Update outturn data'!J18),'Step 2 - Update outturn data'!J18,""),IF(ISNUMBER('Step 3 - Enter plan'!J20),'Step 3 - Enter plan'!J20,"")) ->  | K18: =IF(K$4<=OutturnThrough,IF(ISNUMBER('Step 2 - Update outturn data'!K18),'Step 2 - Update outturn data'!K18,""),IF(ISNUMBER('Step 3 - Enter plan'!K20),'Step 3 - Enter plan'!K20,"")) -> 
B19: Structural primary balance | C19: % GDP | D19: =IF(D$4<=OutturnThrough,IF(ISNUMBER('Step 2 - Update outturn data'!D19),'Step 2 - Update outturn data'!D19,""),IF(ISNUMBER('Step 3 - Enter plan'!D21),'Step 3 - Enter plan'!D21,"")) -> -1.38124 | E19: =IF(E$4<=OutturnThrough,IF(ISNUMBER('Step 2 - Update outturn data'!E19),'Step 2 - Update outturn data'!E19,""),IF(ISNUMBER('Step 3 - Enter plan'!E21),'Step 3 - Enter plan'!E21,"")) -> -0.44949 | F19: =IF(F$4<=OutturnThrough,IF(ISNUMBER('Step 2 - Update outturn data'!F19),'Step 2 - Update outturn data'!F19,""),IF(ISNUMBER('Step 3 - Enter plan'!F21),'Step 3 - Enter plan'!F21,"")) -> -1.2 | G19: =IF(G$4<=OutturnThrough,IF(ISNUMBER('Step 2 - Update outturn data'!G19),'Step 2 - Update outturn data'!G19,""),IF(ISNUMBER('Step 3 - Enter plan'!G21),'Step 3 - Enter plan'!G21,"")) -> -1.6 | H19: =IF(H$4<=OutturnThrough,IF(ISNUMBER('Step 2 - Update outturn data'!H19),'Step 2 - Update outturn data'!H19,""),IF(ISNUMBER('Step 3 - Enter plan'!H21),'Step 3 - Enter plan'!H21,"")) ->  | I19: =IF(I$4<=OutturnThrough,IF(ISNUMBER('Step 2 - Update outturn data'!I19),'Step 2 - Update outturn data'!I19,""),IF(ISNUMBER('Step 3 - Enter plan'!I21),'Step 3 - Enter plan'!I21,"")) ->  | J19: =IF(J$4<=OutturnThrough,IF(ISNUMBER('Step 2 - Update outturn data'!J19),'Step 2 - Update outturn data'!J19,""),IF(ISNUMBER('Step 3 - Enter plan'!J21),'Step 3 - Enter plan'!J21,"")) ->  | K19: =IF(K$4<=OutturnThrough,IF(ISNUMBER('Step 2 - Update outturn data'!K19),'Step 2 - Update outturn data'!K19,""),IF(ISNUMBER('Step 3 - Enter plan'!K21),'Step 3 - Enter plan'!K21,"")) -> 
B20: Gross debt | C20: % GDP | D20: =IF(D$4<=OutturnThrough,IF(ISNUMBER('Step 2 - Update outturn data'!D20),'Step 2 - Update outturn data'!D20,""),IF(ISNUMBER('Step 3 - Enter plan'!D22),'Step 3 - Enter plan'!D22,"")) -> 44.43031832 | E20: =IF(E$4<=OutturnThrough,IF(ISNUMBER('Step 2 - Update outturn data'!E20),'Step 2 - Update outturn data'!E20,""),IF(ISNUMBER('Step 3 - Enter plan'!E22),'Step 3 - Enter plan'!E22,"")) -> 46.2495357 | F20: =IF(F$4<=OutturnThrough,IF(ISNUMBER('Step 2 - Update outturn data'!F20),'Step 2 - Update outturn data'!F20,""),IF(ISNUMBER('Step 3 - Enter plan'!F22),'Step 3 - Enter plan'!F22,"")) -> 48.9 | G20: =IF(G$4<=OutturnThrough,IF(ISNUMBER('Step 2 - Update outturn data'!G20),'Step 2 - Update outturn data'!G20,""),IF(ISNUMBER('Step 3 - Enter plan'!G22),'Step 3 - Enter plan'!G22,"")) -> 50.6 | H20: =IF(H$4<=OutturnThrough,IF(ISNUMBER('Step 2 - Update outturn data'!H20),'Step 2 - Update outturn data'!H20,""),IF(ISNUMBER('Step 3 - Enter plan'!H22),'Step 3 - Enter plan'!H22,"")) ->  | I20: =IF(I$4<=OutturnThrough,IF(ISNUMBER('Step 2 - Update outturn data'!I20),'Step 2 - Update outturn data'!I20,""),IF(ISNUMBER('Step 3 - Enter plan'!I22),'Step 3 - Enter plan'!I22,"")) ->  | J20: =IF(J$4<=OutturnThrough,IF(ISNUMBER('Step 2 - Update outturn data'!J20),'Step 2 - Update outturn data'!J20,""),IF(ISNUMBER('Step 3 - Enter plan'!J22),'Step 3 - Enter plan'!J22,"")) ->  | K20: =IF(K$4<=OutturnThrough,IF(ISNUMBER('Step 2 - Update outturn data'!K20),'Step 2 - Update outturn data'!K20,""),IF(ISNUMBER('Step 3 - Enter plan'!K22),'Step 3 - Enter plan'!K22,"")) -> 
B21: Change in gross debt | C21: % GDP | D21: =IF(D$4<=OutturnThrough,IF(ISNUMBER('Step 2 - Update outturn data'!D21),'Step 2 - Update outturn data'!D21,""),IF(ISNUMBER('Step 3 - Enter plan'!D23),'Step 3 - Enter plan'!D23,"")) ->  | E21: =IF(E$4<=OutturnThrough,IF(ISNUMBER('Step 2 - Update outturn data'!E21),'Step 2 - Update outturn data'!E21,""),IF(ISNUMBER('Step 3 - Enter plan'!E23),'Step 3 - Enter plan'!E23,"")) ->  | F21: =IF(F$4<=OutturnThrough,IF(ISNUMBER('Step 2 - Update outturn data'!F21),'Step 2 - Update outturn data'!F21,""),IF(ISNUMBER('Step 3 - Enter plan'!F23),'Step 3 - Enter plan'!F23,"")) -> 2.1 | G21: =IF(G$4<=OutturnThrough,IF(ISNUMBER('Step 2 - Update outturn data'!G21),'Step 2 - Update outturn data'!G21,""),IF(ISNUMBER('Step 3 - Enter plan'!G23),'Step 3 - Enter plan'!G23,"")) -> 1.7 | H21: =IF(H$4<=OutturnThrough,IF(ISNUMBER('Step 2 - Update outturn data'!H21),'Step 2 - Update outturn data'!H21,""),IF(ISNUMBER('Step 3 - Enter plan'!H23),'Step 3 - Enter plan'!H23,"")) ->  | I21: =IF(I$4<=OutturnThrough,IF(ISNUMBER('Step 2 - Update outturn data'!I21),'Step 2 - Update outturn data'!I21,""),IF(ISNUMBER('Step 3 - Enter plan'!I23),'Step 3 - Enter plan'!I23,"")) ->  | J21: =IF(J$4<=OutturnThrough,IF(ISNUMBER('Step 2 - Update outturn data'!J21),'Step 2 - Update outturn data'!J21,""),IF(ISNUMBER('Step 3 - Enter plan'!J23),'Step 3 - Enter plan'!J23,"")) ->  | K21: =IF(K$4<=OutturnThrough,IF(ISNUMBER('Step 2 - Update outturn data'!K21),'Step 2 - Update outturn data'!K21,""),IF(ISNUMBER('Step 3 - Enter plan'!K23),'Step 3 - Enter plan'!K23,"")) -> 
B22: Real GDP (rate of change, %) | C22: rate of change, % | D22: =IF(D$4<=OutturnThrough,IF(ISNUMBER('Step 2 - Update outturn data'!D22),'Step 2 - Update outturn data'!D22,""),IF(ISNUMBER('Step 3 - Enter plan'!D24),'Step 3 - Enter plan'!D24,"")) -> -0.9414574313 | E22: =IF(E$4<=OutturnThrough,IF(ISNUMBER('Step 2 - Update outturn data'!E22),'Step 2 - Update outturn data'!E22,""),IF(ISNUMBER('Step 3 - Enter plan'!E24),'Step 3 - Enter plan'!E24,"")) -> -0.03731098501 | F22: =IF(F$4<=OutturnThrough,IF(ISNUMBER('Step 2 - Update outturn data'!F22),'Step 2 - Update outturn data'!F22,""),IF(ISNUMBER('Step 3 - Enter plan'!F24),'Step 3 - Enter plan'!F24,"")) -> 1.1 | G22: =IF(G$4<=OutturnThrough,IF(ISNUMBER('Step 2 - Update outturn data'!G22),'Step 2 - Update outturn data'!G22,""),IF(ISNUMBER('Step 3 - Enter plan'!G24),'Step 3 - Enter plan'!G24,"")) -> 2.1 | H22: =IF(H$4<=OutturnThrough,IF(ISNUMBER('Step 2 - Update outturn data'!H22),'Step 2 - Update outturn data'!H22,""),IF(ISNUMBER('Step 3 - Enter plan'!H24),'Step 3 - Enter plan'!H24,"")) ->  | I22: =IF(I$4<=OutturnThrough,IF(ISNUMBER('Step 2 - Update outturn data'!I22),'Step 2 - Update outturn data'!I22,""),IF(ISNUMBER('Step 3 - Enter plan'!I24),'Step 3 - Enter plan'!I24,"")) ->  | J22: =IF(J$4<=OutturnThrough,IF(ISNUMBER('Step 2 - Update outturn data'!J22),'Step 2 - Update outturn data'!J22,""),IF(ISNUMBER('Step 3 - Enter plan'!J24),'Step 3 - Enter plan'!J24,"")) ->  | K22: =IF(K$4<=OutturnThrough,IF(ISNUMBER('Step 2 - Update outturn data'!K22),'Step 2 - Update outturn data'!K22,""),IF(ISNUMBER('Step 3 - Enter plan'!K24),'Step 3 - Enter plan'!K24,"")) -> 
B23: GDP deflator (rate of change, %) | C23: rate of change, % | D23: =IF(D$4<=OutturnThrough,IF(ISNUMBER('Step 2 - Update outturn data'!D23),'Step 2 - Update outturn data'!D23,""),IF(ISNUMBER('Step 3 - Enter plan'!D25),'Step 3 - Enter plan'!D25,"")) -> 10.6723716 | E23: =IF(E$4<=OutturnThrough,IF(ISNUMBER('Step 2 - Update outturn data'!E23),'Step 2 - Update outturn data'!E23,""),IF(ISNUMBER('Step 3 - Enter plan'!E25),'Step 3 - Enter plan'!E25,"")) -> 2.788565003 | F23: =IF(F$4<=OutturnThrough,IF(ISNUMBER('Step 2 - Update outturn data'!F23),'Step 2 - Update outturn data'!F23,""),IF(ISNUMBER('Step 3 - Enter plan'!F25),'Step 3 - Enter plan'!F25,"")) -> 3.3 | G23: =IF(G$4<=OutturnThrough,IF(ISNUMBER('Step 2 - Update outturn data'!G23),'Step 2 - Update outturn data'!G23,""),IF(ISNUMBER('Step 3 - Enter plan'!G25),'Step 3 - Enter plan'!G25,"")) -> 2.5 | H23: =IF(H$4<=OutturnThrough,IF(ISNUMBER('Step 2 - Update outturn data'!H23),'Step 2 - Update outturn data'!H23,""),IF(ISNUMBER('Step 3 - Enter plan'!H25),'Step 3 - Enter plan'!H25,"")) ->  | I23: =IF(I$4<=OutturnThrough,IF(ISNUMBER('Step 2 - Update outturn data'!I23),'Step 2 - Update outturn data'!I23,""),IF(ISNUMBER('Step 3 - Enter plan'!I25),'Step 3 - Enter plan'!I25,"")) ->  | J23: =IF(J$4<=OutturnThrough,IF(ISNUMBER('Step 2 - Update outturn data'!J23),'Step 2 - Update outturn data'!J23,""),IF(ISNUMBER('Step 3 - Enter plan'!J25),'Step 3 - Enter plan'!J25,"")) ->  | K23: =IF(K$4<=OutturnThrough,IF(ISNUMBER('Step 2 - Update outturn data'!K23),'Step 2 - Update outturn data'!K23,""),IF(ISNUMBER('Step 3 - Enter plan'!K25),'Step 3 - Enter plan'!K25,"")) -> 
B24: Nominal GDP (rate of change, %) | C24: rate of change, % | D24: =IF(D$4<=OutturnThrough,IF(ISNUMBER('Step 2 - Update outturn data'!D24),'Step 2 - Update outturn data'!D24,""),IF(ISNUMBER('Step 3 - Enter plan'!D26),'Step 3 - Enter plan'!D26,"")) -> 9.630438337 | E24: =IF(E$4<=OutturnThrough,IF(ISNUMBER('Step 2 - Update outturn data'!E24),'Step 2 - Update outturn data'!E24,""),IF(ISNUMBER('Step 3 - Enter plan'!E26),'Step 3 - Enter plan'!E26,"")) -> 2.750213577 | F24: =IF(F$4<=OutturnThrough,IF(ISNUMBER('Step 2 - Update outturn data'!F24),'Step 2 - Update outturn data'!F24,""),IF(ISNUMBER('Step 3 - Enter plan'!F26),'Step 3 - Enter plan'!F26,"")) -> 4.4 | G24: =IF(G$4<=OutturnThrough,IF(ISNUMBER('Step 2 - Update outturn data'!G24),'Step 2 - Update outturn data'!G24,""),IF(ISNUMBER('Step 3 - Enter plan'!G26),'Step 3 - Enter plan'!G26,"")) -> 4.7 | H24: =IF(H$4<=OutturnThrough,IF(ISNUMBER('Step 2 - Update outturn data'!H24),'Step 2 - Update outturn data'!H24,""),IF(ISNUMBER('Step 3 - Enter plan'!H26),'Step 3 - Enter plan'!H26,"")) ->  | I24: =IF(I$4<=OutturnThrough,IF(ISNUMBER('Step 2 - Update outturn data'!I24),'Step 2 - Update outturn data'!I24,""),IF(ISNUMBER('Step 3 - Enter plan'!I26),'Step 3 - Enter plan'!I26,"")) ->  | J24: =IF(J$4<=OutturnThrough,IF(ISNUMBER('Step 2 - Update outturn data'!J24),'Step 2 - Update outturn data'!J24,""),IF(ISNUMBER('Step 3 - Enter plan'!J26),'Step 3 - Enter plan'!J26,"")) ->  | K24: =IF(K$4<=OutturnThrough,IF(ISNUMBER('Step 2 - Update outturn data'!K24),'Step 2 - Update outturn data'!K24,""),IF(ISNUMBER('Step 3 - Enter plan'!K26),'Step 3 - Enter plan'!K26,"")) -> 
B25: Potential growth (rate of change, %) | C25: rate of change, % | D25: =IF(D$4<=OutturnThrough,IF(ISNUMBER('Step 2 - Update outturn data'!D25),'Step 2 - Update outturn data'!D25,""),IF(ISNUMBER('Step 3 - Enter plan'!D27),'Step 3 - Enter plan'!D27,"")) -> 0.9743541816 | E25: =IF(E$4<=OutturnThrough,IF(ISNUMBER('Step 2 - Update outturn data'!E25),'Step 2 - Update outturn data'!E25,""),IF(ISNUMBER('Step 3 - Enter plan'!E27),'Step 3 - Enter plan'!E27,"")) -> -0.01879470235 | F25: =IF(F$4<=OutturnThrough,IF(ISNUMBER('Step 2 - Update outturn data'!F25),'Step 2 - Update outturn data'!F25,""),IF(ISNUMBER('Step 3 - Enter plan'!F27),'Step 3 - Enter plan'!F27,"")) -> 1.7 | G25: =IF(G$4<=OutturnThrough,IF(ISNUMBER('Step 2 - Update outturn data'!G25),'Step 2 - Update outturn data'!G25,""),IF(ISNUMBER('Step 3 - Enter plan'!G27),'Step 3 - Enter plan'!G27,"")) -> 1.7 | H25: =IF(H$4<=OutturnThrough,IF(ISNUMBER('Step 2 - Update outturn data'!H25),'Step 2 - Update outturn data'!H25,""),IF(ISNUMBER('Step 3 - Enter plan'!H27),'Step 3 - Enter plan'!H27,"")) ->  | I25: =IF(I$4<=OutturnThrough,IF(ISNUMBER('Step 2 - Update outturn data'!I25),'Step 2 - Update outturn data'!I25,""),IF(ISNUMBER('Step 3 - Enter plan'!I27),'Step 3 - Enter plan'!I27,"")) ->  | J25: =IF(J$4<=OutturnThrough,IF(ISNUMBER('Step 2 - Update outturn data'!J25),'Step 2 - Update outturn data'!J25,""),IF(ISNUMBER('Step 3 - Enter plan'!J27),'Step 3 - Enter plan'!J27,"")) ->  | K25: =IF(K$4<=OutturnThrough,IF(ISNUMBER('Step 2 - Update outturn data'!K25),'Step 2 - Update outturn data'!K25,""),IF(ISNUMBER('Step 3 - Enter plan'!K27),'Step 3 - Enter plan'!K27,"")) -> 
B26: Output gap (% pot. GDP) | C26: % pot. GDP | D26: =IF(D$4<=OutturnThrough,IF(ISNUMBER('Step 2 - Update outturn data'!D26),'Step 2 - Update outturn data'!D26,""),IF(ISNUMBER('Step 3 - Enter plan'!D28),'Step 3 - Enter plan'!D28,"")) -> -0.6750981527 | E26: =IF(E$4<=OutturnThrough,IF(ISNUMBER('Step 2 - Update outturn data'!E26),'Step 2 - Update outturn data'!E26,""),IF(ISNUMBER('Step 3 - Enter plan'!E28),'Step 3 - Enter plan'!E28,"")) -> -0.7022101309 | F26: =IF(F$4<=OutturnThrough,IF(ISNUMBER('Step 2 - Update outturn data'!F26),'Step 2 - Update outturn data'!F26,""),IF(ISNUMBER('Step 3 - Enter plan'!F28),'Step 3 - Enter plan'!F28,"")) -> -1.3 | G26: =IF(G$4<=OutturnThrough,IF(ISNUMBER('Step 2 - Update outturn data'!G26),'Step 2 - Update outturn data'!G26,""),IF(ISNUMBER('Step 3 - Enter plan'!G28),'Step 3 - Enter plan'!G28,"")) -> -0.9 | H26: =IF(H$4<=OutturnThrough,IF(ISNUMBER('Step 2 - Update outturn data'!H26),'Step 2 - Update outturn data'!H26,""),IF(ISNUMBER('Step 3 - Enter plan'!H28),'Step 3 - Enter plan'!H28,"")) ->  | I26: =IF(I$4<=OutturnThrough,IF(ISNUMBER('Step 2 - Update outturn data'!I26),'Step 2 - Update outturn data'!I26,""),IF(ISNUMBER('Step 3 - Enter plan'!I28),'Step 3 - Enter plan'!I28,"")) ->  | J26: =IF(J$4<=OutturnThrough,IF(ISNUMBER('Step 2 - Update outturn data'!J26),'Step 2 - Update outturn data'!J26,""),IF(ISNUMBER('Step 3 - Enter plan'!J28),'Step 3 - Enter plan'!J28,"")) ->  | K26: =IF(K$4<=OutturnThrough,IF(ISNUMBER('Step 2 - Update outturn data'!K26),'Step 2 - Update outturn data'!K26,""),IF(ISNUMBER('Step 3 - Enter plan'!K28),'Step 3 - Enter plan'!K28,"")) -> 
B27: Nominal GDP (level) | C27: level, bn NAC | D27: =IF(D$4<=OutturnThrough,IF(ISNUMBER('Step 2 - Update outturn data'!D27),'Step 2 - Update outturn data'!D27,""),IF(ISNUMBER('Step 3 - Enter plan'!D29),'Step 3 - Enter plan'!D29,"")) -> 39.5642 | E27: =IF(E$4<=OutturnThrough,IF(ISNUMBER('Step 2 - Update outturn data'!E27),'Step 2 - Update outturn data'!E27,""),IF(ISNUMBER('Step 3 - Enter plan'!E29),'Step 3 - Enter plan'!E29,"")) -> 40.6523 | F27: =IF(F$4<=OutturnThrough,IF(ISNUMBER('Step 2 - Update outturn data'!F27),'Step 2 - Update outturn data'!F27,""),IF(ISNUMBER('Step 3 - Enter plan'!F29),'Step 3 - Enter plan'!F29,"")) -> 42.4410012 | G27: =IF(G$4<=OutturnThrough,IF(ISNUMBER('Step 2 - Update outturn data'!G27),'Step 2 - Update outturn data'!G27,""),IF(ISNUMBER('Step 3 - Enter plan'!G29),'Step 3 - Enter plan'!G29,"")) -> 44.43572826 | H27: =IF(H$4<=OutturnThrough,IF(ISNUMBER('Step 2 - Update outturn data'!H27),'Step 2 - Update outturn data'!H27,""),IF(ISNUMBER('Step 3 - Enter plan'!H29),'Step 3 - Enter plan'!H29,"")) ->  | I27: =IF(I$4<=OutturnThrough,IF(ISNUMBER('Step 2 - Update outturn data'!I27),'Step 2 - Update outturn data'!I27,""),IF(ISNUMBER('Step 3 - Enter plan'!I29),'Step 3 - Enter plan'!I29,"")) ->  | J27: =IF(J$4<=OutturnThrough,IF(ISNUMBER('Step 2 - Update outturn data'!J27),'Step 2 - Update outturn data'!J27,""),IF(ISNUMBER('Step 3 - Enter plan'!J29),'Step 3 - Enter plan'!J29,"")) ->  | K27: =IF(K$4<=OutturnThrough,IF(ISNUMBER('Step 2 - Update outturn data'!K27),'Step 2 - Update outturn data'!K27,""),IF(ISNUMBER('Step 3 - Enter plan'!K29),'Step 3 - Enter plan'!K29,"")) -> 
B29: ="Medium-term fiscal-structural plan "&IF(MTP_Council_Endorsed," (endorsed by Council)"," (not yet endorsed by Council)")&", EC prior guidance and DSA (Adjustment period currently set to "&AdjustmentPeriod&" years)" -> Medium-term fiscal-structural plan (endorsed by Council), EC prior guidance and DSA (Adjustment period currently set to 4 years)
B30: Medium-term fiscal-structural plan
B31: % of GDP unless noted
B32: Calendar year | D32: =_xlfn.SEQUENCE(1, MTP_EndYear-MTP_BaseYear+1, MTP_BaseYear) -> 2023 | E32: 2024 | F32: 2025 | G32: 2026 | H32: 2027 | I32: 2028
B33: MTP reference year | D33: =CHOOSE( SIGN(_xlfn.SEQUENCE(1, MTP_PlanningHorizon+2, -1)) + 2, "T" & _xlfn.SEQUENCE(1, MTP_PlanningHorizon+2, -1), "T", "T+" & _xlfn.SEQUENCE(1, MTP_PlanningHorizon+2, -1) ) -> T-1 | E33: T | F33: T+1 | G33: T+2 | H33: T+3 | I33: T+4
B34: ='Step 0.1 (MTP) - Plan and prior'!B50 -> Reference trajectory provided by the Commission (not applicable) | D34: =IF(ISNUMBER('Step 0.1 (MTP) - Plan and prior'!D16),'Step 0.1 (MTP) - Plan and prior'!D16,"") ->  | E34: =IF(ISNUMBER('Step 0.1 (MTP) - Plan and prior'!E16),'Step 0.1 (MTP) - Plan and prior'!E16,"") -> 9.1 | F34: =IF(ISNUMBER('Step 0.1 (MTP) - Plan and prior'!F16),'Step 0.1 (MTP) - Plan and prior'!F16,"") -> 5.9 | G34: =IF(ISNUMBER('Step 0.1 (MTP) - Plan and prior'!G16),'Step 0.1 (MTP) - Plan and prior'!G16,"") -> 3.6 | H34: =IF(ISNUMBER('Step 0.1 (MTP) - Plan and prior'!H16),'Step 0.1 (MTP) - Plan and prior'!H16,"") -> 3.4 | I34: =IF(ISNUMBER('Step 0.1 (MTP) - Plan and prior'!I16),'Step 0.1 (MTP) - Plan and prior'!I16,"") -> 3.3 | J34: =IF(ISNUMBER('Step 0.1 (MTP) - Plan and prior'!J16),'Step 0.1 (MTP) - Plan and prior'!J16,"") ->  | K34: =IF(ISNUMBER('Step 0.1 (MTP) - Plan and prior'!K16),'Step 0.1 (MTP) - Plan and prior'!K16,"") ->  | L34: =IF(ISNUMBER('Step 0.1 (MTP) - Plan and prior'!L16),'Step 0.1 (MTP) - Plan and prior'!L16,"") ->  | M34: =IF(ISNUMBER('Step 0.1 (MTP) - Plan and prior'!M16),'Step 0.1 (MTP) - Plan and prior'!M16,"") ->  | N34: =IF(ISNUMBER('Step 0.1 (MTP) - Plan and prior'!N16),'Step 0.1 (MTP) - Plan and prior'!N16,"") -> 
B35: Net lending/borrowing | D35: =IF(ISNUMBER('Step 0.1 (MTP) - Plan and prior'!D17),'Step 0.1 (MTP) - Plan and prior'!D17,"") -> -2.2 | E35: =IF(ISNUMBER('Step 0.1 (MTP) - Plan and prior'!E17),'Step 0.1 (MTP) - Plan and prior'!E17,"") -> -2.6 | F35: =IF(ISNUMBER('Step 0.1 (MTP) - Plan and prior'!F17),'Step 0.1 (MTP) - Plan and prior'!F17,"") -> -2.9 | G35: =IF(ISNUMBER('Step 0.1 (MTP) - Plan and prior'!G17),'Step 0.1 (MTP) - Plan and prior'!G17,"") -> -2.9 | H35: =IF(ISNUMBER('Step 0.1 (MTP) - Plan and prior'!H17),'Step 0.1 (MTP) - Plan and prior'!H17,"") -> -2.9 | I35: =IF(ISNUMBER('Step 0.1 (MTP) - Plan and prior'!I17),'Step 0.1 (MTP) - Plan and prior'!I17,"") -> -2.9 | J35: =IF(ISNUMBER('Step 0.1 (MTP) - Plan and prior'!J17),'Step 0.1 (MTP) - Plan and prior'!J17,"") ->  | K35: =IF(ISNUMBER('Step 0.1 (MTP) - Plan and prior'!K17),'Step 0.1 (MTP) - Plan and prior'!K17,"") ->  | L35: =IF(ISNUMBER('Step 0.1 (MTP) - Plan and prior'!L17),'Step 0.1 (MTP) - Plan and prior'!L17,"") ->  | M35: =IF(ISNUMBER('Step 0.1 (MTP) - Plan and prior'!M17),'Step 0.1 (MTP) - Plan and prior'!M17,"") ->  | N35: =IF(ISNUMBER('Step 0.1 (MTP) - Plan and prior'!N17),'Step 0.1 (MTP) - Plan and prior'!N17,"") -> 
B36: Structural balance | D36: =IF(ISNUMBER('Step 0.1 (MTP) - Plan and prior'!D18),'Step 0.1 (MTP) - Plan and prior'!D18,"") -> -1.8 | E36: =IF(ISNUMBER('Step 0.1 (MTP) - Plan and prior'!E18),'Step 0.1 (MTP) - Plan and prior'!E18,"") -> -1.9 | F36: =IF(ISNUMBER('Step 0.1 (MTP) - Plan and prior'!F18),'Step 0.1 (MTP) - Plan and prior'!F18,"") -> -2.5 | G36: =IF(ISNUMBER('Step 0.1 (MTP) - Plan and prior'!G18),'Step 0.1 (MTP) - Plan and prior'!G18,"") -> -2.6 | H36: =IF(ISNUMBER('Step 0.1 (MTP) - Plan and prior'!H18),'Step 0.1 (MTP) - Plan and prior'!H18,"") -> -2.7 | I36: =IF(ISNUMBER('Step 0.1 (MTP) - Plan and prior'!I18),'Step 0.1 (MTP) - Plan and prior'!I18,"") -> -2.7 | J36: =IF(ISNUMBER('Step 0.1 (MTP) - Plan and prior'!J18),'Step 0.1 (MTP) - Plan and prior'!J18,"") ->  | K36: =IF(ISNUMBER('Step 0.1 (MTP) - Plan and prior'!K18),'Step 0.1 (MTP) - Plan and prior'!K18,"") ->  | L36: =IF(ISNUMBER('Step 0.1 (MTP) - Plan and prior'!L18),'Step 0.1 (MTP) - Plan and prior'!L18,"") ->  | M36: =IF(ISNUMBER('Step 0.1 (MTP) - Plan and prior'!M18),'Step 0.1 (MTP) - Plan and prior'!M18,"") ->  | N36: =IF(ISNUMBER('Step 0.1 (MTP) - Plan and prior'!N18),'Step 0.1 (MTP) - Plan and prior'!N18,"") -> 
B37: Structural primary balance | D37: =IF(ISNUMBER('Step 0.1 (MTP) - Plan and prior'!D19),'Step 0.1 (MTP) - Plan and prior'!D19,"") -> -1.2 | E37: =IF(ISNUMBER('Step 0.1 (MTP) - Plan and prior'!E19),'Step 0.1 (MTP) - Plan and prior'!E19,"") -> -0.8 | F37: =IF(ISNUMBER('Step 0.1 (MTP) - Plan and prior'!F19),'Step 0.1 (MTP) - Plan and prior'!F19,"") -> -1.3 | G37: =IF(ISNUMBER('Step 0.1 (MTP) - Plan and prior'!G19),'Step 0.1 (MTP) - Plan and prior'!G19,"") -> -1.3 | H37: =IF(ISNUMBER('Step 0.1 (MTP) - Plan and prior'!H19),'Step 0.1 (MTP) - Plan and prior'!H19,"") -> -1.3 | I37: =IF(ISNUMBER('Step 0.1 (MTP) - Plan and prior'!I19),'Step 0.1 (MTP) - Plan and prior'!I19,"") -> -1.3 | J37: =IF(ISNUMBER('Step 0.1 (MTP) - Plan and prior'!J19),'Step 0.1 (MTP) - Plan and prior'!J19,"") ->  | K37: =IF(ISNUMBER('Step 0.1 (MTP) - Plan and prior'!K19),'Step 0.1 (MTP) - Plan and prior'!K19,"") ->  | L37: =IF(ISNUMBER('Step 0.1 (MTP) - Plan and prior'!L19),'Step 0.1 (MTP) - Plan and prior'!L19,"") ->  | M37: =IF(ISNUMBER('Step 0.1 (MTP) - Plan and prior'!M19),'Step 0.1 (MTP) - Plan and prior'!M19,"") ->  | N37: =IF(ISNUMBER('Step 0.1 (MTP) - Plan and prior'!N19),'Step 0.1 (MTP) - Plan and prior'!N19,"") -> 
B38: Gross debt | D38: =IF(ISNUMBER('Step 0.1 (MTP) - Plan and prior'!D20),'Step 0.1 (MTP) - Plan and prior'!D20,"") -> 43.6 | E38: =IF(ISNUMBER('Step 0.1 (MTP) - Plan and prior'!E20),'Step 0.1 (MTP) - Plan and prior'!E20,"") -> 45.8 | F38: =IF(ISNUMBER('Step 0.1 (MTP) - Plan and prior'!F20),'Step 0.1 (MTP) - Plan and prior'!F20,"") -> 47.5 | G38: =IF(ISNUMBER('Step 0.1 (MTP) - Plan and prior'!G20),'Step 0.1 (MTP) - Plan and prior'!G20,"") -> 48.5 | H38: =IF(ISNUMBER('Step 0.1 (MTP) - Plan and prior'!H20),'Step 0.1 (MTP) - Plan and prior'!H20,"") -> 49.7 | I38: =IF(ISNUMBER('Step 0.1 (MTP) - Plan and prior'!I20),'Step 0.1 (MTP) - Plan and prior'!I20,"") -> 50.8 | J38: =IF(ISNUMBER('Step 0.1 (MTP) - Plan and prior'!J20),'Step 0.1 (MTP) - Plan and prior'!J20,"") ->  | K38: =IF(ISNUMBER('Step 0.1 (MTP) - Plan and prior'!K20),'Step 0.1 (MTP) - Plan and prior'!K20,"") ->  | L38: =IF(ISNUMBER('Step 0.1 (MTP) - Plan and prior'!L20),'Step 0.1 (MTP) - Plan and prior'!L20,"") ->  | M38: =IF(ISNUMBER('Step 0.1 (MTP) - Plan and prior'!M20),'Step 0.1 (MTP) - Plan and prior'!M20,"") ->  | N38: =IF(ISNUMBER('Step 0.1 (MTP) - Plan and prior'!N20),'Step 0.1 (MTP) - Plan and prior'!N20,"") -> 
B39: Change in gross debt | D39: =IF(ISNUMBER('Step 0.1 (MTP) - Plan and prior'!D21),'Step 0.1 (MTP) - Plan and prior'!D21,"") -> 1.8 | E39: =IF(ISNUMBER('Step 0.1 (MTP) - Plan and prior'!E21),'Step 0.1 (MTP) - Plan and prior'!E21,"") -> 2.3 | F39: =IF(ISNUMBER('Step 0.1 (MTP) - Plan and prior'!F21),'Step 0.1 (MTP) - Plan and prior'!F21,"") -> 1.6 | G39: =IF(ISNUMBER('Step 0.1 (MTP) - Plan and prior'!G21),'Step 0.1 (MTP) - Plan and prior'!G21,"") -> 1.1 | H39: =IF(ISNUMBER('Step 0.1 (MTP) - Plan and prior'!H21),'Step 0.1 (MTP) - Plan and prior'!H21,"") -> 1.2 | I39: =IF(ISNUMBER('Step 0.1 (MTP) - Plan and prior'!I21),'Step 0.1 (MTP) - Plan and prior'!I21,"") -> 1.2 | J39: =IF(ISNUMBER('Step 0.1 (MTP) - Plan and prior'!J21),'Step 0.1 (MTP) - Plan and prior'!J21,"") ->  | K39: =IF(ISNUMBER('Step 0.1 (MTP) - Plan and prior'!K21),'Step 0.1 (MTP) - Plan and prior'!K21,"") ->  | L39: =IF(ISNUMBER('Step 0.1 (MTP) - Plan and prior'!L21),'Step 0.1 (MTP) - Plan and prior'!L21,"") ->  | M39: =IF(ISNUMBER('Step 0.1 (MTP) - Plan and prior'!M21),'Step 0.1 (MTP) - Plan and prior'!M21,"") ->  | N39: =IF(ISNUMBER('Step 0.1 (MTP) - Plan and prior'!N21),'Step 0.1 (MTP) - Plan and prior'!N21,"") -> 
B40: Real GDP | D40: =IF(ISNUMBER('Step 0.1 (MTP) - Plan and prior'!D22),'Step 0.1 (MTP) - Plan and prior'!D22,"") -> -0.3 | E40: =IF(ISNUMBER('Step 0.1 (MTP) - Plan and prior'!E22),'Step 0.1 (MTP) - Plan and prior'!E22,"") -> 1.4 | F40: =IF(ISNUMBER('Step 0.1 (MTP) - Plan and prior'!F22),'Step 0.1 (MTP) - Plan and prior'!F22,"") -> 2.9 | G40: =IF(ISNUMBER('Step 0.1 (MTP) - Plan and prior'!G22),'Step 0.1 (MTP) - Plan and prior'!G22,"") -> 1.6 | H40: =IF(ISNUMBER('Step 0.1 (MTP) - Plan and prior'!H22),'Step 0.1 (MTP) - Plan and prior'!H22,"") -> 1.2 | I40: =IF(ISNUMBER('Step 0.1 (MTP) - Plan and prior'!I22),'Step 0.1 (MTP) - Plan and prior'!I22,"") -> 1.1 | J40: =IF(ISNUMBER('Step 0.1 (MTP) - Plan and prior'!J22),'Step 0.1 (MTP) - Plan and prior'!J22,"") ->  | K40: =IF(ISNUMBER('Step 0.1 (MTP) - Plan and prior'!K22),'Step 0.1 (MTP) - Plan and prior'!K22,"") ->  | L40: =IF(ISNUMBER('Step 0.1 (MTP) - Plan and prior'!L22),'Step 0.1 (MTP) - Plan and prior'!L22,"") ->  | M40: =IF(ISNUMBER('Step 0.1 (MTP) - Plan and prior'!M22),'Step 0.1 (MTP) - Plan and prior'!M22,"") ->  | N40: =IF(ISNUMBER('Step 0.1 (MTP) - Plan and prior'!N22),'Step 0.1 (MTP) - Plan and prior'!N22,"") -> 
B41: GDP deflator | D41: =IF(ISNUMBER('Step 0.1 (MTP) - Plan and prior'!D23),'Step 0.1 (MTP) - Plan and prior'!D23,"") -> 5.4 | E41: =IF(ISNUMBER('Step 0.1 (MTP) - Plan and prior'!E23),'Step 0.1 (MTP) - Plan and prior'!E23,"") -> 2.4 | F41: =IF(ISNUMBER('Step 0.1 (MTP) - Plan and prior'!F23),'Step 0.1 (MTP) - Plan and prior'!F23,"") -> 2.5 | G41: =IF(ISNUMBER('Step 0.1 (MTP) - Plan and prior'!G23),'Step 0.1 (MTP) - Plan and prior'!G23,"") -> 2.5 | H41: =IF(ISNUMBER('Step 0.1 (MTP) - Plan and prior'!H23),'Step 0.1 (MTP) - Plan and prior'!H23,"") -> 2.5 | I41: =IF(ISNUMBER('Step 0.1 (MTP) - Plan and prior'!I23),'Step 0.1 (MTP) - Plan and prior'!I23,"") -> 2.5 | J41: =IF(ISNUMBER('Step 0.1 (MTP) - Plan and prior'!J23),'Step 0.1 (MTP) - Plan and prior'!J23,"") ->  | K41: =IF(ISNUMBER('Step 0.1 (MTP) - Plan and prior'!K23),'Step 0.1 (MTP) - Plan and prior'!K23,"") ->  | L41: =IF(ISNUMBER('Step 0.1 (MTP) - Plan and prior'!L23),'Step 0.1 (MTP) - Plan and prior'!L23,"") ->  | M41: =IF(ISNUMBER('Step 0.1 (MTP) - Plan and prior'!M23),'Step 0.1 (MTP) - Plan and prior'!M23,"") ->  | N41: =IF(ISNUMBER('Step 0.1 (MTP) - Plan and prior'!N23),'Step 0.1 (MTP) - Plan and prior'!N23,"") -> 
B42: Nominal GDP | D42: =IF(ISNUMBER('Step 0.1 (MTP) - Plan and prior'!D24),'Step 0.1 (MTP) - Plan and prior'!D24,"") -> 5.1 | E42: =IF(ISNUMBER('Step 0.1 (MTP) - Plan and prior'!E24),'Step 0.1 (MTP) - Plan and prior'!E24,"") -> 3.8 | F42: =IF(ISNUMBER('Step 0.1 (MTP) - Plan and prior'!F24),'Step 0.1 (MTP) - Plan and prior'!F24,"") -> 5.5 | G42: =IF(ISNUMBER('Step 0.1 (MTP) - Plan and prior'!G24),'Step 0.1 (MTP) - Plan and prior'!G24,"") -> 4.1 | H42: =IF(ISNUMBER('Step 0.1 (MTP) - Plan and prior'!H24),'Step 0.1 (MTP) - Plan and prior'!H24,"") -> 3.7 | I42: =IF(ISNUMBER('Step 0.1 (MTP) - Plan and prior'!I24),'Step 0.1 (MTP) - Plan and prior'!I24,"") -> 3.6 | J42: =IF(ISNUMBER('Step 0.1 (MTP) - Plan and prior'!J24),'Step 0.1 (MTP) - Plan and prior'!J24,"") ->  | K42: =IF(ISNUMBER('Step 0.1 (MTP) - Plan and prior'!K24),'Step 0.1 (MTP) - Plan and prior'!K24,"") ->  | L42: =IF(ISNUMBER('Step 0.1 (MTP) - Plan and prior'!L24),'Step 0.1 (MTP) - Plan and prior'!L24,"") ->  | M42: =IF(ISNUMBER('Step 0.1 (MTP) - Plan and prior'!M24),'Step 0.1 (MTP) - Plan and prior'!M24,"") ->  | N42: =IF(ISNUMBER('Step 0.1 (MTP) - Plan and prior'!N24),'Step 0.1 (MTP) - Plan and prior'!N24,"") -> 
B43: Potential growth | D43: =IF(ISNUMBER('Step 0.1 (MTP) - Plan and prior'!D25),'Step 0.1 (MTP) - Plan and prior'!D25,"") -> 2.3 | E43: =IF(ISNUMBER('Step 0.1 (MTP) - Plan and prior'!E25),'Step 0.1 (MTP) - Plan and prior'!E25,"") -> 2.2 | F43: =IF(ISNUMBER('Step 0.1 (MTP) - Plan and prior'!F25),'Step 0.1 (MTP) - Plan and prior'!F25,"") -> 2.1 | G43: =IF(ISNUMBER('Step 0.1 (MTP) - Plan and prior'!G25),'Step 0.1 (MTP) - Plan and prior'!G25,"") -> 1.2 | H43: =IF(ISNUMBER('Step 0.1 (MTP) - Plan and prior'!H25),'Step 0.1 (MTP) - Plan and prior'!H25,"") -> 0.9 | I43: =IF(ISNUMBER('Step 0.1 (MTP) - Plan and prior'!I25),'Step 0.1 (MTP) - Plan and prior'!I25,"") -> 0.9 | J43: =IF(ISNUMBER('Step 0.1 (MTP) - Plan and prior'!J25),'Step 0.1 (MTP) - Plan and prior'!J25,"") ->  | K43: =IF(ISNUMBER('Step 0.1 (MTP) - Plan and prior'!K25),'Step 0.1 (MTP) - Plan and prior'!K25,"") ->  | L43: =IF(ISNUMBER('Step 0.1 (MTP) - Plan and prior'!L25),'Step 0.1 (MTP) - Plan and prior'!L25,"") ->  | M43: =IF(ISNUMBER('Step 0.1 (MTP) - Plan and prior'!M25),'Step 0.1 (MTP) - Plan and prior'!M25,"") ->  | N43: =IF(ISNUMBER('Step 0.1 (MTP) - Plan and prior'!N25),'Step 0.1 (MTP) - Plan and prior'!N25,"") -> 
B44: Output gap | D44: =IF(ISNUMBER('Step 0.1 (MTP) - Plan and prior'!D26),'Step 0.1 (MTP) - Plan and prior'!D26,"") -> -1 | E44: =IF(ISNUMBER('Step 0.1 (MTP) - Plan and prior'!E26),'Step 0.1 (MTP) - Plan and prior'!E26,"") -> -1.8 | F44: =IF(ISNUMBER('Step 0.1 (MTP) - Plan and prior'!F26),'Step 0.1 (MTP) - Plan and prior'!F26,"") -> -1 | G44: =IF(ISNUMBER('Step 0.1 (MTP) - Plan and prior'!G26),'Step 0.1 (MTP) - Plan and prior'!G26,"") -> -0.7 | H44: =IF(ISNUMBER('Step 0.1 (MTP) - Plan and prior'!H26),'Step 0.1 (MTP) - Plan and prior'!H26,"") -> -0.5 | I44: =IF(ISNUMBER('Step 0.1 (MTP) - Plan and prior'!I26),'Step 0.1 (MTP) - Plan and prior'!I26,"") -> -0.4 | J44: =IF(ISNUMBER('Step 0.1 (MTP) - Plan and prior'!J26),'Step 0.1 (MTP) - Plan and prior'!J26,"") ->  | K44: =IF(ISNUMBER('Step 0.1 (MTP) - Plan and prior'!K26),'Step 0.1 (MTP) - Plan and prior'!K26,"") ->  | L44: =IF(ISNUMBER('Step 0.1 (MTP) - Plan and prior'!L26),'Step 0.1 (MTP) - Plan and prior'!L26,"") ->  | M44: =IF(ISNUMBER('Step 0.1 (MTP) - Plan and prior'!M26),'Step 0.1 (MTP) - Plan and prior'!M26,"") ->  | N44: =IF(ISNUMBER('Step 0.1 (MTP) - Plan and prior'!N26),'Step 0.1 (MTP) - Plan and prior'!N26,"") -> 
B46: Calendar year | D46: =_xlfn.SEQUENCE(1, AdjustmentPeriodEnd+10-MTP_BaseYear+1, MTP_BaseYear) -> 2023 | E46: 2024 | F46: 2025 | G46: 2026 | H46: 2027 | I46: 2028 | J46: 2029 | K46: 2030 | L46: 2031 | M46: 2032 | N46: 2033 | O46: 2034 | P46: 2035 | Q46: 2036 | R46: 2037 | S46: 2038
B47: MTP reference year | D47: =IF(AND(D$46>=MTP_YearT-1, D$46<=AdjustmentPeriodEnd), IF(D$46=MTP_YearT-1, "T-1", IF(D$46=MTP_YearT, "T", "T+"&(D$46-MTP_YearT))), "") -> T-1 | E47: T | F47: T+1 | G47: T+2 | H47: T+3 | I47: T+4
B48: ='Step 0.1 (MTP) - Plan and prior'!B54 -> Main budgetary variables (4-year adjustment period)
B49: Net expenditure growth | D49: =IF(ISNUMBER('Step 0.1 (MTP) - Plan and prior'!D34),'Step 0.1 (MTP) - Plan and prior'!D34,"") ->  | E49: =IF(ISNUMBER('Step 0.1 (MTP) - Plan and prior'!E34),'Step 0.1 (MTP) - Plan and prior'!E34,"") ->  | F49: =IF(ISNUMBER('Step 0.1 (MTP) - Plan and prior'!F34),'Step 0.1 (MTP) - Plan and prior'!F34,"") ->  | G49: =IF(ISNUMBER('Step 0.1 (MTP) - Plan and prior'!G34),'Step 0.1 (MTP) - Plan and prior'!G34,"") ->  | H49: =IF(ISNUMBER('Step 0.1 (MTP) - Plan and prior'!H34),'Step 0.1 (MTP) - Plan and prior'!H34,"") ->  | I49: =IF(ISNUMBER('Step 0.1 (MTP) - Plan and prior'!I34),'Step 0.1 (MTP) - Plan and prior'!I34,"") ->  | J49: =IF(ISNUMBER('Step 0.1 (MTP) - Plan and prior'!J34),'Step 0.1 (MTP) - Plan and prior'!J34,"") ->  | K49: =IF(ISNUMBER('Step 0.1 (MTP) - Plan and prior'!K34),'Step 0.1 (MTP) - Plan and prior'!K34,"") ->  | L49: =IF(ISNUMBER('Step 0.1 (MTP) - Plan and prior'!L34),'Step 0.1 (MTP) - Plan and prior'!L34,"") ->  | M49: =IF(ISNUMBER('Step 0.1 (MTP) - Plan and prior'!M34),'Step 0.1 (MTP) - Plan and prior'!M34,"") ->  | N49: =IF(ISNUMBER('Step 0.1 (MTP) - Plan and prior'!N34),'Step 0.1 (MTP) - Plan and prior'!N34,"") ->  | O49: =IF(ISNUMBER('Step 0.1 (MTP) - Plan and prior'!O34),'Step 0.1 (MTP) - Plan and prior'!O34,"") ->  | P49: =IF(ISNUMBER('Step 0.1 (MTP) - Plan and prior'!P34),'Step 0.1 (MTP) - Plan and prior'!P34,"") ->  | Q49: =IF(ISNUMBER('Step 0.1 (MTP) - Plan and prior'!Q34),'Step 0.1 (MTP) - Plan and prior'!Q34,"") ->  | R49: =IF(ISNUMBER('Step 0.1 (MTP) - Plan and prior'!R34),'Step 0.1 (MTP) - Plan and prior'!R34,"") ->  | S49: =IF(ISNUMBER('Step 0.1 (MTP) - Plan and prior'!S34),'Step 0.1 (MTP) - Plan and prior'!S34,"") ->  | T49: =IF(ISNUMBER('Step 0.1 (MTP) - Plan and prior'!T34),'Step 0.1 (MTP) - Plan and prior'!T34,"") ->  | U49: =IF(ISNUMBER('Step 0.1 (MTP) - Plan and prior'!U34),'Step 0.1 (MTP) - Plan and prior'!U34,"") ->  | V49: =IF(ISNUMBER('Step 0.1 (MTP) - Plan and prior'!V34),'Step 0.1 (MTP) - Plan and prior'!V34,"") ->  | W49: =IF(ISNUMBER('Step 0.1 (MTP) - Plan and prior'!W34),'Step 0.1 (MTP) - Plan and prior'!W34,"") -> 
B50: Net lending/borrowing | D50: =IF(ISNUMBER('Step 0.1 (MTP) - Plan and prior'!D35),'Step 0.1 (MTP) - Plan and prior'!D35,"") -> -2.2 | E50: =IF(ISNUMBER('Step 0.1 (MTP) - Plan and prior'!E35),'Step 0.1 (MTP) - Plan and prior'!E35,"") -> -2.6 | F50: =IF(ISNUMBER('Step 0.1 (MTP) - Plan and prior'!F35),'Step 0.1 (MTP) - Plan and prior'!F35,"") -> -2.9 | G50: =IF(ISNUMBER('Step 0.1 (MTP) - Plan and prior'!G35),'Step 0.1 (MTP) - Plan and prior'!G35,"") -> -2.9 | H50: =IF(ISNUMBER('Step 0.1 (MTP) - Plan and prior'!H35),'Step 0.1 (MTP) - Plan and prior'!H35,"") -> -2.9 | I50: =IF(ISNUMBER('Step 0.1 (MTP) - Plan and prior'!I35),'Step 0.1 (MTP) - Plan and prior'!I35,"") -> -2.9 | J50: =IF(ISNUMBER('Step 0.1 (MTP) - Plan and prior'!J35),'Step 0.1 (MTP) - Plan and prior'!J35,"") -> -2.9 | K50: =IF(ISNUMBER('Step 0.1 (MTP) - Plan and prior'!K35),'Step 0.1 (MTP) - Plan and prior'!K35,"") -> -2.9 | L50: =IF(ISNUMBER('Step 0.1 (MTP) - Plan and prior'!L35),'Step 0.1 (MTP) - Plan and prior'!L35,"") -> -2.9 | M50: =IF(ISNUMBER('Step 0.1 (MTP) - Plan and prior'!M35),'Step 0.1 (MTP) - Plan and prior'!M35,"") -> -3 | N50: =IF(ISNUMBER('Step 0.1 (MTP) - Plan and prior'!N35),'Step 0.1 (MTP) - Plan and prior'!N35,"") -> -3 | O50: =IF(ISNUMBER('Step 0.1 (MTP) - Plan and prior'!O35),'Step 0.1 (MTP) - Plan and prior'!O35,"") -> -3 | P50: =IF(ISNUMBER('Step 0.1 (MTP) - Plan and prior'!P35),'Step 0.1 (MTP) - Plan and prior'!P35,"") -> -3 | Q50: =IF(ISNUMBER('Step 0.1 (MTP) - Plan and prior'!Q35),'Step 0.1 (MTP) - Plan and prior'!Q35,"") -> -3 | R50: =IF(ISNUMBER('Step 0.1 (MTP) - Plan and prior'!R35),'Step 0.1 (MTP) - Plan and prior'!R35,"") -> -3 | S50: =IF(ISNUMBER('Step 0.1 (MTP) - Plan and prior'!S35),'Step 0.1 (MTP) - Plan and prior'!S35,"") -> -2.9 | T50: =IF(ISNUMBER('Step 0.1 (MTP) - Plan and prior'!T35),'Step 0.1 (MTP) - Plan and prior'!T35,"") ->  | U50: =IF(ISNUMBER('Step 0.1 (MTP) - Plan and prior'!U35),'Step 0.1 (MTP) - Plan and prior'!U35,"") ->  | V50: =IF(ISNUMBER('Step 0.1 (MTP) - Plan and prior'!V35),'Step 0.1 (MTP) - Plan and prior'!V35,"") ->  | W50: =IF(ISNUMBER('Step 0.1 (MTP) - Plan and prior'!W35),'Step 0.1 (MTP) - Plan and prior'!W35,"") -> 
B51: Structural balance | D51: =IF(ISNUMBER('Step 0.1 (MTP) - Plan and prior'!D36),'Step 0.1 (MTP) - Plan and prior'!D36,"") ->  | E51: =IF(ISNUMBER('Step 0.1 (MTP) - Plan and prior'!E36),'Step 0.1 (MTP) - Plan and prior'!E36,"") ->  | F51: =IF(ISNUMBER('Step 0.1 (MTP) - Plan and prior'!F36),'Step 0.1 (MTP) - Plan and prior'!F36,"") ->  | G51: =IF(ISNUMBER('Step 0.1 (MTP) - Plan and prior'!G36),'Step 0.1 (MTP) - Plan and prior'!G36,"") ->  | H51: =IF(ISNUMBER('Step 0.1 (MTP) - Plan and prior'!H36),'Step 0.1 (MTP) - Plan and prior'!H36,"") ->  | I51: =IF(ISNUMBER('Step 0.1 (MTP) - Plan and prior'!I36),'Step 0.1 (MTP) - Plan and prior'!I36,"") ->  | J51: =IF(ISNUMBER('Step 0.1 (MTP) - Plan and prior'!J36),'Step 0.1 (MTP) - Plan and prior'!J36,"") ->  | K51: =IF(ISNUMBER('Step 0.1 (MTP) - Plan and prior'!K36),'Step 0.1 (MTP) - Plan and prior'!K36,"") ->  | L51: =IF(ISNUMBER('Step 0.1 (MTP) - Plan and prior'!L36),'Step 0.1 (MTP) - Plan and prior'!L36,"") ->  | M51: =IF(ISNUMBER('Step 0.1 (MTP) - Plan and prior'!M36),'Step 0.1 (MTP) - Plan and prior'!M36,"") ->  | N51: =IF(ISNUMBER('Step 0.1 (MTP) - Plan and prior'!N36),'Step 0.1 (MTP) - Plan and prior'!N36,"") ->  | O51: =IF(ISNUMBER('Step 0.1 (MTP) - Plan and prior'!O36),'Step 0.1 (MTP) - Plan and prior'!O36,"") ->  | P51: =IF(ISNUMBER('Step 0.1 (MTP) - Plan and prior'!P36),'Step 0.1 (MTP) - Plan and prior'!P36,"") ->  | Q51: =IF(ISNUMBER('Step 0.1 (MTP) - Plan and prior'!Q36),'Step 0.1 (MTP) - Plan and prior'!Q36,"") ->  | R51: =IF(ISNUMBER('Step 0.1 (MTP) - Plan and prior'!R36),'Step 0.1 (MTP) - Plan and prior'!R36,"") ->  | S51: =IF(ISNUMBER('Step 0.1 (MTP) - Plan and prior'!S36),'Step 0.1 (MTP) - Plan and prior'!S36,"") ->  | T51: =IF(ISNUMBER('Step 0.1 (MTP) - Plan and prior'!T36),'Step 0.1 (MTP) - Plan and prior'!T36,"") ->  | U51: =IF(ISNUMBER('Step 0.1 (MTP) - Plan and prior'!U36),'Step 0.1 (MTP) - Plan and prior'!U36,"") ->  | V51: =IF(ISNUMBER('Step 0.1 (MTP) - Plan and prior'!V36),'Step 0.1 (MTP) - Plan and prior'!V36,"") ->  | W51: =IF(ISNUMBER('Step 0.1 (MTP) - Plan and prior'!W36),'Step 0.1 (MTP) - Plan and prior'!W36,"") -> 
B52: Structural primary balance | D52: =IF(ISNUMBER('Step 0.1 (MTP) - Plan and prior'!D37),'Step 0.1 (MTP) - Plan and prior'!D37,"") ->  | E52: =IF(ISNUMBER('Step 0.1 (MTP) - Plan and prior'!E37),'Step 0.1 (MTP) - Plan and prior'!E37,"") ->  | F52: =IF(ISNUMBER('Step 0.1 (MTP) - Plan and prior'!F37),'Step 0.1 (MTP) - Plan and prior'!F37,"") ->  | G52: =IF(ISNUMBER('Step 0.1 (MTP) - Plan and prior'!G37),'Step 0.1 (MTP) - Plan and prior'!G37,"") ->  | H52: =IF(ISNUMBER('Step 0.1 (MTP) - Plan and prior'!H37),'Step 0.1 (MTP) - Plan and prior'!H37,"") ->  | I52: =IF(ISNUMBER('Step 0.1 (MTP) - Plan and prior'!I37),'Step 0.1 (MTP) - Plan and prior'!I37,"") ->  | J52: =IF(ISNUMBER('Step 0.1 (MTP) - Plan and prior'!J37),'Step 0.1 (MTP) - Plan and prior'!J37,"") ->  | K52: =IF(ISNUMBER('Step 0.1 (MTP) - Plan and prior'!K37),'Step 0.1 (MTP) - Plan and prior'!K37,"") ->  | L52: =IF(ISNUMBER('Step 0.1 (MTP) - Plan and prior'!L37),'Step 0.1 (MTP) - Plan and prior'!L37,"") ->  | M52: =IF(ISNUMBER('Step 0.1 (MTP) - Plan and prior'!M37),'Step 0.1 (MTP) - Plan and prior'!M37,"") ->  | N52: =IF(ISNUMBER('Step 0.1 (MTP) - Plan and prior'!N37),'Step 0.1 (MTP) - Plan and prior'!N37,"") ->  | O52: =IF(ISNUMBER('Step 0.1 (MTP) - Plan and prior'!O37),'Step 0.1 (MTP) - Plan and prior'!O37,"") ->  | P52: =IF(ISNUMBER('Step 0.1 (MTP) - Plan and prior'!P37),'Step 0.1 (MTP) - Plan and prior'!P37,"") ->  | Q52: =IF(ISNUMBER('Step 0.1 (MTP) - Plan and prior'!Q37),'Step 0.1 (MTP) - Plan and prior'!Q37,"") ->  | R52: =IF(ISNUMBER('Step 0.1 (MTP) - Plan and prior'!R37),'Step 0.1 (MTP) - Plan and prior'!R37,"") ->  | S52: =IF(ISNUMBER('Step 0.1 (MTP) - Plan and prior'!S37),'Step 0.1 (MTP) - Plan and prior'!S37,"") ->  | T52: =IF(ISNUMBER('Step 0.1 (MTP) - Plan and prior'!T37),'Step 0.1 (MTP) - Plan and prior'!T37,"") ->  | U52: =IF(ISNUMBER('Step 0.1 (MTP) - Plan and prior'!U37),'Step 0.1 (MTP) - Plan and prior'!U37,"") ->  | V52: =IF(ISNUMBER('Step 0.1 (MTP) - Plan and prior'!V37),'Step 0.1 (MTP) - Plan and prior'!V37,"") ->  | W52: =IF(ISNUMBER('Step 0.1 (MTP) - Plan and prior'!W37),'Step 0.1 (MTP) - Plan and prior'!W37,"") -> 
B53: Gross debt | D53: =IF(ISNUMBER('Step 0.1 (MTP) - Plan and prior'!D38),'Step 0.1 (MTP) - Plan and prior'!D38,"") -> 43.6 | E53: =IF(ISNUMBER('Step 0.1 (MTP) - Plan and prior'!E38),'Step 0.1 (MTP) - Plan and prior'!E38,"") -> 45.8 | F53: =IF(ISNUMBER('Step 0.1 (MTP) - Plan and prior'!F38),'Step 0.1 (MTP) - Plan and prior'!F38,"") -> 47.5 | G53: =IF(ISNUMBER('Step 0.1 (MTP) - Plan and prior'!G38),'Step 0.1 (MTP) - Plan and prior'!G38,"") -> 48.5 | H53: =IF(ISNUMBER('Step 0.1 (MTP) - Plan and prior'!H38),'Step 0.1 (MTP) - Plan and prior'!H38,"") -> 49.7 | I53: =IF(ISNUMBER('Step 0.1 (MTP) - Plan and prior'!I38),'Step 0.1 (MTP) - Plan and prior'!I38,"") -> 50.8 | J53: =IF(ISNUMBER('Step 0.1 (MTP) - Plan and prior'!J38),'Step 0.1 (MTP) - Plan and prior'!J38,"") -> 51.9 | K53: =IF(ISNUMBER('Step 0.1 (MTP) - Plan and prior'!K38),'Step 0.1 (MTP) - Plan and prior'!K38,"") -> 53 | L53: =IF(ISNUMBER('Step 0.1 (MTP) - Plan and prior'!L38),'Step 0.1 (MTP) - Plan and prior'!L38,"") -> 53.9 | M53: =IF(ISNUMBER('Step 0.1 (MTP) - Plan and prior'!M38),'Step 0.1 (MTP) - Plan and prior'!M38,"") -> 54.9 | N53: =IF(ISNUMBER('Step 0.1 (MTP) - Plan and prior'!N38),'Step 0.1 (MTP) - Plan and prior'!N38,"") -> 55.9 | O53: =IF(ISNUMBER('Step 0.1 (MTP) - Plan and prior'!O38),'Step 0.1 (MTP) - Plan and prior'!O38,"") -> 56.8 | P53: =IF(ISNUMBER('Step 0.1 (MTP) - Plan and prior'!P38),'Step 0.1 (MTP) - Plan and prior'!P38,"") -> 57.7 | Q53: =IF(ISNUMBER('Step 0.1 (MTP) - Plan and prior'!Q38),'Step 0.1 (MTP) - Plan and prior'!Q38,"") -> 58.5 | R53: =IF(ISNUMBER('Step 0.1 (MTP) - Plan and prior'!R38),'Step 0.1 (MTP) - Plan and prior'!R38,"") -> 59.2 | S53: =IF(ISNUMBER('Step 0.1 (MTP) - Plan and prior'!S38),'Step 0.1 (MTP) - Plan and prior'!S38,"") -> 59.9 | T53: =IF(ISNUMBER('Step 0.1 (MTP) - Plan and prior'!T38),'Step 0.1 (MTP) - Plan and prior'!T38,"") ->  | U53: =IF(ISNUMBER('Step 0.1 (MTP) - Plan and prior'!U38),'Step 0.1 (MTP) - Plan and prior'!U38,"") ->  | V53: =IF(ISNUMBER('Step 0.1 (MTP) - Plan and prior'!V38),'Step 0.1 (MTP) - Plan and prior'!V38,"") ->  | W53: =IF(ISNUMBER('Step 0.1 (MTP) - Plan and prior'!W38),'Step 0.1 (MTP) - Plan and prior'!W38,"") -> 
B54: Debt sustainability assessments
B55: Gross debt, no policy change scenario | D55: =IF(ISNUMBER('Step 0.1 (MTP) - Plan and prior'!D40),'Step 0.1 (MTP) - Plan and prior'!D40,"") ->  | E55: =IF(ISNUMBER('Step 0.1 (MTP) - Plan and prior'!E40),'Step 0.1 (MTP) - Plan and prior'!E40,"") ->  | F55: =IF(ISNUMBER('Step 0.1 (MTP) - Plan and prior'!F40),'Step 0.1 (MTP) - Plan and prior'!F40,"") ->  | G55: =IF(ISNUMBER('Step 0.1 (MTP) - Plan and prior'!G40),'Step 0.1 (MTP) - Plan and prior'!G40,"") ->  | H55: =IF(ISNUMBER('Step 0.1 (MTP) - Plan and prior'!H40),'Step 0.1 (MTP) - Plan and prior'!H40,"") ->  | I55: =IF(ISNUMBER('Step 0.1 (MTP) - Plan and prior'!I40),'Step 0.1 (MTP) - Plan and prior'!I40,"") ->  | J55: =IF(ISNUMBER('Step 0.1 (MTP) - Plan and prior'!J40),'Step 0.1 (MTP) - Plan and prior'!J40,"") ->  | K55: =IF(ISNUMBER('Step 0.1 (MTP) - Plan and prior'!K40),'Step 0.1 (MTP) - Plan and prior'!K40,"") ->  | L55: =IF(ISNUMBER('Step 0.1 (MTP) - Plan and prior'!L40),'Step 0.1 (MTP) - Plan and prior'!L40,"") ->  | M55: =IF(ISNUMBER('Step 0.1 (MTP) - Plan and prior'!M40),'Step 0.1 (MTP) - Plan and prior'!M40,"") ->  | N55: =IF(ISNUMBER('Step 0.1 (MTP) - Plan and prior'!N40),'Step 0.1 (MTP) - Plan and prior'!N40,"") ->  | O55: =IF(ISNUMBER('Step 0.1 (MTP) - Plan and prior'!O40),'Step 0.1 (MTP) - Plan and prior'!O40,"") ->  | P55: =IF(ISNUMBER('Step 0.1 (MTP) - Plan and prior'!P40),'Step 0.1 (MTP) - Plan and prior'!P40,"") ->  | Q55: =IF(ISNUMBER('Step 0.1 (MTP) - Plan and prior'!Q40),'Step 0.1 (MTP) - Plan and prior'!Q40,"") ->  | R55: =IF(ISNUMBER('Step 0.1 (MTP) - Plan and prior'!R40),'Step 0.1 (MTP) - Plan and prior'!R40,"") ->  | S55: =IF(ISNUMBER('Step 0.1 (MTP) - Plan and prior'!S40),'Step 0.1 (MTP) - Plan and prior'!S40,"") ->  | T55: =IF(ISNUMBER('Step 0.1 (MTP) - Plan and prior'!T40),'Step 0.1 (MTP) - Plan and prior'!T40,"") ->  | U55: =IF(ISNUMBER('Step 0.1 (MTP) - Plan and prior'!U40),'Step 0.1 (MTP) - Plan and prior'!U40,"") ->  | V55: =IF(ISNUMBER('Step 0.1 (MTP) - Plan and prior'!V40),'Step 0.1 (MTP) - Plan and prior'!V40,"") ->  | W55: =IF(ISNUMBER('Step 0.1 (MTP) - Plan and prior'!W40),'Step 0.1 (MTP) - Plan and prior'!W40,"") -> 
B56: Gross debt, financial stress scenario | D56: =IF(ISNUMBER('Step 0.1 (MTP) - Plan and prior'!D41),'Step 0.1 (MTP) - Plan and prior'!D41,"") ->  | E56: =IF(ISNUMBER('Step 0.1 (MTP) - Plan and prior'!E41),'Step 0.1 (MTP) - Plan and prior'!E41,"") ->  | F56: =IF(ISNUMBER('Step 0.1 (MTP) - Plan and prior'!F41),'Step 0.1 (MTP) - Plan and prior'!F41,"") ->  | G56: =IF(ISNUMBER('Step 0.1 (MTP) - Plan and prior'!G41),'Step 0.1 (MTP) - Plan and prior'!G41,"") ->  | H56: =IF(ISNUMBER('Step 0.1 (MTP) - Plan and prior'!H41),'Step 0.1 (MTP) - Plan and prior'!H41,"") ->  | I56: =IF(ISNUMBER('Step 0.1 (MTP) - Plan and prior'!I41),'Step 0.1 (MTP) - Plan and prior'!I41,"") ->  | J56: =IF(ISNUMBER('Step 0.1 (MTP) - Plan and prior'!J41),'Step 0.1 (MTP) - Plan and prior'!J41,"") ->  | K56: =IF(ISNUMBER('Step 0.1 (MTP) - Plan and prior'!K41),'Step 0.1 (MTP) - Plan and prior'!K41,"") ->  | L56: =IF(ISNUMBER('Step 0.1 (MTP) - Plan and prior'!L41),'Step 0.1 (MTP) - Plan and prior'!L41,"") ->  | M56: =IF(ISNUMBER('Step 0.1 (MTP) - Plan and prior'!M41),'Step 0.1 (MTP) - Plan and prior'!M41,"") ->  | N56: =IF(ISNUMBER('Step 0.1 (MTP) - Plan and prior'!N41),'Step 0.1 (MTP) - Plan and prior'!N41,"") ->  | O56: =IF(ISNUMBER('Step 0.1 (MTP) - Plan and prior'!O41),'Step 0.1 (MTP) - Plan and prior'!O41,"") ->  | P56: =IF(ISNUMBER('Step 0.1 (MTP) - Plan and prior'!P41),'Step 0.1 (MTP) - Plan and prior'!P41,"") ->  | Q56: =IF(ISNUMBER('Step 0.1 (MTP) - Plan and prior'!Q41),'Step 0.1 (MTP) - Plan and prior'!Q41,"") ->  | R56: =IF(ISNUMBER('Step 0.1 (MTP) - Plan and prior'!R41),'Step 0.1 (MTP) - Plan and prior'!R41,"") ->  | S56: =IF(ISNUMBER('Step 0.1 (MTP) - Plan and prior'!S41),'Step 0.1 (MTP) - Plan and prior'!S41,"") ->  | T56: =IF(ISNUMBER('Step 0.1 (MTP) - Plan and prior'!T41),'Step 0.1 (MTP) - Plan and prior'!T41,"") ->  | U56: =IF(ISNUMBER('Step 0.1 (MTP) - Plan and prior'!U41),'Step 0.1 (MTP) - Plan and prior'!U41,"") ->  | V56: =IF(ISNUMBER('Step 0.1 (MTP) - Plan and prior'!V41),'Step 0.1 (MTP) - Plan and prior'!V41,"") ->  | W56: =IF(ISNUMBER('Step 0.1 (MTP) - Plan and prior'!W41),'Step 0.1 (MTP) - Plan and prior'!W41,"") -> 
B57: Gross debt, lower structural primary balance scenario | D57: =IF(ISNUMBER('Step 0.1 (MTP) - Plan and prior'!D42),'Step 0.1 (MTP) - Plan and prior'!D42,"") ->  | E57: =IF(ISNUMBER('Step 0.1 (MTP) - Plan and prior'!E42),'Step 0.1 (MTP) - Plan and prior'!E42,"") ->  | F57: =IF(ISNUMBER('Step 0.1 (MTP) - Plan and prior'!F42),'Step 0.1 (MTP) - Plan and prior'!F42,"") ->  | G57: =IF(ISNUMBER('Step 0.1 (MTP) - Plan and prior'!G42),'Step 0.1 (MTP) - Plan and prior'!G42,"") ->  | H57: =IF(ISNUMBER('Step 0.1 (MTP) - Plan and prior'!H42),'Step 0.1 (MTP) - Plan and prior'!H42,"") ->  | I57: =IF(ISNUMBER('Step 0.1 (MTP) - Plan and prior'!I42),'Step 0.1 (MTP) - Plan and prior'!I42,"") ->  | J57: =IF(ISNUMBER('Step 0.1 (MTP) - Plan and prior'!J42),'Step 0.1 (MTP) - Plan and prior'!J42,"") ->  | K57: =IF(ISNUMBER('Step 0.1 (MTP) - Plan and prior'!K42),'Step 0.1 (MTP) - Plan and prior'!K42,"") ->  | L57: =IF(ISNUMBER('Step 0.1 (MTP) - Plan and prior'!L42),'Step 0.1 (MTP) - Plan and prior'!L42,"") ->  | M57: =IF(ISNUMBER('Step 0.1 (MTP) - Plan and prior'!M42),'Step 0.1 (MTP) - Plan and prior'!M42,"") ->  | N57: =IF(ISNUMBER('Step 0.1 (MTP) - Plan and prior'!N42),'Step 0.1 (MTP) - Plan and prior'!N42,"") ->  | O57: =IF(ISNUMBER('Step 0.1 (MTP) - Plan and prior'!O42),'Step 0.1 (MTP) - Plan and prior'!O42,"") ->  | P57: =IF(ISNUMBER('Step 0.1 (MTP) - Plan and prior'!P42),'Step 0.1 (MTP) - Plan and prior'!P42,"") ->  | Q57: =IF(ISNUMBER('Step 0.1 (MTP) - Plan and prior'!Q42),'Step 0.1 (MTP) - Plan and prior'!Q42,"") ->  | R57: =IF(ISNUMBER('Step 0.1 (MTP) - Plan and prior'!R42),'Step 0.1 (MTP) - Plan and prior'!R42,"") ->  | S57: =IF(ISNUMBER('Step 0.1 (MTP) - Plan and prior'!S42),'Step 0.1 (MTP) - Plan and prior'!S42,"") ->  | T57: =IF(ISNUMBER('Step 0.1 (MTP) - Plan and prior'!T42),'Step 0.1 (MTP) - Plan and prior'!T42,"") ->  | U57: =IF(ISNUMBER('Step 0.1 (MTP) - Plan and prior'!U42),'Step 0.1 (MTP) - Plan and prior'!U42,"") ->  | V57: =IF(ISNUMBER('Step 0.1 (MTP) - Plan and prior'!V42),'Step 0.1 (MTP) - Plan and prior'!V42,"") ->  | W57: =IF(ISNUMBER('Step 0.1 (MTP) - Plan and prior'!W42),'Step 0.1 (MTP) - Plan and prior'!W42,"") -> 
B58: Gross debt, adverse r-g scenario | D58: =IF(ISNUMBER('Step 0.1 (MTP) - Plan and prior'!D43),'Step 0.1 (MTP) - Plan and prior'!D43,"") ->  | E58: =IF(ISNUMBER('Step 0.1 (MTP) - Plan and prior'!E43),'Step 0.1 (MTP) - Plan and prior'!E43,"") ->  | F58: =IF(ISNUMBER('Step 0.1 (MTP) - Plan and prior'!F43),'Step 0.1 (MTP) - Plan and prior'!F43,"") ->  | G58: =IF(ISNUMBER('Step 0.1 (MTP) - Plan and prior'!G43),'Step 0.1 (MTP) - Plan and prior'!G43,"") ->  | H58: =IF(ISNUMBER('Step 0.1 (MTP) - Plan and prior'!H43),'Step 0.1 (MTP) - Plan and prior'!H43,"") ->  | I58: =IF(ISNUMBER('Step 0.1 (MTP) - Plan and prior'!I43),'Step 0.1 (MTP) - Plan and prior'!I43,"") ->  | J58: =IF(ISNUMBER('Step 0.1 (MTP) - Plan and prior'!J43),'Step 0.1 (MTP) - Plan and prior'!J43,"") ->  | K58: =IF(ISNUMBER('Step 0.1 (MTP) - Plan and prior'!K43),'Step 0.1 (MTP) - Plan and prior'!K43,"") ->  | L58: =IF(ISNUMBER('Step 0.1 (MTP) - Plan and prior'!L43),'Step 0.1 (MTP) - Plan and prior'!L43,"") ->  | M58: =IF(ISNUMBER('Step 0.1 (MTP) - Plan and prior'!M43),'Step 0.1 (MTP) - Plan and prior'!M43,"") ->  | N58: =IF(ISNUMBER('Step 0.1 (MTP) - Plan and prior'!N43),'Step 0.1 (MTP) - Plan and prior'!N43,"") ->  | O58: =IF(ISNUMBER('Step 0.1 (MTP) - Plan and prior'!O43),'Step 0.1 (MTP) - Plan and prior'!O43,"") ->  | P58: =IF(ISNUMBER('Step 0.1 (MTP) - Plan and prior'!P43),'Step 0.1 (MTP) - Plan and prior'!P43,"") ->  | Q58: =IF(ISNUMBER('Step 0.1 (MTP) - Plan and prior'!Q43),'Step 0.1 (MTP) - Plan and prior'!Q43,"") ->  | R58: =IF(ISNUMBER('Step 0.1 (MTP) - Plan and prior'!R43),'Step 0.1 (MTP) - Plan and prior'!R43,"") ->  | S58: =IF(ISNUMBER('Step 0.1 (MTP) - Plan and prior'!S43),'Step 0.1 (MTP) - Plan and prior'!S43,"") ->  | T58: =IF(ISNUMBER('Step 0.1 (MTP) - Plan and prior'!T43),'Step 0.1 (MTP) - Plan and prior'!T43,"") ->  | U58: =IF(ISNUMBER('Step 0.1 (MTP) - Plan and prior'!U43),'Step 0.1 (MTP) - Plan and prior'!U43,"") ->  | V58: =IF(ISNUMBER('Step 0.1 (MTP) - Plan and prior'!V43),'Step 0.1 (MTP) - Plan and prior'!V43,"") ->  | W58: =IF(ISNUMBER('Step 0.1 (MTP) - Plan and prior'!W43),'Step 0.1 (MTP) - Plan and prior'!W43,"") -> 
B59: Stochastic debt projections (probability of lower debt at end of projection than at end of adjustment period) | D59: =IF(ISNUMBER('Step 0.1 (MTP) - Plan and prior'!D44),'Step 0.1 (MTP) - Plan and prior'!D44,"") ->  | E59: =IF(ISNUMBER('Step 0.1 (MTP) - Plan and prior'!E44),'Step 0.1 (MTP) - Plan and prior'!E44,"") ->  | F59: =IF(ISNUMBER('Step 0.1 (MTP) - Plan and prior'!F44),'Step 0.1 (MTP) - Plan and prior'!F44,"") ->  | G59: =IF(ISNUMBER('Step 0.1 (MTP) - Plan and prior'!G44),'Step 0.1 (MTP) - Plan and prior'!G44,"") ->  | H59: =IF(ISNUMBER('Step 0.1 (MTP) - Plan and prior'!H44),'Step 0.1 (MTP) - Plan and prior'!H44,"") ->  | I59: =IF(ISNUMBER('Step 0.1 (MTP) - Plan and prior'!I44),'Step 0.1 (MTP) - Plan and prior'!I44,"") ->  | J59: =IF(ISNUMBER('Step 0.1 (MTP) - Plan and prior'!J44),'Step 0.1 (MTP) - Plan and prior'!J44,"") ->  | K59: =IF(ISNUMBER('Step 0.1 (MTP) - Plan and prior'!K44),'Step 0.1 (MTP) - Plan and prior'!K44,"") ->  | L59: =IF(ISNUMBER('Step 0.1 (MTP) - Plan and prior'!L44),'Step 0.1 (MTP) - Plan and prior'!L44,"") ->  | M59: =IF(ISNUMBER('Step 0.1 (MTP) - Plan and prior'!M44),'Step 0.1 (MTP) - Plan and prior'!M44,"") ->  | N59: =IF(ISNUMBER('Step 0.1 (MTP) - Plan and prior'!N44),'Step 0.1 (MTP) - Plan and prior'!N44,"") ->  | O59: =IF(ISNUMBER('Step 0.1 (MTP) - Plan and prior'!O44),'Step 0.1 (MTP) - Plan and prior'!O44,"") ->  | P59: =IF(ISNUMBER('Step 0.1 (MTP) - Plan and prior'!P44),'Step 0.1 (MTP) - Plan and prior'!P44,"") ->  | Q59: =IF(ISNUMBER('Step 0.1 (MTP) - Plan and prior'!Q44),'Step 0.1 (MTP) - Plan and prior'!Q44,"") ->  | R59: =IF(ISNUMBER('Step 0.1 (MTP) - Plan and prior'!R44),'Step 0.1 (MTP) - Plan and prior'!R44,"") ->  | S59: =IF(ISNUMBER('Step 0.1 (MTP) - Plan and prior'!S44),'Step 0.1 (MTP) - Plan and prior'!S44,"") ->  | T59: =IF(ISNUMBER('Step 0.1 (MTP) - Plan and prior'!T44),'Step 0.1 (MTP) - Plan and prior'!T44,"") ->  | U59: =IF(ISNUMBER('Step 0.1 (MTP) - Plan and prior'!U44),'Step 0.1 (MTP) - Plan and prior'!U44,"") ->  | V59: =IF(ISNUMBER('Step 0.1 (MTP) - Plan and prior'!V44),'Step 0.1 (MTP) - Plan and prior'!V44,"") ->  | W59: =IF(ISNUMBER('Step 0.1 (MTP) - Plan and prior'!W44),'Step 0.1 (MTP) - Plan and prior'!W44,"") -> 
B61: =IF(Receives_reference_trajectory,"Prior guidance: reference trajectory and DSA","Prior guidance: technical information and DSA") -> Prior guidance: technical information and DSA
B62: % of GDP unless noted
B63: Calendar year | D63: =_xlfn.SEQUENCE(1, AdjustmentPeriodEnd+10-MTP_BaseYear+1, MTP_BaseYear) -> 2023 | E63: 2024 | F63: 2025 | G63: 2026 | H63: 2027 | I63: 2028 | J63: 2029 | K63: 2030 | L63: 2031 | M63: 2032 | N63: 2033 | O63: 2034 | P63: 2035 | Q63: 2036 | R63: 2037 | S63: 2038
B64: MTP reference year | D64: =IF(AND(D$63>=MTP_YearT-1, D$63<=AdjustmentPeriodEnd), IF(D$63=MTP_YearT-1, "T-1", IF(D$63=MTP_YearT, "T", "T+"&(D$63-MTP_YearT))), "") -> T-1 | E64: T | F64: T+1 | G64: T+2 | H64: T+3 | I64: T+4
B65: Reference trajectory provided by the Commission (not applicable) | D65: =IF(ISNUMBER('Step 0.1 (MTP) - Plan and prior'!D50),'Step 0.1 (MTP) - Plan and prior'!D50,"") ->  | E65: =IF(ISNUMBER('Step 0.1 (MTP) - Plan and prior'!E50),'Step 0.1 (MTP) - Plan and prior'!E50,"") ->  | F65: =IF(ISNUMBER('Step 0.1 (MTP) - Plan and prior'!F50),'Step 0.1 (MTP) - Plan and prior'!F50,"") ->  | G65: =IF(ISNUMBER('Step 0.1 (MTP) - Plan and prior'!G50),'Step 0.1 (MTP) - Plan and prior'!G50,"") ->  | H65: =IF(ISNUMBER('Step 0.1 (MTP) - Plan and prior'!H50),'Step 0.1 (MTP) - Plan and prior'!H50,"") ->  | I65: =IF(ISNUMBER('Step 0.1 (MTP) - Plan and prior'!I50),'Step 0.1 (MTP) - Plan and prior'!I50,"") ->  | J65: =IF(ISNUMBER('Step 0.1 (MTP) - Plan and prior'!J50),'Step 0.1 (MTP) - Plan and prior'!J50,"") ->  | K65: =IF(ISNUMBER('Step 0.1 (MTP) - Plan and prior'!K50),'Step 0.1 (MTP) - Plan and prior'!K50,"") ->  | L65: =IF(ISNUMBER('Step 0.1 (MTP) - Plan and prior'!L50),'Step 0.1 (MTP) - Plan and prior'!L50,"") ->  | M65: =IF(ISNUMBER('Step 0.1 (MTP) - Plan and prior'!M50),'Step 0.1 (MTP) - Plan and prior'!M50,"") ->  | N65: =IF(ISNUMBER('Step 0.1 (MTP) - Plan and prior'!N50),'Step 0.1 (MTP) - Plan and prior'!N50,"") ->  | O65: =IF(ISNUMBER('Step 0.1 (MTP) - Plan and prior'!O50),'Step 0.1 (MTP) - Plan and prior'!O50,"") ->  | P65: =IF(ISNUMBER('Step 0.1 (MTP) - Plan and prior'!P50),'Step 0.1 (MTP) - Plan and prior'!P50,"") ->  | Q65: =IF(ISNUMBER('Step 0.1 (MTP) - Plan and prior'!Q50),'Step 0.1 (MTP) - Plan and prior'!Q50,"") ->  | R65: =IF(ISNUMBER('Step 0.1 (MTP) - Plan and prior'!R50),'Step 0.1 (MTP) - Plan and prior'!R50,"") ->  | S65: =IF(ISNUMBER('Step 0.1 (MTP) - Plan and prior'!S50),'Step 0.1 (MTP) - Plan and prior'!S50,"") ->  | T65: =IF(ISNUMBER('Step 0.1 (MTP) - Plan and prior'!T50),'Step 0.1 (MTP) - Plan and prior'!T50,"") ->  | U65: =IF(ISNUMBER('Step 0.1 (MTP) - Plan and prior'!U50),'Step 0.1 (MTP) - Plan and prior'!U50,"") ->  | V65: =IF(ISNUMBER('Step 0.1 (MTP) - Plan and prior'!V50),'Step 0.1 (MTP) - Plan and prior'!V50,"") ->  | W65: =IF(ISNUMBER('Step 0.1 (MTP) - Plan and prior'!W50),'Step 0.1 (MTP) - Plan and prior'!W50,"") ->  | X65: =IF(ISNUMBER('Step 0.1 (MTP) - Plan and prior'!X50),'Step 0.1 (MTP) - Plan and prior'!X50,"") -> 
B66: ='Step 0.1 (MTP) - Plan and prior'!B51 -> Minimum level for the structural primary balance in 2028, no safeguard | D66: =IF(ISNUMBER('Step 0.1 (MTP) - Plan and prior'!D51),'Step 0.1 (MTP) - Plan and prior'!D51,"") ->  | E66: =IF(ISNUMBER('Step 0.1 (MTP) - Plan and prior'!E51),'Step 0.1 (MTP) - Plan and prior'!E51,"") ->  | F66: =IF(ISNUMBER('Step 0.1 (MTP) - Plan and prior'!F51),'Step 0.1 (MTP) - Plan and prior'!F51,"") ->  | G66: =IF(ISNUMBER('Step 0.1 (MTP) - Plan and prior'!G51),'Step 0.1 (MTP) - Plan and prior'!G51,"") ->  | H66: =IF(ISNUMBER('Step 0.1 (MTP) - Plan and prior'!H51),'Step 0.1 (MTP) - Plan and prior'!H51,"") ->  | I66: =IF(ISNUMBER('Step 0.1 (MTP) - Plan and prior'!I51),'Step 0.1 (MTP) - Plan and prior'!I51,"") -> -1.3 | J66: =IF(ISNUMBER('Step 0.1 (MTP) - Plan and prior'!J51),'Step 0.1 (MTP) - Plan and prior'!J51,"") ->  | K66: =IF(ISNUMBER('Step 0.1 (MTP) - Plan and prior'!K51),'Step 0.1 (MTP) - Plan and prior'!K51,"") ->  | L66: =IF(ISNUMBER('Step 0.1 (MTP) - Plan and prior'!L51),'Step 0.1 (MTP) - Plan and prior'!L51,"") ->  | M66: =IF(ISNUMBER('Step 0.1 (MTP) - Plan and prior'!M51),'Step 0.1 (MTP) - Plan and prior'!M51,"") ->  | N66: =IF(ISNUMBER('Step 0.1 (MTP) - Plan and prior'!N51),'Step 0.1 (MTP) - Plan and prior'!N51,"") ->  | O66: =IF(ISNUMBER('Step 0.1 (MTP) - Plan and prior'!O51),'Step 0.1 (MTP) - Plan and prior'!O51,"") ->  | P66: =IF(ISNUMBER('Step 0.1 (MTP) - Plan and prior'!P51),'Step 0.1 (MTP) - Plan and prior'!P51,"") ->  | Q66: =IF(ISNUMBER('Step 0.1 (MTP) - Plan and prior'!Q51),'Step 0.1 (MTP) - Plan and prior'!Q51,"") ->  | R66: =IF(ISNUMBER('Step 0.1 (MTP) - Plan and prior'!R51),'Step 0.1 (MTP) - Plan and prior'!R51,"") ->  | S66: =IF(ISNUMBER('Step 0.1 (MTP) - Plan and prior'!S51),'Step 0.1 (MTP) - Plan and prior'!S51,"") ->  | T66: =IF(ISNUMBER('Step 0.1 (MTP) - Plan and prior'!T51),'Step 0.1 (MTP) - Plan and prior'!T51,"") ->  | U66: =IF(ISNUMBER('Step 0.1 (MTP) - Plan and prior'!U51),'Step 0.1 (MTP) - Plan and prior'!U51,"") ->  | V66: =IF(ISNUMBER('Step 0.1 (MTP) - Plan and prior'!V51),'Step 0.1 (MTP) - Plan and prior'!V51,"") ->  | W66: =IF(ISNUMBER('Step 0.1 (MTP) - Plan and prior'!W51),'Step 0.1 (MTP) - Plan and prior'!W51,"") ->  | X66: =IF(ISNUMBER('Step 0.1 (MTP) - Plan and prior'!X51),'Step 0.1 (MTP) - Plan and prior'!X51,"") -> 
B67: ='Step 0.1 (MTP) - Plan and prior'!B52 -> Minimum level for the structural primary balance in 2028, with safeguard | D67: =IF(ISNUMBER('Step 0.1 (MTP) - Plan and prior'!D52),'Step 0.1 (MTP) - Plan and prior'!D52,"") ->  | E67: =IF(ISNUMBER('Step 0.1 (MTP) - Plan and prior'!E52),'Step 0.1 (MTP) - Plan and prior'!E52,"") ->  | F67: =IF(ISNUMBER('Step 0.1 (MTP) - Plan and prior'!F52),'Step 0.1 (MTP) - Plan and prior'!F52,"") ->  | G67: =IF(ISNUMBER('Step 0.1 (MTP) - Plan and prior'!G52),'Step 0.1 (MTP) - Plan and prior'!G52,"") ->  | H67: =IF(ISNUMBER('Step 0.1 (MTP) - Plan and prior'!H52),'Step 0.1 (MTP) - Plan and prior'!H52,"") ->  | I67: =IF(ISNUMBER('Step 0.1 (MTP) - Plan and prior'!I52),'Step 0.1 (MTP) - Plan and prior'!I52,"") -> -0.142466 | J67: =IF(ISNUMBER('Step 0.1 (MTP) - Plan and prior'!J52),'Step 0.1 (MTP) - Plan and prior'!J52,"") ->  | K67: =IF(ISNUMBER('Step 0.1 (MTP) - Plan and prior'!K52),'Step 0.1 (MTP) - Plan and prior'!K52,"") ->  | L67: =IF(ISNUMBER('Step 0.1 (MTP) - Plan and prior'!L52),'Step 0.1 (MTP) - Plan and prior'!L52,"") ->  | M67: =IF(ISNUMBER('Step 0.1 (MTP) - Plan and prior'!M52),'Step 0.1 (MTP) - Plan and prior'!M52,"") ->  | N67: =IF(ISNUMBER('Step 0.1 (MTP) - Plan and prior'!N52),'Step 0.1 (MTP) - Plan and prior'!N52,"") ->  | O67: =IF(ISNUMBER('Step 0.1 (MTP) - Plan and prior'!O52),'Step 0.1 (MTP) - Plan and prior'!O52,"") ->  | P67: =IF(ISNUMBER('Step 0.1 (MTP) - Plan and prior'!P52),'Step 0.1 (MTP) - Plan and prior'!P52,"") ->  | Q67: =IF(ISNUMBER('Step 0.1 (MTP) - Plan and prior'!Q52),'Step 0.1 (MTP) - Plan and prior'!Q52,"") ->  | R67: =IF(ISNUMBER('Step 0.1 (MTP) - Plan and prior'!R52),'Step 0.1 (MTP) - Plan and prior'!R52,"") ->  | S67: =IF(ISNUMBER('Step 0.1 (MTP) - Plan and prior'!S52),'Step 0.1 (MTP) - Plan and prior'!S52,"") ->  | T67: =IF(ISNUMBER('Step 0.1 (MTP) - Plan and prior'!T52),'Step 0.1 (MTP) - Plan and prior'!T52,"") ->  | U67: =IF(ISNUMBER('Step 0.1 (MTP) - Plan and prior'!U52),'Step 0.1 (MTP) - Plan and prior'!U52,"") ->  | V67: =IF(ISNUMBER('Step 0.1 (MTP) - Plan and prior'!V52),'Step 0.1 (MTP) - Plan and prior'!V52,"") ->  | W67: =IF(ISNUMBER('Step 0.1 (MTP) - Plan and prior'!W52),'Step 0.1 (MTP) - Plan and prior'!W52,"") ->  | X67: =IF(ISNUMBER('Step 0.1 (MTP) - Plan and prior'!X52),'Step 0.1 (MTP) - Plan and prior'!X52,"") -> 
B68: EC technical information - Path to meet all requirements and safeguard. | D68: =IF(ISNUMBER('Step 0.1 (MTP) - Plan and prior'!D53),'Step 0.1 (MTP) - Plan and prior'!D53,"") ->  | E68: =IF(ISNUMBER('Step 0.1 (MTP) - Plan and prior'!E53),'Step 0.1 (MTP) - Plan and prior'!E53,"") ->  | F68: =IF(ISNUMBER('Step 0.1 (MTP) - Plan and prior'!F53),'Step 0.1 (MTP) - Plan and prior'!F53,"") ->  | G68: =IF(ISNUMBER('Step 0.1 (MTP) - Plan and prior'!G53),'Step 0.1 (MTP) - Plan and prior'!G53,"") ->  | H68: =IF(ISNUMBER('Step 0.1 (MTP) - Plan and prior'!H53),'Step 0.1 (MTP) - Plan and prior'!H53,"") ->  | I68: =IF(ISNUMBER('Step 0.1 (MTP) - Plan and prior'!I53),'Step 0.1 (MTP) - Plan and prior'!I53,"") ->  | J68: =IF(ISNUMBER('Step 0.1 (MTP) - Plan and prior'!J53),'Step 0.1 (MTP) - Plan and prior'!J53,"") ->  | K68: =IF(ISNUMBER('Step 0.1 (MTP) - Plan and prior'!K53),'Step 0.1 (MTP) - Plan and prior'!K53,"") ->  | L68: =IF(ISNUMBER('Step 0.1 (MTP) - Plan and prior'!L53),'Step 0.1 (MTP) - Plan and prior'!L53,"") ->  | M68: =IF(ISNUMBER('Step 0.1 (MTP) - Plan and prior'!M53),'Step 0.1 (MTP) - Plan and prior'!M53,"") ->  | N68: =IF(ISNUMBER('Step 0.1 (MTP) - Plan and prior'!N53),'Step 0.1 (MTP) - Plan and prior'!N53,"") ->  | O68: =IF(ISNUMBER('Step 0.1 (MTP) - Plan and prior'!O53),'Step 0.1 (MTP) - Plan and prior'!O53,"") ->  | P68: =IF(ISNUMBER('Step 0.1 (MTP) - Plan and prior'!P53),'Step 0.1 (MTP) - Plan and prior'!P53,"") ->  | Q68: =IF(ISNUMBER('Step 0.1 (MTP) - Plan and prior'!Q53),'Step 0.1 (MTP) - Plan and prior'!Q53,"") ->  | R68: =IF(ISNUMBER('Step 0.1 (MTP) - Plan and prior'!R53),'Step 0.1 (MTP) - Plan and prior'!R53,"") ->  | S68: =IF(ISNUMBER('Step 0.1 (MTP) - Plan and prior'!S53),'Step 0.1 (MTP) - Plan and prior'!S53,"") ->  | T68: =IF(ISNUMBER('Step 0.1 (MTP) - Plan and prior'!T53),'Step 0.1 (MTP) - Plan and prior'!T53,"") ->  | U68: =IF(ISNUMBER('Step 0.1 (MTP) - Plan and prior'!U53),'Step 0.1 (MTP) - Plan and prior'!U53,"") ->  | V68: =IF(ISNUMBER('Step 0.1 (MTP) - Plan and prior'!V53),'Step 0.1 (MTP) - Plan and prior'!V53,"") ->  | W68: =IF(ISNUMBER('Step 0.1 (MTP) - Plan and prior'!W53),'Step 0.1 (MTP) - Plan and prior'!W53,"") ->  | X68: =IF(ISNUMBER('Step 0.1 (MTP) - Plan and prior'!X53),'Step 0.1 (MTP) - Plan and prior'!X53,"") -> 
B69: ='Step 0.1 (MTP) - Plan and prior'!B54 -> Main budgetary variables (4-year adjustment period) | D69: =IF(ISNUMBER('Step 0.1 (MTP) - Plan and prior'!D54),'Step 0.1 (MTP) - Plan and prior'!D54,"") ->  | E69: =IF(ISNUMBER('Step 0.1 (MTP) - Plan and prior'!E54),'Step 0.1 (MTP) - Plan and prior'!E54,"") ->  | F69: =IF(ISNUMBER('Step 0.1 (MTP) - Plan and prior'!F54),'Step 0.1 (MTP) - Plan and prior'!F54,"") ->  | G69: =IF(ISNUMBER('Step 0.1 (MTP) - Plan and prior'!G54),'Step 0.1 (MTP) - Plan and prior'!G54,"") ->  | H69: =IF(ISNUMBER('Step 0.1 (MTP) - Plan and prior'!H54),'Step 0.1 (MTP) - Plan and prior'!H54,"") ->  | I69: =IF(ISNUMBER('Step 0.1 (MTP) - Plan and prior'!I54),'Step 0.1 (MTP) - Plan and prior'!I54,"") ->  | J69: =IF(ISNUMBER('Step 0.1 (MTP) - Plan and prior'!J54),'Step 0.1 (MTP) - Plan and prior'!J54,"") ->  | K69: =IF(ISNUMBER('Step 0.1 (MTP) - Plan and prior'!K54),'Step 0.1 (MTP) - Plan and prior'!K54,"") ->  | L69: =IF(ISNUMBER('Step 0.1 (MTP) - Plan and prior'!L54),'Step 0.1 (MTP) - Plan and prior'!L54,"") ->  | M69: =IF(ISNUMBER('Step 0.1 (MTP) - Plan and prior'!M54),'Step 0.1 (MTP) - Plan and prior'!M54,"") ->  | N69: =IF(ISNUMBER('Step 0.1 (MTP) - Plan and prior'!N54),'Step 0.1 (MTP) - Plan and prior'!N54,"") ->  | O69: =IF(ISNUMBER('Step 0.1 (MTP) - Plan and prior'!O54),'Step 0.1 (MTP) - Plan and prior'!O54,"") ->  | P69: =IF(ISNUMBER('Step 0.1 (MTP) - Plan and prior'!P54),'Step 0.1 (MTP) - Plan and prior'!P54,"") ->  | Q69: =IF(ISNUMBER('Step 0.1 (MTP) - Plan and prior'!Q54),'Step 0.1 (MTP) - Plan and prior'!Q54,"") ->  | R69: =IF(ISNUMBER('Step 0.1 (MTP) - Plan and prior'!R54),'Step 0.1 (MTP) - Plan and prior'!R54,"") ->  | S69: =IF(ISNUMBER('Step 0.1 (MTP) - Plan and prior'!S54),'Step 0.1 (MTP) - Plan and prior'!S54,"") ->  | T69: =IF(ISNUMBER('Step 0.1 (MTP) - Plan and prior'!T54),'Step 0.1 (MTP) - Plan and prior'!T54,"") ->  | U69: =IF(ISNUMBER('Step 0.1 (MTP) - Plan and prior'!U54),'Step 0.1 (MTP) - Plan and prior'!U54,"") ->  | V69: =IF(ISNUMBER('Step 0.1 (MTP) - Plan and prior'!V54),'Step 0.1 (MTP) - Plan and prior'!V54,"") ->  | W69: =IF(ISNUMBER('Step 0.1 (MTP) - Plan and prior'!W54),'Step 0.1 (MTP) - Plan and prior'!W54,"") ->  | X69: =IF(ISNUMBER('Step 0.1 (MTP) - Plan and prior'!X54),'Step 0.1 (MTP) - Plan and prior'!X54,"") -> 
B70: Net expenditure growth in a plan without extention | D70: =IF(ISNUMBER('Step 0.1 (MTP) - Plan and prior'!D55),'Step 0.1 (MTP) - Plan and prior'!D55,"") -> 8.005513864 | E70: =IF(ISNUMBER('Step 0.1 (MTP) - Plan and prior'!E55),'Step 0.1 (MTP) - Plan and prior'!E55,"") -> 4.918973667 | F70: =IF(ISNUMBER('Step 0.1 (MTP) - Plan and prior'!F55),'Step 0.1 (MTP) - Plan and prior'!F55,"") -> 3.641306197 | G70: =IF(ISNUMBER('Step 0.1 (MTP) - Plan and prior'!G55),'Step 0.1 (MTP) - Plan and prior'!G55,"") -> 2.743645197 | H70: =IF(ISNUMBER('Step 0.1 (MTP) - Plan and prior'!H55),'Step 0.1 (MTP) - Plan and prior'!H55,"") -> 2.461675897 | I70: =IF(ISNUMBER('Step 0.1 (MTP) - Plan and prior'!I55),'Step 0.1 (MTP) - Plan and prior'!I55,"") -> 3.38556926 | J70: =IF(ISNUMBER('Step 0.1 (MTP) - Plan and prior'!J55),'Step 0.1 (MTP) - Plan and prior'!J55,"") -> 3.532897 | K70: =IF(ISNUMBER('Step 0.1 (MTP) - Plan and prior'!K55),'Step 0.1 (MTP) - Plan and prior'!K55,"") -> 3.611776 | L70: =IF(ISNUMBER('Step 0.1 (MTP) - Plan and prior'!L55),'Step 0.1 (MTP) - Plan and prior'!L55,"") -> 3.694236 | M70: =IF(ISNUMBER('Step 0.1 (MTP) - Plan and prior'!M55),'Step 0.1 (MTP) - Plan and prior'!M55,"") -> 3.771945 | N70: =IF(ISNUMBER('Step 0.1 (MTP) - Plan and prior'!N55),'Step 0.1 (MTP) - Plan and prior'!N55,"") -> 3.828627 | O70: =IF(ISNUMBER('Step 0.1 (MTP) - Plan and prior'!O55),'Step 0.1 (MTP) - Plan and prior'!O55,"") -> 3.86795 | P70: =IF(ISNUMBER('Step 0.1 (MTP) - Plan and prior'!P55),'Step 0.1 (MTP) - Plan and prior'!P55,"") -> 3.907274 | Q70: =IF(ISNUMBER('Step 0.1 (MTP) - Plan and prior'!Q55),'Step 0.1 (MTP) - Plan and prior'!Q55,"") -> 3.946597 | R70: =IF(ISNUMBER('Step 0.1 (MTP) - Plan and prior'!R55),'Step 0.1 (MTP) - Plan and prior'!R55,"") -> 3.926303 | S70: =IF(ISNUMBER('Step 0.1 (MTP) - Plan and prior'!S55),'Step 0.1 (MTP) - Plan and prior'!S55,"") -> 3.835398 | T70: =IF(ISNUMBER('Step 0.1 (MTP) - Plan and prior'!T55),'Step 0.1 (MTP) - Plan and prior'!T55,"") ->  | U70: =IF(ISNUMBER('Step 0.1 (MTP) - Plan and prior'!U55),'Step 0.1 (MTP) - Plan and prior'!U55,"") ->  | V70: =IF(ISNUMBER('Step 0.1 (MTP) - Plan and prior'!V55),'Step 0.1 (MTP) - Plan and prior'!V55,"") ->  | W70: =IF(ISNUMBER('Step 0.1 (MTP) - Plan and prior'!W55),'Step 0.1 (MTP) - Plan and prior'!W55,"") ->  | X70: =IF(ISNUMBER('Step 0.1 (MTP) - Plan and prior'!X55),'Step 0.1 (MTP) - Plan and prior'!X55,"") -> 
B71: Net lending/borrowing | D71: =IF(ISNUMBER('Step 0.1 (MTP) - Plan and prior'!D56),'Step 0.1 (MTP) - Plan and prior'!D56,"") -> -2.213565793 | E71: =IF(ISNUMBER('Step 0.1 (MTP) - Plan and prior'!E56),'Step 0.1 (MTP) - Plan and prior'!E56,"") -> -2.806207968 | F71: =IF(ISNUMBER('Step 0.1 (MTP) - Plan and prior'!F56),'Step 0.1 (MTP) - Plan and prior'!F56,"") -> -2.50676199 | G71: =IF(ISNUMBER('Step 0.1 (MTP) - Plan and prior'!G56),'Step 0.1 (MTP) - Plan and prior'!G56,"") -> -2.206873278 | H71: =IF(ISNUMBER('Step 0.1 (MTP) - Plan and prior'!H56),'Step 0.1 (MTP) - Plan and prior'!H56,"") -> -1.863306035 | I71: =IF(ISNUMBER('Step 0.1 (MTP) - Plan and prior'!I56),'Step 0.1 (MTP) - Plan and prior'!I56,"") -> -1.777467573 | J71: =IF(ISNUMBER('Step 0.1 (MTP) - Plan and prior'!J56),'Step 0.1 (MTP) - Plan and prior'!J56,"") -> -1.716704502 | K71: =IF(ISNUMBER('Step 0.1 (MTP) - Plan and prior'!K56),'Step 0.1 (MTP) - Plan and prior'!K56,"") -> -1.655520526 | L71: =IF(ISNUMBER('Step 0.1 (MTP) - Plan and prior'!L56),'Step 0.1 (MTP) - Plan and prior'!L56,"") -> -1.592724271 | M71: =IF(ISNUMBER('Step 0.1 (MTP) - Plan and prior'!M56),'Step 0.1 (MTP) - Plan and prior'!M56,"") -> -1.597956618 | N71: =IF(ISNUMBER('Step 0.1 (MTP) - Plan and prior'!N56),'Step 0.1 (MTP) - Plan and prior'!N56,"") -> -1.58954778 | O71: =IF(ISNUMBER('Step 0.1 (MTP) - Plan and prior'!O56),'Step 0.1 (MTP) - Plan and prior'!O56,"") -> -1.56213431 | P71: =IF(ISNUMBER('Step 0.1 (MTP) - Plan and prior'!P56),'Step 0.1 (MTP) - Plan and prior'!P56,"") -> -1.520780048 | Q71: =IF(ISNUMBER('Step 0.1 (MTP) - Plan and prior'!Q56),'Step 0.1 (MTP) - Plan and prior'!Q56,"") -> -1.455689515 | R71: =IF(ISNUMBER('Step 0.1 (MTP) - Plan and prior'!R56),'Step 0.1 (MTP) - Plan and prior'!R56,"") -> -1.370690372 | S71: =IF(ISNUMBER('Step 0.1 (MTP) - Plan and prior'!S56),'Step 0.1 (MTP) - Plan and prior'!S56,"") -> -1.281514823 | T71: =IF(ISNUMBER('Step 0.1 (MTP) - Plan and prior'!T56),'Step 0.1 (MTP) - Plan and prior'!T56,"") ->  | U71: =IF(ISNUMBER('Step 0.1 (MTP) - Plan and prior'!U56),'Step 0.1 (MTP) - Plan and prior'!U56,"") ->  | V71: =IF(ISNUMBER('Step 0.1 (MTP) - Plan and prior'!V56),'Step 0.1 (MTP) - Plan and prior'!V56,"") ->  | W71: =IF(ISNUMBER('Step 0.1 (MTP) - Plan and prior'!W56),'Step 0.1 (MTP) - Plan and prior'!W56,"") ->  | X71: =IF(ISNUMBER('Step 0.1 (MTP) - Plan and prior'!X56),'Step 0.1 (MTP) - Plan and prior'!X56,"") -> 
B72: Structural balance | D72: =IF(ISNUMBER('Step 0.1 (MTP) - Plan and prior'!D57),'Step 0.1 (MTP) - Plan and prior'!D57,"") -> -1.890396636 | E72: =IF(ISNUMBER('Step 0.1 (MTP) - Plan and prior'!E57),'Step 0.1 (MTP) - Plan and prior'!E57,"") -> -2.39591185 | F72: =IF(ISNUMBER('Step 0.1 (MTP) - Plan and prior'!F57),'Step 0.1 (MTP) - Plan and prior'!F57,"") -> -2.126882669 | G72: =IF(ISNUMBER('Step 0.1 (MTP) - Plan and prior'!G57),'Step 0.1 (MTP) - Plan and prior'!G57,"") -> -1.842717256 | H72: =IF(ISNUMBER('Step 0.1 (MTP) - Plan and prior'!H57),'Step 0.1 (MTP) - Plan and prior'!H57,"") -> -1.509262872 | I72: =IF(ISNUMBER('Step 0.1 (MTP) - Plan and prior'!I57),'Step 0.1 (MTP) - Plan and prior'!I57,"") -> -1.535874274 | J72: =IF(ISNUMBER('Step 0.1 (MTP) - Plan and prior'!J57),'Step 0.1 (MTP) - Plan and prior'!J57,"") -> -1.555642302 | K72: =IF(ISNUMBER('Step 0.1 (MTP) - Plan and prior'!K57),'Step 0.1 (MTP) - Plan and prior'!K57,"") -> -1.574989426 | L72: =IF(ISNUMBER('Step 0.1 (MTP) - Plan and prior'!L57),'Step 0.1 (MTP) - Plan and prior'!L57,"") -> -1.592724271 | M72: =IF(ISNUMBER('Step 0.1 (MTP) - Plan and prior'!M57),'Step 0.1 (MTP) - Plan and prior'!M57,"") -> -1.597955871 | N72: =IF(ISNUMBER('Step 0.1 (MTP) - Plan and prior'!N57),'Step 0.1 (MTP) - Plan and prior'!N57,"") -> -1.589548899 | O72: =IF(ISNUMBER('Step 0.1 (MTP) - Plan and prior'!O57),'Step 0.1 (MTP) - Plan and prior'!O57,"") -> -1.562135802 | P72: =IF(ISNUMBER('Step 0.1 (MTP) - Plan and prior'!P57),'Step 0.1 (MTP) - Plan and prior'!P57,"") -> -1.520779304 | Q72: =IF(ISNUMBER('Step 0.1 (MTP) - Plan and prior'!Q57),'Step 0.1 (MTP) - Plan and prior'!Q57,"") -> -1.455688026 | R72: =IF(ISNUMBER('Step 0.1 (MTP) - Plan and prior'!R57),'Step 0.1 (MTP) - Plan and prior'!R57,"") -> -1.370687765 | S72: =IF(ISNUMBER('Step 0.1 (MTP) - Plan and prior'!S57),'Step 0.1 (MTP) - Plan and prior'!S57,"") -> -1.281512962 | T72: =IF(ISNUMBER('Step 0.1 (MTP) - Plan and prior'!T57),'Step 0.1 (MTP) - Plan and prior'!T57,"") ->  | U72: =IF(ISNUMBER('Step 0.1 (MTP) - Plan and prior'!U57),'Step 0.1 (MTP) - Plan and prior'!U57,"") ->  | V72: =IF(ISNUMBER('Step 0.1 (MTP) - Plan and prior'!V57),'Step 0.1 (MTP) - Plan and prior'!V57,"") ->  | W72: =IF(ISNUMBER('Step 0.1 (MTP) - Plan and prior'!W57),'Step 0.1 (MTP) - Plan and prior'!W57,"") ->  | X72: =IF(ISNUMBER('Step 0.1 (MTP) - Plan and prior'!X57),'Step 0.1 (MTP) - Plan and prior'!X57,"") -> 
B73: Structural primary balance | D73: =IF(ISNUMBER('Step 0.1 (MTP) - Plan and prior'!D58),'Step 0.1 (MTP) - Plan and prior'!D58,"") -> -1.259883 | E73: =IF(ISNUMBER('Step 0.1 (MTP) - Plan and prior'!E58),'Step 0.1 (MTP) - Plan and prior'!E58,"") -> -1.362466 | F73: =IF(ISNUMBER('Step 0.1 (MTP) - Plan and prior'!F58),'Step 0.1 (MTP) - Plan and prior'!F58,"") -> -0.962466 | G73: =IF(ISNUMBER('Step 0.1 (MTP) - Plan and prior'!G58),'Step 0.1 (MTP) - Plan and prior'!G58,"") -> -0.562466 | H73: =IF(ISNUMBER('Step 0.1 (MTP) - Plan and prior'!H58),'Step 0.1 (MTP) - Plan and prior'!H58,"") -> -0.162466 | I73: =IF(ISNUMBER('Step 0.1 (MTP) - Plan and prior'!I58),'Step 0.1 (MTP) - Plan and prior'!I58,"") -> -0.142466 | J73: =IF(ISNUMBER('Step 0.1 (MTP) - Plan and prior'!J58),'Step 0.1 (MTP) - Plan and prior'!J58,"") -> -0.142466 | K73: =IF(ISNUMBER('Step 0.1 (MTP) - Plan and prior'!K58),'Step 0.1 (MTP) - Plan and prior'!K58,"") -> -0.142466 | L73: =IF(ISNUMBER('Step 0.1 (MTP) - Plan and prior'!L58),'Step 0.1 (MTP) - Plan and prior'!L58,"") -> -0.142466 | M73: =IF(ISNUMBER('Step 0.1 (MTP) - Plan and prior'!M58),'Step 0.1 (MTP) - Plan and prior'!M58,"") -> -0.142466 | N73: =IF(ISNUMBER('Step 0.1 (MTP) - Plan and prior'!N58),'Step 0.1 (MTP) - Plan and prior'!N58,"") -> -0.142466 | O73: =IF(ISNUMBER('Step 0.1 (MTP) - Plan and prior'!O58),'Step 0.1 (MTP) - Plan and prior'!O58,"") -> -0.142466 | P73: =IF(ISNUMBER('Step 0.1 (MTP) - Plan and prior'!P58),'Step 0.1 (MTP) - Plan and prior'!P58,"") -> -0.142466 | Q73: =IF(ISNUMBER('Step 0.1 (MTP) - Plan and prior'!Q58),'Step 0.1 (MTP) - Plan and prior'!Q58,"") -> -0.142466 | R73: =IF(ISNUMBER('Step 0.1 (MTP) - Plan and prior'!R58),'Step 0.1 (MTP) - Plan and prior'!R58,"") -> -0.142466 | S73: =IF(ISNUMBER('Step 0.1 (MTP) - Plan and prior'!S58),'Step 0.1 (MTP) - Plan and prior'!S58,"") -> -0.142466 | T73: =IF(ISNUMBER('Step 0.1 (MTP) - Plan and prior'!T58),'Step 0.1 (MTP) - Plan and prior'!T58,"") ->  | U73: =IF(ISNUMBER('Step 0.1 (MTP) - Plan and prior'!U58),'Step 0.1 (MTP) - Plan and prior'!U58,"") ->  | V73: =IF(ISNUMBER('Step 0.1 (MTP) - Plan and prior'!V58),'Step 0.1 (MTP) - Plan and prior'!V58,"") ->  | W73: =IF(ISNUMBER('Step 0.1 (MTP) - Plan and prior'!W58),'Step 0.1 (MTP) - Plan and prior'!W58,"") ->  | X73: =IF(ISNUMBER('Step 0.1 (MTP) - Plan and prior'!X58),'Step 0.1 (MTP) - Plan and prior'!X58,"") -> 
B74: Gross debt | D74: =IF(ISNUMBER('Step 0.1 (MTP) - Plan and prior'!D59),'Step 0.1 (MTP) - Plan and prior'!D59,"") -> 43.57443442 | E74: =IF(ISNUMBER('Step 0.1 (MTP) - Plan and prior'!E59),'Step 0.1 (MTP) - Plan and prior'!E59,"") -> 44.53080203 | F74: =IF(ISNUMBER('Step 0.1 (MTP) - Plan and prior'!F59),'Step 0.1 (MTP) - Plan and prior'!F59,"") -> 46.07468667 | G74: =IF(ISNUMBER('Step 0.1 (MTP) - Plan and prior'!G59),'Step 0.1 (MTP) - Plan and prior'!G59,"") -> 46.60927353 | H74: =IF(ISNUMBER('Step 0.1 (MTP) - Plan and prior'!H59),'Step 0.1 (MTP) - Plan and prior'!H59,"") -> 46.91319686 | I74: =IF(ISNUMBER('Step 0.1 (MTP) - Plan and prior'!I59),'Step 0.1 (MTP) - Plan and prior'!I59,"") -> 46.98753852 | J74: =IF(ISNUMBER('Step 0.1 (MTP) - Plan and prior'!J59),'Step 0.1 (MTP) - Plan and prior'!J59,"") -> 46.9924949 | K74: =IF(ISNUMBER('Step 0.1 (MTP) - Plan and prior'!K59),'Step 0.1 (MTP) - Plan and prior'!K59,"") -> 46.90103991 | L74: =IF(ISNUMBER('Step 0.1 (MTP) - Plan and prior'!L59),'Step 0.1 (MTP) - Plan and prior'!L59,"") -> 46.71365949 | M74: =IF(ISNUMBER('Step 0.1 (MTP) - Plan and prior'!M59),'Step 0.1 (MTP) - Plan and prior'!M59,"") -> 46.60007069 | N74: =IF(ISNUMBER('Step 0.1 (MTP) - Plan and prior'!N59),'Step 0.1 (MTP) - Plan and prior'!N59,"") -> 46.45717307 | O74: =IF(ISNUMBER('Step 0.1 (MTP) - Plan and prior'!O59),'Step 0.1 (MTP) - Plan and prior'!O59,"") -> 46.2746733 | P74: =IF(ISNUMBER('Step 0.1 (MTP) - Plan and prior'!P59),'Step 0.1 (MTP) - Plan and prior'!P59,"") -> 46.04027061 | Q74: =IF(ISNUMBER('Step 0.1 (MTP) - Plan and prior'!Q59),'Step 0.1 (MTP) - Plan and prior'!Q59,"") -> 45.73237899 | R74: =IF(ISNUMBER('Step 0.1 (MTP) - Plan and prior'!R59),'Step 0.1 (MTP) - Plan and prior'!R59,"") -> 45.35996543 | S74: =IF(ISNUMBER('Step 0.1 (MTP) - Plan and prior'!S59),'Step 0.1 (MTP) - Plan and prior'!S59,"") -> 44.95156821 | T74: =IF(ISNUMBER('Step 0.1 (MTP) - Plan and prior'!T59),'Step 0.1 (MTP) - Plan and prior'!T59,"") ->  | U74: =IF(ISNUMBER('Step 0.1 (MTP) - Plan and prior'!U59),'Step 0.1 (MTP) - Plan and prior'!U59,"") ->  | V74: =IF(ISNUMBER('Step 0.1 (MTP) - Plan and prior'!V59),'Step 0.1 (MTP) - Plan and prior'!V59,"") ->  | W74: =IF(ISNUMBER('Step 0.1 (MTP) - Plan and prior'!W59),'Step 0.1 (MTP) - Plan and prior'!W59,"") ->  | X74: =IF(ISNUMBER('Step 0.1 (MTP) - Plan and prior'!X59),'Step 0.1 (MTP) - Plan and prior'!X59,"") -> 
B75: ='Step 0.1 (MTP) - Plan and prior'!B60 -> Debt sustainability assessment (4-year adjustment period) | D75: =IF(ISNUMBER('Step 0.1 (MTP) - Plan and prior'!D60),'Step 0.1 (MTP) - Plan and prior'!D60,"") ->  | E75: =IF(ISNUMBER('Step 0.1 (MTP) - Plan and prior'!E60),'Step 0.1 (MTP) - Plan and prior'!E60,"") ->  | F75: =IF(ISNUMBER('Step 0.1 (MTP) - Plan and prior'!F60),'Step 0.1 (MTP) - Plan and prior'!F60,"") ->  | G75: =IF(ISNUMBER('Step 0.1 (MTP) - Plan and prior'!G60),'Step 0.1 (MTP) - Plan and prior'!G60,"") ->  | H75: =IF(ISNUMBER('Step 0.1 (MTP) - Plan and prior'!H60),'Step 0.1 (MTP) - Plan and prior'!H60,"") ->  | I75: =IF(ISNUMBER('Step 0.1 (MTP) - Plan and prior'!I60),'Step 0.1 (MTP) - Plan and prior'!I60,"") ->  | J75: =IF(ISNUMBER('Step 0.1 (MTP) - Plan and prior'!J60),'Step 0.1 (MTP) - Plan and prior'!J60,"") ->  | K75: =IF(ISNUMBER('Step 0.1 (MTP) - Plan and prior'!K60),'Step 0.1 (MTP) - Plan and prior'!K60,"") ->  | L75: =IF(ISNUMBER('Step 0.1 (MTP) - Plan and prior'!L60),'Step 0.1 (MTP) - Plan and prior'!L60,"") ->  | M75: =IF(ISNUMBER('Step 0.1 (MTP) - Plan and prior'!M60),'Step 0.1 (MTP) - Plan and prior'!M60,"") ->  | N75: =IF(ISNUMBER('Step 0.1 (MTP) - Plan and prior'!N60),'Step 0.1 (MTP) - Plan and prior'!N60,"") ->  | O75: =IF(ISNUMBER('Step 0.1 (MTP) - Plan and prior'!O60),'Step 0.1 (MTP) - Plan and prior'!O60,"") ->  | P75: =IF(ISNUMBER('Step 0.1 (MTP) - Plan and prior'!P60),'Step 0.1 (MTP) - Plan and prior'!P60,"") ->  | Q75: =IF(ISNUMBER('Step 0.1 (MTP) - Plan and prior'!Q60),'Step 0.1 (MTP) - Plan and prior'!Q60,"") ->  | R75: =IF(ISNUMBER('Step 0.1 (MTP) - Plan and prior'!R60),'Step 0.1 (MTP) - Plan and prior'!R60,"") ->  | S75: =IF(ISNUMBER('Step 0.1 (MTP) - Plan and prior'!S60),'Step 0.1 (MTP) - Plan and prior'!S60,"") ->  | T75: =IF(ISNUMBER('Step 0.1 (MTP) - Plan and prior'!T60),'Step 0.1 (MTP) - Plan and prior'!T60,"") ->  | U75: =IF(ISNUMBER('Step 0.1 (MTP) - Plan and prior'!U60),'Step 0.1 (MTP) - Plan and prior'!U60,"") ->  | V75: =IF(ISNUMBER('Step 0.1 (MTP) - Plan and prior'!V60),'Step 0.1 (MTP) - Plan and prior'!V60,"") ->  | W75: =IF(ISNUMBER('Step 0.1 (MTP) - Plan and prior'!W60),'Step 0.1 (MTP) - Plan and prior'!W60,"") ->  | X75: =IF(ISNUMBER('Step 0.1 (MTP) - Plan and prior'!X60),'Step 0.1 (MTP) - Plan and prior'!X60,"") -> 
B76: Gross debt, no policy change scenario | D76: =IF(ISNUMBER('Step 0.1 (MTP) - Plan and prior'!D61),'Step 0.1 (MTP) - Plan and prior'!D61,"") ->  | E76: =IF(ISNUMBER('Step 0.1 (MTP) - Plan and prior'!E61),'Step 0.1 (MTP) - Plan and prior'!E61,"") ->  | F76: =IF(ISNUMBER('Step 0.1 (MTP) - Plan and prior'!F61),'Step 0.1 (MTP) - Plan and prior'!F61,"") ->  | G76: =IF(ISNUMBER('Step 0.1 (MTP) - Plan and prior'!G61),'Step 0.1 (MTP) - Plan and prior'!G61,"") ->  | H76: =IF(ISNUMBER('Step 0.1 (MTP) - Plan and prior'!H61),'Step 0.1 (MTP) - Plan and prior'!H61,"") ->  | I76: =IF(ISNUMBER('Step 0.1 (MTP) - Plan and prior'!I61),'Step 0.1 (MTP) - Plan and prior'!I61,"") ->  | J76: =IF(ISNUMBER('Step 0.1 (MTP) - Plan and prior'!J61),'Step 0.1 (MTP) - Plan and prior'!J61,"") ->  | K76: =IF(ISNUMBER('Step 0.1 (MTP) - Plan and prior'!K61),'Step 0.1 (MTP) - Plan and prior'!K61,"") ->  | L76: =IF(ISNUMBER('Step 0.1 (MTP) - Plan and prior'!L61),'Step 0.1 (MTP) - Plan and prior'!L61,"") ->  | M76: =IF(ISNUMBER('Step 0.1 (MTP) - Plan and prior'!M61),'Step 0.1 (MTP) - Plan and prior'!M61,"") ->  | N76: =IF(ISNUMBER('Step 0.1 (MTP) - Plan and prior'!N61),'Step 0.1 (MTP) - Plan and prior'!N61,"") ->  | O76: =IF(ISNUMBER('Step 0.1 (MTP) - Plan and prior'!O61),'Step 0.1 (MTP) - Plan and prior'!O61,"") ->  | P76: =IF(ISNUMBER('Step 0.1 (MTP) - Plan and prior'!P61),'Step 0.1 (MTP) - Plan and prior'!P61,"") ->  | Q76: =IF(ISNUMBER('Step 0.1 (MTP) - Plan and prior'!Q61),'Step 0.1 (MTP) - Plan and prior'!Q61,"") ->  | R76: =IF(ISNUMBER('Step 0.1 (MTP) - Plan and prior'!R61),'Step 0.1 (MTP) - Plan and prior'!R61,"") ->  | S76: =IF(ISNUMBER('Step 0.1 (MTP) - Plan and prior'!S61),'Step 0.1 (MTP) - Plan and prior'!S61,"") ->  | T76: =IF(ISNUMBER('Step 0.1 (MTP) - Plan and prior'!T61),'Step 0.1 (MTP) - Plan and prior'!T61,"") ->  | U76: =IF(ISNUMBER('Step 0.1 (MTP) - Plan and prior'!U61),'Step 0.1 (MTP) - Plan and prior'!U61,"") ->  | V76: =IF(ISNUMBER('Step 0.1 (MTP) - Plan and prior'!V61),'Step 0.1 (MTP) - Plan and prior'!V61,"") ->  | W76: =IF(ISNUMBER('Step 0.1 (MTP) - Plan and prior'!W61),'Step 0.1 (MTP) - Plan and prior'!W61,"") ->  | X76: =IF(ISNUMBER('Step 0.1 (MTP) - Plan and prior'!X61),'Step 0.1 (MTP) - Plan and prior'!X61,"") -> 
B77: Gross debt, adjustment scenario, no safeguard | D77: =IF(ISNUMBER('Step 0.1 (MTP) - Plan and prior'!D62),'Step 0.1 (MTP) - Plan and prior'!D62,"") ->  | E77: =IF(ISNUMBER('Step 0.1 (MTP) - Plan and prior'!E62),'Step 0.1 (MTP) - Plan and prior'!E62,"") ->  | F77: =IF(ISNUMBER('Step 0.1 (MTP) - Plan and prior'!F62),'Step 0.1 (MTP) - Plan and prior'!F62,"") ->  | G77: =IF(ISNUMBER('Step 0.1 (MTP) - Plan and prior'!G62),'Step 0.1 (MTP) - Plan and prior'!G62,"") ->  | H77: =IF(ISNUMBER('Step 0.1 (MTP) - Plan and prior'!H62),'Step 0.1 (MTP) - Plan and prior'!H62,"") ->  | I77: =IF(ISNUMBER('Step 0.1 (MTP) - Plan and prior'!I62),'Step 0.1 (MTP) - Plan and prior'!I62,"") ->  | J77: =IF(ISNUMBER('Step 0.1 (MTP) - Plan and prior'!J62),'Step 0.1 (MTP) - Plan and prior'!J62,"") ->  | K77: =IF(ISNUMBER('Step 0.1 (MTP) - Plan and prior'!K62),'Step 0.1 (MTP) - Plan and prior'!K62,"") ->  | L77: =IF(ISNUMBER('Step 0.1 (MTP) - Plan and prior'!L62),'Step 0.1 (MTP) - Plan and prior'!L62,"") ->  | M77: =IF(ISNUMBER('Step 0.1 (MTP) - Plan and prior'!M62),'Step 0.1 (MTP) - Plan and prior'!M62,"") ->  | N77: =IF(ISNUMBER('Step 0.1 (MTP) - Plan and prior'!N62),'Step 0.1 (MTP) - Plan and prior'!N62,"") ->  | O77: =IF(ISNUMBER('Step 0.1 (MTP) - Plan and prior'!O62),'Step 0.1 (MTP) - Plan and prior'!O62,"") ->  | P77: =IF(ISNUMBER('Step 0.1 (MTP) - Plan and prior'!P62),'Step 0.1 (MTP) - Plan and prior'!P62,"") ->  | Q77: =IF(ISNUMBER('Step 0.1 (MTP) - Plan and prior'!Q62),'Step 0.1 (MTP) - Plan and prior'!Q62,"") ->  | R77: =IF(ISNUMBER('Step 0.1 (MTP) - Plan and prior'!R62),'Step 0.1 (MTP) - Plan and prior'!R62,"") ->  | S77: =IF(ISNUMBER('Step 0.1 (MTP) - Plan and prior'!S62),'Step 0.1 (MTP) - Plan and prior'!S62,"") ->  | T77: =IF(ISNUMBER('Step 0.1 (MTP) - Plan and prior'!T62),'Step 0.1 (MTP) - Plan and prior'!T62,"") ->  | U77: =IF(ISNUMBER('Step 0.1 (MTP) - Plan and prior'!U62),'Step 0.1 (MTP) - Plan and prior'!U62,"") ->  | V77: =IF(ISNUMBER('Step 0.1 (MTP) - Plan and prior'!V62),'Step 0.1 (MTP) - Plan and prior'!V62,"") ->  | W77: =IF(ISNUMBER('Step 0.1 (MTP) - Plan and prior'!W62),'Step 0.1 (MTP) - Plan and prior'!W62,"") ->  | X77: =IF(ISNUMBER('Step 0.1 (MTP) - Plan and prior'!X62),'Step 0.1 (MTP) - Plan and prior'!X62,"") -> 
B78: Gross debt, financial stress scenario | D78: =IF(ISNUMBER('Step 0.1 (MTP) - Plan and prior'!D63),'Step 0.1 (MTP) - Plan and prior'!D63,"") ->  | E78: =IF(ISNUMBER('Step 0.1 (MTP) - Plan and prior'!E63),'Step 0.1 (MTP) - Plan and prior'!E63,"") ->  | F78: =IF(ISNUMBER('Step 0.1 (MTP) - Plan and prior'!F63),'Step 0.1 (MTP) - Plan and prior'!F63,"") ->  | G78: =IF(ISNUMBER('Step 0.1 (MTP) - Plan and prior'!G63),'Step 0.1 (MTP) - Plan and prior'!G63,"") ->  | H78: =IF(ISNUMBER('Step 0.1 (MTP) - Plan and prior'!H63),'Step 0.1 (MTP) - Plan and prior'!H63,"") ->  | I78: =IF(ISNUMBER('Step 0.1 (MTP) - Plan and prior'!I63),'Step 0.1 (MTP) - Plan and prior'!I63,"") ->  | J78: =IF(ISNUMBER('Step 0.1 (MTP) - Plan and prior'!J63),'Step 0.1 (MTP) - Plan and prior'!J63,"") ->  | K78: =IF(ISNUMBER('Step 0.1 (MTP) - Plan and prior'!K63),'Step 0.1 (MTP) - Plan and prior'!K63,"") ->  | L78: =IF(ISNUMBER('Step 0.1 (MTP) - Plan and prior'!L63),'Step 0.1 (MTP) - Plan and prior'!L63,"") ->  | M78: =IF(ISNUMBER('Step 0.1 (MTP) - Plan and prior'!M63),'Step 0.1 (MTP) - Plan and prior'!M63,"") ->  | N78: =IF(ISNUMBER('Step 0.1 (MTP) - Plan and prior'!N63),'Step 0.1 (MTP) - Plan and prior'!N63,"") ->  | O78: =IF(ISNUMBER('Step 0.1 (MTP) - Plan and prior'!O63),'Step 0.1 (MTP) - Plan and prior'!O63,"") ->  | P78: =IF(ISNUMBER('Step 0.1 (MTP) - Plan and prior'!P63),'Step 0.1 (MTP) - Plan and prior'!P63,"") ->  | Q78: =IF(ISNUMBER('Step 0.1 (MTP) - Plan and prior'!Q63),'Step 0.1 (MTP) - Plan and prior'!Q63,"") ->  | R78: =IF(ISNUMBER('Step 0.1 (MTP) - Plan and prior'!R63),'Step 0.1 (MTP) - Plan and prior'!R63,"") ->  | S78: =IF(ISNUMBER('Step 0.1 (MTP) - Plan and prior'!S63),'Step 0.1 (MTP) - Plan and prior'!S63,"") ->  | T78: =IF(ISNUMBER('Step 0.1 (MTP) - Plan and prior'!T63),'Step 0.1 (MTP) - Plan and prior'!T63,"") ->  | U78: =IF(ISNUMBER('Step 0.1 (MTP) - Plan and prior'!U63),'Step 0.1 (MTP) - Plan and prior'!U63,"") ->  | V78: =IF(ISNUMBER('Step 0.1 (MTP) - Plan and prior'!V63),'Step 0.1 (MTP) - Plan and prior'!V63,"") ->  | W78: =IF(ISNUMBER('Step 0.1 (MTP) - Plan and prior'!W63),'Step 0.1 (MTP) - Plan and prior'!W63,"") ->  | X78: =IF(ISNUMBER('Step 0.1 (MTP) - Plan and prior'!X63),'Step 0.1 (MTP) - Plan and prior'!X63,"") -> 
B79: Gross debt, lower structural primary balance scenario | D79: =IF(ISNUMBER('Step 0.1 (MTP) - Plan and prior'!D64),'Step 0.1 (MTP) - Plan and prior'!D64,"") ->  | E79: =IF(ISNUMBER('Step 0.1 (MTP) - Plan and prior'!E64),'Step 0.1 (MTP) - Plan and prior'!E64,"") ->  | F79: =IF(ISNUMBER('Step 0.1 (MTP) - Plan and prior'!F64),'Step 0.1 (MTP) - Plan and prior'!F64,"") ->  | G79: =IF(ISNUMBER('Step 0.1 (MTP) - Plan and prior'!G64),'Step 0.1 (MTP) - Plan and prior'!G64,"") ->  | H79: =IF(ISNUMBER('Step 0.1 (MTP) - Plan and prior'!H64),'Step 0.1 (MTP) - Plan and prior'!H64,"") ->  | I79: =IF(ISNUMBER('Step 0.1 (MTP) - Plan and prior'!I64),'Step 0.1 (MTP) - Plan and prior'!I64,"") ->  | J79: =IF(ISNUMBER('Step 0.1 (MTP) - Plan and prior'!J64),'Step 0.1 (MTP) - Plan and prior'!J64,"") ->  | K79: =IF(ISNUMBER('Step 0.1 (MTP) - Plan and prior'!K64),'Step 0.1 (MTP) - Plan and prior'!K64,"") ->  | L79: =IF(ISNUMBER('Step 0.1 (MTP) - Plan and prior'!L64),'Step 0.1 (MTP) - Plan and prior'!L64,"") ->  | M79: =IF(ISNUMBER('Step 0.1 (MTP) - Plan and prior'!M64),'Step 0.1 (MTP) - Plan and prior'!M64,"") ->  | N79: =IF(ISNUMBER('Step 0.1 (MTP) - Plan and prior'!N64),'Step 0.1 (MTP) - Plan and prior'!N64,"") ->  | O79: =IF(ISNUMBER('Step 0.1 (MTP) - Plan and prior'!O64),'Step 0.1 (MTP) - Plan and prior'!O64,"") ->  | P79: =IF(ISNUMBER('Step 0.1 (MTP) - Plan and prior'!P64),'Step 0.1 (MTP) - Plan and prior'!P64,"") ->  | Q79: =IF(ISNUMBER('Step 0.1 (MTP) - Plan and prior'!Q64),'Step 0.1 (MTP) - Plan and prior'!Q64,"") ->  | R79: =IF(ISNUMBER('Step 0.1 (MTP) - Plan and prior'!R64),'Step 0.1 (MTP) - Plan and prior'!R64,"") ->  | S79: =IF(ISNUMBER('Step 0.1 (MTP) - Plan and prior'!S64),'Step 0.1 (MTP) - Plan and prior'!S64,"") ->  | T79: =IF(ISNUMBER('Step 0.1 (MTP) - Plan and prior'!T64),'Step 0.1 (MTP) - Plan and prior'!T64,"") ->  | U79: =IF(ISNUMBER('Step 0.1 (MTP) - Plan and prior'!U64),'Step 0.1 (MTP) - Plan and prior'!U64,"") ->  | V79: =IF(ISNUMBER('Step 0.1 (MTP) - Plan and prior'!V64),'Step 0.1 (MTP) - Plan and prior'!V64,"") ->  | W79: =IF(ISNUMBER('Step 0.1 (MTP) - Plan and prior'!W64),'Step 0.1 (MTP) - Plan and prior'!W64,"") ->  | X79: =IF(ISNUMBER('Step 0.1 (MTP) - Plan and prior'!X64),'Step 0.1 (MTP) - Plan and prior'!X64,"") -> 
B80: Gross debt, adverse r-g scenario | D80: =IF(ISNUMBER('Step 0.1 (MTP) - Plan and prior'!D65),'Step 0.1 (MTP) - Plan and prior'!D65,"") ->  | E80: =IF(ISNUMBER('Step 0.1 (MTP) - Plan and prior'!E65),'Step 0.1 (MTP) - Plan and prior'!E65,"") ->  | F80: =IF(ISNUMBER('Step 0.1 (MTP) - Plan and prior'!F65),'Step 0.1 (MTP) - Plan and prior'!F65,"") ->  | G80: =IF(ISNUMBER('Step 0.1 (MTP) - Plan and prior'!G65),'Step 0.1 (MTP) - Plan and prior'!G65,"") ->  | H80: =IF(ISNUMBER('Step 0.1 (MTP) - Plan and prior'!H65),'Step 0.1 (MTP) - Plan and prior'!H65,"") ->  | I80: =IF(ISNUMBER('Step 0.1 (MTP) - Plan and prior'!I65),'Step 0.1 (MTP) - Plan and prior'!I65,"") ->  | J80: =IF(ISNUMBER('Step 0.1 (MTP) - Plan and prior'!J65),'Step 0.1 (MTP) - Plan and prior'!J65,"") ->  | K80: =IF(ISNUMBER('Step 0.1 (MTP) - Plan and prior'!K65),'Step 0.1 (MTP) - Plan and prior'!K65,"") ->  | L80: =IF(ISNUMBER('Step 0.1 (MTP) - Plan and prior'!L65),'Step 0.1 (MTP) - Plan and prior'!L65,"") ->  | M80: =IF(ISNUMBER('Step 0.1 (MTP) - Plan and prior'!M65),'Step 0.1 (MTP) - Plan and prior'!M65,"") ->  | N80: =IF(ISNUMBER('Step 0.1 (MTP) - Plan and prior'!N65),'Step 0.1 (MTP) - Plan and prior'!N65,"") ->  | O80: =IF(ISNUMBER('Step 0.1 (MTP) - Plan and prior'!O65),'Step 0.1 (MTP) - Plan and prior'!O65,"") ->  | P80: =IF(ISNUMBER('Step 0.1 (MTP) - Plan and prior'!P65),'Step 0.1 (MTP) - Plan and prior'!P65,"") ->  | Q80: =IF(ISNUMBER('Step 0.1 (MTP) - Plan and prior'!Q65),'Step 0.1 (MTP) - Plan and prior'!Q65,"") ->  | R80: =IF(ISNUMBER('Step 0.1 (MTP) - Plan and prior'!R65),'Step 0.1 (MTP) - Plan and prior'!R65,"") ->  | S80: =IF(ISNUMBER('Step 0.1 (MTP) - Plan and prior'!S65),'Step 0.1 (MTP) - Plan and prior'!S65,"") ->  | T80: =IF(ISNUMBER('Step 0.1 (MTP) - Plan and prior'!T65),'Step 0.1 (MTP) - Plan and prior'!T65,"") ->  | U80: =IF(ISNUMBER('Step 0.1 (MTP) - Plan and prior'!U65),'Step 0.1 (MTP) - Plan and prior'!U65,"") ->  | V80: =IF(ISNUMBER('Step 0.1 (MTP) - Plan and prior'!V65),'Step 0.1 (MTP) - Plan and prior'!V65,"") ->  | W80: =IF(ISNUMBER('Step 0.1 (MTP) - Plan and prior'!W65),'Step 0.1 (MTP) - Plan and prior'!W65,"") ->  | X80: =IF(ISNUMBER('Step 0.1 (MTP) - Plan and prior'!X65),'Step 0.1 (MTP) - Plan and prior'!X65,"") -> 
B81: ='Step 0.1 (MTP) - Plan and prior'!B66 -> Stochastic debt projections, 2029-2033 | D81: =IF(ISNUMBER('Step 0.1 (MTP) - Plan and prior'!D66),'Step 0.1 (MTP) - Plan and prior'!D66,"") ->  | E81: =IF(ISNUMBER('Step 0.1 (MTP) - Plan and prior'!E66),'Step 0.1 (MTP) - Plan and prior'!E66,"") ->  | F81: =IF(ISNUMBER('Step 0.1 (MTP) - Plan and prior'!F66),'Step 0.1 (MTP) - Plan and prior'!F66,"") ->  | G81: =IF(ISNUMBER('Step 0.1 (MTP) - Plan and prior'!G66),'Step 0.1 (MTP) - Plan and prior'!G66,"") ->  | H81: =IF(ISNUMBER('Step 0.1 (MTP) - Plan and prior'!H66),'Step 0.1 (MTP) - Plan and prior'!H66,"") ->  | I81: =IF(ISNUMBER('Step 0.1 (MTP) - Plan and prior'!I66),'Step 0.1 (MTP) - Plan and prior'!I66,"") ->  | J81: =IF(ISNUMBER('Step 0.1 (MTP) - Plan and prior'!J66),'Step 0.1 (MTP) - Plan and prior'!J66,"") ->  | K81: =IF(ISNUMBER('Step 0.1 (MTP) - Plan and prior'!K66),'Step 0.1 (MTP) - Plan and prior'!K66,"") ->  | L81: =IF(ISNUMBER('Step 0.1 (MTP) - Plan and prior'!L66),'Step 0.1 (MTP) - Plan and prior'!L66,"") ->  | M81: =IF(ISNUMBER('Step 0.1 (MTP) - Plan and prior'!M66),'Step 0.1 (MTP) - Plan and prior'!M66,"") ->  | N81: =IF(ISNUMBER('Step 0.1 (MTP) - Plan and prior'!N66),'Step 0.1 (MTP) - Plan and prior'!N66,"") ->  | O81: =IF(ISNUMBER('Step 0.1 (MTP) - Plan and prior'!O66),'Step 0.1 (MTP) - Plan and prior'!O66,"") ->  | P81: =IF(ISNUMBER('Step 0.1 (MTP) - Plan and prior'!P66),'Step 0.1 (MTP) - Plan and prior'!P66,"") ->  | Q81: =IF(ISNUMBER('Step 0.1 (MTP) - Plan and prior'!Q66),'Step 0.1 (MTP) - Plan and prior'!Q66,"") ->  | R81: =IF(ISNUMBER('Step 0.1 (MTP) - Plan and prior'!R66),'Step 0.1 (MTP) - Plan and prior'!R66,"") ->  | S81: =IF(ISNUMBER('Step 0.1 (MTP) - Plan and prior'!S66),'Step 0.1 (MTP) - Plan and prior'!S66,"") ->  | T81: =IF(ISNUMBER('Step 0.1 (MTP) - Plan and prior'!T66),'Step 0.1 (MTP) - Plan and prior'!T66,"") ->  | U81: =IF(ISNUMBER('Step 0.1 (MTP) - Plan and prior'!U66),'Step 0.1 (MTP) - Plan and prior'!U66,"") ->  | V81: =IF(ISNUMBER('Step 0.1 (MTP) - Plan and prior'!V66),'Step 0.1 (MTP) - Plan and prior'!V66,"") ->  | W81: =IF(ISNUMBER('Step 0.1 (MTP) - Plan and prior'!W66),'Step 0.1 (MTP) - Plan and prior'!W66,"") ->  | X81: =IF(ISNUMBER('Step 0.1 (MTP) - Plan and prior'!X66),'Step 0.1 (MTP) - Plan and prior'!X66,"") -> 
B82: p10 | D82: =IF(ISNUMBER('Step 0.1 (MTP) - Plan and prior'!D67),'Step 0.1 (MTP) - Plan and prior'!D67,"") ->  | E82: =IF(ISNUMBER('Step 0.1 (MTP) - Plan and prior'!E67),'Step 0.1 (MTP) - Plan and prior'!E67,"") ->  | F82: =IF(ISNUMBER('Step 0.1 (MTP) - Plan and prior'!F67),'Step 0.1 (MTP) - Plan and prior'!F67,"") ->  | G82: =IF(ISNUMBER('Step 0.1 (MTP) - Plan and prior'!G67),'Step 0.1 (MTP) - Plan and prior'!G67,"") ->  | H82: =IF(ISNUMBER('Step 0.1 (MTP) - Plan and prior'!H67),'Step 0.1 (MTP) - Plan and prior'!H67,"") ->  | I82: =IF(ISNUMBER('Step 0.1 (MTP) - Plan and prior'!I67),'Step 0.1 (MTP) - Plan and prior'!I67,"") ->  | J82: =IF(ISNUMBER('Step 0.1 (MTP) - Plan and prior'!J67),'Step 0.1 (MTP) - Plan and prior'!J67,"") ->  | K82: =IF(ISNUMBER('Step 0.1 (MTP) - Plan and prior'!K67),'Step 0.1 (MTP) - Plan and prior'!K67,"") ->  | L82: =IF(ISNUMBER('Step 0.1 (MTP) - Plan and prior'!L67),'Step 0.1 (MTP) - Plan and prior'!L67,"") ->  | M82: =IF(ISNUMBER('Step 0.1 (MTP) - Plan and prior'!M67),'Step 0.1 (MTP) - Plan and prior'!M67,"") ->  | N82: =IF(ISNUMBER('Step 0.1 (MTP) - Plan and prior'!N67),'Step 0.1 (MTP) - Plan and prior'!N67,"") ->  | O82: =IF(ISNUMBER('Step 0.1 (MTP) - Plan and prior'!O67),'Step 0.1 (MTP) - Plan and prior'!O67,"") ->  | P82: =IF(ISNUMBER('Step 0.1 (MTP) - Plan and prior'!P67),'Step 0.1 (MTP) - Plan and prior'!P67,"") ->  | Q82: =IF(ISNUMBER('Step 0.1 (MTP) - Plan and prior'!Q67),'Step 0.1 (MTP) - Plan and prior'!Q67,"") ->  | R82: =IF(ISNUMBER('Step 0.1 (MTP) - Plan and prior'!R67),'Step 0.1 (MTP) - Plan and prior'!R67,"") ->  | S82: =IF(ISNUMBER('Step 0.1 (MTP) - Plan and prior'!S67),'Step 0.1 (MTP) - Plan and prior'!S67,"") ->  | T82: =IF(ISNUMBER('Step 0.1 (MTP) - Plan and prior'!T67),'Step 0.1 (MTP) - Plan and prior'!T67,"") ->  | U82: =IF(ISNUMBER('Step 0.1 (MTP) - Plan and prior'!U67),'Step 0.1 (MTP) - Plan and prior'!U67,"") ->  | V82: =IF(ISNUMBER('Step 0.1 (MTP) - Plan and prior'!V67),'Step 0.1 (MTP) - Plan and prior'!V67,"") ->  | W82: =IF(ISNUMBER('Step 0.1 (MTP) - Plan and prior'!W67),'Step 0.1 (MTP) - Plan and prior'!W67,"") ->  | X82: =IF(ISNUMBER('Step 0.1 (MTP) - Plan and prior'!X67),'Step 0.1 (MTP) - Plan and prior'!X67,"") -> 
B83: p30_p10 | D83: =IF(ISNUMBER('Step 0.1 (MTP) - Plan and prior'!D68),'Step 0.1 (MTP) - Plan and prior'!D68,"") ->  | E83: =IF(ISNUMBER('Step 0.1 (MTP) - Plan and prior'!E68),'Step 0.1 (MTP) - Plan and prior'!E68,"") ->  | F83: =IF(ISNUMBER('Step 0.1 (MTP) - Plan and prior'!F68),'Step 0.1 (MTP) - Plan and prior'!F68,"") ->  | G83: =IF(ISNUMBER('Step 0.1 (MTP) - Plan and prior'!G68),'Step 0.1 (MTP) - Plan and prior'!G68,"") ->  | H83: =IF(ISNUMBER('Step 0.1 (MTP) - Plan and prior'!H68),'Step 0.1 (MTP) - Plan and prior'!H68,"") ->  | I83: =IF(ISNUMBER('Step 0.1 (MTP) - Plan and prior'!I68),'Step 0.1 (MTP) - Plan and prior'!I68,"") ->  | J83: =IF(ISNUMBER('Step 0.1 (MTP) - Plan and prior'!J68),'Step 0.1 (MTP) - Plan and prior'!J68,"") ->  | K83: =IF(ISNUMBER('Step 0.1 (MTP) - Plan and prior'!K68),'Step 0.1 (MTP) - Plan and prior'!K68,"") ->  | L83: =IF(ISNUMBER('Step 0.1 (MTP) - Plan and prior'!L68),'Step 0.1 (MTP) - Plan and prior'!L68,"") ->  | M83: =IF(ISNUMBER('Step 0.1 (MTP) - Plan and prior'!M68),'Step 0.1 (MTP) - Plan and prior'!M68,"") ->  | N83: =IF(ISNUMBER('Step 0.1 (MTP) - Plan and prior'!N68),'Step 0.1 (MTP) - Plan and prior'!N68,"") ->  | O83: =IF(ISNUMBER('Step 0.1 (MTP) - Plan and prior'!O68),'Step 0.1 (MTP) - Plan and prior'!O68,"") ->  | P83: =IF(ISNUMBER('Step 0.1 (MTP) - Plan and prior'!P68),'Step 0.1 (MTP) - Plan and prior'!P68,"") ->  | Q83: =IF(ISNUMBER('Step 0.1 (MTP) - Plan and prior'!Q68),'Step 0.1 (MTP) - Plan and prior'!Q68,"") ->  | R83: =IF(ISNUMBER('Step 0.1 (MTP) - Plan and prior'!R68),'Step 0.1 (MTP) - Plan and prior'!R68,"") ->  | S83: =IF(ISNUMBER('Step 0.1 (MTP) - Plan and prior'!S68),'Step 0.1 (MTP) - Plan and prior'!S68,"") ->  | T83: =IF(ISNUMBER('Step 0.1 (MTP) - Plan and prior'!T68),'Step 0.1 (MTP) - Plan and prior'!T68,"") ->  | U83: =IF(ISNUMBER('Step 0.1 (MTP) - Plan and prior'!U68),'Step 0.1 (MTP) - Plan and prior'!U68,"") ->  | V83: =IF(ISNUMBER('Step 0.1 (MTP) - Plan and prior'!V68),'Step 0.1 (MTP) - Plan and prior'!V68,"") ->  | W83: =IF(ISNUMBER('Step 0.1 (MTP) - Plan and prior'!W68),'Step 0.1 (MTP) - Plan and prior'!W68,"") ->  | X83: =IF(ISNUMBER('Step 0.1 (MTP) - Plan and prior'!X68),'Step 0.1 (MTP) - Plan and prior'!X68,"") -> 
B84: p50_p30 | D84: =IF(ISNUMBER('Step 0.1 (MTP) - Plan and prior'!D69),'Step 0.1 (MTP) - Plan and prior'!D69,"") ->  | E84: =IF(ISNUMBER('Step 0.1 (MTP) - Plan and prior'!E69),'Step 0.1 (MTP) - Plan and prior'!E69,"") ->  | F84: =IF(ISNUMBER('Step 0.1 (MTP) - Plan and prior'!F69),'Step 0.1 (MTP) - Plan and prior'!F69,"") ->  | G84: =IF(ISNUMBER('Step 0.1 (MTP) - Plan and prior'!G69),'Step 0.1 (MTP) - Plan and prior'!G69,"") ->  | H84: =IF(ISNUMBER('Step 0.1 (MTP) - Plan and prior'!H69),'Step 0.1 (MTP) - Plan and prior'!H69,"") ->  | I84: =IF(ISNUMBER('Step 0.1 (MTP) - Plan and prior'!I69),'Step 0.1 (MTP) - Plan and prior'!I69,"") ->  | J84: =IF(ISNUMBER('Step 0.1 (MTP) - Plan and prior'!J69),'Step 0.1 (MTP) - Plan and prior'!J69,"") ->  | K84: =IF(ISNUMBER('Step 0.1 (MTP) - Plan and prior'!K69),'Step 0.1 (MTP) - Plan and prior'!K69,"") ->  | L84: =IF(ISNUMBER('Step 0.1 (MTP) - Plan and prior'!L69),'Step 0.1 (MTP) - Plan and prior'!L69,"") ->  | M84: =IF(ISNUMBER('Step 0.1 (MTP) - Plan and prior'!M69),'Step 0.1 (MTP) - Plan and prior'!M69,"") ->  | N84: =IF(ISNUMBER('Step 0.1 (MTP) - Plan and prior'!N69),'Step 0.1 (MTP) - Plan and prior'!N69,"") ->  | O84: =IF(ISNUMBER('Step 0.1 (MTP) - Plan and prior'!O69),'Step 0.1 (MTP) - Plan and prior'!O69,"") ->  | P84: =IF(ISNUMBER('Step 0.1 (MTP) - Plan and prior'!P69),'Step 0.1 (MTP) - Plan and prior'!P69,"") ->  | Q84: =IF(ISNUMBER('Step 0.1 (MTP) - Plan and prior'!Q69),'Step 0.1 (MTP) - Plan and prior'!Q69,"") ->  | R84: =IF(ISNUMBER('Step 0.1 (MTP) - Plan and prior'!R69),'Step 0.1 (MTP) - Plan and prior'!R69,"") ->  | S84: =IF(ISNUMBER('Step 0.1 (MTP) - Plan and prior'!S69),'Step 0.1 (MTP) - Plan and prior'!S69,"") ->  | T84: =IF(ISNUMBER('Step 0.1 (MTP) - Plan and prior'!T69),'Step 0.1 (MTP) - Plan and prior'!T69,"") ->  | U84: =IF(ISNUMBER('Step 0.1 (MTP) - Plan and prior'!U69),'Step 0.1 (MTP) - Plan and prior'!U69,"") ->  | V84: =IF(ISNUMBER('Step 0.1 (MTP) - Plan and prior'!V69),'Step 0.1 (MTP) - Plan and prior'!V69,"") ->  | W84: =IF(ISNUMBER('Step 0.1 (MTP) - Plan and prior'!W69),'Step 0.1 (MTP) - Plan and prior'!W69,"") ->  | X84: =IF(ISNUMBER('Step 0.1 (MTP) - Plan and prior'!X69),'Step 0.1 (MTP) - Plan and prior'!X69,"") -> 
B85: p70_p50 | D85: =IF(ISNUMBER('Step 0.1 (MTP) - Plan and prior'!D70),'Step 0.1 (MTP) - Plan and prior'!D70,"") ->  | E85: =IF(ISNUMBER('Step 0.1 (MTP) - Plan and prior'!E70),'Step 0.1 (MTP) - Plan and prior'!E70,"") ->  | F85: =IF(ISNUMBER('Step 0.1 (MTP) - Plan and prior'!F70),'Step 0.1 (MTP) - Plan and prior'!F70,"") ->  | G85: =IF(ISNUMBER('Step 0.1 (MTP) - Plan and prior'!G70),'Step 0.1 (MTP) - Plan and prior'!G70,"") ->  | H85: =IF(ISNUMBER('Step 0.1 (MTP) - Plan and prior'!H70),'Step 0.1 (MTP) - Plan and prior'!H70,"") ->  | I85: =IF(ISNUMBER('Step 0.1 (MTP) - Plan and prior'!I70),'Step 0.1 (MTP) - Plan and prior'!I70,"") ->  | J85: =IF(ISNUMBER('Step 0.1 (MTP) - Plan and prior'!J70),'Step 0.1 (MTP) - Plan and prior'!J70,"") ->  | K85: =IF(ISNUMBER('Step 0.1 (MTP) - Plan and prior'!K70),'Step 0.1 (MTP) - Plan and prior'!K70,"") ->  | L85: =IF(ISNUMBER('Step 0.1 (MTP) - Plan and prior'!L70),'Step 0.1 (MTP) - Plan and prior'!L70,"") ->  | M85: =IF(ISNUMBER('Step 0.1 (MTP) - Plan and prior'!M70),'Step 0.1 (MTP) - Plan and prior'!M70,"") ->  | N85: =IF(ISNUMBER('Step 0.1 (MTP) - Plan and prior'!N70),'Step 0.1 (MTP) - Plan and prior'!N70,"") ->  | O85: =IF(ISNUMBER('Step 0.1 (MTP) - Plan and prior'!O70),'Step 0.1 (MTP) - Plan and prior'!O70,"") ->  | P85: =IF(ISNUMBER('Step 0.1 (MTP) - Plan and prior'!P70),'Step 0.1 (MTP) - Plan and prior'!P70,"") ->  | Q85: =IF(ISNUMBER('Step 0.1 (MTP) - Plan and prior'!Q70),'Step 0.1 (MTP) - Plan and prior'!Q70,"") ->  | R85: =IF(ISNUMBER('Step 0.1 (MTP) - Plan and prior'!R70),'Step 0.1 (MTP) - Plan and prior'!R70,"") ->  | S85: =IF(ISNUMBER('Step 0.1 (MTP) - Plan and prior'!S70),'Step 0.1 (MTP) - Plan and prior'!S70,"") ->  | T85: =IF(ISNUMBER('Step 0.1 (MTP) - Plan and prior'!T70),'Step 0.1 (MTP) - Plan and prior'!T70,"") ->  | U85: =IF(ISNUMBER('Step 0.1 (MTP) - Plan and prior'!U70),'Step 0.1 (MTP) - Plan and prior'!U70,"") ->  | V85: =IF(ISNUMBER('Step 0.1 (MTP) - Plan and prior'!V70),'Step 0.1 (MTP) - Plan and prior'!V70,"") ->  | W85: =IF(ISNUMBER('Step 0.1 (MTP) - Plan and prior'!W70),'Step 0.1 (MTP) - Plan and prior'!W70,"") ->  | X85: =IF(ISNUMBER('Step 0.1 (MTP) - Plan and prior'!X70),'Step 0.1 (MTP) - Plan and prior'!X70,"") -> 
B86: p90_p70 | D86: =IF(ISNUMBER('Step 0.1 (MTP) - Plan and prior'!D71),'Step 0.1 (MTP) - Plan and prior'!D71,"") ->  | E86: =IF(ISNUMBER('Step 0.1 (MTP) - Plan and prior'!E71),'Step 0.1 (MTP) - Plan and prior'!E71,"") ->  | F86: =IF(ISNUMBER('Step 0.1 (MTP) - Plan and prior'!F71),'Step 0.1 (MTP) - Plan and prior'!F71,"") ->  | G86: =IF(ISNUMBER('Step 0.1 (MTP) - Plan and prior'!G71),'Step 0.1 (MTP) - Plan and prior'!G71,"") ->  | H86: =IF(ISNUMBER('Step 0.1 (MTP) - Plan and prior'!H71),'Step 0.1 (MTP) - Plan and prior'!H71,"") ->  | I86: =IF(ISNUMBER('Step 0.1 (MTP) - Plan and prior'!I71),'Step 0.1 (MTP) - Plan and prior'!I71,"") ->  | J86: =IF(ISNUMBER('Step 0.1 (MTP) - Plan and prior'!J71),'Step 0.1 (MTP) - Plan and prior'!J71,"") ->  | K86: =IF(ISNUMBER('Step 0.1 (MTP) - Plan and prior'!K71),'Step 0.1 (MTP) - Plan and prior'!K71,"") ->  | L86: =IF(ISNUMBER('Step 0.1 (MTP) - Plan and prior'!L71),'Step 0.1 (MTP) - Plan and prior'!L71,"") ->  | M86: =IF(ISNUMBER('Step 0.1 (MTP) - Plan and prior'!M71),'Step 0.1 (MTP) - Plan and prior'!M71,"") ->  | N86: =IF(ISNUMBER('Step 0.1 (MTP) - Plan and prior'!N71),'Step 0.1 (MTP) - Plan and prior'!N71,"") ->  | O86: =IF(ISNUMBER('Step 0.1 (MTP) - Plan and prior'!O71),'Step 0.1 (MTP) - Plan and prior'!O71,"") ->  | P86: =IF(ISNUMBER('Step 0.1 (MTP) - Plan and prior'!P71),'Step 0.1 (MTP) - Plan and prior'!P71,"") ->  | Q86: =IF(ISNUMBER('Step 0.1 (MTP) - Plan and prior'!Q71),'Step 0.1 (MTP) - Plan and prior'!Q71,"") ->  | R86: =IF(ISNUMBER('Step 0.1 (MTP) - Plan and prior'!R71),'Step 0.1 (MTP) - Plan and prior'!R71,"") ->  | S86: =IF(ISNUMBER('Step 0.1 (MTP) - Plan and prior'!S71),'Step 0.1 (MTP) - Plan and prior'!S71,"") ->  | T86: =IF(ISNUMBER('Step 0.1 (MTP) - Plan and prior'!T71),'Step 0.1 (MTP) - Plan and prior'!T71,"") ->  | U86: =IF(ISNUMBER('Step 0.1 (MTP) - Plan and prior'!U71),'Step 0.1 (MTP) - Plan and prior'!U71,"") ->  | V86: =IF(ISNUMBER('Step 0.1 (MTP) - Plan and prior'!V71),'Step 0.1 (MTP) - Plan and prior'!V71,"") ->  | W86: =IF(ISNUMBER('Step 0.1 (MTP) - Plan and prior'!W71),'Step 0.1 (MTP) - Plan and prior'!W71,"") ->  | X86: =IF(ISNUMBER('Step 0.1 (MTP) - Plan and prior'!X71),'Step 0.1 (MTP) - Plan and prior'!X71,"") -> 
B87: p10 | D87: =IF(ISNUMBER('Step 0.1 (MTP) - Plan and prior'!D72),'Step 0.1 (MTP) - Plan and prior'!D72,"") ->  | E87: =IF(ISNUMBER('Step 0.1 (MTP) - Plan and prior'!E72),'Step 0.1 (MTP) - Plan and prior'!E72,"") ->  | F87: =IF(ISNUMBER('Step 0.1 (MTP) - Plan and prior'!F72),'Step 0.1 (MTP) - Plan and prior'!F72,"") ->  | G87: =IF(ISNUMBER('Step 0.1 (MTP) - Plan and prior'!G72),'Step 0.1 (MTP) - Plan and prior'!G72,"") ->  | H87: =IF(ISNUMBER('Step 0.1 (MTP) - Plan and prior'!H72),'Step 0.1 (MTP) - Plan and prior'!H72,"") ->  | I87: =IF(ISNUMBER('Step 0.1 (MTP) - Plan and prior'!I72),'Step 0.1 (MTP) - Plan and prior'!I72,"") ->  | J87: =IF(ISNUMBER('Step 0.1 (MTP) - Plan and prior'!J72),'Step 0.1 (MTP) - Plan and prior'!J72,"") ->  | K87: =IF(ISNUMBER('Step 0.1 (MTP) - Plan and prior'!K72),'Step 0.1 (MTP) - Plan and prior'!K72,"") ->  | L87: =IF(ISNUMBER('Step 0.1 (MTP) - Plan and prior'!L72),'Step 0.1 (MTP) - Plan and prior'!L72,"") ->  | M87: =IF(ISNUMBER('Step 0.1 (MTP) - Plan and prior'!M72),'Step 0.1 (MTP) - Plan and prior'!M72,"") ->  | N87: =IF(ISNUMBER('Step 0.1 (MTP) - Plan and prior'!N72),'Step 0.1 (MTP) - Plan and prior'!N72,"") ->  | O87: =IF(ISNUMBER('Step 0.1 (MTP) - Plan and prior'!O72),'Step 0.1 (MTP) - Plan and prior'!O72,"") ->  | P87: =IF(ISNUMBER('Step 0.1 (MTP) - Plan and prior'!P72),'Step 0.1 (MTP) - Plan and prior'!P72,"") ->  | Q87: =IF(ISNUMBER('Step 0.1 (MTP) - Plan and prior'!Q72),'Step 0.1 (MTP) - Plan and prior'!Q72,"") ->  | R87: =IF(ISNUMBER('Step 0.1 (MTP) - Plan and prior'!R72),'Step 0.1 (MTP) - Plan and prior'!R72,"") ->  | S87: =IF(ISNUMBER('Step 0.1 (MTP) - Plan and prior'!S72),'Step 0.1 (MTP) - Plan and prior'!S72,"") ->  | T87: =IF(ISNUMBER('Step 0.1 (MTP) - Plan and prior'!T72),'Step 0.1 (MTP) - Plan and prior'!T72,"") ->  | U87: =IF(ISNUMBER('Step 0.1 (MTP) - Plan and prior'!U72),'Step 0.1 (MTP) - Plan and prior'!U72,"") ->  | V87: =IF(ISNUMBER('Step 0.1 (MTP) - Plan and prior'!V72),'Step 0.1 (MTP) - Plan and prior'!V72,"") ->  | W87: =IF(ISNUMBER('Step 0.1 (MTP) - Plan and prior'!W72),'Step 0.1 (MTP) - Plan and prior'!W72,"") ->  | X87: =IF(ISNUMBER('Step 0.1 (MTP) - Plan and prior'!X72),'Step 0.1 (MTP) - Plan and prior'!X72,"") -> 
B88: p30 | D88: =IF(ISNUMBER('Step 0.1 (MTP) - Plan and prior'!D73),'Step 0.1 (MTP) - Plan and prior'!D73,"") ->  | E88: =IF(ISNUMBER('Step 0.1 (MTP) - Plan and prior'!E73),'Step 0.1 (MTP) - Plan and prior'!E73,"") ->  | F88: =IF(ISNUMBER('Step 0.1 (MTP) - Plan and prior'!F73),'Step 0.1 (MTP) - Plan and prior'!F73,"") ->  | G88: =IF(ISNUMBER('Step 0.1 (MTP) - Plan and prior'!G73),'Step 0.1 (MTP) - Plan and prior'!G73,"") ->  | H88: =IF(ISNUMBER('Step 0.1 (MTP) - Plan and prior'!H73),'Step 0.1 (MTP) - Plan and prior'!H73,"") ->  | I88: =IF(ISNUMBER('Step 0.1 (MTP) - Plan and prior'!I73),'Step 0.1 (MTP) - Plan and prior'!I73,"") ->  | J88: =IF(ISNUMBER('Step 0.1 (MTP) - Plan and prior'!J73),'Step 0.1 (MTP) - Plan and prior'!J73,"") ->  | K88: =IF(ISNUMBER('Step 0.1 (MTP) - Plan and prior'!K73),'Step 0.1 (MTP) - Plan and prior'!K73,"") ->  | L88: =IF(ISNUMBER('Step 0.1 (MTP) - Plan and prior'!L73),'Step 0.1 (MTP) - Plan and prior'!L73,"") ->  | M88: =IF(ISNUMBER('Step 0.1 (MTP) - Plan and prior'!M73),'Step 0.1 (MTP) - Plan and prior'!M73,"") ->  | N88: =IF(ISNUMBER('Step 0.1 (MTP) - Plan and prior'!N73),'Step 0.1 (MTP) - Plan and prior'!N73,"") ->  | O88: =IF(ISNUMBER('Step 0.1 (MTP) - Plan and prior'!O73),'Step 0.1 (MTP) - Plan and prior'!O73,"") ->  | P88: =IF(ISNUMBER('Step 0.1 (MTP) - Plan and prior'!P73),'Step 0.1 (MTP) - Plan and prior'!P73,"") ->  | Q88: =IF(ISNUMBER('Step 0.1 (MTP) - Plan and prior'!Q73),'Step 0.1 (MTP) - Plan and prior'!Q73,"") ->  | R88: =IF(ISNUMBER('Step 0.1 (MTP) - Plan and prior'!R73),'Step 0.1 (MTP) - Plan and prior'!R73,"") ->  | S88: =IF(ISNUMBER('Step 0.1 (MTP) - Plan and prior'!S73),'Step 0.1 (MTP) - Plan and prior'!S73,"") ->  | T88: =IF(ISNUMBER('Step 0.1 (MTP) - Plan and prior'!T73),'Step 0.1 (MTP) - Plan and prior'!T73,"") ->  | U88: =IF(ISNUMBER('Step 0.1 (MTP) - Plan and prior'!U73),'Step 0.1 (MTP) - Plan and prior'!U73,"") ->  | V88: =IF(ISNUMBER('Step 0.1 (MTP) - Plan and prior'!V73),'Step 0.1 (MTP) - Plan and prior'!V73,"") ->  | W88: =IF(ISNUMBER('Step 0.1 (MTP) - Plan and prior'!W73),'Step 0.1 (MTP) - Plan and prior'!W73,"") ->  | X88: =IF(ISNUMBER('Step 0.1 (MTP) - Plan and prior'!X73),'Step 0.1 (MTP) - Plan and prior'!X73,"") -> 
B89: p50 | D89: =IF(ISNUMBER('Step 0.1 (MTP) - Plan and prior'!D74),'Step 0.1 (MTP) - Plan and prior'!D74,"") ->  | E89: =IF(ISNUMBER('Step 0.1 (MTP) - Plan and prior'!E74),'Step 0.1 (MTP) - Plan and prior'!E74,"") ->  | F89: =IF(ISNUMBER('Step 0.1 (MTP) - Plan and prior'!F74),'Step 0.1 (MTP) - Plan and prior'!F74,"") ->  | G89: =IF(ISNUMBER('Step 0.1 (MTP) - Plan and prior'!G74),'Step 0.1 (MTP) - Plan and prior'!G74,"") ->  | H89: =IF(ISNUMBER('Step 0.1 (MTP) - Plan and prior'!H74),'Step 0.1 (MTP) - Plan and prior'!H74,"") ->  | I89: =IF(ISNUMBER('Step 0.1 (MTP) - Plan and prior'!I74),'Step 0.1 (MTP) - Plan and prior'!I74,"") ->  | J89: =IF(ISNUMBER('Step 0.1 (MTP) - Plan and prior'!J74),'Step 0.1 (MTP) - Plan and prior'!J74,"") ->  | K89: =IF(ISNUMBER('Step 0.1 (MTP) - Plan and prior'!K74),'Step 0.1 (MTP) - Plan and prior'!K74,"") ->  | L89: =IF(ISNUMBER('Step 0.1 (MTP) - Plan and prior'!L74),'Step 0.1 (MTP) - Plan and prior'!L74,"") ->  | M89: =IF(ISNUMBER('Step 0.1 (MTP) - Plan and prior'!M74),'Step 0.1 (MTP) - Plan and prior'!M74,"") ->  | N89: =IF(ISNUMBER('Step 0.1 (MTP) - Plan and prior'!N74),'Step 0.1 (MTP) - Plan and prior'!N74,"") ->  | O89: =IF(ISNUMBER('Step 0.1 (MTP) - Plan and prior'!O74),'Step 0.1 (MTP) - Plan and prior'!O74,"") ->  | P89: =IF(ISNUMBER('Step 0.1 (MTP) - Plan and prior'!P74),'Step 0.1 (MTP) - Plan and prior'!P74,"") ->  | Q89: =IF(ISNUMBER('Step 0.1 (MTP) - Plan and prior'!Q74),'Step 0.1 (MTP) - Plan and prior'!Q74,"") ->  | R89: =IF(ISNUMBER('Step 0.1 (MTP) - Plan and prior'!R74),'Step 0.1 (MTP) - Plan and prior'!R74,"") ->  | S89: =IF(ISNUMBER('Step 0.1 (MTP) - Plan and prior'!S74),'Step 0.1 (MTP) - Plan and prior'!S74,"") ->  | T89: =IF(ISNUMBER('Step 0.1 (MTP) - Plan and prior'!T74),'Step 0.1 (MTP) - Plan and prior'!T74,"") ->  | U89: =IF(ISNUMBER('Step 0.1 (MTP) - Plan and prior'!U74),'Step 0.1 (MTP) - Plan and prior'!U74,"") ->  | V89: =IF(ISNUMBER('Step 0.1 (MTP) - Plan and prior'!V74),'Step 0.1 (MTP) - Plan and prior'!V74,"") ->  | W89: =IF(ISNUMBER('Step 0.1 (MTP) - Plan and prior'!W74),'Step 0.1 (MTP) - Plan and prior'!W74,"") ->  | X89: =IF(ISNUMBER('Step 0.1 (MTP) - Plan and prior'!X74),'Step 0.1 (MTP) - Plan and prior'!X74,"") -> 
B90: p70 | D90: =IF(ISNUMBER('Step 0.1 (MTP) - Plan and prior'!D75),'Step 0.1 (MTP) - Plan and prior'!D75,"") ->  | E90: =IF(ISNUMBER('Step 0.1 (MTP) - Plan and prior'!E75),'Step 0.1 (MTP) - Plan and prior'!E75,"") ->  | F90: =IF(ISNUMBER('Step 0.1 (MTP) - Plan and prior'!F75),'Step 0.1 (MTP) - Plan and prior'!F75,"") ->  | G90: =IF(ISNUMBER('Step 0.1 (MTP) - Plan and prior'!G75),'Step 0.1 (MTP) - Plan and prior'!G75,"") ->  | H90: =IF(ISNUMBER('Step 0.1 (MTP) - Plan and prior'!H75),'Step 0.1 (MTP) - Plan and prior'!H75,"") ->  | I90: =IF(ISNUMBER('Step 0.1 (MTP) - Plan and prior'!I75),'Step 0.1 (MTP) - Plan and prior'!I75,"") ->  | J90: =IF(ISNUMBER('Step 0.1 (MTP) - Plan and prior'!J75),'Step 0.1 (MTP) - Plan and prior'!J75,"") ->  | K90: =IF(ISNUMBER('Step 0.1 (MTP) - Plan and prior'!K75),'Step 0.1 (MTP) - Plan and prior'!K75,"") ->  | L90: =IF(ISNUMBER('Step 0.1 (MTP) - Plan and prior'!L75),'Step 0.1 (MTP) - Plan and prior'!L75,"") ->  | M90: =IF(ISNUMBER('Step 0.1 (MTP) - Plan and prior'!M75),'Step 0.1 (MTP) - Plan and prior'!M75,"") ->  | N90: =IF(ISNUMBER('Step 0.1 (MTP) - Plan and prior'!N75),'Step 0.1 (MTP) - Plan and prior'!N75,"") ->  | O90: =IF(ISNUMBER('Step 0.1 (MTP) - Plan and prior'!O75),'Step 0.1 (MTP) - Plan and prior'!O75,"") ->  | P90: =IF(ISNUMBER('Step 0.1 (MTP) - Plan and prior'!P75),'Step 0.1 (MTP) - Plan and prior'!P75,"") ->  | Q90: =IF(ISNUMBER('Step 0.1 (MTP) - Plan and prior'!Q75),'Step 0.1 (MTP) - Plan and prior'!Q75,"") ->  | R90: =IF(ISNUMBER('Step 0.1 (MTP) - Plan and prior'!R75),'Step 0.1 (MTP) - Plan and prior'!R75,"") ->  | S90: =IF(ISNUMBER('Step 0.1 (MTP) - Plan and prior'!S75),'Step 0.1 (MTP) - Plan and prior'!S75,"") ->  | T90: =IF(ISNUMBER('Step 0.1 (MTP) - Plan and prior'!T75),'Step 0.1 (MTP) - Plan and prior'!T75,"") ->  | U90: =IF(ISNUMBER('Step 0.1 (MTP) - Plan and prior'!U75),'Step 0.1 (MTP) - Plan and prior'!U75,"") ->  | V90: =IF(ISNUMBER('Step 0.1 (MTP) - Plan and prior'!V75),'Step 0.1 (MTP) - Plan and prior'!V75,"") ->  | W90: =IF(ISNUMBER('Step 0.1 (MTP) - Plan and prior'!W75),'Step 0.1 (MTP) - Plan and prior'!W75,"") ->  | X90: =IF(ISNUMBER('Step 0.1 (MTP) - Plan and prior'!X75),'Step 0.1 (MTP) - Plan and prior'!X75,"") -> 
B91: p90 | D91: =IF(ISNUMBER('Step 0.1 (MTP) - Plan and prior'!D76),'Step 0.1 (MTP) - Plan and prior'!D76,"") ->  | E91: =IF(ISNUMBER('Step 0.1 (MTP) - Plan and prior'!E76),'Step 0.1 (MTP) - Plan and prior'!E76,"") ->  | F91: =IF(ISNUMBER('Step 0.1 (MTP) - Plan and prior'!F76),'Step 0.1 (MTP) - Plan and prior'!F76,"") ->  | G91: =IF(ISNUMBER('Step 0.1 (MTP) - Plan and prior'!G76),'Step 0.1 (MTP) - Plan and prior'!G76,"") ->  | H91: =IF(ISNUMBER('Step 0.1 (MTP) - Plan and prior'!H76),'Step 0.1 (MTP) - Plan and prior'!H76,"") ->  | I91: =IF(ISNUMBER('Step 0.1 (MTP) - Plan and prior'!I76),'Step 0.1 (MTP) - Plan and prior'!I76,"") ->  | J91: =IF(ISNUMBER('Step 0.1 (MTP) - Plan and prior'!J76),'Step 0.1 (MTP) - Plan and prior'!J76,"") ->  | K91: =IF(ISNUMBER('Step 0.1 (MTP) - Plan and prior'!K76),'Step 0.1 (MTP) - Plan and prior'!K76,"") ->  | L91: =IF(ISNUMBER('Step 0.1 (MTP) - Plan and prior'!L76),'Step 0.1 (MTP) - Plan and prior'!L76,"") ->  | M91: =IF(ISNUMBER('Step 0.1 (MTP) - Plan and prior'!M76),'Step 0.1 (MTP) - Plan and prior'!M76,"") ->  | N91: =IF(ISNUMBER('Step 0.1 (MTP) - Plan and prior'!N76),'Step 0.1 (MTP) - Plan and prior'!N76,"") ->  | O91: =IF(ISNUMBER('Step 0.1 (MTP) - Plan and prior'!O76),'Step 0.1 (MTP) - Plan and prior'!O76,"") ->  | P91: =IF(ISNUMBER('Step 0.1 (MTP) - Plan and prior'!P76),'Step 0.1 (MTP) - Plan and prior'!P76,"") ->  | Q91: =IF(ISNUMBER('Step 0.1 (MTP) - Plan and prior'!Q76),'Step 0.1 (MTP) - Plan and prior'!Q76,"") ->  | R91: =IF(ISNUMBER('Step 0.1 (MTP) - Plan and prior'!R76),'Step 0.1 (MTP) - Plan and prior'!R76,"") ->  | S91: =IF(ISNUMBER('Step 0.1 (MTP) - Plan and prior'!S76),'Step 0.1 (MTP) - Plan and prior'!S76,"") ->  | T91: =IF(ISNUMBER('Step 0.1 (MTP) - Plan and prior'!T76),'Step 0.1 (MTP) - Plan and prior'!T76,"") ->  | U91: =IF(ISNUMBER('Step 0.1 (MTP) - Plan and prior'!U76),'Step 0.1 (MTP) - Plan and prior'!U76,"") ->  | V91: =IF(ISNUMBER('Step 0.1 (MTP) - Plan and prior'!V76),'Step 0.1 (MTP) - Plan and prior'!V76,"") ->  | W91: =IF(ISNUMBER('Step 0.1 (MTP) - Plan and prior'!W76),'Step 0.1 (MTP) - Plan and prior'!W76,"") ->  | X91: =IF(ISNUMBER('Step 0.1 (MTP) - Plan and prior'!X76),'Step 0.1 (MTP) - Plan and prior'!X76,"") -> 
B93: Assessment of the implementation of the Medium-Term Plan
B94: P1. Checking whether net expenditure outcomes and plans adhere to the Council-recommended path in the latest MTP
B95: For both Member States receiving a reference trajectory and technical information:
B96: Does observed net expenditure adhere to the MTP path endorsed by the Council? | C96: =IF(OutturnThrough<MTP_YearT,"Not yet assessable", SUMPRODUCT(((4:4>=MTP_YearT)*(4:4<=OutturnThrough)*(34:34<15:15)))=0) -> TRUE | E96: Observed adherence (outturn compliance with the MTP path) | AC96: NNFPE_t^observed/planned​<NNFPE_t^Commission​, ∀t ∈{T,T+1,…,T+N}
B97: Does updated forward-looking net expenditure adhere to the MTP path endorsed by the Council? | C97: =IF( AssessmentEnd <= OutturnThrough, NA(), SUMPRODUCT( (4:4 >= OutturnThrough+1) * (4:4 <= AssessmentEnd) * (34:34 < 15:15) ) = 0 ) -> FALSE | E97: Planned adherence (forward-looking compliance) | AC97: NNFPE_t^observed/planned​<NNFPE_t^Commission​, ∀t ∈{T,T+1,…,T+N}
B98: Was/is an escape clause in place for all years where net expenditure does not adhere to the planned path for net expenditure growth endorsed by the Council? | C98: =IF( SUMPRODUCT( (4:4>=MTP_YearT+1)* (4:4<=AssessmentEnd)* (34:34<15:15) )=0, "Not applicable (all years adhere to the net expenditure path)", SUMPRODUCT( (4:4>=MTP_YearT+1)* (4:4<=AssessmentEnd)* (34:34<15:15)* (1-IFERROR(--INDEX('Step 1 - Set global parameters'!$12:$12, MATCH(4:4, 'Step 1 - Set global parameters'!$10:$10, 0)),0)) )=0 ) -> TRUE
B100: Natural-language output string | C100: =_xlfn.IFS( ISTEXT(C96), Country & "'s observed net expenditure cannot yet be assessed against its latest Council-endorsed MTP — no plan year has closed (most recent outturn year is " & OutturnThrough & "; first plan year is " & MTP_YearT+1 & "). " & IF(ISNA(C97), "", IF(OR(C97=TRUE, C98="Not applicable (all years adhere to the net expenditure path)"), "Planned net expenditure to " & AssessmentEnd & " adheres to the net expenditure path in the MTP.", "Planned net expenditure to " & AssessmentEnd & " does not adhere to the net expenditure path in the MTP." & IF(C98=TRUE, " Deviations occur only in years covered by an escape clause.", " At least one year of deviation is not covered by an escape clause." ) ) ), C98="Not applicable (all years adhere to the net expenditure path)", Country & "'s observed net expenditure to " & OutturnThrough & IF(ISNA(C97), "", " and planned net expenditure to " & AssessmentEnd) & " adheres to the net expenditure path in its latest Council-endorsed MTP.", AND(C96=FALSE, ISNA(C97), C98=TRUE), Country & "'s observed net expenditure to " & OutturnThrough & " does not adhere to the net expenditure path in its latest Council-endorsed MTP." & " Deviations occur only in years covered by an escape clause.", AND(C96=FALSE, ISNA(C97), C98=FALSE), Country & "'s observed net expenditure to " & OutturnThrough & " does not adhere to the net expenditure path in its latest Council-endorsed MTP." & " At least one year of deviation is not covered by an escape clause.", AND(C96=TRUE, C97=FALSE, C98=TRUE), Country & "'s observed net expenditure to " & OutturnThrough & " adheres to the net expenditure path in its latest Council-endorsed MTP," & " but planned net expenditure to " & AssessmentEnd & " does not." & " Deviations occur only in years covered by an escape clause.", AND(C96=TRUE, C97=FALSE, C98=FALSE), Country & "'s observed net expenditure to " & OutturnThrough & " adheres to the net expenditure path in its latest Council-endorsed MTP," & " but planned net expenditure to " & AssessmentEnd & " does not." & " At least one year of deviation is not covered by an escape clause.", AND(C96=FALSE, C97=TRUE, C98=TRUE), Country & "'s observed net expenditure to " & OutturnThrough & " does not adhere to the net expenditure path in its latest Council-endorsed MTP," & " but planned net expenditure to " & AssessmentEnd & " does." & " Deviations occur only in years covered by an escape clause.", AND(C96=FALSE, C97=TRUE, C98=FALSE), Country & "'s observed net expenditure to " & OutturnThrough & " does not adhere to the net expenditure path in its latest Council-endorsed MTP," & " but planned net expenditure to " & AssessmentEnd & " does." & " At least one year of deviation is not covered by an escape clause.", AND(C96=FALSE, C97=FALSE, C98=TRUE), Country & "'s observed net expenditure to " & OutturnThrough & " and planned net expenditure to " & AssessmentEnd & " do not adhere to the net expenditure path in its latest Council-endorsed MTP." & " Deviations occur only in years covered by an escape clause.", AND(C96=FALSE, C97=FALSE, C98=FALSE), Country & "'s observed net expenditure to " & OutturnThrough & " and planned net expenditure to " & AssessmentEnd & " do not adhere to the net expenditure path in its latest Council-endorsed MTP." & " At least one year of deviation is not covered by an escape clause.", TRUE, "" ) -> Latvia's observed net expenditure to 2024 adheres to the net expenditure path in its latest Council-endorsed MTP, but planned net expenditure to 2026 does not. Deviations occur only in years covered by an escape clause.
B102: P2. Recording performance of net expenditure growth in the control account against the Council-endorsed planned fiscal path
B103: Methodology from "Specifications on the Implementation of the Stability and Growth Pact (Code of Conduct)" ECOFIN 16230/25, 5 December 2025 and technical discussions with ECOFIN
D104: =_xlfn.SEQUENCE(1, AssessmentEnd-MTP_BaseYear+1, MTP_BaseYear) -> 2023 | E104: 2024 | F104: 2025 | G104: 2026
D105: =IF(_xlfn.SEQUENCE(1,COLUMNS(_xlfn.ANCHORARRAY(D104)),-1)=-1,"T-1",IF(_xlfn.SEQUENCE(1,COLUMNS(_xlfn.ANCHORARRAY(D104)),-1)=0,"T","T+"&_xlfn.SEQUENCE(1,COLUMNS(_xlfn.ANCHORARRAY(D104)),-1))) -> T-1 | E105: T | F105: T+1 | G105: T+2
B106: Observed net expenditure
A107: 1 | B107: Total expenditure | C107: bn NAC | D107: =IF(ISNUMBER(D104),D6,"") -> 17.1826 | E107: 18.4135 | F107: 20.15947557 | G107: 20.88479228
A108: 2 | B108: Interest expenditure | C108: bn NAC | D108: =IF(ISNUMBER(D104),D7,"") -> 0.2869 | E108: 0.4433 | F108: 0.5092920144 | G108: 0.6221001956
A109: 3 | B109: Cyclical unemployment expenditure | C109: bn NAC | D109: =IF(ISNUMBER(D104),D8,"") -> -0.001262 | E109: 0.004169 | F109: 0.01697640048 | G109: 0.008887145651
A110: 4 | B110: EU funded expenditure | C110: bn NAC | D110: =IF(ISNUMBER(D104),D9,"") -> 0.7343 | E110: 0.7555 | F110: 1.103466031 | G110: 0.8887145651
A111: 5 | B111: National co-financing of EU programmes | C111: bn NAC | D111: =IF(ISNUMBER(D104),D10,"") -> 0.15825 | E111: 0.13765 | F111: 0.212205006 | G111: 0.1333071848
A112: 6 | B112: One-offs expenditure (levels, excl. EU funded) | C112: bn NAC | D112: =IF(ISNUMBER(D104),D11,"") -> 0 | E112: 0 | F112: 0 | G112: 0
A113: 7 | B113: Net expenditure before DRMs (1-2-3-4-5-6) | C113: bn NAC | D113: =IF(ISNUMBER(D104),D12,"") -> 16.004412 | E113: 17.072881 | F113: 18.33451252 | G113: 19.19623461
A114: 8 | B114: Change in net expenditure before DRMs (∆7) | C114: bn NAC | E114: =IF(ISNUMBER(E104),E113-D113,"") -> 1.068469 | F114: =IF(ISNUMBER(F104),F113-E113,"") -> 1.261631518 | G114: 0.8617220884
A115: 9 | B115: DRM (annual incremental impact, excl. one-offs) | C115: bn NAC | D115: =IF(ISNUMBER(D104),D13,"") -> 0 | E115: 0.273808 | F115: 0.0848820024 | G115: -0.04443572826
A116: 10 | B116: Annual change in net expenditure after DRMs (8-9) | C116: bn NAC | E116: =IF(ISNUMBER(E104),E114-E115,"") -> 0.794661 | F116: =IF(ISNUMBER(F104),F114-F115,"") -> 1.176749516 | G116: 0.9061578166
B117: Annual and cumulated gaps
A118: 11 | B118: Observed net expenditure growth (10(t)/7(t-1))*100 | C118: % change | E118: =IF(ISNUMBER(E104),E116/D113*100,"") -> 4.965262079 | F118: =IF(ISNUMBER(F104),F116/E113*100,"") -> 6.892506988 | G118: 4.942361111
A119: 12 | B119: Recommended net expenditure growth* | C119: % change | E119: =IF(ISNUMBER(E104),E34,"") -> 9.1 | F119: 5.9 | G119: 3.6
A120: 13 | B120: Annual gap ((11-12) x 7(t-1)) | C120: bn NAC | E120: =IF(ISNUMBER(E104),((E118-E119)/100)*D113,"") -> -0.661740492 | F120: =IF(ISNUMBER(F104),((F118-F119)/100)*E113,"") -> 0.169449537 | G120: 0.246115366
A121: 14 | B121: Cumulated gap (cumulative from 13) | C121: bn NAC | E121: =IF(ISNUMBER(E104),E120+IF(ISNUMBER(D104),D121,0),"") -> -0.661740492 | F121: =IF(ISNUMBER(F104),F120+IF(ISNUMBER(E104),E121,0),"") -> -0.492290955 | G121: -0.246175589
A122: 15 | B122: Nominal GDP | C122: bn NAC | D122: =IF(ISNUMBER(D104),D27,"") -> 39.5642 | E122: 40.6523 | F122: 42.4410012 | G122: 44.43572826
B123: "Regular" control account
A124: 16 | B124: Annual balance (13/15) | C124: % GDP | E124: =IF(ISNUMBER(E104),E120/E$122*100,"") -> -1.627805787 | F124: =IF(ISNUMBER(F104),F120/F$122*100,"") -> 0.3992590472 | G124: 0.5538681948
A125: 17 | B125: Cumulated balance (14/15)** | C125: % GDP | E125: =IF(ISNUMBER(E104),E121/E$122*100,"") -> -1.627805787 | F125: =IF(ISNUMBER(F104),F121/F$122*100,"") -> -1.159941898 | G125: -0.5540037234
B126: "Augmented" control account during escape clauses
A127: 16a | B127: Annual balance (13/15) | C127: % GDP | E127: =IF(ISNUMBER(E104),E120/E$122*100,"") -> -1.627805787 | F127: =IF(ISNUMBER(F104),F120/F$122*100,"") -> 0.3992590472 | G127: 0.5538681948
B128: Defence expenditure | C128: bn NAC | D128: =IF(ISNUMBER(D104),D14,"") -> 1.02493 | E128: 1.10837 | F128: 1.40055304 | G128: 1.866300587
B129: Defence expenditure | C129: % GDP | D129: =IF(ISNUMBER(D104),D14/D122*100,"") -> 2.590549032 | E129: 2.726463201 | F129: 3.3 | G129: 4.2
B130: Increase in defence expenditure | C130: bn NAC | E130: =IF(ISNUMBER(E104),E128-D128,"") -> 0.08344 | F130: =IF(ISNUMBER(F104),F128-E128,"") -> 0.2921830396 | G130: 0.4657475472
B131: Increase in defence expenditure | C131: % GDP | E131: =IF(ISNUMBER(E104),E130/E$27*100,"") -> 0.2052528393 | F131: =IF(ISNUMBER(F104),F130/F$27*100,"") -> 0.6884452094 | G131: =IF(ISNUMBER(G104),G130/G$27*100,"") -> 1.048137536
B132: Upward deviations from the recommended expenditure path other than those resulting from defence expenditure | C132: % GDP | E132: =IF(ISNUMBER(E104),IF((E127-E131)>0,E127-E131,0),"") -> 0 | F132: =IF(ISNUMBER(F104),IF((F127-F131)>0,F127-F131,0),"") -> 0 | G132: 0
B133: Annual deviation | C133: bnNAC | E133: =IF(ISNUMBER(E104),E120,"") -> -0.661740492 | F133: =IF(ISNUMBER(F104),F120,"") -> 0.169449537 | G133: 0.246115366
B134: Debit | C134: bnNAC | E134: =IF(ISNUMBER(E104),IF(OR(E133="",ISNA(E133)),"",MAX(E133,0)),"") -> 0 | F134: =IF(ISNUMBER(F104),IF(OR(F133="",ISNA(F133)),"",MAX(F133,0)),"") -> 0.169449537 | G134: 0.246115366
B135: Debit excluding increase in defence expenditure | C135: bnNAC | E135: =IF(ISNUMBER(E104),IF((E134-MAX(E130,0))>0,E134-MAX(E130,0),0),"") -> 0 | F135: =IF(ISNUMBER(F104),IF((F134-MAX(F130,0))>0,F134-MAX(F130,0),0),"") -> 0 | G135: 0
B136: Credit | C136: bnNAC | E136: =IF(ISNUMBER(E104),IF(OR(E133="",ISNA(E133)),"",ABS(MIN(E133,0))),"") -> 0.661740492 | F136: =IF(ISNUMBER(F104),IF(OR(F133="",ISNA(F133)),"",ABS(MIN(F133,0))),"") -> 0 | G136: 0
B137: Recorded annual balance | C137: bnNAC | E137: =IF(ISNUMBER(E104),IF(E141=FALSE,E134-E136,IF(E142=TRUE,E135-E136,E136)),"") -> -0.661740492 | F137: =IF(ISNUMBER(F104),IF(F141=FALSE,F134-F136,IF(F142=TRUE,F135-F136,F136)),"") -> 0 | G137: 0
B138: Recorded cumulative balance | C138: bnNAC | E138: =IF(ISNUMBER(E104),E137+IF(ISNUMBER(D104),D138,0),"") -> -0.661740492 | F138: =IF(ISNUMBER(F104),F137+IF(ISNUMBER(E104),E138,0),"") -> -0.661740492 | G138: =IF(ISNUMBER(G104),G137+IF(ISNUMBER(F104),F138,0),"") -> -0.661740492 | H138: =IF(ISNUMBER(H104),H137+IF(ISNUMBER(G104),G138,0),"") -> 
B139: Annual balance | C139: % GDP | E139: =IF(ISNUMBER(E104),E137/E122*100,"") -> -1.627805787 | F139: =IF(ISNUMBER(F104),F137/F122*100,"") -> 0 | G139: 0
B140: Cumulated balance | C140: % GDP | E140: =IF(ISNUMBER(E104),E138/E$122*100,"") -> -1.627805787 | F140: =IF(ISNUMBER(F104),F138/F$122*100,"") -> -1.559200946 | G140: -1.489208162
B141: ='Step 1 - Set global parameters'!A12 -> Years for which an escape clause has been activated | E141: ='Step 1 - Set global parameters'!B12 -> FALSE | F141: ='Step 1 - Set global parameters'!C12 -> TRUE | G141: ='Step 1 - Set global parameters'!D12 -> TRUE | H141: ='Step 1 - Set global parameters'!E12 -> TRUE | I141: ='Step 1 - Set global parameters'!F12 -> TRUE | J141: ='Step 1 - Set global parameters'!G12 -> FALSE
B142: Whether escape clause was activated for defence (for augmented control account) | E142: =IF('Step 1 - Set global parameters'!B12,IF('Step 1 - Set global parameters'!B14="Defence", TRUE, FALSE),NA()) ->  | F142: =IF('Step 1 - Set global parameters'!C12,IF('Step 1 - Set global parameters'!C14="Defence", TRUE, FALSE),NA()) -> TRUE | G142: =IF('Step 1 - Set global parameters'!D12,IF('Step 1 - Set global parameters'!D14="Defence", TRUE, FALSE),NA()) -> TRUE | H142: =IF('Step 1 - Set global parameters'!E12,IF('Step 1 - Set global parameters'!E14="Defence", TRUE, FALSE),NA()) -> TRUE | I142: =IF('Step 1 - Set global parameters'!F12,IF('Step 1 - Set global parameters'!F14="Defence", TRUE, FALSE),NA()) -> TRUE | J142: =IF('Step 1 - Set global parameters'!G12,IF('Step 1 - Set global parameters'!G14="Defence", TRUE, FALSE),NA()) -> 
B143: Deviation cap | E143: =IF('Step 1 - Set global parameters'!B12,'Step 1 - Set global parameters'!B15,NA()) ->  | F143: =IF('Step 1 - Set global parameters'!C12,'Step 1 - Set global parameters'!C15,NA()) -> 1.5 | G143: =IF('Step 1 - Set global parameters'!D12,'Step 1 - Set global parameters'!D15,NA()) -> 1.5 | H143: =IF('Step 1 - Set global parameters'!E12,'Step 1 - Set global parameters'!E15,NA()) -> 1.5 | I143: =IF('Step 1 - Set global parameters'!F12,'Step 1 - Set global parameters'!F15,NA()) -> 1.5 | J143: =IF('Step 1 - Set global parameters'!G12,'Step 1 - Set global parameters'!G15,NA()) -> 
B144: Annual threshold breached? >0.3 pp | F144: =F139 > 0.3 -> FALSE | G144: =G139 > 0.3 -> FALSE | H144: =H139 > 0.3 -> TRUE | I144: =I139 > 0.3 -> TRUE | J144: =J139 > 0.3 -> TRUE
B145: Cumulative threshold breached? >0.6pp | F145: =IF(F140 > 0.6, TRUE, FALSE) -> FALSE | G145: =IF(G140 > 0.6, TRUE, FALSE) -> FALSE | H145: =IF(H140 > 0.6, TRUE, FALSE) -> TRUE | I145: =IF(I140 > 0.6, TRUE, FALSE) -> TRUE | J145: =IF(J140 > 0.6, TRUE, FALSE) -> TRUE
B147: Do deviations exceed 0.3 percentage points of GDP annually over the assessment period? | C147: =MAX(INDEX(139:139,_xlfn.XMATCH(MTP_YearT,104:104,0)):INDEX(139:139,_xlfn.XMATCH(AssessmentEnd,104:104,0)))>0.3 -> FALSE
B148: Do deviations exceed 0.6 percentage points of GDP cumulatively over the assessment period? | C148: =MAX(INDEX(140:140,_xlfn.XMATCH(MTP_YearT,104:104,0)):INDEX(140:140,_xlfn.XMATCH(AssessmentEnd,104:104,0)))>0.6 -> FALSE
B149: Do deviations exceed 0.3 percentage points of GDP annually over the outturn period? | C149: =MAX(INDEX(139:139,_xlfn.XMATCH(MTP_YearT,104:104,0)):INDEX(139:139,_xlfn.XMATCH(OutturnThrough,104:104,0)))>0.3 -> FALSE
B150: Do deviations exceed 0.6 percentage points of GDP cumulatively over the outturn period? | C150: =MAX(INDEX(140:140,_xlfn.XMATCH(MTP_YearT,104:104,0)):INDEX(140:140,_xlfn.XMATCH(OutturnThrough,104:104,0)))>0.6 -> FALSE
B151: Do deviations exceed a capped amount over the assessment period? | C151: =IF(SUMPRODUCT((INDEX(141:141,_xlfn.XMATCH(MTP_YearT,104:104,0)+_xlfn.SEQUENCE(1,AssessmentEnd-MTP_YearT+1)-1)=TRUE)*1)=0,NA(),ISNUMBER(MATCH(TRUE,IF(INDEX(141:141,_xlfn.XMATCH(MTP_YearT,104:104,0)+_xlfn.SEQUENCE(1,AssessmentEnd-MTP_YearT+1)-1)=TRUE,INDEX(124:124,_xlfn.XMATCH(MTP_YearT,104:104,0)+_xlfn.SEQUENCE(1,AssessmentEnd-MTP_YearT+1)-1)>INDEX(143:143,_xlfn.XMATCH(MTP_YearT,104:104,0)+_xlfn.SEQUENCE(1,AssessmentEnd-MTP_YearT+1)-1),FALSE),0))) -> FALSE
B152: Do deviations exceed a capped amount over the outturn period period? | C152: =IF(SUMPRODUCT((INDEX(141:141,_xlfn.XMATCH(MTP_YearT,104:104,0)+_xlfn.SEQUENCE(1,OutturnThrough-MTP_YearT+1)-1)=TRUE)*1)=0,NA(),ISNUMBER(MATCH(TRUE,IF(INDEX(141:141,_xlfn.XMATCH(MTP_YearT,104:104,0)+_xlfn.SEQUENCE(1,OutturnThrough-MTP_YearT+1)-1)=TRUE,INDEX(124:124,_xlfn.XMATCH(MTP_YearT,104:104,0)+_xlfn.SEQUENCE(1,OutturnThrough-MTP_YearT+1)-1)>INDEX(143:143,_xlfn.XMATCH(MTP_YearT,104:104,0)+_xlfn.SEQUENCE(1,OutturnThrough-MTP_YearT+1)-1),FALSE),0))) -> 
B153: Is an escape clause active in any year where there's an annual or cumulative excess? | C153: =IF(SUMPRODUCT(((INDEX(139:139,_xlfn.XMATCH(MTP_YearT,104:104,0)+_xlfn.SEQUENCE(1,AssessmentEnd-MTP_YearT+1)-1)>0.3)+(INDEX(140:140,_xlfn.XMATCH(MTP_YearT,104:104,0)+_xlfn.SEQUENCE(1,AssessmentEnd-MTP_YearT+1)-1)>0.6))*1)=0,FALSE,SUMPRODUCT(((INDEX(139:139,_xlfn.XMATCH(MTP_YearT,104:104,0)+_xlfn.SEQUENCE(1,AssessmentEnd-MTP_YearT+1)-1)>0.3)+(INDEX(140:140,_xlfn.XMATCH(MTP_YearT,104:104,0)+_xlfn.SEQUENCE(1,AssessmentEnd-MTP_YearT+1)-1)>0.6))*(INDEX(141:141,_xlfn.XMATCH(MTP_YearT,104:104,0)+_xlfn.SEQUENCE(1,AssessmentEnd-MTP_YearT+1)-1)=TRUE)*1)=SUMPRODUCT(((INDEX(139:139,_xlfn.XMATCH(MTP_YearT,104:104,0)+_xlfn.SEQUENCE(1,AssessmentEnd-MTP_YearT+1)-1)>0.3)+(INDEX(140:140,_xlfn.XMATCH(MTP_YearT,104:104,0)+_xlfn.SEQUENCE(1,AssessmentEnd-MTP_YearT+1)-1)>0.6))*1)) -> FALSE
B154: Is there a defence-related escape clause active in any year where there's an annual or cumulative excess? | C154: =IF(SUMPRODUCT(((INDEX(139:139,_xlfn.XMATCH(MTP_YearT,104:104,0)+_xlfn.SEQUENCE(1,AssessmentEnd-MTP_YearT+1)-1)>0.3)+(INDEX(140:140,_xlfn.XMATCH(MTP_YearT,104:104,0)+_xlfn.SEQUENCE(1,AssessmentEnd-MTP_YearT+1)-1)>0.6))*(IFERROR(INDEX(142:142,_xlfn.XMATCH(MTP_YearT,104:104,0)+_xlfn.SEQUENCE(1,AssessmentEnd-MTP_YearT+1)-1)=TRUE,FALSE))*1)>0,TRUE,FALSE) -> FALSE
B156: Natural-language output string: | C156: =_xlfn.LET( _xlpm.bal, INDEX(140:140, MATCH(AssessmentEnd,104:104,0)), _xlpm.balText, IF(_xlpm.bal>0, "a debit (overspend) of " & TEXT(_xlpm.bal,"0.0"), IF(_xlpm.bal<0, "a credit (underspend) of " & TEXT(-_xlpm.bal,"0.0"), "zero" ) ), _xlpm.annOut, C149, _xlpm.cumOut, C150, _xlpm.threshOut, IF(ISNA(C152), FALSE, C152), _xlpm.threshPlan, IF(ISNA(C151), FALSE, AND(C151, NOT(_xlpm.threshOut))), _xlpm.escClause, C153, _xlpm.defenceClause, C154, _xlpm.annPlan, AND(C147, NOT(C149)), _xlpm.cumPlan, AND(C148, NOT(C150)), _xlpm.anyExcess, OR(_xlpm.annPlan, _xlpm.cumPlan), _xlpm.escYears, IF(_xlpm.escClause, "all years where deviations exceed the limits", "some but not all years where deviations exceed the limits"), _xlpm.outturnSentence, IF(AND(_xlpm.annOut, _xlpm.cumOut), "Observed annual and cumulative deviations exceed the respective 0.3 and 0.6 percentage points of GDP limits.", IF(AND(_xlpm.annOut, NOT(_xlpm.cumOut)), "Observed annual deviations exceed the 0.3 percentage points of GDP limit, though cumulative deviations remain within the 0.6 percentage point limit.", IF(AND(NOT(_xlpm.annOut), _xlpm.cumOut), "Observed cumulative deviations exceed the 0.6 percentage points of GDP limit, though annual deviations remain within the 0.3 percentage point limit.", "Observed annual and cumulative deviations do not exceed the respective 0.3 and 0.6 percentage points of GDP limits." ) ) ), _xlpm.plannedSentence, IF(AND(_xlpm.annPlan, _xlpm.cumPlan), " However, planned annual and cumulative deviations exceed the respective limits.", IF(AND(_xlpm.annPlan, NOT(_xlpm.cumPlan)), " However, planned annual deviations exceed the 0.3 percentage point limit.", IF(AND(NOT(_xlpm.annPlan), _xlpm.cumPlan), " However, planned cumulative deviations exceed the 0.6 percentage point limit.", "" ) ) ), _xlpm.escapeSentence, IF(AND(_xlpm.anyExcess, OR(_xlpm.escClause, NOT(_xlpm.escClause))), IF(_xlpm.escClause, IF(_xlpm.defenceClause, IF(AND(_xlpm.threshOut, _xlpm.threshPlan), " An escape clause is active in " & _xlpm.escYears & ". As this is a defence-related escape clause, the annual cap applies; observed and planned deviations exceed this cap.", IF(_xlpm.threshOut, " An escape clause is active in " & _xlpm.escYears & ". As this is a defence-related escape clause, the annual cap applies; observed deviations exceed this cap.", IF(_xlpm.threshPlan, " An escape clause is active in " & _xlpm.escYears & ". As this is a defence-related escape clause, the annual cap applies; planned deviations exceed this cap.", " An escape clause is active in " & _xlpm.escYears & ". As this is a defence-related escape clause, the annual cap applies; deviations do not exceed this cap." ) ) ), " An escape clause is active in " & _xlpm.escYears & "." ), " No escape clause is active in the years where deviations exceed the limits." ), "" ), "At the end of the assessment period (" & AssessmentEnd & "), " & "the balance in " & Country & "'s cumulative control account is " & _xlpm.balText & " percentage points of GDP. " & _xlpm.outturnSentence & _xlpm.plannedSentence & _xlpm.escapeSentence ) -> At the end of the assessment period (2026), the balance in Latvia's cumulative control account is a credit (underspend) of 1.5 percentage points of GDP. Observed annual and cumulative deviations do not exceed the respective 0.3 and 0.6 percentage points of GDP limits.
B158: P3. Verifying compliance of the implementation of the MTP with the debt sustainability safeguard [Article 7] | L158: Article 7: Debt sustainability safeguard
B159: Are any years of the general government debt-to-GDP ratio greater than 90%? | C159: =MAX(INDEX(20:20,1,COLUMN($D$4)):INDEX(20:20,1,COLUMN($D$4)+COLUMNS(_xlfn.ANCHORARRAY($D$4))-1))>90 -> FALSE
B160: Are any years of the general government debt-to-GDP ratio between 60% and 90% | C160: =SUMPRODUCT( --(INDEX(20:20,1,COLUMN($D$4)):INDEX(20:20,1,COLUMN($D$4)+COLUMNS(_xlfn.ANCHORARRAY($D$4))-1)>=60), --(INDEX(20:20,1,COLUMN($D$4)):INDEX(20:20,1,COLUMN($D$4)+COLUMNS(_xlfn.ANCHORARRAY($D$4))-1)<=90) )>0 -> FALSE
B161: Does the projected general government debt-to-GDP ratio decrease by a minimum annual average of 1 percentage point of GDP while the ratio is above 90%? | C161: =IF(C159,IFERROR( ( INDEX(20:20, COLUMN($D$4)+_xlfn.XMATCH(IF(OR('Step 1 - Set global parameters'!$B$18,'Step 1 - Set global parameters'!$B$20), Validation!$Q$8, MTP_BaseYear-1),_xlfn.ANCHORARRAY( $D$4), 1)-1) - INDEX(20:20, COLUMN($D$4)+_xlfn.XMATCH( LOOKUP(9^9, IF( (_xlfn.ANCHORARRAY($D$4)>=IF(OR('Step 1 - Set global parameters'!$B$18,'Step 1 - Set global parameters'!$B$20), Validation!$Q$8, MTP_BaseYear-1))* (_xlfn.ANCHORARRAY($D$4)<=AssessmentEnd)* (INDEX(20:20, COLUMN($D$4)+_xlfn.SEQUENCE(1, COLUMNS(_xlfn.ANCHORARRAY($D$4)), 0))>90),_xlfn.ANCHORARRAY( $D$4)) ),_xlfn.ANCHORARRAY( $D$4), 1)-1) ) / ( LOOKUP(9^9, IF( (_xlfn.ANCHORARRAY($D$4)>=IF(OR('Step 1 - Set global parameters'!$B$18,'Step 1 - Set global parameters'!$B$20), Validation!$Q$8, MTP_BaseYear-1))* (_xlfn.ANCHORARRAY($D$4)<=AssessmentEnd)* (INDEX(20:20, COLUMN($D$4)+_xlfn.SEQUENCE(1, COLUMNS(_xlfn.ANCHORARRAY($D$4)), 0))>90),_xlfn.ANCHORARRAY( $D$4)) ) - IF(OR('Step 1 - Set global parameters'!$B$18,'Step 1 - Set global parameters'!$B$20), Validation!$Q$8, MTP_BaseYear-1) ) >= 1, TRUE ),NA()) -> 
B162: Does the projected general government debt-to-GDP ratio decrease by a minimum annual average of 0.5 percentage points of GDP while the ratio is above 60%? | C162: =IF(C160,IFERROR( ( INDEX(20:20, COLUMN($D$4)+_xlfn.XMATCH(IF(OR('Step 1 - Set global parameters'!$B$18,'Step 1 - Set global parameters'!$B$20), Validation!$Q$8, MTP_BaseYear-1),_xlfn.ANCHORARRAY( $D$4), 1)-1) - INDEX(20:20, COLUMN($D$4)+_xlfn.XMATCH( LOOKUP(9^9, IF( (_xlfn.ANCHORARRAY($D$4)>=IF(OR('Step 1 - Set global parameters'!$B$18,'Step 1 - Set global parameters'!$B$20), Validation!$Q$8, MTP_BaseYear-1))* (_xlfn.ANCHORARRAY($D$4)<=AssessmentEnd)* (INDEX(20:20, COLUMN($D$4)+_xlfn.SEQUENCE(1,COLUMNS(_xlfn.ANCHORARRAY($D$4)),0))>TFEU_Debt),_xlfn.ANCHORARRAY( $D$4)) ),_xlfn.ANCHORARRAY( $D$4), 1)-1) ) / ( LOOKUP(9^9, IF( (_xlfn.ANCHORARRAY($D$4)>=IF(OR('Step 1 - Set global parameters'!$B$18,'Step 1 - Set global parameters'!$B$20), Validation!$Q$8, MTP_BaseYear-1))* (_xlfn.ANCHORARRAY($D$4)<=AssessmentEnd)* (INDEX(20:20, COLUMN($D$4)+_xlfn.SEQUENCE(1,COLUMNS(_xlfn.ANCHORARRAY($D$4)),0))>TFEU_Debt),_xlfn.ANCHORARRAY( $D$4)) ) - IF(OR('Step 1 - Set global parameters'!$B$18,'Step 1 - Set global parameters'!$B$20), Validation!$Q$8, MTP_BaseYear-1) ) >= 0.5, TRUE ),NA()) -> 
B164: Natural-language output string: | C164: =IF( NOT(Receives_reference_trajectory), Country & " does not receive a reference trajectory and is not assessed against the debt sustainability safeguard.", IF( OR(C159, C160), IF( OR( IF(C159, NOT(C161), FALSE), IF(C160, NOT(C162), FALSE) ), "The debt sustainability safeguard applies and " & Country & "'s outturn or plans are not compliant (diagnostic only—not assessed as a separate compliance criterion during implementation)." & IF( EscapeClauseActivated, " However, an escape clause has been activated.", "" ), "The debt sustainability safeguard applies and "&Country&"'s outturn and plans are compliant (diagnostic only—not assessed as a separate compliance criterion during implementation)." ), "The debt sustainability safeguard does not apply as "&Country&"'s debt is not above 60% of GDP." ) ) -> Latvia does not receive a reference trajectory and is not assessed against the debt sustainability safeguard.
B166: P4. Verifying compliance of the implementation of the MTP with the deficit resilience safeguard [Article 8]
D167: =_xlfn.SEQUENCE(1, AssessmentEnd-MTP_BaseYear+1, MTP_BaseYear) -> 2023 | E167: 2024 | F167: 2025 | G167: 2026
B168: Structural balance (% of GDP) | D168: =INDEX(18:18, COLUMN($D$18) + _xlfn.SEQUENCE(1, COLUMNS(_xlfn.ANCHORARRAY(D4))) - 1) -> -2.10632 | E168: -1.548 | F168: -2.4 | G168: -3
B169: Structural primary balance (% of GDP) | D169: =INDEX(19:19, COLUMN($D$19) + _xlfn.SEQUENCE(1, COLUMNS(_xlfn.ANCHORARRAY(D4))) - 1) -> -1.38124 | E169: -0.44949 | F169: -1.2 | G169: -1.6
B170: Change in structural primary balance | E170: =_xlfn.DROP(_xlfn.ANCHORARRAY(D169),,1) - _xlfn.TAKE(_xlfn.ANCHORARRAY(D169),,COLUMNS(_xlfn.ANCHORARRAY(D167))-1) -> 0.93175 | F170: -0.75051 | G170: -0.4
B171: Does structural deficit exceed 1.5% of GDP | D171: =IF(ISNUMBER(D167),D168<-1.5,"") -> TRUE | E171: =IF(ISNUMBER(E167),E168<-1.5,"") -> TRUE | F171: TRUE | G171: TRUE
B172: Does the deficit resilience safeguard apply? | C172: =IF( Receives_reference_trajectory, SUMPRODUCT( --( INDEX(171:171,1,COLUMN($D$167)): INDEX(171:171,1,COLUMN($D$167)+COLUMNS(_xlfn.ANCHORARRAY($D$167))-1) ) )>0, NA() ) -> 
B173: Is the required annual improvement in the structural primary balance 0.4 percentage points of GDP or 0.25? | C173: =IF(Receives_reference_trajectory,IF(AdjustmentPeriod=4,0.4,0.25),"Not applicable") -> Not applicable
B174: Do the annual improvements in the structural primary balance exceed the minimum (that is, if the helper row is TRUE in the previous year, is the change in the structural primary balance greater than 0.4 (or 0.25) percentage points of GDP? | C174: =IF( Receives_reference_trajectory, IF( NOT(IFERROR(C172,FALSE)), NA(), SUMPRODUCT( --(_xlfn.TAKE(IFERROR(_xlfn.CHOOSECOLS(171:171, COLUMN($D$167)+_xlfn.SEQUENCE(1,COLUMNS(_xlfn.ANCHORARRAY($D$167)))-1), FALSE), , COLUMNS(_xlfn.ANCHORARRAY($D$167))-1)), --(_xlfn.DROP(_xlfn.CHOOSECOLS(170:170, COLUMN($D$167)+_xlfn.SEQUENCE(1,COLUMNS(_xlfn.ANCHORARRAY($D$167)))-1), , 1) <= C173) )=0 ), NA() ) -> 
B176: Natural-language output string: | C176: =IF( NOT(Receives_reference_trajectory), Country & " does not receive a reference trajectory and is not assessed against the deficit resilience safeguard.",IF( NOT(C172), "The deficit resilience safeguard does not apply, as "&Country&"'s structural deficit never exceeds 1.5 % of GDP over the adjustment period.", IF( ISNA(C174), "The deficit resilience safeguard does not apply, as "&Country&"'s structural deficit never exceeds 1.5 % of GDP over the adjustment period.", IF( C174, "The deficit resilience safeguard applies and "&Country&"'s outturn and plans are compliant (diagnostic only—not assessed as a separate compliance criterion during implementation).", "The deficit resilience safeguard applies but "&Country&"'s outturn or plans are not compliant (diagnostic only—not assessed as a separate compliance criterion during implementation)." & IF( EscapeClauseActivated, " However, an escape clause has been activated.", "" ) ) ) ) ) -> Latvia does not receive a reference trajectory and is not assessed against the deficit resilience safeguard.
B178: P5. Checking progress of the structural primary balance toward the target that satisfies all criteria
B179: Net expenditure growth trajectories are derived using a structural primary balance target at the end of the four or seven year adjustment period. This assessment compares observed and planned SPBs to the average annual fiscal adjustment needed to reach that target.
B181: Total SPB adjustment required (or expansion permitted if negative) over the remaining horizon (since latest outturn to end of MTP) | C181: =IF( AdjustmentPeriodEnd > OutturnThrough, INDEX($37:$37, _xlfn.XMATCH(AdjustmentPeriodEnd, $32:$32, 0)) - INDEX($19:$19, _xlfn.XMATCH(OutturnThrough, $4:$4, 0)), NA() ) -> -0.85051
B182: Average annual consolidation required (or expansion permitted if negative) over remaining adjustment period (since latest outturn to end of MTP) | C182: =IF( AdjustmentPeriodEnd > OutturnThrough, ( INDEX($37:$37, _xlfn.XMATCH(AdjustmentPeriodEnd, $32:$32, 0)) - INDEX($19:$19, _xlfn.XMATCH(OutturnThrough, $4:$4, 0)) ) / (AdjustmentPeriodEnd - OutturnThrough), NA() ) -> -0.2126275
B183: Average annual consolidation planned (since latest outturn to end of assessment period) | C183: =IF( AssessmentEnd > OutturnThrough, ( INDEX($19:$19, _xlfn.XMATCH(AssessmentEnd, $4:$4, 0)) - INDEX($19:$19, _xlfn.XMATCH(OutturnThrough, $4:$4, 0)) ) / (AssessmentEnd - OutturnThrough), NA() ) -> -0.575255
B184: Average annual consolidation from MTP year T to end of assessment period (speed of adjustment in MTP) | C184: =IF( AssessmentEnd > MTP_YearT, ( INDEX($19:$19, _xlfn.XMATCH(AssessmentEnd, $4:$4, 0)) - INDEX($19:$19, _xlfn.XMATCH(MTP_YearT, $4:$4, 0)) ) / (AssessmentEnd - MTP_YearT), NA() ) -> -0.575255
B185: Is the updated outturn/plan consistent with no backloading? | C185: =IF(ISNA(C183), FALSE, AND(ISNUMBER(C183), C183 >= C182)) -> FALSE
B187: Natural-language output string | C187: =IFERROR( IF( AssessmentEnd <= OutturnThrough, "Not applicable — the assessment period does not extend beyond the latest outturn year; there is no forward-looking SPB path to assess.", IF( OR(ISNA(C183), NOT(ISNUMBER(C183))), IF( C181 < 0, Country & "'s SPB already exceeds the target level by " & TEXT(ABS(C181),"0.0") & " pp of GDP at the end of the adjustment period. There is fiscal room to allow the SPB to decline while still meeting the target.", IF( C181 = 0, Country & "'s SPB already meets the target level at the end of the adjustment period. No further consolidation is required.", Country & "'s total SPB adjustment required over the remaining horizon is " & TEXT(C181,"0.0") & " pp of GDP, and the required average annual consolidation is " & TEXT(C182,"0.0") & " pp of GDP." ) ), IF( C181 <= 0, IF( C183 < 0, IF( C181 < 0, Country & "'s SPB already exceeds the target level by " & TEXT(ABS(C181),"0.0") & " pp of GDP", Country & "'s SPB currently meets the target level" ) & ", but the planned path implies a deterioration of " & TEXT(ABS(C183),"0.0") & " pp of GDP per year on average over the assessment period." & " Additional adjustment in later years may be needed to maintain the target, creating a risk of backloading." & IF(EscapeClauseActivated, " However, an escape clause has been activated.", ""), IF( C181 < 0, Country & "'s SPB already exceeds the target level by " & TEXT(ABS(C181),"0.0") & " pp of GDP", Country & "'s SPB already meets the target level" ) & ". The planned average annual consolidation of " & TEXT(C183,"0.0") & " pp of GDP is consistent with maintaining that position." ), Country & "'s total SPB adjustment required over the remaining horizon is " & TEXT(C181,"0.0") & " pp of GDP. The planned average annual consolidation of " & TEXT(C183,"0.0") & " pp " & IF( C183 >= C182, "meets or exceeds the required " & TEXT(C182,"0.0") & " pp, indicating that adjustment is consistent with achieving the target SPB by the end of the horizon. Adjustment is not backloaded.", "falls short of the required " & TEXT(C182,"0.0") & " pp, indicating that additional measures may be needed to reach the target SPB. Adjustment may be backloaded." & IF(EscapeClauseActivated, " However, an escape clause has been activated.", "") ) ) ) ), NA() ) -> Latvia's SPB already exceeds the target level by 0.9 pp of GDP, but the planned path implies a deterioration of 0.6 pp of GDP per year on average over the assessment period. Additional adjustment in later years may be needed to maintain the target, creating a risk of backloading. However, an escape clause has been activated.
B189: Assessment of the latest Medium-Term Plan
B190: Assessing whether a reference trajectory applies (Article 5)
B191: ="That is, whether the Commission prepares and transmits a reference trajectory for net expenditure that "&Country&"'s MTP must not exceed (or an alternative net expenditure path meeting all requirements of Article 16(2) and (3) of Regulation (EU) 2024/1263 and sound and data-driven economic arguments explaining the difference)" -> That is, whether the Commission prepares and transmits a reference trajectory for net expenditure that Latvia's MTP must not exceed (or an alternative net expenditure path meeting all requirements of Article 16(2) and (3) of Regulation (EU) 2024/1263 and sound and data-driven economic arguments explaining the difference)
B193: M1: Checking whether the general government debt exceeds 60% of GDP
B194: Is gross debt under 60% of GDP in T-1 (or T-2 for plans submitted Jan-Mar)? | C194: =INDEX(20:20, MATCH(MTP_PlanFirstYear, 4:4, 0)) < TFEU_Debt -> TRUE
B195: Natural-language output string | C195: =IF( C194, Country & "'s gross general government debt in " & MTP_PlanFirstYear & " was " & TEXT(INDEX(20:20, MATCH(MTP_PlanFirstYear, 4:4, 0)), "0.0") &"% of GDP"& ", below the 60% TFEU reference value.", Country & "'s gross general government debt in " & MTP_PlanFirstYear & " was " & TEXT(INDEX(20:20, MATCH(MTP_PlanFirstYear, 4:4, 0)), "0.0") &"% of GDP"& ", higher than the 60% TFEU reference level." ) -> Latvia's gross general government debt in 2023 was 44.4% of GDP, below the 60% TFEU reference value.
B197: M2: Checking whether the general government deficit exceeds 3% of GDP
B198: Is the general government deficit less than 3% of GDP in T-1 (or T-2 for plans submitted Jan-Mar)? | C198: =INDEX(17:17, MATCH(MTP_PlanFirstYear, 4:4, 0)) > -TFEU_Deficit -> TRUE
B199: Natural-language output string | C199: =IF( INDEX(17:17, MATCH(MTP_PlanFirstYear, 4:4, 0))>=0, Country & "'s net lending (general government surplus) in " & MTP_PlanFirstYear & " was " & TEXT(INDEX(17:17, MATCH(MTP_PlanFirstYear, 4:4, 0)), "0.0") & "% of GDP, which does not exceed the 3% TFEU deficit reference value.", Country & "'s net borrowing (general government deficit) in " & MTP_PlanFirstYear & " was " & TEXT(-INDEX(17:17, MATCH(MTP_PlanFirstYear, 4:4, 0)), "0.0") & "% of GDP, which " & IF(-INDEX(17:17, MATCH(MTP_PlanFirstYear, 4:4, 0))<=3, "does not exceed", "exceeds") & " the 3% TFEU deficit reference value." ) -> Latvia's net borrowing (general government deficit) in 2023 was 2.3% of GDP, which does not exceed the 3% TFEU deficit reference value.
B201: M3: Checking whether the country is required to submit an MTP that adheres to a reference trajectory (or an alternative path meeting all criteria)
B202: Is the country required to submit an MTP that adheres to a reference trajectory (or alternative path meeting all criteria) | C202: =NOT(AND($C$194,$C$198)) -> FALSE
B203: Natural-language output string | C203: =IF( C202, IF( AND(NOT($C$194), $C$198), Country & "'s gross debt was above 60% of GDP in "& MTP_PlanFirstYear & " (T" & IF(MTP_BaseYearIsTminus2,"-2","-1") & "), therefore ", IF( AND($C$194, NOT($C$198)), Country & "'s general government deficit was above 3% of GDP in "& MTP_PlanFirstYear & " (T" & IF(MTP_BaseYearIsTminus2,"-2","-1") & "), therefore ", IF( AND(NOT($C$194), NOT($C$198)), Country & "'s gross debt was above 60% of GDP and its general government deficit was above 3% of GDP in "& MTP_PlanFirstYear & " (T" & IF(MTP_BaseYearIsTminus2,"-2","-1") & "), therefore ", "" ) ) ) & "it must adhere to an MTP with a planned net expenditure path that does not exceed the Commission's reference trajectory (or an alternative path that meets all criteria). If the planned net expenditure path is higher, " & Country & " must provide sound and data-driven economic arguments explaining the difference.", Country & " does not receive a reference trajectory but its MTP must contain a net expenditure path that complies with TFEU general government debt and deficit sustainability requirements." ) -> Latvia does not receive a reference trajectory but its MTP must contain a net expenditure path that complies with TFEU general government debt and deficit sustainability requirements.
B205: Assessing whether the submitted MTP meets information requirements and criteria for an extension of the adjustment period, if requesting one (Articles 13 and 14)
B206: This requires the IFI to scrutinise the plan and determine whether it meets the requirements of Article 13 and NOTICE C/2024/3975 (Guidance to Member States on the Information Requirements for the Medium-Term Fiscal-Structural Plans and for the Annual Progress Reports)
B207: M4: Determining whether the MTP contains all information required by Article 13 of Regulation (EU) 2024/1263
B209: Has the IFI scrutinised and confirmed that all elements are present? | C209: =AND('Step 0.2 (MTP) - IFI scrutiny'!F7:F27) -> TRUE
B210: Natural-language output string | C210: =IF(C209,"The "&IFI_Name&" has concluded that the plan contains all information required by Article 13 of Regulation (EU) 2024/1263.","The "&IFI_Name&" has concluded that the plan is missing elements required by Article 13 of Regulation (EU) 2024/1263.") -> The Fiscal Discipline Council has concluded that the plan contains all information required by Article 13 of Regulation (EU) 2024/1263.
B212: M5: Determining whether reform and investment commitments fulfil the criteria for an extension of the adjustment period (Article 14)
B213: Has the country requested an extension of the adjustment period | C213: ='Step 0.2 (MTP) - IFI scrutiny'!F30 -> FALSE
B214: Have the criteria for an extension of the adustment period been fulfilled | C214: =IF( NOT(C213), NA(), AND( 'Step 0.2 (MTP) - IFI scrutiny'!F31:F42=TRUE, 'Step 0.2 (MTP) - IFI scrutiny'!F31:F42<>"NA" ) ) -> 
B215: Natural-language output string | C215: =IF( AdjustmentPeriod<>7, "Not applicable. " & Country & " has not requested an extension of the adjustment period.", IF( C214, "The " & IFI_Name & " judges that " & Country & "'s reform and investment commitments fulfil the criteria in Article 14 for an extension of the adjustment period.", "The " & IFI_Name & " does not judge that " & Country & "'s reform and investment commitments fulfil the criteria in Article 14 for an extension of the adjustment period." ) ) -> Not applicable. Latvia has not requested an extension of the adjustment period.
B217: Assessing the MTP’s net expenditure path against the Commission’s prior guidance
B218: That is, whether the net expenditure path in the latest MTP exceeds the Commission’s prior guidance (either a reference trajectory or technical information), and, if it does, whether the accompanying explanation and underlying assumptions are satisfactory and the path nevertheless complies with the requirements of Regulation (EU) 2024/1263
B220: M6: Checking whether the average net expenditure growth of the MTP over the adjustment period is higher than the prior guidance transmitted by the Commission
B221: Average net expenditure growth, prior guidance | C221: =AVERAGEIFS( 70:70, 32:32, ">" & MTP_YearT, 32:32, "<=" & AdjustmentPeriodEnd ) -> 3.058049138
B222: Average net expenditure growth, MTP | C222: =AVERAGEIFS( 34:34, 32:32, ">" & MTP_YearT, 32:32, "<=" & AdjustmentPeriodEnd ) -> 4.05
B223: Does planned average net expenditure growth exceed prior guidance over the adjustment period? | C223: =C221-C222<0 -> TRUE
B224: If so, does the IFI deems the explanation to be satisfactory and based on sound and data-driven economic arguments explaining the difference? | C224: =IF(Receives_reference_trajectory,'Step 0.2 (MTP) - IFI scrutiny'!F3="Yes","Not applicable") -> Not applicable | AC224: IFI assessment = TRUE
B225: Natural-language output string | C225: =IF( C223, "The average net expenditure growth reported in " & Country & "'s plan over the adjustment period (" & MTP_YearT+1 & "–" & AdjustmentPeriodEnd & ") is higher than the " & IF(Receives_reference_trajectory,"reference trajectory","technical information path") & " transmitted by the Commission on " & TEXT(PriorGuidanceTransmissionDate,"d mmmm yyyy") & IF(AND(C223, C224<>"Not applicable"), "", "."), "The average net expenditure growth reported in " & Country & "'s plan over the adjustment period (" & MTP_YearT+1 & "–" & AdjustmentPeriodEnd & ") does not exceed the average net expenditure growth in the " & IF(Receives_reference_trajectory,"reference trajectory","technical information") & " transmitted by the Commission on " & TEXT(PriorGuidanceTransmissionDate,"d mmmm yyyy") & "." ) & IF( AND(C223, NOT(Receives_reference_trajectory)), " but remaining below the technical information path is not required.", IF( AND(C223, C224<>"Not applicable"), IF( C224, ", but the " & IFI_Name & " deems the explanation and alternative assumptions to be satisfactory.", ", and the " & IFI_Name & " does not deem the explanation and alternative assumptions to be satisfactory." ), "" ) ) -> The average net expenditure growth reported in Latvia's plan over the adjustment period (2025–2028) is higher than the technical information path transmitted by the Commission on 30 June 2024. but remaining below the technical information path is not required.
... 100 more rows

Sheet Chart data
E2: =_xlfn.SEQUENCE(1, AdjustmentPeriodEnd+10-MTP_BaseYear+1, MTP_BaseYear) -> 2023 | F2: 2024 | G2: 2025 | H2: 2026 | I2: 2027 | J2: 2028 | K2: 2029 | L2: 2030 | M2: 2031 | N2: 2032 | O2: 2033 | P2: 2034 | Q2: 2035 | R2: 2036 | S2: 2037 | T2: 2038
B3: Figure 1 | C3: ="Performance of net expenditure growth compared to the "&IF(MTP_Council_Endorsed,"endorsed plan","the proposed plan") -> Performance of net expenditure growth compared to the endorsed plan
